Workbook

Sheet Instructions
B7: ="Farm Gross Margin Guide -"&TEXT(m_year,"0000") -> Farm Gross Margin Guide -2026
B8: This spreadsheet can take a few moments to load
B9: PLEASE NOTE:THIS VERSION WILL ONLY WORK WITH EXCEL VERSIONS 365 & ABOVE FOR WINDOWS ONLY. It will not work with Excel for Mac, Ipad, Android, tablets etc.
B12: Before you start you will need to enable macros, otherwise the program will not work.
B13: This may appear as a Security Warning at the top of your page. To do this, click on “Enable Content”.
B14: Clicking “Enable Content” allows you to enter data into the Excel Worksheet.
B22: You may also see a message about "PROTECTED VIEW". Please click "Enable Editing".
B29: Start in the “Main” sheet:
B31: Select
B32: 1. “Crop Types” (including pastures) you want to use,
B33: 2. “Rainfall Zone” and
B34: 3. “Machinery Treatment Method”.
B35: 4. Prices for key inputs (fertiliser, fuel and glyphosate) can be changed.
B36: NB this will update these prices for all gross margins.
B37: Selecting the “Crop Types” will open up new sheets for each crop type chosen.
B38: Click on the individual sheets and make the necessary changes. NB. A crop area needs to be inserted in the
B39: “Red” box in top right hand corner of each Gross Margin sheet to activate the “Summary” sheet.
B41: To compare two different rotations go to the “Main” sheet and select “Compare Crop Rotations” (top left).
B42: This will open a new list of “Crop Types”. Select a new list. If there are crop types with the same gross
B43: margin in Rotation 1 and 2, “click” the copy button to copy the information you have entered (Rotation 1)
B44: to the new sheet (Rotation 2). For new crop types the information will need to be adjusted as required.
B46: The “Summary” sheet compares the outputs of the two different rotations.
B48: Use the “Livestock Gross Margin” file to generate the income for the pasture options.
B50: In the “Summary” sheet Overhead or Fixed costs can be added to quickly produce a Profit and Loss
B51: Statement for the business.
B86: Yellow cells = data entry (some yellow cells contain formulas, these usually represent default
B87: values but may be over written. To revert back to the default value formula click the blue 'Reset…'
B88: link next to the cell.
B89: Blue cells contain formulas, are protected and can not be overwritten.
B90: Red cell = crop / pasture area.
B104: The “Cash Flow” sheet is a new initiative and still in development, so any feedback would be appreciated.
B105: This sheet can be used to quickly give an indication of the likely "Peak debt" of the business to ensure
B106: there is sufficient funds and/or borrowing capacity for the coming season.
B108: Insert percentages in each month for cropping "Income" and "Expenses". (The actual $ for Income and Expenses comes from the
B109: "Summary" sheet.) You will need to add livestock income and expenses as well as other cropping costs (yellow boxes) i.e. seed,
B110: Fuel & oil, Machinery R&M etc. The figures in Column O are from the "Summary" sheet. Additional costs from the Livestock enterprises
B111: will need to be added to these cropping costs.
B112: Note: These figures do not account for GST or diesel excise tax
B114: Risk Module Instructions
B115: Ensure Overhead Costs have been entered in "Summary" sheet.
B117: Click "Start Risk Module"
B118: In the “Risk data” sheet, enter yields for (1) The lowest 10% of years and (2) the best 10% of years for all your crops. Yields for other
B119: deciles will be calculated, with Decile 5 coming from the gross margin sheets. These figures can be over ridden or adjusted if required,
B120: considering frost, weeds, disease and delayed sowing/germination by clicking the "Open" buttons. (These can be left blank if not required)
B121: Decile prices are used to further consider risk to compare against your own prices as entered in the gross margin sheets.
B122: When comparing two rotations/scenarios, additional Overhead costs can be added for capital i.e. machinery, land, livestock
B123: and finance costs in the "Summary" sheet.
B125: Click the “Tick box” to compare your yields with the “SARDI Yield Calculator”.
B126: This calculator can be used to determine potential crop yields using local rainfall data, considering stored soil moisture and soil types.
B127: New rainfall locations can be downloaded from "Silo" and added. Follow the instructions.
B128: Hover over the symbol for more information or explanation.
B129: NB Intercept (unavailable or lost water) varies with rainfall and soil type, including soil constraints (shallow soils, high salt and boron etc) and leaching/run-off.
B130: Slope varies with agronomic factors i.e. Time of sowing/germination, weeds, disease and nutrition.
B132: For pasture and livestock production and returns click the “Tick if you manage livestock” box and enter data as required.
B133: Click “Historical Gross Margins” to get historical livestock returns in $/DSE over the last 10 years to better understand variability of livestock
B134: returns and to help adjust $/DSE figures.
B136: Click "Next" button
B137: In “Risk Input” sheet, adjust costs of mid to late season inputs (either reduced or increased from average gross margin figures)
B138: depending on the season to date rainfall and yield potential. Default figures have been pre-loaded, but these can be changed.
B139: NB the tables to the right can be used to calculate the costs of inputs per hectare or DSE.
B141: Click either:
B142: “Compare Crops” to compare the gross margins of different crops in a rotation/scenario or crops between different rotations/scenarios
B143: e.g. different management of a crop or to provide a risk profile of different crops.
B144: OR
B145: “Compare Scenarios” to compare the profitability of your rotations/scenarios over a range of seasons and commodity prices in
B146: both table and graph form. This provides a risk profile of your whole farm business.
B147: Select the different rotation and price options by using the “Tick boxes” to compared different scenarios.
B148: Adjust "Low" and "High" Business Profitability figures to change "Table colours".
B153: For technical support or to report errors/omissions regarding this spreadsheet please
B154: email Michael Wurst at:
B155: michaelwurst1@gmail.com

Sheet _ColumnStateStorage (hidden)
A1: Column Index | B1: Is Hidden | C1: Width
A2: 1 | B2: FALSE | C2: 4
A3: 2 | B3: FALSE | C3: 0.83
A4: 3 | B4: FALSE | C4: 30.14
A5: 4 | B5: FALSE | C5: 2.86
A6: 5 | B6: FALSE | C6: 9.57
A7: 6 | B7: FALSE | C7: 30.57
A8: 7 | B8: FALSE | C8: 8.14
A9: 8 | B9: TRUE | C9: 0
A10: 9 | B10: FALSE | C10: 4
A11: 10 | B11: FALSE | C11: 0.08
A12: 11 | B12: FALSE | C12: 25.86
A13: 12 | B13: FALSE | C13: 10.86
A14: 13 | B14: FALSE | C14: 4.43
A15: 14 | B15: FALSE | C15: 26.29
A16: 15 | B16: FALSE | C16: 8.14
A17: 16 | B17: FALSE | C17: 8.14
A18: 17 | B18: FALSE | C18: 8.14
A19: 18 | B19: FALSE | C19: 8.14
A20: 19 | B20: FALSE | C20: 8.14
A21: 20 | B21: FALSE | C21: 8.14
A22: 21 | B22: FALSE | C22: 8.14
A23: 22 | B23: FALSE | C23: 8.14

Sheet Main
C3: ="FARM GROSS MARGIN GUIDE - "&TEXT(m_year,"0000") -> FARM GROSS MARGIN GUIDE - 2026 | L3: ="Version-"&TEXT(MODEL_VERSION,"0.0") -> Version-11.0
C6: by clicking checkboxes or All or None buttons | F6: by clicking checkboxes or All or None buttons | K6: if more than one rainfall zone is required, please save a separate copy of this spreadsheet.
B7: FALSE | C7: Wheat | F7: Wheat | H7: FALSE | K7: LOW (<350mm)
B8: FALSE | C8: Faba Beans | F8: Faba Beans | H8: FALSE | K8: MEDIUM (350-400mm)
B9: FALSE | C9: Canola Clearfield | F9: Canola Clearfield | H9: FALSE | K9: HIGH (>400MM)
B10: FALSE | C10: Canola Conventional | F10: Canola Conventional | H10: FALSE
B11: FALSE | C11: Canola RoundUp Ready | F11: Canola RoundUp Ready | H11: FALSE
B12: FALSE | C12: Canola Tri Tolerant | F12: Canola Tri Tolerant | H12: FALSE
B13: FALSE | C13: Kabuli Chickpeas | F13: Kabuli Chickpeas | H13: FALSE
B14: FALSE | C14: Durum | F14: Durum | H14: FALSE | K14: Contract Rates for Machinery Ops
B15: FALSE | C15: Export Oaten Hay | F15: Export Oaten Hay | H15: FALSE | K15: Variable costs (Fuel and Repairs) only
B16: FALSE | C16: Feed Barley | F16: Feed Barley | H16: FALSE
B17: FALSE | C17: Field Peas | F17: Field Peas | H17: FALSE
B18: FALSE | C18: Lupins | F18: Lupins | H18: FALSE
B19: FALSE | C19: Malt Barley | F19: Malt Barley | H19: FALSE
B20: FALSE | C20: Milling Oats | F20: Milling Oats | H20: FALSE | K20: Item | L20: Cost | M20: Unit
B21: FALSE | C21: Lentils | F21: Lentils | H21: FALSE | K21: DAP 18:20 | L21: =defaultcost_1 -> 1.295 | M21: kg | N21: Reset cost to system default rate
B22: FALSE | C22: Lentils IMI Tolerant | F22: Lentils IMI Tolerant | H22: FALSE | K22: Urea | L22: =defaultcost_2 -> 0.795 | M22: kg | N22: Reset cost to system default rate
B23: FALSE | C23: Lentils MET | F23: Lentils MET | H23: FALSE | K23: Glyphosate 540 | L23: =defaultcost_3 -> 5.4 | M23: litre | N23: Reset cost to system default rate
B24: FALSE | C24: Triticale | F24: Triticale | H24: FALSE | K24: Diesel (excl gst) | L24: =defaultcost_4 -> 1.5 | M24: litre | N24: Reset cost to system default rate
B25: FALSE | C25: Vetch | F25: Vetch | H25: FALSE | O25: =IF(NOT(ISERROR(user_cost1)),IF(user_cost1>0,"","**Warning** - invalid cost amount. Please enter a value greater than zero"),"**Warning** - invalid cost amount. Please enter a value greater than zero") -> 
B26: FALSE | C26: Sown Pasture | F26: Sown Pasture | H26: FALSE | O26: =IF(NOT(ISERROR(user_cost2)),IF(user_cost2>0,"","**Warning** - invalid cost amount. Please enter a value greater than zero"),"**Warning** - invalid cost amount. Please enter a value greater than zero") -> 
B27: FALSE | C27: Self Regen Pasture | F27: Self Regen Pasture | H27: FALSE | O27: =IF(NOT(ISERROR(user_cost3)),IF(user_cost3>0,"","**Warning** - invalid cost amount. Please enter a value greater than zero"),"**Warning** - invalid cost amount. Please enter a value greater than zero") -> 
B28: FALSE | C28: Lucerne Pasture Cereal Zone | F28: Lucerne Pasture Cereal Zone | H28: FALSE | K28: Evaluate the risk / profit variability of farming systems over a range of seasons and commodity prices | O28: =IF(NOT(ISERROR(user_cost4)),IF(user_cost4>0,"","**Warning** - invalid cost amount. Please enter a value greater than zero"),"**Warning** - invalid cost amount. Please enter a value greater than zero") -> 
B29: FALSE | C29: Lucerne Pasture High Rainfall | F29: Lucerne Pasture High Rainfall | H29: FALSE
B30: FALSE | C30: Phalaris Sub Cereal Zone | F30: Phalaris Sub Cereal Zone | H30: FALSE
B31: FALSE | C31: Phalaris Sub HR Grazing | F31: Phalaris Sub HR Grazing | H31: FALSE
B32: FALSE | H32: FALSE
B33: FALSE | H33: FALSE
B34: FALSE | H34: FALSE

Sheet Excel References (hidden)
B3: vlookup array formulas in individual sheets | C3: http://chandoo.org/wp/2014/10/28/multi-condition-vlookup/
B5: Or this embed word doc

Sheet Data_Main (hidden)
B4: Year | C4: 2026 | D4: Enter
B5: Year_Long | C5: =m_year&"/"&m_year+1 -> 2026/2027 | D5: Calculated
B6: Year_Short | C6: =RIGHT(m_year,2)&"/"&RIGHT(m_year,2)+1 -> 26/27 | D6: Calculated
B7: Selected Rainfall Zone | C7: =CHOOSE(rng_rainfall,"Low","Medium","High") ->  | D7: Calculated
B8: show_disclaimer | C8: TRUE | D8: Enter
B9: MODEL VERSION | C9: 11
B10: Rotation Type | C10: 1 | D10: Calculated
B11: Use yields | C11: FALSE | D11: Calculated
B12: Livestock checkbox | C12: TRUE | D12: Calculated
B19: Crop_Type
B20: Wheat
B21: Faba Beans
B22: Canola Clearfield
B23: Canola Conventional
B24: Canola Tri Tolerant
B25: Canola Roundup Ready
B26: Kabuli Chickpeas
B27: Durum
B28: Export Oaten Hay
B29: Feed Barley
B30: Field Peas
B31: Lupins
B32: Malt Barley
B33: Milling Oats
B34: Lentils
B35: Lentils IMI Tolerant
B36: Lentils GIA Metro
B37: Triticale
B38: Vetch
B39: Sown Pasture
B40: Self Regen Pasture
B41: Lucerne Pasture Cereal
B42: Lucerne Pasture Grazing
B43: Phalaris Sub Pasture Cereal
B44: Phalaris Sub Grazing

Sheet Data_Sheets (hidden)
B10: Sheet | C10: State(show to keep sheet visible or blank to hide)
B11: Instructions | C11: Show
B12: _ColumnStateStorage
B13: Main | C13: Show
B14: Excel References
B15: Data_Main
B16: Data_Sheets | C16: Show
B17: GM_INFO
B18: GM Crib
B19: Livestock GM
B20: DV_TABLES
B21: Summary GM figures
B22: Summary | C22: Show
B23: Cash Flow | C23: Show
B24: Yield Calculator
B25: RISK Data
B26: RISK Input
B27: RISK Compare
B28: RISK Profit
B29: Cashflow Template
B30: CROP SHEETS>> | C30: Show
B31: WHEAT
B32: WHEAT R2
B33: BEANS
B34: BEANS R2
B35: CANOLA CLEARFIELD
B36: CANOLA CLEARFIELD R2
B37: CANOLA ROUNDUP READY
B38: CANOLA ROUNDUP READY R2
B39: CANOLA CONVENTIONAL
B40: CANOLA CONVENTIONAL R2
B41: CANOLA TRITOLERANT
B42: CANOLA TRITOLERANT R2
B43: CHICKPEAS
B44: CHICKPEAS R2
B45: DURUM
B46: DURUM R2
B47: EXPORT OATEN HAY
B48: EXPORT OATEN HAY R2
B49: FEED BARLEY
B50: FEED BARLEY R2
B51: PEAS
B52: PEAS R2
B53: LUPINS
B54: LUPINS R2
B55: MALT BARLEY
B56: MALT BARLEY R2
B57: MILLING OATS
B58: MILLING OATS R2
B59: LENTILS
B60: LENTILS R2
B61: TRITICALE
B62: TRITICALE R2
B63: VETCH
B64: VETCH R2
B65: LENTILS IMI TOLERANT
B66: LENTILS IMI TOLERANT R2
B67: LENTILS GIA METRO
B68: LENTILS GIA METRO R2
B69: SOWN PASTURE
B70: SOWN PASTURE R2
B71: SELF REGEN PASTURE
B72: SELF REGEN PASTURE R2
B73: LUCERNE PASTURE CEREAL
B74: LUCERNE PASTURE CEREAL R2
B75: LUCERNE PASTURE GRAZING
B76: LUCERNE PASTURE GRAZING R2
B77: PHALARIS SUB PASTURE CEREAL
B78: PHALARIS SUB PASTURE CEREAL R2
B79: PHALARIS SUB PASTURE GRAZING
B80: PHALARIS SUB PASTURE GRAZING R2

Sheet GM_INFO (hidden)
B1: G.M. LINK SHEET
B3: GRDC Levy % | C3: 0.0112
B4: Summer Weed Control | C4: 25
B11: ="Machinery Cost Information - " & TEXT(m_year,"0000") -> Machinery Cost Information - 2026
B14: Repairs & Maintenance - as a % of new value (shown below).
B15: Lubrication costs | C15: 0.05 | D15: of fuel cost.
B17: This Table is now used. Please update each year! | J17: Costs per Hectare | O17: These cells have number of operations for Fuel costs from the tables in Michaels model (a couple of crops have 2 sets of fuel prices, hence the duplication of crop names with (2) appended to them. These are used in the table further down to calc fuel costs (R&M from his tables aren't used here) >>>>>
B18: Machine | C18: New Value $ | D18: Life-hrs | E18: Work Efficiency % | F18: Work Rate ha/hr | G18: Fuel Use l/hr | H18: RM % New Value | I18: Hrs use pa | J18: R&M | K18: Fuel | L18: Lube | M18: Total Fuel Lube | N18: Total | O18: Wheat | P18: Faba Beans | Q18: Canola Clearfield | R18: Canola Conventional | S18: Canola Tri Tolerant | T18: Canola Roundup Ready | U18: Kabuli Chickpeas | V18: Durum | W18: Export Oaten Hay | X18: Feed Barley | Y18: Field Peas | Z18: Lupins | AA18: Malt Barley | AB18: Milling Oats | AC18: Lentils | AD18: Lentils IMI Tolerant | AE18: Lentils GIA Metro | AF18: Triticale | AG18: Vetch | AH18: Sown Pasture | AI18: Self Regen Pasture | AJ18: Lucerne Pasture Cereal | AK18: Lucerne Pasture Grazing | AL18: Phalaris Sub Pasture Cereal | AM18: Phalaris Sub Grazing | AN18: Wheat(2) | AO18: Faba Beans(2) | AP18: Canola Clearfield(2) | AQ18: Canola Conventional(2) | AR18: Canola Tri Tolerant(2) | AS18: Canola Roundup Ready(2) | AT18: Kabuli Chickpeas(2) | AU18: Durum(2) | AV18: Export Oaten Hay(2) | AW18: Feed Barley(2) | AX18: Field Peas(2) | AY18: Lupins(2) | AZ18: Malt Barley(2) | BA18: Milling Oats(2) | BB18: Lentils(2) | BC18: Lentils IMI Tolerant(2) | BD18: Lentils GIA Metro(2) | BE18: Triticale(2) | BF18: Vetch(2) | BG18: Sown Pasture(2) | BH18: Self Regen Pasture(2) | BI18: Lucerne Pasture Cereal(2) | BJ18: Lucerne Pasture Grazing(2) | BK18: Phalaris Sub Pasture Cereal(2) | BL18: Phalaris Sub Grazing(2)
B19: Tractor (300 kW) | C19: 800000 | D19: 8,000 | H19: 2 | I19: 500 | J19: 32 | K19: Cost per hour | L19: Cost per hour | N19: 32
B20: Tractor (90 kW) | C20: 200000 | D20: 8,000 | H20: 2 | I20: 500 | J20: 8 | K20: Cost per hour | L20: Cost per hour | N20: 8
B21: S.P. header (13.5 m) | C21: 1100000 | D21: 2,500 | E21: 0.95 | F21: 12 | G21: 60 | H21: 2.2 | I21: 250 | J21: 8.066666667 | K21: 4.92 | L21: 0.246 | M21: 5.166 | N21: 13.23266667 | O21: 1 | Q21: 1 | R21: 1 | S21: 1 | T21: 1 | V21: 1 | X21: 1 | AA21: 1 | AB21: 1 | AF21: 1
B22: S.P. header 13.5 m)(peas, lentils, vetch) | C22: 1100000 | D22: 2,500 | E22: 0.86 | F22: 9 | G22: 60 | H22: 3.3 | I22: 250 | J22: 16.13333333 | K22: 6.56 | L22: 0.328 | M22: 6.888 | N22: 23.02133333 | Y22: 1 | AC22: 1 | AD22: 1 | AE22: 1 | AG22: 1
B23: SP header(13.5m) beans, chicks, lupins) | C23: 1100000 | D23: 2,500 | E23: 0.9 | F23: 9.5 | G23: 60 | H23: 2.7 | I23: 250 | J23: 12.50526316 | K23: 6.214736842 | L23: 0.3107368421 | M23: 6.525473684 | N23: 19.03073684 | P23: 1 | U23: 1 | Z23: 1
B24: Chaser bin | C24: 100000 | D24: 8,000 | E24: 0.5 | F24: 11.4 | G24: 10 | H24: 2 | I24: 250 | J24: 0.701754386 | K24: 0.8631578947 | L24: 0.04315789474 | M24: 0.9063157895 | N24: 1.608070175 | O24: 1 | P24: 1 | Q24: 1 | R24: 1 | S24: 1 | T24: 1 | U24: 1 | V24: 1 | X24: 1 | Y24: 1 | Z24: 1 | AA24: 1 | AB24: 1 | AC24: 1 | AD24: 1 | AE24: 1 | AF24: 1 | AG24: 1
B25: Airseeder (15m) | C25: 700000 | D25: 2,000 | E25: 0.8 | F25: 12 | G25: 60 | H25: 1.5 | I25: 250 | J25: 3.5 | K25: 4.92 | L25: 0.246 | M25: 5.166 | N25: 8.666 | O25: 1 | P25: 1 | Q25: 1 | R25: 1 | S25: 1 | T25: 1 | U25: 1 | V25: 1 | W25: 1 | X25: 1 | Y25: 1 | Z25: 1 | AA25: 1 | AB25: 1 | AC25: 1 | AD25: 1 | AE25: 1 | AF25: 1 | AG25: 1 | AH25: 1 | AJ25: 1 | AK25: 1 | AL25: 1 | AM25: 1
B26: Boomspray (36 m) | C26: 500000 | D26: 1,500 | E26: 0.75 | F26: 45 | G26: 25 | H26: 1.5 | I26: 150 | J26: 1.111111111 | K26: 0.5466666667 | L26: 0.02733333333 | M26: 0.574 | N26: 1.685111111 | O26: 6 | P26: 10 | Q26: 11 | R26: 11 | S26: 11 | T26: 8 | U26: 10 | V26: 5 | W26: 6 | X26: 5 | Y26: 9 | Z26: 8 | AA26: 5 | AB26: 6 | AC26: 10 | AD26: 10 | AE26: 10 | AF26: 6 | AG26: 8 | AH26: 4 | AI26: 3 | AJ26: 3 | AK26: 3 | AL26: 3 | AM26: 3 | BI26: 2 | BJ26: 2 | BK26: 2 | BL26: 2
B27: Roller (12 m) | C27: 50000 | D27: 5,000 | E27: 0.9 | F27: 10 | G27: 20 | H27: 1 | I27: 20 | J27: 2.5 | K27: 1.968 | L27: 0.0984 | M27: 2.0664 | N27: 4.5664 | W27: 1 | Y27: 1 | AC27: 1 | AD27: 1 | AE27: 1 | AG27: 1 | BI27: 1 | BJ27: 1 | BK27: 1 | BL27: 1
B28: Mower-conditioner (5m) | C28: 70000 | D28: 2,000 | E28: 0.8 | F28: 4 | G28: 20 | H28: 2 | I28: 100 | J28: 3.5 | K28: 4.92 | L28: 0.492 | M28: 5.412 | N28: 8.912
B32: FEED & OTHER COSTS | C32: water | E32: 2.5 | F32: /DSE
C33: Veh fuel, R&M | E33: 1.5 | F33: /DSE
C34: other | E34: 0.5 | F34: /DSE
C35: hay | E35: 280 | F35: /tonne incl freight
C36: Feed Cereal grain | E36: 290 | F36: /tonne incl freight
C37: lupins | E37: 450 | F37: /tonne incl freight
A40: Default Cost Selected Items | B40: CHEMICALS | H40: RATES>>>>
B41: Name | C41: Rainfall | D41: Type | E41: Category | F41: Units | G41: Cost | H41: Wheat | I41: Faba Beans | J41: Canola Clearfield | K41: Canola Conventional | L41: Canola Tri Tolerant | M41: Canola Roundup Ready | N41: Kabuli Chickpeas | O41: Durum | P41: Export Oaten Hay | Q41: Feed Barley | R41: Field Peas | S41: Lupins | T41: Malt Barley | U41: Milling Oats | V41: Lentils | W41: Lentils IMI Tolerant | X41: Lentils GIA Metro | Y41: Triticale | Z41: Vetch | AA41: Sown Pasture | AB41: Self Regen Pasture | AC41: Lucerne Pasture Cereal | AD41: Lucerne Pasture Grazing | AE41: Phalaris Sub Pasture Cereal | AF41: Phalaris Sub Grazing | AG41: Adjuvant Desc | AH41: Adjuvant Cost/ha
B42: 2,4-D Amine (625g/l) | C42: LOW | D42: Chemical | E42: Herbicide-Post Emergent | F42: litre
B43: 2,4-D Amine (625g/l) | C43: MEDIUM | D43: Chemical | E43: Herbicide-Post Emergent | F43: litre
B44: 2,4-D Amine (625g/l) | C44: HIGH | D44: Chemical | E44: Herbicide-Post Emergent | F44: litre
B45: 2,4-D LV Ester (680g/l) | C45: LOW | D45: Chemical | F45: litre | G45: 7.75
B46: 2,4-D LV Ester (680g/l) | C46: MEDIUM | D46: Chemical | F46: litre | G46: 7.75
B47: 2,4-D LV Ester (680g/l) | C47: HIGH | D47: Chemical | F47: litre | G47: 7.75
B48: Achieve® WG | C48: LOW | D48: Chemical | E48: Herbicide-Post Emergent | F48: kg | G48: 58 | AG48: Surfactant | AH48: 4.01
B49: Achieve® WG | C49: MEDIUM | D49: Chemical | E49: Herbicide-Post Emergent | F49: kg | G49: 58 | Y49: 0.4 | AG49: Surfactant | AH49: 4.01
B50: Achieve® WG | C50: HIGH | D50: Chemical | E50: Herbicide-Post Emergent | F50: kg | G50: 58 | Y50: 0.4 | AG50: Surfactant | AH50: 4.01
B51: Adigor® | C51: LOW | D51: Chemical | F51: litre | G51: 12.75
B52: Adigor® | C52: MEDIUM | D52: Chemical | F52: litre | G52: 12.75
B53: Adigor® | C53: HIGH | D53: Chemical | F53: litre | G53: 12.75
B54: Affinity® | C54: LOW | D54: Chemical | E54: Herbicide-Post Emergent | F54: litre | G54: 179
B55: Affinity® | C55: MEDIUM | D55: Chemical | E55: Herbicide-Post Emergent | F55: litre | G55: 179 | H55: 0.1 | O55: 0.1 | Q55: 0.1 | T55: 0.1
B56: Affinity® | C56: HIGH | D56: Chemical | E56: Herbicide-Post Emergent | F56: litre | G56: 179 | H56: 0.1 | O56: 0.1 | Q56: 0.1 | T56: 0.1
B57: Affirm | C57: LOW | D57: Chemical | E57: Insecticide | F57: litre | G57: 80 | J57: 0 | K57: 0 | L57: 0 | M57: 0
B58: Affirm | C58: MEDIUM | D58: Chemical | E58: Insecticide | F58: litre | G58: 80 | J58: 0.3 | K58: 0.3 | L58: 0.3 | M58: 0.3
B59: Affirm | C59: HIGH | D59: Chemical | E59: Insecticide | F59: litre | G59: 80 | J59: 0.3 | K59: 0.3 | L59: 0.3 | M59: 0.3
B60: Alpha-cypermethrin 250g/L | C60: LOW | D60: Chemical | E60: Insecticide | F60: litre | G60: 16
B61: Alpha-cypermethrin 250g/L | C61: MEDIUM | D61: Chemical | E61: Insecticide | F61: litre | G61: 16
B62: Alpha-cypermethrin 250g/L | C62: HIGH | D62: Chemical | E62: Insecticide | F62: litre | G62: 16
B63: Amistar® | C63: LOW | D63: Chemical | E63: Fungicide | F63: litre
B64: Amistar® | C64: MEDIUM | D64: Chemical | E64: Fungicide | F64: litre
B65: Amistar® | C65: HIGH | D65: Chemical | E65: Fungicide | F65: litre
B66: Amistar Xtra | C66: LOW | D66: Chemical | E66: Fungicide | F66: litre | G66: 19
B67: Amistar Xtra | C67: MEDIUM | D67: Chemical | E67: Fungicide | F67: litre | G67: 19 | Q67: 0.4 | T67: 0.4
B68: Amistar Xtra | C68: HIGH | D68: Chemical | E68: Fungicide | F68: litre | G68: 19 | H68: 0.4 | Q68: 0.4 | T68: 0.4
B69: Aphid Control | J69: 4 | K69: 4 | L69: 4
B70: Apron® XL 350 ES | C70: LOW | D70: Chemical | E70: Fungicide | F70: litre | G70: 525
B71: Apron® XL 350 ES | C71: MEDIUM | D71: Chemical | E71: Fungicide | F71: litre | G71: 525
B72: Apron® XL 350 ES | C72: HIGH | D72: Chemical | E72: Fungicide | F72: litre | G72: 525
B73: Aptitude® | C73: LOW | D73: Chemical | F73: kg
B74: Aptitude® | C74: MEDIUM | D74: Chemical | F74: kg
B75: Aptitude® | C75: HIGH | D75: Chemical | F75: kg
B76: Atlantis® (mesosulfuron 30g/L) | C76: LOW | D76: Chemical | E76: Herbicide-Post Emergent | F76: litre | G76: 90
B77: Atlantis® (mesosulfuron 30g/L) | C77: MEDIUM | D77: Chemical | E77: Herbicide-Post Emergent | F77: litre | G77: 90
B78: Atlantis® (mesosulfuron 30g/L) | C78: HIGH | D78: Chemical | E78: Herbicide-Post Emergent | F78: litre | G78: 90
B79: Atrazine 900g/kg | C79: LOW | D79: Chemical | E79: Herbicide-Pre Emergent | F79: kg | G79: 8.5 | I79: 0.83 | K79: 1.1 | L79: 1.1 | S79: 0.83
B80: Atrazine 900g/kg | C80: MEDIUM | D80: Chemical | E80: Herbicide-Pre Emergent | F80: kg | G80: 8.5 | I80: 0.83 | K80: 1.1 | L80: 1.1 | S80: 0.83
B81: Atrazine 900g/kg | C81: HIGH | D81: Chemical | E81: Herbicide-Pre Emergent | F81: kg | G81: 8.5 | I81: 0.83 | K81: 1.1 | L81: 1.1 | S81: 0.83
B82: Aviator X-Pro® | C82: LOW | D82: Chemical | E82: Fungicide | F82: litre | G82: 43 | N82: 0
B83: Aviator X-Pro® | C83: MEDIUM | D83: Chemical | E83: Fungicide | F83: litre | G83: 43 | N83: 0.6
B84: Aviator X-Pro® | C84: HIGH | D84: Chemical | E84: Fungicide | F84: litre | G84: 43 | N84: 1.2
B85: Axial Extra® | C85: LOW | D85: Chemical | E85: Herbicide-Post Emergent | F85: litre | G85: 80
B86: Axial Extra® | C86: MEDIUM | D86: Chemical | E86: Herbicide-Post Emergent | F86: litre | G86: 80
B87: Axial Extra® | C87: HIGH | D87: Chemical | E87: Herbicide-Post Emergent | F87: litre | G87: 80
B88: Balance ® | C88: LOW | D88: Chemical | E88: Herbicide-Pre Emergent | F88: gram | G88: 0.14 | N88: 75
B89: Balance ® | C89: MEDIUM | D89: Chemical | E89: Herbicide-Pre Emergent | F89: gram | G89: 0.14 | N89: 100
B90: Balance ® | C90: HIGH | D90: Chemical | E90: Herbicide-Pre Emergent | F90: gram | G90: 0.14 | N90: 100
B91: Banjo® | C91: LOW | D91: Chemical | E91: Herbicide-Post Emergent | F91: litre | G91: 5.5
B92: Banjo® | C92: MEDIUM | D92: Chemical | E92: Herbicide-Post Emergent | F92: litre | G92: 5.5
B93: Banjo® | C93: HIGH | D93: Chemical | E93: Herbicide-Post Emergent | F93: litre | G93: 5.5
B94: Bifenthrin 250g/L (Talstar®) | C94: LOW | D94: Chemical | E94: Insecticide | F94: litre | G94: 25 | J94: 0.04 | K94: 0.04 | L94: 0.04 | M94: 0.04 | S94: 0.04
B95: Bifenthrin 250g/L (Talstar®) | C95: MEDIUM | D95: Chemical | E95: Insecticide | F95: litre | G95: 25 | J95: 0.04 | K95: 0.04 | L95: 0.04 | M95: 0.04 | S95: 0.04
B96: Bifenthrin 250g/L (Talstar®) | C96: HIGH | D96: Chemical | E96: Insecticide | F96: litre | G96: 25 | J96: 0.04 | K96: 0.04 | L96: 0.04 | M96: 0.04 | S96: 0.04
B97: Boxer Gold® | C97: LOW | D97: Chemical | E97: Herbicide-Pre Emergent | F97: litre | G97: 9
B98: Boxer Gold® | C98: MEDIUM | D98: Chemical | E98: Herbicide-Pre Emergent | F98: litre | G98: 9 | O98: 2.5 | Q98: 2.5 | T98: 2.5
B99: Boxer Gold® | C99: HIGH | D99: Chemical | E99: Herbicide-Pre Emergent | F99: litre | G99: 9 | O99: 2.5 | Q99: 2.5 | T99: 2.5
B100: Broadstrike® | C100: LOW | D100: Chemical | E100: Herbicide-Post Emergent | F100: gram | G100: 0.9 | AC100: 25 | AD100: 25 | AE100: 25 | AF100: 25 | AG100: Oil | AH100: 3.65625
B101: Broadstrike® | C101: MEDIUM | D101: Chemical | E101: Herbicide-Post Emergent | F101: gram | G101: 0.9 | V101: 25 | AB101: 25 | AC101: 25 | AD101: 25 | AE101: 25 | AF101: 25 | AG101: Oil | AH101: 3.65625
B102: Broadstrike® | C102: HIGH | D102: Chemical | E102: Herbicide-Post Emergent | F102: gram | G102: 0.9 | V102: 25 | AB102: 50 | AC102: 25 | AD102: 25 | AE102: 25 | AF102: 25 | AG102: Oil | AH102: 3.65625
B103: Bromoxynil /MCPA | C103: LOW | D103: Chemical | E103: Herbicide-Post Emergent | F103: litre | G103: 13.75
B104: Bromoxynil /MCPA | C104: MEDIUM | D104: Chemical | E104: Herbicide-Post Emergent | F104: litre | G104: 13.75
B105: Bromoxynil /MCPA | C105: HIGH | D105: Chemical | E105: Herbicide-Post Emergent | F105: litre | G105: 13.75
B106: Bromoxynil 200 | C106: LOW | D106: Chemical | E106: Herbicide-Post Emergent | F106: litre | G106: 13.75 | AE106: 1.5 | AF106: 1.5 | AG106: Wetter | AH106: 0.61875
B107: Bromoxynil 200 | C107: MEDIUM | D107: Chemical | E107: Herbicide-Post Emergent | F107: litre | G107: 13.75 | AE107: 1.5 | AF107: 1.5 | AG107: Wetter | AH107: 0.61875
B108: Bromoxynil 200 | C108: HIGH | D108: Chemical | E108: Herbicide-Post Emergent | F108: litre | G108: 13.75 | AE108: 1.5 | AF108: 1.5 | AG108: Wetter | AH108: 0.61875
B109: Butisan 500 | C109: LOW | D109: Chemical | F109: litre | G109: 39
B110: Butisan 500 | C110: MEDIUM | D110: Chemical | F110: litre | G110: 39
B111: Butisan 500 | C111: HIGH | D111: Chemical | F111: litre | G111: 39
B112: Cadence® (700gm/Kg Dicamba) | C112: LOW | D112: Chemical | E112: Herbicide-Post Emergent | F112: kg | G112: 42.15
B113: Cadence® (700gm/Kg Dicamba) | C113: MEDIUM | D113: Chemical | E113: Herbicide-Post Emergent | F113: kg | G113: 42.15
B114: Cadence® (700gm/Kg Dicamba) | C114: HIGH | D114: Chemical | E114: Herbicide-Post Emergent | F114: kg | G114: 42.15
B115: Carbendazim 500g/kg | C115: LOW | D115: Chemical | E115: Fungicide | F115: kg | G115: 12 | N115: 0.5 | V115: 0.5 | W115: 0.5 | X115: 0.5
B116: Carbendazim 500g/kg | C116: MEDIUM | D116: Chemical | E116: Fungicide | F116: kg | G116: 12 | I116: 0.5 | N116: 0.5 | V116: 1 | W116: 1 | X116: 1
B117: Carbendazim 500g/kg | C117: HIGH | D117: Chemical | E117: Fungicide | F117: kg | G117: 12 | I117: 1 | N117: 0.5 | V117: 1 | W117: 1 | X117: 1
B118: Carfentrazone 400g/L (Hammer) | C118: LOW | D118: Chemical | E118: Herbicide-Pre Emergent | F118: litre | G118: 185 | H118: 0.02 | I118: 0.02 | J118: 0.02 | K118: 0.02 | L118: 0.02 | M118: 0.02 | N118: 0.02 | O118: 0.02 | P118: 0.02 | Q118: 0.02 | R118: 0.02 | S118: 0.02 | T118: 0.02 | U118: 0.02 | V118: 0.02 | W118: 0.02 | X118: 0.02 | Y118: 0.02 | Z118: 0.02 | AA118: 0.02 | AC118: 0.02 | AD118: 0.02 | AE118: 0.02 | AF118: 0.02
B119: Carfentrazone 400g/L (Hammer) | C119: MEDIUM | D119: Chemical | E119: Herbicide-Pre Emergent | F119: litre | G119: 185 | H119: 0.02 | I119: 0.02 | J119: 0.02 | K119: 0.02 | L119: 0.02 | M119: 0.02 | N119: 0.02 | O119: 0.02 | P119: 0.02 | Q119: 0.02 | R119: 0.02 | S119: 0.02 | T119: 0.02 | U119: 0.02 | V119: 0.02 | W119: 0.02 | X119: 0.02 | Y119: 0.02 | Z119: 0.02 | AA119: 0.02 | AC119: 0.02 | AD119: 0.02 | AE119: 0.02 | AF119: 0.02
B120: Carfentrazone 400g/L (Hammer) | C120: HIGH | D120: Chemical | E120: Herbicide-Pre Emergent | F120: litre | G120: 185 | H120: 0.02 | I120: 0.02 | J120: 0.02 | K120: 0.02 | L120: 0.02 | M120: 0.02 | N120: 0.02 | O120: 0.02 | P120: 0.02 | Q120: 0.02 | R120: 0.02 | S120: 0.02 | T120: 0.02 | U120: 0.02 | V120: 0.02 | W120: 0.02 | X120: 0.02 | Y120: 0.02 | Z120: 0.02 | AA120: 0.02 | AC120: 0.02 | AD120: 0.02 | AE120: 0.02 | AF120: 0.02
B121: Chlorothalonil 720g/L | C121: LOW | D121: Chemical | E121: Fungicide | F121: litre | G121: 14 | N121: 2 | W121: 0.8 | X121: 0.8
B122: Chlorothalonil 720g/L | C122: MEDIUM | D122: Chemical | E122: Fungicide | F122: litre | G122: 14 | N122: 2 | V122: 1.6 | W122: 1.6 | X122: 1.6
B123: Chlorothalonil 720g/L | C123: HIGH | D123: Chemical | E123: Fungicide | F123: litre | G123: 14 | N123: 2 | V123: 2.4 | W123: 2.4 | X123: 2.4
B124: Chlorpyrifos 500g/L (Use has been severely restricted - check label) | C124: LOW | D124: Chemical | E124: Insecticide | F124: litre | G124: 11 | I124: 0.14 | J124: 0.5 | K124: 0.5 | L124: 0.5 | M124: 0.5 | N124: 0.14
B125: Chlorpyrifos 500g/L (Use has been severely restricted - check label) | C125: MEDIUM | D125: Chemical | E125: Insecticide | F125: litre | G125: 11 | I125: 0.14 | J125: 0.5 | K125: 0.5 | L125: 0.5 | M125: 0.5 | N125: 0.14
B126: Chlorpyrifos 500g/L (Use has been severely restricted - check label) | C126: HIGH | D126: Chemical | E126: Insecticide | F126: litre | G126: 11 | I126: 0.14 | J126: 0.5 | K126: 0.5 | L126: 0.5 | M126: 0.5 | N126: 0.14
B127: Chlorsulfuron 750g/kg (Glean®) | C127: LOW | D127: Chemical | E127: Herbicide-Pre Emergent | F127: gram | G127: 0.12
B128: Chlorsulfuron 750g/kg (Glean®) | C128: MEDIUM | D128: Chemical | E128: Herbicide-Pre Emergent | F128: gram | G128: 0.12
B129: Chlorsulfuron 750g/kg (Glean®) | C129: HIGH | D129: Chemical | E129: Herbicide-Pre Emergent | F129: gram | G129: 0.12
B130: Clethodim (360g/L) | C130: LOW | D130: Chemical | E130: Herbicide-Post Emergent | F130: litre | G130: 11.75 | I130: 0.33 | J130: 0.33 | K130: 0.33 | L130: 0.33 | N130: 0.33 | R130: 0.33 | S130: 0.33 | V130: 0.33 | W130: 0.33 | X130: 0.33 | Z130: 0.33 | AA130: 0.33 | AB130: 0.33 | AG130: Oil | AH130: 3.66
B131: Clethodim (360g/L) | C131: MEDIUM | D131: Chemical | E131: Herbicide-Post Emergent | F131: litre | G131: 11.75 | I131: 0.33 | J131: 0.33 | K131: 0.33 | L131: 0.33 | N131: 0.33 | R131: 0.33 | S131: 0.33 | V131: 0.33 | W131: 0.33 | X131: 0.33 | Z131: 0.33 | AA131: 0.33 | AB131: 0.33 | AG131: Oil | AH131: 3.66
B132: Clethodim (360g/L) | C132: HIGH | D132: Chemical | E132: Herbicide-Post Emergent | F132: litre | G132: 11.75 | I132: 0.33 | J132: 0.33 | K132: 0.33 | L132: 0.33 | M132: 0.33 | N132: 0.33 | R132: 0.33 | S132: 0.33 | V132: 0.33 | W132: 0.33 | X132: 0.33 | Z132: 0.33 | AA132: 0.33 | AB132: 0.33 | AG132: Oil | AH132: 3.66
B133: Clethodim (360g/L) + Wetter | C133: LOW | D133: Chemical | E133: Herbicide-Post Emergent | F133: litre | G133: 11.75 | I133: 0.33 | J133: 0.33 | K133: 0.33 | L133: 0.33 | N133: 0.33 | R133: 0.33 | S133: 0.33 | V133: 0.33 | W133: 0.33 | X133: 0.33 | Z133: 0.33 | AA133: 0.33 | AB133: 0.33 | AG133: Wetter | AH133: 0.61875
B134: Clethodim (360g/L) + Wetter | C134: MEDIUM | D134: Chemical | E134: Herbicide-Post Emergent | F134: litre | G134: 11.75 | I134: 0.33 | J134: 0.33 | K134: 0.33 | L134: 0.33 | N134: 0.33 | R134: 0.33 | S134: 0.33 | V134: 0.33 | W134: 0.33 | X134: 0.33 | Z134: 0.33 | AA134: 0.33 | AB134: 0.33 | AG134: Wetter | AH134: 0.61875
B135: Clethodim (360g/L) + Wetter | C135: HIGH | D135: Chemical | E135: Herbicide-Post Emergent | F135: litre | G135: 11.75 | I135: 0.33 | J135: 0.33 | K135: 0.33 | L135: 0.33 | M135: 0.33 | N135: 0.33 | R135: 0.33 | S135: 0.33 | V135: 0.33 | W135: 0.33 | X135: 0.33 | Z135: 0.33 | AA135: 0.33 | AB135: 0.33 | AG135: Wetter | AH135: 0.61875
B136: Clopyralid 600g/L (Lontrel® Advanced) | C136: LOW | D136: Chemical | E136: Herbicide-Post Emergent | F136: litre | G136: 39.5 | H136: 0.05 | J136: 0.1 | K136: 0.1 | L136: 0.1 | O136: 0.05 | Q136: 0.05 | T136: 0.03 | Y136: 0.03
B137: Clopyralid 600g/L (Lontrel® Advanced) | C137: MEDIUM | D137: Chemical | E137: Herbicide-Post Emergent | F137: litre | G137: 39.5 | J137: 0.125 | K137: 0.125 | L137: 0.125 | Y137: 0.03
B138: Clopyralid 600g/L (Lontrel® Advanced) | C138: HIGH | D138: Chemical | E138: Herbicide-Post Emergent | F138: litre | G138: 39.5 | J138: 0.125 | K138: 0.125 | L138: 0.125 | Y138: 0.03
B139: Cogito® | C139: LOW | D139: Chemical | E139: Fungicide | F139: litre
B140: Cogito® | C140: MEDIUM | D140: Chemical | E140: Fungicide | F140: litre
B141: Cogito® | C141: HIGH | D141: Chemical | E141: Fungicide | F141: litre
B142: Cruiser 350 | C142: LOW | D142: Chemical | E142: Insecticide | F142: litre | G142: 46.8
B143: Cruiser 350 | C143: MEDIUM | D143: Chemical | E143: Insecticide | F143: litre | G143: 46.8
B144: Cruiser 350 | C144: HIGH | D144: Chemical | E144: Insecticide | F144: litre | G144: 46.8
B145: Diflufenican (Brodal) | C145: LOW | D145: Chemical | E145: Herbicide-Post Emergent | F145: litre | G145: 44 | R145: 0.15 | V145: 0.15
B146: Diflufenican (Brodal) | C146: MEDIUM | D146: Chemical | E146: Herbicide-Post Emergent | F146: litre | G146: 44 | R146: 0.15 | V146: 0.15
B147: Diflufenican (Brodal) | C147: HIGH | D147: Chemical | E147: Herbicide-Post Emergent | F147: litre | G147: 44 | R147: 0.15 | V147: 0.15
B148: Dimethoate 400g/L | C148: LOW | D148: Chemical | E148: Insecticide | F148: litre | G148: 21 | I148: 0.5 | R148: 0.1 | V148: 0.4 | W148: 0.4 | X148: 0.4 | Z148: 0.4 | AA148: 0.4 | AB148: 0.085 | AC148: 0.1 | AD148: 0.1 | AE148: 0.1 | AF148: 0.1
B149: Dimethoate 400g/L | C149: MEDIUM | D149: Chemical | E149: Insecticide | F149: litre | G149: 21 | I149: 0.5 | R149: 0.1 | V149: 0.4 | W149: 0.4 | X149: 0.4 | Z149: 0.4 | AA149: 0.4 | AB149: 0.085 | AC149: 0.1 | AD149: 0.1 | AE149: 0.1 | AF149: 0.1
B150: Dimethoate 400g/L | C150: HIGH | D150: Chemical | E150: Insecticide | F150: litre | G150: 21 | I150: 0.5 | R150: 0.1 | V150: 0.4 | W150: 0.4 | X150: 0.4 | Z150: 0.4 | AA150: 0.4 | AB150: 0.085 | AC150: 0.1 | AD150: 0.1 | AE150: 0.1 | AF150: 0.1
B151: Dimethoate 400g/L (2) | C151: LOW | D151: Chemical | E151: Insecticide | F151: litre | G151: 21 | AD151: 0.375 | AE151: 0.1 | AF151: 0.1
B152: Dimethoate 400g/L (2) | C152: MEDIUM | D152: Chemical | E152: Insecticide | F152: litre | G152: 21 | AA152: 0.1 | AD152: 0.375 | AE152: 0.1 | AF152: 0.1
B153: Dimethoate 400g/L (2) | C153: HIGH | D153: Chemical | E153: Insecticide | F153: litre | G153: 21 | AA153: 0.1 | AC153: 0.375 | AD153: 0.375 | AE153: 0.1 | AF153: 0.1
B154: Diuron 900 gm a.i. granules | C154: LOW | D154: Chemical | E154: Herbicide-Pre Emergent | F154: kg | G154: 14 | P154: 0.4 | U154: 0.4 | AC154: 1 | AD154: 1
B155: Diuron 900 gm a.i. granules | C155: MEDIUM | D155: Chemical | E155: Herbicide-Pre Emergent | F155: kg | G155: 14 | P155: 0.4 | U155: 0.4 | AC155: 1 | AD155: 1
B156: Diuron 900 gm a.i. granules | C156: HIGH | D156: Chemical | E156: Herbicide-Pre Emergent | F156: kg | G156: 14 | P156: 0.4 | U156: 0.4 | AC156: 1 | AD156: 1
B157: dummy | C157: LOW | H157: 0 | I157: 0 | J157: 0 | K157: 0 | L157: 0 | N157: 0 | O157: 0 | P157: 0 | Q157: 0 | R157: 0 | S157: 0 | T157: 0 | U157: 0 | V157: 0 | Y157: 0 | Z157: 0
B158: dummy | C158: MEDIUM | H158: 0 | I158: 0 | J158: 0 | K158: 0 | L158: 0 | N158: 0 | O158: 0 | P158: 0 | Q158: 0 | R158: 0 | S158: 0 | T158: 0 | U158: 0 | V158: 0 | Y158: 0 | Z158: 0
B159: dummy | C159: HIGH | H159: 0 | I159: 0 | J159: 0 | K159: 0 | L159: 0 | N159: 0 | O159: 0 | P159: 0 | Q159: 0 | R159: 0 | S159: 0 | T159: 0 | U159: 0 | V159: 0 | Y159: 0 | Z159: 0
B160: Epoxiconazole 500g/L | C160: LOW | D160: Chemical | E160: Fungicide | F160: litre | G160: 66
B161: Epoxiconazole 500g/L | C161: MEDIUM | D161: Chemical | E161: Fungicide | F161: litre | G161: 66 | H161: 0.125
B162: Epoxiconazole 500g/L | C162: HIGH | D162: Chemical | E162: Fungicide | F162: litre | G162: 66 | H162: 0.125
B163: Factor® (butroxydim 250g/kg) | C163: LOW | D163: Chemical | E163: Herbicide-Post Emergent | F163: gram | G163: 0.08
B164: Factor® (butroxydim 250g/kg) | C164: MEDIUM | D164: Chemical | E164: Herbicide-Post Emergent | F164: gram | G164: 0.08
B165: Factor® (butroxydim 250g/kg) | C165: HIGH | D165: Chemical | E165: Herbicide-Post Emergent | F165: gram | G165: 0.08 | I165: 180 | N165: 180 | R165: 180 | S165: 180 | V165: 180 | W165: 180 | X165: 180 | Z165: 180
B166: Flight® | C166: LOW | D166: Chemical | F166: litre | G166: 27
B167: Flight® | C167: MEDIUM | D167: Chemical | F167: litre | G167: 27
B168: Flight® | C168: HIGH | D168: Chemical | F168: litre | G168: 27
A169: THIS APPEARS IN BOTH THE CHEM | B169: Flutriafol (500g/l) | C169: LOW | D169: Chemical | E169: Fungicide | F169: litre | G169: 26
A170: AND SEEDS TABLES. SO BE CAREFUL | B170: Flutriafol (500g/l) | C170: MEDIUM | D170: Chemical | E170: Fungicide | F170: litre | G170: 26
A171: WHEN UPDATING PRICES! | B171: Flutriafol (500g/l) | C171: HIGH | D171: Chemical | E171: Fungicide | F171: litre | G171: 26
B172: Flutriafol (on fert) | C172: LOW | D172: Chemical | E172: Fungicide | F172: litre | G172: 45 | H172: 0.2 | J172: 0.2 | K172: 0.2 | L172: 0.2
B173: Flutriafol (on fert) | C173: MEDIUM | D173: Chemical | E173: Fungicide | F173: litre | G173: 45 | H173: 0.2 | J173: 0.2 | K173: 0.2 | L173: 0.2
B174: Flutriafol (on fert) | C174: HIGH | D174: Chemical | E174: Fungicide | F174: litre | G174: 45 | H174: 0.2 | J174: 0.2 | K174: 0.2 | L174: 0.2
B175: Glypho (pre-harvest) | C175: LOW | D175: Chemical | E175: Herbicide-Pre Emergent | F175: litre | G175: 5.4 | J175: 2 | K175: 2 | L175: 2
B176: Glypho (pre-harvest) | C176: MEDIUM | D176: Chemical | E176: Herbicide-Pre Emergent | F176: litre | G176: 5.4 | J176: 2 | K176: 2 | L176: 2 | M176: 1.2
B177: Glypho (pre-harvest) | C177: HIGH | D177: Chemical | E177: Herbicide-Pre Emergent | F177: litre | G177: 5.4 | J177: 2 | K177: 2 | L177: 2 | M177: 1.2
B178: Glyphosate 450g/L | C178: LOW | D178: Chemical | E178: Herbicide-Pre Emergent | F178: litre | G178: 4.6
B179: Glyphosate 450g/L | C179: MEDIUM | D179: Chemical | E179: Herbicide-Pre Emergent | F179: litre | G179: 4.6
B180: Glyphosate 450g/L | C180: HIGH | D180: Chemical | E180: Herbicide-Pre Emergent | F180: litre | G180: 4.6
A181: 5.4 | B181: Glyphosate 540g/L | C181: LOW | D181: Chemical | E181: Herbicide-Pre Emergent | F181: litre | G181: =user_cost3 -> 5.4 | H181: 1.2 | I181: 1.2 | J181: 1.2 | K181: 1.2 | L181: 1.2 | M181: 1.2 | N181: 1.2 | O181: 1.2 | P181: 1.2 | Q181: 1.2 | R181: 1.2 | S181: 1.2 | T181: 1.2 | U181: 1.2 | V181: 1.2 | W181: 1.2 | X181: 1.2 | Y181: 1.2 | Z181: 1.2 | AA181: 1.2 | AC181: 1.2 | AD181: 1.2 | AE181: 1.2 | AF181: 2.2
B182: Glyphosate 540g/L | C182: MEDIUM | D182: Chemical | E182: Herbicide-Pre Emergent | F182: litre | G182: =user_cost3 -> 5.4 | H182: 1.2 | I182: 1.2 | J182: 1.2 | K182: 1.2 | L182: 1.2 | M182: 1.2 | N182: 1.2 | O182: 1.2 | P182: 1.2 | Q182: 1.2 | R182: 1.2 | S182: 1.2 | T182: 1.2 | U182: 1.2 | V182: 1.2 | W182: 1.2 | X182: 1.2 | Y182: 1.2 | Z182: 1.2 | AA182: 1.2 | AC182: 1.2 | AD182: 1.2 | AE182: 1.2 | AF182: 2.2
B183: Glyphosate 540g/L | C183: HIGH | D183: Chemical | E183: Herbicide-Pre Emergent | F183: litre | G183: =user_cost3 -> 5.4 | H183: 1.2 | I183: 1.2 | J183: 1.2 | K183: 1.2 | L183: 1.2 | M183: 1.2 | N183: 1.2 | O183: 1.2 | P183: 1.2 | Q183: 1.2 | R183: 1.2 | S183: 1.2 | T183: 1.2 | U183: 1.2 | V183: 1.2 | W183: 1.2 | X183: 1.2 | Y183: 1.2 | Z183: 1.2 | AA183: 1.2 | AC183: 1.2 | AD183: 1.2 | AE183: 1.2 | AF183: 2.2
B184: Glyphosate 540g/L (desiccant) | C184: LOW | D184: Chemical | E184: Herbicide-Post Emergent | F184: litre | G184: 5.4 | AA184: 1.5
B185: Glyphosate 540g/L (desiccant) | C185: MEDIUM | D185: Chemical | E185: Herbicide-Post Emergent | F185: litre | G185: 5.4 | AA185: 1.5
B186: Glyphosate 540g/L (desiccant) | C186: HIGH | D186: Chemical | E186: Herbicide-Post Emergent | F186: litre | G186: 5.4 | AA186: 1.5
B187: Glyphosate 540g/L Pre cutting | C187: LOW | D187: Chemical | E187: Herbicide-Pre Emergent | F187: litre | G187: 5.4 | I187: 1.2 | P187: 2
B188: Glyphosate 540g/L Pre cutting | C188: MEDIUM | D188: Chemical | E188: Herbicide-Pre Emergent | F188: litre | G188: 5.4 | I188: 1.2 | P188: 2.5
B189: Glyphosate 540g/L Pre cutting | C189: HIGH | D189: Chemical | E189: Herbicide-Pre Emergent | F189: litre | G189: 5.4 | I189: 1.2 | P189: 2.5
B190: Haloxyfop 520g/L (Verdict) | C190: LOW | D190: Chemical | E190: Herbicide-Post Emergent | F190: litre | G190: 28 | I190: 0.04 | J190: 0.075 | K190: 0.04 | L190: 0.04 | N190: 0.04 | R190: 0.04 | S190: 0.04 | V190: 0.04 | W190: 0.04 | X190: 0.04 | Z190: 0.04 | AA190: 0.075 | AB190: 0.075 | AC190: 0.075 | AD190: 0.075 | AG190: Adjuvant | AH190: 0.61875
B191: Haloxyfop 520g/L (Verdict) | C191: MEDIUM | D191: Chemical | E191: Herbicide-Post Emergent | F191: litre | G191: 28 | I191: 0.08 | J191: 0.075 | K191: 0.04 | L191: 0.04 | N191: 0.08 | R191: 0.04 | S191: 0.04 | V191: 0.04 | W191: 0.04 | X191: 0.04 | Z191: 0.04 | AA191: 0.075 | AB191: 0.075 | AC191: 0.075 | AD191: 0.075 | AG191: Adjuvant | AH191: 0.61875
B192: Haloxyfop 520g/L (Verdict) | C192: HIGH | D192: Chemical | E192: Herbicide-Post Emergent | F192: litre | G192: 28 | J192: 0.075 | K192: 0.04 | L192: 0.04 | AA192: 0.075 | AB192: 0.075 | AC192: 0.075 | AD192: 0.075 | AG192: Adjuvant | AH192: 0.61875
B193: Adjuvant | C193: LOW | D193: Chemical | E193: Herbicide-Post Emergent | F193: litre | G193: 8.25 | J193: 0.375
B194: Adjuvant | C194: MEDIUM | D194: Chemical | E194: Herbicide-Post Emergent | F194: litre | G194: 8.25 | J194: 0.375
B195: Adjuvant | C195: HIGH | D195: Chemical | E195: Herbicide-Post Emergent | F195: litre | G195: 8.25 | J195: 0.375
B196: Hot-up® | C196: LOW | D196: Chemical | E196: Adjuvant | F196: litre | G196: 8
B197: Hot-up® | C197: MEDIUM | D197: Chemical | E197: Adjuvant | F197: litre | G197: 8
B198: Hot-up® | C198: HIGH | D198: Chemical | E198: Adjuvant | F198: litre | G198: 8
B199: Imazethapyr 700g/kg | C199: LOW | D199: Chemical | E199: Herbicide-Pre Emergent | F199: kg | G199: 107 | W199: 0.07 | X199: 0.07
B200: Imazethapyr 700g/kg | C200: MEDIUM | D200: Chemical | E200: Herbicide-Pre Emergent | F200: kg | G200: 107 | W200: 0.07 | X200: 0.07
B201: Imazethapyr 700g/kg | C201: HIGH | D201: Chemical | E201: Herbicide-Pre Emergent | F201: kg | G201: 107 | W201: 0.07 | X201: 0.07
B202: Imidacloprid 600g/L | C202: LOW | D202: Chemical | E202: Insecticide | F202: litre | G202: 26
B203: Imidacloprid 600g/L | C203: MEDIUM | D203: Chemical | E203: Insecticide | F203: litre | G203: 26
B204: Imidacloprid 600g/L | C204: HIGH | D204: Chemical | E204: Insecticide | F204: litre | G204: 26
B205: Imidan® | C205: LOW | D205: Chemical | E205: Insecticide | F205: litre | G205: 17.5
B206: Imidan® | C206: MEDIUM | D206: Chemical | E206: Insecticide | F206: litre | G206: 17.5
B207: Imidan® | C207: HIGH | D207: Chemical | E207: Insecticide | F207: litre | G207: 17.5
B208: Intervix® | C208: LOW | D208: Chemical | E208: Herbicide-Post Emergent | F208: litre | G208: 15 | J208: 0.4 | W208: 0.75 | X208: 0.75
B209: Intervix® | C209: MEDIUM | D209: Chemical | E209: Herbicide-Post Emergent | F209: litre | G209: 15 | J209: 0.6 | W209: 0.75 | X209: 0.75
B210: Intervix® | C210: HIGH | D210: Chemical | E210: Herbicide-Post Emergent | F210: litre | G210: 15 | J210: 0.6 | W210: 0.75 | X210: 0.75
B211: Intervix® 1 | C211: LOW | D211: Chemical | E211: Herbicide-Post Emergent | F211: litre | G211: 33.25 | J211: 0.4 | W211: 0.75 | X211: 0.75 | AG211: Hasten | AH211: =6.75*0.375 -> 2.53125
B212: Intervix® 1 | C212: MEDIUM | D212: Chemical | E212: Herbicide-Post Emergent | F212: litre | G212: 33.25 | J212: 0.6 | W212: 0.75 | X212: 0.75 | AG212: Hasten | AH212: =6.75*0.375 -> 2.53125
B213: Intervix® 1 | C213: HIGH | D213: Chemical | E213: Herbicide-Post Emergent | F213: litre | G213: 33.25 | J213: 0.6 | W213: 0.75 | X213: 0.75 | AG213: Hasten | AH213: =6.75*0.375 -> 2.53125
B214: Lambda-cyhalothrin (Karate Zeon) 1st | C214: LOW | D214: Chemical | E214: Insecticide | F214: litre | G214: 105 | J214: 0.024 | K214: 0.024 | L214: 0.024 | M214: 0.024 | N214: 0.024 | R214: 0.024 | S214: 0.024 | V214: 0.024 | W214: 0.024 | X214: 0.024 | Z214: 0.024
B215: Lambda-cyhalothrin (Karate Zeon) 1st | C215: MEDIUM | D215: Chemical | E215: Insecticide | F215: litre | G215: 105 | J215: 0.024 | K215: 0.024 | L215: 0.024 | M215: 0.024 | N215: 0.024 | R215: 0.024 | S215: 0.024 | V215: 0.024 | W215: 0.024 | X215: 0.024 | Z215: 0.024
... 456 more rows

Sheet GM Crib (hidden)
A1: This sheet takes the total GM/HA at the bottom of each sheet and compares it. Useful to make sure the R2 versions of each sheet agree to the R1 versions
A2: When the model is unpopulated the variances should all be zero
A3: GM/HA (row 162) | F3: GM/HA (row 162) | K3: GM/HA (row 162)
A4: Sheet | B4: LOW | C4: MED | D4: HIGH | F4: Sheet | G4: LOW | H4: MED | I4: HIGH | K4: Sheet | L4: LOW | M4: MED | N4: HIGH
A5: WHEAT | B5: =INDIRECT("'"&$A5&"'!l162") -> 0 | C5: =INDIRECT("'"&$A5&"'!o162") -> 0 | D5: =INDIRECT("'"&$A5&"'!r162") -> 0 | F5: EXPORT OATEN HAY | G5: =INDIRECT("'"&$F5&"'!l162") -> 602.4275 | H5: =INDIRECT("'"&$F5&"'!o162") -> 944.6575 | I5: =INDIRECT("'"&$F5&"'!r162") -> 1153.3075 | K5: VETCH | L5: =INDIRECT("'"&$K5&"'!l162") -> 214.44375 | M5: =INDIRECT("'"&$K5&"'!o162") -> 473.51375 | N5: =INDIRECT("'"&$K5&"'!r162") -> 742.8825
A6: WHEAT R2 | B6: =INDIRECT("'"&$A6&"'!l162") -> 0 | C6: =INDIRECT("'"&$A6&"'!o162") -> 0 | D6: =INDIRECT("'"&$A6&"'!r162") -> 0 | F6: EXPORT OATEN HAY R2 | G6: =INDIRECT("'"&$F6&"'!l162") -> 602.4275 | H6: =INDIRECT("'"&$F6&"'!o162") -> 944.6575 | I6: =INDIRECT("'"&$F6&"'!r162") -> 1153.3075 | K6: VETCH R2 | L6: =INDIRECT("'"&$K6&"'!l162") -> 214.44375 | M6: =INDIRECT("'"&$K6&"'!o162") -> 473.51375 | N6: =INDIRECT("'"&$K6&"'!r162") -> 742.8825
A7: VAR | B7: =B6-B5 -> 0 | C7: =C6-C5 -> 0 | D7: =D6-D5 -> 0 | F7: VAR | G7: =G6-G5 -> 0 | H7: =H6-H5 -> 0 | I7: =I6-I5 -> 0 | K7: VAR | L7: =L6-L5 -> 0 | M7: =M6-M5 -> 0 | N7: =N6-N5 -> 0
A9: BEANS | B9: =INDIRECT("'"&$A9&"'!l162") -> 108.78335 | C9: =INDIRECT("'"&$A9&"'!o162") -> 301.33695 | D9: =INDIRECT("'"&$A9&"'!r162") -> 698.1661 | F9: FEED BARLEY | G9: =INDIRECT("'"&$F9&"'!l162") -> 215.26145 | H9: =INDIRECT("'"&$F9&"'!o162") -> 447.45455 | I9: =INDIRECT("'"&$F9&"'!r162") -> 689.09295 | K9: LENTILS IMI TOLERANT | L9: =INDIRECT("'"&$K9&"'!l162") -> 0 | M9: =INDIRECT("'"&$K9&"'!o162") -> 0 | N9: =INDIRECT("'"&$K9&"'!r162") -> 0
A10: BEANS R2 | B10: =INDIRECT("'"&$A10&"'!l162") -> 108.78335 | C10: =INDIRECT("'"&$A10&"'!o162") -> 339.97615 | D10: =INDIRECT("'"&$A10&"'!r162") -> 698.1661 | F10: FEED BARLEY R2 | G10: =INDIRECT("'"&$F10&"'!l162") -> 215.26145 | H10: =INDIRECT("'"&$F10&"'!o162") -> 447.45455 | I10: =INDIRECT("'"&$F10&"'!r162") -> 689.09295 | K10: LENTILS IMI TOLERANT R2 | L10: =INDIRECT("'"&$K10&"'!l162") -> 0 | M10: =INDIRECT("'"&$K10&"'!o162") -> 0 | N10: =INDIRECT("'"&$K10&"'!r162") -> 0
A11: VAR | B11: =B10-B9 -> 0 | C11: =C10-C9 -> 38.6392 | D11: =D10-D9 -> 0 | F11: VAR | G11: =G10-G9 -> 0 | H11: =H10-H9 -> 0 | I11: =I10-I9 -> 0 | K11: VAR | L11: =L10-L9 -> 0 | M11: =M10-M9 -> 0 | N11: =N10-N9 -> 0
A13: CANOLA CLEARFIELD | B13: =INDIRECT("'"&$A13&"'!l162") -> 256.88425 | C13: =INDIRECT("'"&$A13&"'!o162") -> 651.43425 | D13: =INDIRECT("'"&$A13&"'!r162") -> 1018.72925 | F13: PEAS | G13: =INDIRECT("'"&$F13&"'!l162") -> 193.814 | H13: =INDIRECT("'"&$F13&"'!o162") -> 370.6288 | I13: =INDIRECT("'"&$F13&"'!r162") -> 582.85625 | K13: SOWN PASTURE | L13: =INDIRECT("'"&$K13&"'!l162") -> 234.11375 | M13: =INDIRECT("'"&$K13&"'!o162") -> 461.16375 | N13: =INDIRECT("'"&$K13&"'!r162") -> 687.56375
A14: CANOLA CLEARFIELD R2 | B14: =INDIRECT("'"&$A14&"'!l162") -> 256.88425 | C14: =INDIRECT("'"&$A14&"'!o162") -> 651.43425 | D14: =INDIRECT("'"&$A14&"'!r162") -> 1018.72925 | F14: PEAS R2 | G14: =INDIRECT("'"&$F14&"'!l162") -> 193.814 | H14: =INDIRECT("'"&$F14&"'!o162") -> 370.6288 | I14: =INDIRECT("'"&$F14&"'!r162") -> 582.85625 | K14: SOWN PASTURE R2 | L14: =INDIRECT("'"&$K14&"'!l162") -> 234.11375 | M14: =INDIRECT("'"&$K14&"'!o162") -> 461.16375 | N14: =INDIRECT("'"&$K14&"'!r162") -> 687.56375
A15: VAR | B15: =B14-B13 -> 0 | C15: =C14-C13 -> 0 | D15: =D14-D13 -> 0 | F15: VAR | G15: =G14-G13 -> 0 | H15: =H14-H13 -> 0 | I15: =I14-I13 -> 0 | K15: VAR | L15: =L14-L13 -> 0 | M15: =M14-M13 -> 0 | N15: =N14-N13 -> 0
A17: CANOLA ROUNDUP READY | B17: =INDIRECT("'"&$A17&"'!l162") -> 219.968 | C17: =INDIRECT("'"&$A17&"'!o162") -> 491.795 | D17: =INDIRECT("'"&$A17&"'!r162") -> 881.183 | F17: LUPINS | G17: =INDIRECT("'"&$F17&"'!l162") -> 222.32975 | H17: =INDIRECT("'"&$F17&"'!o162") -> 470.73175 | I17: =INDIRECT("'"&$F17&"'!r162") -> 711.4725 | K17: SELF REGEN PASTURE | L17: =INDIRECT("'"&$K17&"'!l162") -> 287.95875 | M17: =INDIRECT("'"&$K17&"'!o162") -> 505.05875 | N17: =INDIRECT("'"&$K17&"'!r162") -> 722.15875
A18: CANOLA ROUNDUP READY R2 | B18: =INDIRECT("'"&$A18&"'!l162") -> 211.068 | C18: =INDIRECT("'"&$A18&"'!o162") -> 478.445 | D18: =INDIRECT("'"&$A18&"'!r162") -> 863.383 | F18: LUPINS R2 | G18: =INDIRECT("'"&$F18&"'!l162") -> 222.32975 | H18: =INDIRECT("'"&$F18&"'!o162") -> 470.73175 | I18: =INDIRECT("'"&$F18&"'!r162") -> 711.4725 | K18: SELF REGEN PASTURE R2 | L18: =INDIRECT("'"&$K18&"'!l162") -> 287.95875 | M18: =INDIRECT("'"&$K18&"'!o162") -> 505.05875 | N18: =INDIRECT("'"&$K18&"'!r162") -> 722.15875
A19: VAR | B19: =B18-B17 -> -8.9 | C19: =C18-C17 -> -13.35 | D19: =D18-D17 -> -17.8 | F19: VAR | G19: =G18-G17 -> 0 | H19: =H18-H17 -> 0 | I19: =I18-I17 -> 0 | K19: VAR | L19: =L18-L17 -> 0 | M19: =M18-M17 -> 0 | N19: =N18-N17 -> 0
A21: CANOLA CONVENTIONAL | B21: =INDIRECT("'"&$A21&"'!l162") -> 176.70425 | C21: =INDIRECT("'"&$A21&"'!o162") -> 513.06925 | D21: =INDIRECT("'"&$A21&"'!r162") -> 957.14925 | F21: MALT BARLEY | G21: =INDIRECT("'"&$F21&"'!l162") -> 249.64925 | H21: =INDIRECT("'"&$F21&"'!o162") -> 498.78675 | I21: =INDIRECT("'"&$F21&"'!r162") -> 800.77875 | K21: LUCERNE PASTURE CEREAL | L21: =INDIRECT("'"&$K21&"'!l162") -> 0 | M21: =INDIRECT("'"&$K21&"'!o162") -> 0 | N21: =INDIRECT("'"&$K21&"'!r162") -> 0
A22: CANOLA CONVENTIONAL R2 | B22: =INDIRECT("'"&$A22&"'!l162") -> 178.443 | C22: =INDIRECT("'"&$A22&"'!o162") -> 514.808 | D22: =INDIRECT("'"&$A22&"'!r162") -> 958.888 | F22: MALT BARLEY R2 | G22: =INDIRECT("'"&$F22&"'!l162") -> 249.64925 | H22: =INDIRECT("'"&$F22&"'!o162") -> 498.78675 | I22: =INDIRECT("'"&$F22&"'!r162") -> 800.77875 | K22: LUCERNE PASTURE CEREAL R2 | L22: =INDIRECT("'"&$K22&"'!l162") -> 0 | M22: =INDIRECT("'"&$K22&"'!o162") -> 0 | N22: =INDIRECT("'"&$K22&"'!r162") -> 0
A23: VAR | B23: =B22-B21 -> 1.73875 | C23: =C22-C21 -> 1.73875 | D23: =D22-D21 -> 1.73875 | F23: VAR | G23: =G22-G21 -> 0 | H23: =H22-H21 -> 0 | I23: =I22-I21 -> 0 | K23: VAR | L23: =L22-L21 -> 0 | M23: =M22-M21 -> 0 | N23: =N22-N21 -> 0
A25: CANOLA TRITOLERANT | B25: =INDIRECT("'"&$A25&"'!l162") -> 176.70425 | C25: =INDIRECT("'"&$A25&"'!o162") -> 513.06925 | D25: =INDIRECT("'"&$A25&"'!r162") -> 957.14925 | F25: MILLING OATS | G25: =INDIRECT("'"&$F25&"'!l162") -> 261.071 | H25: =INDIRECT("'"&$F25&"'!o162") -> 553.2722 | I25: =INDIRECT("'"&$F25&"'!r162") -> 795.209 | K25: LUCERNE PASTURE GRAZING | L25: =INDIRECT("'"&$K25&"'!l162") -> 0 | M25: =INDIRECT("'"&$K25&"'!o162") -> 0 | N25: =INDIRECT("'"&$K25&"'!r162") -> 0
A26: CANOLA TRITOLERANT R2 | B26: =INDIRECT("'"&$A26&"'!l162") -> 176.70425 | C26: =INDIRECT("'"&$A26&"'!o162") -> 513.06925 | D26: =INDIRECT("'"&$A26&"'!r162") -> 957.14925 | F26: MILLING OATS R2 | G26: =INDIRECT("'"&$F26&"'!l162") -> 261.071 | H26: =INDIRECT("'"&$F26&"'!o162") -> 553.2722 | I26: =INDIRECT("'"&$F26&"'!r162") -> 795.209 | K26: LUCERNE PASTURE GRAZING R2 | L26: =INDIRECT("'"&$K26&"'!l162") -> 0 | M26: =INDIRECT("'"&$K26&"'!o162") -> 0 | N26: =INDIRECT("'"&$K26&"'!r162") -> 0
A27: VAR | B27: =B26-B25 -> 0 | C27: =C26-C25 -> 0 | D27: =D26-D25 -> 0 | F27: VAR | G27: =G26-G25 -> 0 | H27: =H26-H25 -> 0 | I27: =I26-I25 -> 0 | K27: VAR | L27: =L26-L25 -> 0 | M27: =M26-M25 -> 0 | N27: =N26-N25 -> 0
A29: CHICKPEAS | B29: =INDIRECT("'"&$A29&"'!l162") -> 211.36575 | C29: =INDIRECT("'"&$A29&"'!o162") -> 402.62975 | D29: =INDIRECT("'"&$A29&"'!r162") -> 648.3585 | F29: LENTILS | G29: =INDIRECT("'"&$F29&"'!l162") -> 0 | H29: =INDIRECT("'"&$F29&"'!o162") -> 0 | I29: =INDIRECT("'"&$F29&"'!r162") -> 0 | K29: PHALARIS SUB PASTURE CEREAL | L29: =INDIRECT("'"&$K29&"'!l162") -> 671.18795 | M29: =INDIRECT("'"&$K29&"'!o162") -> 671.18795 | N29: =INDIRECT("'"&$K29&"'!r162") -> 671.18795
A30: CHICKPEAS R2 | B30: =INDIRECT("'"&$A30&"'!l162") -> 211.36575 | C30: =INDIRECT("'"&$A30&"'!o162") -> 402.62975 | D30: =INDIRECT("'"&$A30&"'!r162") -> 648.3585 | F30: LENTILS R2 | G30: =INDIRECT("'"&$F30&"'!l162") -> 0 | H30: =INDIRECT("'"&$F30&"'!o162") -> 0 | I30: =INDIRECT("'"&$F30&"'!r162") -> 0 | K30: PHALARIS SUB PASTURE CEREAL R2 | L30: =INDIRECT("'"&$K30&"'!l162") -> 671.18795 | M30: =INDIRECT("'"&$K30&"'!o162") -> 671.18795 | N30: =INDIRECT("'"&$K30&"'!r162") -> 671.18795
A31: VAR | B31: =B30-B29 -> 0 | C31: =C30-C29 -> 0 | D31: =D30-D29 -> 0 | F31: VAR | G31: =G30-G29 -> 0 | H31: =H30-H29 -> 0 | I31: =I30-I29 -> 0 | K31: VAR | L31: =L30-L29 -> 0 | M31: =M30-M29 -> 0 | N31: =N30-N29 -> 0
A33: DURUM | B33: =INDIRECT("'"&$A33&"'!l162") -> 318.17305 | C33: =INDIRECT("'"&$A33&"'!o162") -> 716.63115 | D33: =INDIRECT("'"&$A33&"'!r162") -> 1103.42275 | F33: TRITICALE | G33: =INDIRECT("'"&$F33&"'!l162") -> 163.84925 | H33: =INDIRECT("'"&$F33&"'!o162") -> 355.21325 | I33: =INDIRECT("'"&$F33&"'!r162") -> 546.81525 | K33: PHALARIS SUB PASTURE GRAZING | L33: =INDIRECT("'"&$K33&"'!l162") -> 1015.08875 | M33: =INDIRECT("'"&$K33&"'!o162") -> 1015.08875 | N33: =INDIRECT("'"&$K33&"'!r162") -> 1015.08875
A34: DURUM R2 | B34: =INDIRECT("'"&$A34&"'!l162") -> 318.17305 | C34: =INDIRECT("'"&$A34&"'!o162") -> 716.63115 | D34: =INDIRECT("'"&$A34&"'!r162") -> 1103.42275 | F34: TRITICALE R2 | G34: =INDIRECT("'"&$F34&"'!l162") -> 163.84925 | H34: =INDIRECT("'"&$F34&"'!o162") -> 355.21325 | I34: =INDIRECT("'"&$F34&"'!r162") -> 546.81525 | K34: PHALARIS SUB PASTURE GRAZING R2 | L34: =INDIRECT("'"&$K34&"'!l162") -> 1015.08875 | M34: =INDIRECT("'"&$K34&"'!o162") -> 1015.08875 | N34: =INDIRECT("'"&$K34&"'!r162") -> 1015.08875
A35: VAR | B35: =B34-B33 -> 0 | C35: =C34-C33 -> 0 | D35: =D34-D33 -> 0 | F35: VAR | G35: =G34-G33 -> 0 | H35: =H34-H33 -> 0 | I35: =I34-I33 -> 0 | K35: VAR | L35: =L34-L33 -> 0 | M35: =M34-M33 -> 0 | N35: =N34-N33 -> 0

Sheet Livestock GM (hidden)
B2: Prime Lamb | E2: Merino Breeders | I2: Cleanskin | K2: Beef Cattle
B3: Pastoral | C3: Cereal | D3: High rf | E3: Pastoral | F3: Cereal | G3: High rf | I3: Pastoral | J3: Cereal | K3: Pastoral | L3: Cereal | M3: High rf
A4: 2017 | B4: 26 | C4: 45 | D4: 39 | E4: 39 | F4: 49 | G4: 50 | H4: 2017 | J4: 46 | K4: 33 | L4: 36 | M4: 39
A5: 2018 | B5: 28 | C5: 51 | D5: 44 | E5: 44 | F5: 63 | G5: 65 | H5: 2018 | J5: 54 | K5: 22 | L5: 26 | M5: 28
A6: 2019 | B6: 46 | C6: 72 | D6: 53 | E6: 62 | F6: 79 | G6: 76 | H6: 2019 | J6: 63 | K6: 12 | L6: 20 | M6: 23
A7: 2020 | B7: 44 | C7: 84 | D7: 71 | E7: 58 | F7: 76 | G7: 79 | H7: 2020 | J7: 76 | K7: 26 | L7: 25 | M7: 27
A8: 2021 | B8: 57 | C8: 77 | D8: 84 | E8: 44 | F8: 64 | G8: 69 | H8: 2021 | I8: 58 | J8: 71 | K8: 39 | L8: 39 | M8: 41
A9: 2022 | B9: 78 | C9: 86 | D9: 86 | E9: 48 | F9: 65 | G9: 75 | H9: 2022 | I9: 64 | J9: 82 | K9: 48 | L9: 56 | M9: 59
A10: 2023 | B10: 57 | C10: 56 | D10: 49 | E10: 27.5 | F10: 35 | G10: 46 | H10: 2023 | I10: 33 | J10: 39 | K10: 37 | L10: 43 | M10: 45
A11: 2024 | B11: 64 | C11: 66 | D11: 54 | E11: 25 | F11: 45 | G11: 48 | H11: 2024 | I11: 45 | J11: 55 | K11: 20 | L11: 20 | M11: 21
A12: 2025 | B12: 148 | C12: 128 | D12: 150 | E12: 67 | F12: 81 | G12: 86 | H12: 2025 | I12: 87 | J12: 103 | K12: 45 | L12: 43.5 | M12: 44

Sheet DV_TABLES (hidden)
B3: Fertiliser
B4: Name | D4: % N
B5: DAP + Urea 24:16 | D5: 0.24
B6: DAP + Urea 28:13 | D6: 0.28
B7: DAP + Urea 32:10 | D7: 0.32
B8: DAP 18:20 | D8: 0.18
B9: DAP Plus 2% Zn | D9: 0.18
B10: Flutriafol (on fert)
B11: Granulock Z 11:22:0:4 plus 1% Zinc | D11: 0.11
B12: Lime
B13: MAP 10:22 | D13: 0.1
B14: Sulphate of Ammonia | D14: 0.23
B15: Superphosphate
B16: Trace Elements
B17: Urea | D17: 0.46
B18: UAN | D18: 0.43
B21: Seed Data
B22: Name | D22: Active Ingredient
B23: Apron® XL 350 ES | D23: 0.35
B24: Baytan® T Flowable
B25: EverGol® Energy
B26: Flutriafol (500g/l) | D26: 0.5
B27: Innoculant
B28: P-Pickel
B29: Rancona Dimension®
B30: Seed
B31: Seed - open pollinated
B32: Seed - Hybrid
B33: Seed Grading
B34: Seed Treatment(1) Smuts and Bunts
B35: Seed Treatment(2) Systiva Seed Dressing
B36: Seed Treatment(3) Aphid Control
B37: Uniform®
B38: Veto® 25C Flowable | D38: 0.025
B39: Vibrance®
B43: CHEMICALS-HERBICIDES
B44: Name | D44: Active Ingridient
B46: 2,4-D Amine (625g/l) | D46: 62.5
B47: 2,4-D LV Ester (680g/l) | D47: 68
B48: Achieve® WG
B49: Adigor®
B50: Adjuvant
B51: Affinity®
B52: Aptitude®
B53: Atlantis® (mesosulfuron 30g/L) | D53: 3
B54: Atrazine (900 gm/litre) | D54: 90
B55: Atrazine 900g/kg | D55: 90
B56: Axial®
B57: Balance ®
B58: Banjo®
B59: Boxer Gold®
B60: Broadstrike®
B61: Bromoxynil /MCPA
B62: Bromoxynil 200 | D62: 20
B63: Butisan
B64: Cadence® (700gm/Kg Dicamba) | D64: 70
B65: Carfentrazone 400g/L (Hammer) | D65: 40
B66: Chlorsulfuron 750g/kg (Glean) | D66: 75
B67: Clethodim (360g/L) | D67: 36
B68: Clethodim (360g/L) + Wetter | D68: 36
B69: Clopyralid 600g/L (Lontrel® Advanced) | D69: 60
B70: Crusader®
B71: Diflufenican (Brodal)
B72: Diuron 900 gm a.i. granules | D72: 90
B73: Factor® (butroxydim 250g/kg) | D73: 25
B74: Flight®
B75: Glypho (pre-harvest) | D75: 54
B76: Glyphosate 450g/L | D76: 45
B77: Glyphosate 540g/L | D77: 54
B78: Glyphosate 540g/L (desiccant) | D78: 54
B79: Glyphosate 540g/L Pre cutting | D79: 54
B80: Haloxyfop 520g/L (Verdict) | D80: 52
B81: Imazethapyr 700g/kg | D81: 70
B82: Intervix®
B83: Intervix® 1
B84: Luximax
B85: M.C.P.A. LVE
B86: MCPA Amine (750g/L) | D86: 75
B87: Metribuzin 750 gm/kg | D87: 75
B88: Metribuzin 750 gm/kg (2)
B89: Metsulfuron methyl
B90: Overwatch®
B91: Oxyfluorfen 240g/L | D91: 24
B92: Paradigm®
B93: Paraquat
B94: Pixxaro
B95: Precept®
B96: Propyzamide (500 g/L) | D96: 50
B97: Prosulfocarb
B98: Quizalofop 200g/L | D98: 20
B99: Raptor
B100: Reglone®
B101: Rexade® (New formulation of Crusader®)
B102: Roundup Ready 540 | D102: 54
B103: Roundup Ready PL with Plantshield
B104: Sakura®
B105: Sentry®
B106: Sharpen®
B107: Simazine Granules
B108: S-metolachlor 960g/L (Dual®Gold) | D108: 96
B109: Sprayseed®
B110: Starane® Advanced (fluroxypyr 333g/L) | D110: 33.3
B111: Talinor
B112: Terbyne® 875 | D112: 87.5
B113: Tigrex®
B114: Topik® EC
B115: Tri-allate 500g/L | D115: 50
B116: Triasulfuron 750g/kg (Logran) | D116: 75
B117: Triclopyr 600g/L | D117: 60
B118: Triclopyr 755g/L | D118: 75.5
B119: Trifluralin 480g/L | D119: 48
B120: Valor®
B121: Velocity®
B129: CHEMICALS-FUNGICIDES
B130: NAME
B132: Amistar®
B133: Amistar Xtra
B134: Apron® XL 350 ES | D134: 0.35
B135: Aviator X-Pro®
B136: Baytan® T Flowable
B137: Carbendazim 500g/kg | D137: 0.5
B138: Chlorothalonil 720g/L | D138: 0.72
B139: Cogito®
B140: Epoxiconazole 500g/L | D140: 0.125
B141: EverGol® Energy
B142: Flutriafol (on fert)
B143: Flutriafol (500g/l) | D143: 0.5
B144: Mancozeb 750g/kg | D144: 0.75
B145: Maxentis
B146: P-Pickel T
B147: Pontiac®
B148: Procymidone 500g/L | D148: 0.5
B149: Propiconazole 430g/L | D149: 0.43
B150: Prosaro®
B151: Rancona Dimension®
B152: Systiva®
B153: Tazer® Xpert
B154: Tebuconazole 430 | D154: 0.43
B155: Uniform®
B156: Veritas®
B157: Veto® 25C Flowable
B158: Vibrance®
B163: CHEMICAL-INSECTICIDES
B164: NAME
B166: Affirm
B167: Alpha-cypermethrin 16g/L | D167: 0.016
B168: Bifenthrin 250g/L (Talstar®) | D168: 0.25
B169: Chlorpyrifos 500g/L | D169: 0.5
B170: Cruiser 350 | D170: 0.35
B171: Dimethoate 400g/L | D171: 0.4
B172: Dimethoate 400g/L (2) | D172: 0.4
B173: Glyphosate 540g/L Pre cutting
B174: Imidacloprid 600 g/L | D174: 0.6
B175: Imidan®
B176: Lambda-cyhalothrin (Karate Zeon) 1st
B177: Lambda-cyhalothrin (Karate Zeon) 2nd
B178: Metaldehyde
B179: Omethoate 400g/L | D179: 0.4
B180: Pirimicarb 500g/kg | D180: 0.5
B181: Pyrinex® Super
B182: Sumi-Alpha® Flex
B183: Transform
B184: Trojan®
B187: These tables below are required for the dependent dv lists on the Risk Data sheet.
B188: Crop | C188: Status
B189: Lupins | C189: =OR(rng_Lupins_DATA_SHEET,rng_Lupins_DATA_Sheet_R2) -> FALSE
B190: Beans | C190: =OR(rng_Beans_DATA_SHEET,rng_Beans_DATA_Sheet_R2) -> FALSE
B193: Crop | C193: Status
B194: Lentils IMI | C194: =OR(rng_LENTILS_GIA_DATA_SHEET,rng_LENTILS_GIA_DATA_SHEET_R2) -> FALSE
B195: Lentils | C195: =OR(rng_lentils_DATA_SHEET,rng_lentils_DATA_Sheet_R2) -> FALSE
B196: Field peas | C196: =OR(rng_Field_Peas_DATA_SHEET,rng_Field_Peas_DATA_Sheet_R2) -> FALSE
B197: Vetch | C197: =OR(rng_Vetch_DATA_SHEET,rng_Vetch_DATA_Sheet_R2) -> FALSE
B200: Crop | C200: Status
B201: Chickpeas | C201: =OR(rng_Chickpeas_DATA_SHEET,rng_Chickpeas_DATA_Sheet_R2) -> FALSE
B202: Lentils MET | C202: =OR(rng_lentils_imi_DATA_SHEET,rng_lentils_imi_DATA_Sheet_R2) -> FALSE
B205: These formulas below are required for the dependent dv lists on the Risk Data sheet. They spill so make sure theres nothing underneath them
B206: =_xlfn.LET( _xlpm.val,tbl_dv_pulse1[Crop],_xlpm.logic, tbl_dv_pulse1[Status],_xlpm.result, _xlfn._xlws.FILTER(_xlpm.val, _xlpm.logic, "None"),IF(INDEX(_xlpm.result, 1) = "None", #N/A, _xlpm.result)) ->  | D206: =_xlfn.LET( _xlpm.val,tbl_dv_pulse2[Crop],_xlpm.logic, tbl_dv_pulse2[Status],_xlpm.result, _xlfn._xlws.FILTER(_xlpm.val, _xlpm.logic, "None"),IF(INDEX(_xlpm.result, 1) = "None", #N/A, _xlpm.result)) ->  | F206: =_xlfn.LET( _xlpm.val,tbl_dv_pulse3[Crop],_xlpm.logic, tbl_dv_pulse3[Status],_xlpm.result, _xlfn._xlws.FILTER(_xlpm.val, _xlpm.logic, "None"),IF(INDEX(_xlpm.result, 1) = "None", #N/A, _xlpm.result)) -> 
B216: Livestock
B217: Prime Lambs
B218: Self Replacing Merino
B219: Clean Skins
B220: Lamb Trading
B221: Beef Cattle

Sheet Summary GM figures (hidden)
A1: =m_year&" GROSS MARGIN ESTIMATES" -> 2026 GROSS MARGIN ESTIMATES | L1: COMMODITY PRICES HISTORICAL DATA
A2: ="The tables below summarise the anticipated gross margins for all crops for "&m_year -> The tables below summarise the anticipated gross margins for all crops for 2026 | L2: Historical commodity price data and trends can be used as a guide in assessing average returns over time and also the variability of those returns for any given commodity.
L4: ="NOTE: "&Year_Short&" Forecast Grain Prices: Forecast grain prices for "&Year_Short&" are affected by the value of the Australian Dollar, world consumption, and Australian and other major grain exporting countries production. Future pricing is uncertain and caution is needed with projections." -> NOTE: 26/27 Forecast Grain Prices: Forecast grain prices for 26/27 are affected by the value of the Australian Dollar, world consumption, and Australian and other major grain exporting countries production. Future pricing is uncertain and caution is needed with projections.
A5: THIS TABLE NOT USED | T5: PRICES (usually prices will be the same across rainfall zones. For some crops however these are different)
A6: CROPPING | M6: Not Used | P6: Not Used | Q6: Not Used | R6: Not Used | S6: =m_year -> 2026 | T6: LOW | Y6: MEDIUM | AD6: HIGH | AI6: YIELD SPREAD (Factors)
A7: Commodity $/ha | B7: Low | C7: Medium | D7: High | L7: Commodity | M7: Current_LOW | N7: Current_MED | O7: Current_HIGH | P7: notused1 | Q7: notused2 | R7: notused3 | S7: notused4 | T7: Price_Low_Poor | U7: Price_Low_Below Average | V7: Price_Low_Average | W7: Price_Low_Above Average | X7: Price_Low_Very Good | Y7: Price_Medium_Poor | Z7: Price_Medium_Below Average | AA7: Price_Medium_Average | AB7: Price_Medium_Above Average | AC7: Price_Medium_Very Good | AD7: Price_High_Poor | AE7: Price_High_Below Average | AF7: Price_High_Average | AG7: Price_High_Above Average | AH7: Price_High_Very Good | AI7: Low_Poor | AJ7: Low_Below Average | AK7: Low_Average | AL7: Low_Above Average | AM7: Low_Very Good | AN7: Medium_Poor | AO7: Medium_Below Average | AP7: Medium_Average | AQ7: Medium_Above Average | AR7: Medium_Very Good | AS7: High_Poor | AT7: High_Below Average | AU7: High_Average | AV7: High_Above Average | AW7: High_Very Good
A8: APW Wheat | L8: Wheat | T8: 280 | U8: 310 | V8: 340 | W8: 370 | X8: 400 | Y8: 280 | Z8: 310 | AA8: 340 | AB8: 370 | AC8: 400 | AD8: 280 | AE8: 310 | AF8: 340 | AG8: 370 | AH8: 400 | AI8: 0.5 | AJ8: 1.2 | AK8: 1.8 | AL8: 2.5 | AM8: 3.5 | AN8: 1 | AO8: 2 | AP8: 3.2 | AQ8: 4 | AR8: 5 | AS8: 2.5 | AT8: 3.5 | AU8: 4.8 | AV8: 5.5 | AW8: 6.5
A9: Durum | L9: Durum | T9: 360 | U9: 400 | V9: 440 | W9: 480 | X9: 520 | Y9: 360 | Z9: 400 | AA9: 440 | AB9: 480 | AC9: 520 | AD9: 360 | AE9: 400 | AF9: 440 | AG9: 480 | AH9: 520 | AI9: 0.5 | AJ9: 0.8 | AK9: 1.4 | AL9: 2 | AM9: 2.8 | AN9: 1 | AO9: 1.5 | AP9: 2.7 | AQ9: 3.5 | AR9: 4.5 | AS9: 2 | AT9: 3 | AU9: 4 | AV9: 6 | AW9: 7
A10: Malt Barley | L10: Malt Barley | T10: 240 | U10: 270 | V10: 300 | W10: 330 | X10: 360 | Y10: 240 | Z10: 270 | AA10: 300 | AB10: 330 | AC10: 360 | AD10: 240 | AE10: 270 | AF10: 300 | AG10: 330 | AH10: 360 | AI10: 0.5 | AJ10: 1.2 | AK10: 1.8 | AL10: 2.5 | AM10: 3.5 | AN10: 1 | AO10: 2 | AP10: 3.2 | AQ10: 4 | AR10: 5 | AS10: 2.5 | AT10: 3.5 | AU10: 4.8 | AV10: 5.5 | AW10: 6.5
A11: Feed Barley | L11: Feed Barley | T11: 220 | U11: 250 | V11: 280 | W11: 310 | X11: 340 | Y11: 220 | Z11: 250 | AA11: 280 | AB11: 310 | AC11: 340 | AD11: 220 | AE11: 250 | AF11: 280 | AG11: 310 | AH11: 340 | AI11: 0.5 | AJ11: 1.2 | AK11: 1.8 | AL11: 2.5 | AM11: 3.5 | AN11: 1 | AO11: 2 | AP11: 3.2 | AQ11: 4 | AR11: 5 | AS11: 2.5 | AT11: 3.5 | AU11: 4.8 | AV11: 5.5 | AW11: 6.5
A12: Milling Oats | L12: Milling Oats | T12: 280 | U12: 305 | V12: 330 | W12: 300 | X12: 350 | Y12: 280 | Z12: 305 | AA12: 330 | AB12: 300 | AC12: 350 | AD12: 280 | AE12: 305 | AF12: 330 | AG12: 300 | AH12: 350 | AI12: 0.2 | AJ12: 0.5 | AK12: 1.5 | AL12: 2.5 | AM12: 3.5 | AN12: 1 | AO12: 2 | AP12: 2.8 | AQ12: 4 | AR12: 5 | AS12: 2 | AT12: 3 | AU12: 4 | AV12: 5 | AW12: 6
A13: Triticale | L13: Triticale | T13: 215 | U13: 245 | V13: 275 | W13: 305 | X13: 335 | Y13: 215 | Z13: 245 | AA13: 275 | AB13: 305 | AC13: 335 | AD13: 215 | AE13: 245 | AF13: 275 | AG13: 305 | AH13: 335 | AI13: 0.5 | AJ13: 1 | AK13: 1.4 | AL13: 2 | AM13: 3 | AN13: 1 | AO13: 1.6 | AP13: 2.6 | AQ13: 3.2 | AR13: 4 | AS13: 1.5 | AT13: 2.5 | AU13: 3.7 | AV13: 4.5 | AW13: 5.5
A14: Oaten Hay | L14: Vetch | T14: 300 | U14: 400 | V14: 500 | W14: 600 | X14: 700 | Y14: 300 | Z14: 400 | AA14: 500 | AB14: 600 | AC14: 700 | AD14: 300 | AE14: 400 | AF14: 500 | AG14: 600 | AH14: 700 | AI14: 0.2 | AJ14: 0.3 | AK14: 0.8 | AL14: 1.2 | AM14: 2 | AN14: 0.5 | AO14: 1 | AP14: 1.5 | AQ14: 2.5 | AR14: 3 | AS14: 0.8 | AT14: 1.5 | AU14: 2.2 | AV14: 3 | AW14: 3.2
A15: Grain Vetch | L15: Lupins | T15: 390 | U15: 420 | V15: 450 | W15: 480 | X15: 510 | Y15: 390 | Z15: 420 | AA15: 450 | AB15: 480 | AC15: 510 | AD15: 390 | AE15: 420 | AF15: 450 | AG15: 480 | AH15: 510 | AI15: 0.3 | AJ15: 0.5 | AK15: 1 | AL15: 1.5 | AM15: 2 | AN15: 0.3 | AO15: 0.5 | AP15: 1.7 | AQ15: 2 | AR15: 2.5 | AS15: 1 | AT15: 1.8 | AU15: 2.4 | AV15: 3 | AW15: 3.5
A16: Lupins | L16: Lentils | T16: 400 | U16: 500 | V16: 600 | W16: 700 | X16: 800 | Y16: 400 | Z16: 500 | AA16: 600 | AB16: 700 | AC16: 800 | AD16: 400 | AE16: 500 | AF16: 600 | AG16: 700 | AH16: 800 | AI16: 0.3 | AJ16: 0.6 | AK16: 0.9 | AL16: 1.1 | AM16: 1.5 | AN16: 0.8 | AO16: 1 | AP16: 1.7 | AQ16: 2.2 | AR16: 3 | AS16: 1.2 | AT16: 2 | AU16: 2.5 | AV16: 3.5 | AW16: 4
A17: Lentils | L17: Lentils IMI Tolerant | T17: 400 | U17: 500 | V17: 600 | W17: 700 | X17: 800 | Y17: 400 | Z17: 500 | AA17: 600 | AB17: 700 | AC17: 800 | AD17: 400 | AE17: 500 | AF17: 600 | AG17: 700 | AH17: 800 | AI17: 0.3 | AJ17: 0.5 | AK17: 0.9 | AL17: 1.1 | AM17: 1.5 | AN17: 0.8 | AO17: 1 | AP17: 1.7 | AQ17: 2 | AR17: 3 | AS17: 0.8 | AT17: 1.5 | AU17: 2.5 | AV17: 3 | AW17: 3.5
A18: Field Peas | L18: Lentils GIA Metro | T18: 400 | U18: 500 | V18: 600 | W18: 700 | X18: 800 | Y18: 400 | Z18: 500 | AA18: 600 | AB18: 700 | AC18: 800 | AD18: 400 | AE18: 500 | AF18: 600 | AG18: 700 | AH18: 800 | AI18: 0.25 | AJ18: 0.45 | AK18: 0.65 | AL18: 1 | AM18: 1.2 | AN18: 0.8 | AO18: 1 | AP18: 1.25 | AQ18: 1.5 | AR18: 2.2 | AS18: 0.8 | AT18: 1.25 | AU18: 1.85 | AV18: 2.2 | AW18: 2.5
A19: Faba Beans | L19: Field Peas | T19: 330 | U19: 380 | V19: 430 | W19: 480 | X19: 530 | Y19: 330 | Z19: 380 | AA19: 430 | AB19: 480 | AC19: 530 | AD19: 330 | AE19: 380 | AF19: 430 | AG19: 480 | AH19: 530 | AI19: 0.5 | AJ19: 0.75 | AK19: 1 | AL19: 1.5 | AM19: 2 | AN19: 1 | AO19: 1.3 | AP19: 1.7 | AQ19: 2 | AR19: 2.5 | AS19: 1.5 | AT19: 2 | AU19: 2.5 | AV19: 3 | AW19: 3.5
A20: Chickpeas (Kabuli) | L20: Faba Beans | T20: 340 | U20: 390 | V20: 440 | W20: 490 | X20: 540 | Y20: 340 | Z20: 390 | AA20: 440 | AB20: 490 | AC20: 540 | AD20: 340 | AE20: 390 | AF20: 440 | AG20: 490 | AH20: 540 | AI20: 0.4 | AJ20: 0.6 | AK20: 0.8 | AL20: 1.5 | AM20: 2 | AN20: 1 | AO20: 1.2 | AP20: 1.6 | AQ20: 2 | AR20: 2.5 | AS20: 1 | AT20: 2 | AU20: 2.8 | AV20: 3.5 | AW20: 4
A21: Canola- Conv | L21: Kabuli Chickpeas | T21: 500 | U21: 600 | V21: 700 | W21: 800 | X21: 900 | Y21: 500 | Z21: 600 | AA21: 700 | AB21: 800 | AC21: 900 | AD21: 500 | AE21: 600 | AF21: 700 | AG21: 800 | AH21: 900 | AI21: 0.4 | AJ21: 0.6 | AK21: 0.7 | AL21: 1.2 | AM21: 1.8 | AN21: 0.5 | AO21: 0.8 | AP21: 1.1 | AQ21: 1.8 | AR21: 2.3 | AS21: 1 | AT21: 1.5 | AU21: 1.6 | AV21: 2.5 | AW21: 3
A22: Canola-TT | L22: Export Oaten Hay | T22: 250 | U22: 270 | V22: 290 | W22: 310 | X22: 330 | Y22: 220 | Z22: 240 | AA22: 260 | AB22: 280 | AC22: 300 | AD22: 190 | AE22: 210 | AF22: 230 | AG22: 260 | AH22: 290 | AI22: 1.5 | AJ22: 2.5 | AK22: 3.2 | AL22: 4 | AM22: 4.5 | AN22: 2 | AO22: 3.5 | AP22: 5.5 | AQ22: 7.5 | AR22: 8 | AS22: 4 | AT22: 6 | AU22: 8 | AV22: 10 | AW22: 12
A23: Canola-Clear | L23: Canola Clearfield | T23: 650 | U23: 700 | V23: 750 | W23: 800 | X23: 850 | Y23: 650 | Z23: 700 | AA23: 750 | AB23: 800 | AC23: 850 | AD23: 650 | AE23: 700 | AF23: 750 | AG23: 800 | AH23: 850 | AI23: 0.3 | AJ23: 0.5 | AK23: 0.85 | AL23: 1.1 | AM23: 1.5 | AN23: 0.7 | AO23: 1 | AP23: 1.6 | AQ23: 2 | AR23: 2.5 | AS23: 1 | AT23: 1.5 | AU23: 2.3 | AV23: 2.5 | AW23: 2.7
L24: Canola Conventional | T24: 650 | U24: 700 | V24: 750 | W24: 800 | X24: 850 | Y24: 650 | Z24: 700 | AA24: 750 | AB24: 800 | AC24: 850 | AD24: 650 | AE24: 700 | AF24: 750 | AG24: 800 | AH24: 850 | AI24: 0.3 | AJ24: 0.5 | AK24: 0.75 | AL24: 1.1 | AM24: 1.5 | AN24: 0.7 | AO24: 1 | AP24: 1.4 | AQ24: 2 | AR24: 2.5 | AS24: 1 | AT24: 1.5 | AU24: 2.2 | AV24: 2.7 | AW24: 3
L25: Canola Roundup Ready | T25: 600 | U25: 650 | V25: 700 | W25: 750 | X25: 800 | Y25: 600 | Z25: 650 | AA25: 700 | AB25: 750 | AC25: 800 | AD25: 600 | AE25: 650 | AF25: 700 | AG25: 750 | AH25: 800 | AI25: 0.3 | AJ25: 0.5 | AK25: 0.85 | AL25: 1.1 | AM25: 1.5 | AN25: 0.7 | AO25: 1 | AP25: 1.5 | AQ25: 2 | AR25: 2.5 | AS25: 1 | AT25: 1.5 | AU25: 2.3 | AV25: 2.7 | AW25: 3
L26: Canola Tri Tolerant | T26: 650 | U26: 700 | V26: 750 | W26: 800 | X26: 850 | Y26: 650 | Z26: 700 | AA26: 750 | AB26: 800 | AC26: 850 | AD26: 650 | AE26: 700 | AF26: 750 | AG26: 800 | AH26: 850 | AI26: 0.3 | AJ26: 0.5 | AK26: 0.75 | AL26: 1.1 | AM26: 1.5 | AN26: 0.7 | AO26: 1 | AP26: 1.4 | AQ26: 2 | AR26: 2.5 | AS26: 1 | AT26: 1.5 | AU26: 2.2 | AV26: 2.6 | AW26: 3
L27: Sown Pasture | T27: 77 | U27: 82 | V27: 87 | W27: 92 | X27: 97 | Y27: 77 | Z27: 82 | AA27: 87 | AB27: 92 | AC27: 97 | AD27: 77 | AE27: 82 | AF27: 87 | AG27: 92 | AH27: 97 | AI27: 2 | AJ27: 3 | AK27: 4 | AL27: 6 | AM27: 8 | AN27: 3 | AO27: 5 | AP27: 7 | AQ27: 8 | AR27: 9 | AS27: 4 | AT27: 7 | AU27: 10 | AV27: 11 | AW27: 12
L28: Self Regen Pasture | T28: 77 | U28: 82 | V28: 87 | W28: 92 | X28: 97 | Y28: 77 | Z28: 82 | AA28: 87 | AB28: 92 | AC28: 97 | AD28: 77 | AE28: 82 | AF28: 87 | AG28: 92 | AH28: 97 | AI28: 2 | AJ28: 3 | AK28: 4 | AL28: 6 | AM28: 8 | AN28: 3 | AO28: 5 | AP28: 7 | AQ28: 8 | AR28: 9 | AS28: 4 | AT28: 7 | AU28: 10 | AV28: 11 | AW28: 12
L29: Lucerne Pasture Cereal | T29: 77 | U29: 82 | V29: 87 | W29: 92 | X29: 97 | Y29: 77 | Z29: 82 | AA29: 87 | AB29: 92 | AC29: 97 | AD29: 77 | AE29: 82 | AF29: 87 | AG29: 92 | AH29: 97 | AI29: 2 | AJ29: 4 | AK29: 6 | AL29: 8 | AM29: 10 | AN29: 2 | AO29: 4 | AP29: 6 | AQ29: 8 | AR29: 10 | AS29: 5 | AT29: 7 | AU29: 9 | AV29: 11 | AW29: 13
L30: Lucerne Pasture Grazing | T30: 80 | U30: 85 | V30: 90 | W30: 95 | X30: 100 | Y30: 80 | Z30: 85 | AA30: 90 | AB30: 95 | AC30: 100 | AD30: 80 | AE30: 85 | AF30: 90 | AG30: 95 | AH30: 100 | AI30: 7 | AJ30: 9 | AK30: 11 | AL30: 13 | AM30: 14 | AN30: 7 | AO30: 9 | AP30: 11 | AQ30: 13 | AR30: 14 | AS30: 7 | AT30: 9 | AU30: 11 | AV30: 13 | AW30: 14
L31: Phalaris Sub Pasture Cereal | T31: 77 | U31: 82 | V31: 87 | W31: 92 | X31: 97 | Y31: 77 | Z31: 82 | AA31: 87 | AB31: 92 | AC31: 97 | AD31: 77 | AE31: 82 | AF31: 87 | AG31: 92 | AH31: 97 | AI31: 6 | AJ31: 8 | AK31: 10 | AL31: 12 | AM31: 14 | AN31: 6 | AO31: 8 | AP31: 10 | AQ31: 12 | AR31: 14 | AS31: 6 | AT31: 8 | AU31: 10 | AV31: 12 | AW31: 14
L32: Phalaris Sub Grazing | T32: 80 | U32: 85 | V32: 90 | W32: 95 | X32: 100 | Y32: 80 | Z32: 85 | AA32: 90 | AB32: 95 | AC32: 100 | AD32: 80 | AE32: 85 | AF32: 90 | AG32: 95 | AH32: 100 | AI32: 8 | AJ32: 10 | AK32: 14 | AL32: 16 | AM32: 18 | AN32: 8 | AO32: 10 | AP32: 14 | AQ32: 16 | AR32: 18 | AS32: 8 | AT32: 10 | AU32: 14 | AV32: 16 | AW32: 18

Sheet Summary
B2: ="GROSS MARGINS SUMMARY - "&TEXT(m_year,"0000") -> GROSS MARGINS SUMMARY - 2026
B3: =var_rain&" Rainfall Zone" -> 
D4: Gross Margin | F4: Income | H4: Seeds & Levies | J4: Fertiliser | L4: Chemicals | N4: Fuel & Oil | P4: Machinery R&M | R4: Freight | T4: Other | V4: Total Var Costs
B5: ="Crop "&IF(var_rotationtype=2,"-Rotation 1","") -> Crop | C5: Area
B6: Wheat | C6: =(WHEAT!$U$6)*(rng_APW_Wheat_DATA_SHEET) -> 0 | D6: =(SUM(WHEAT!$L$163)*(rng_rainfall=1)+SUM(WHEAT!$O$163)*(rng_rainfall=2)+SUM(WHEAT!$R$163)*(rng_rainfall=3))*(rng_APW_Wheat_DATA_SHEET) -> 0 | E6: =(WHEAT!$U$163)*(rng_APW_Wheat_DATA_SHEET) -> 0 | F6: =(SUM(WHEAT!$L$11)*(rng_rainfall=1)+SUM(WHEAT!$O$11)*(rng_rainfall=2)+SUM(WHEAT!$R$11)*(rng_rainfall=3))*(rng_APW_Wheat_DATA_SHEET) -> 0 | G6: =(WHEAT!$U$11)*(rng_APW_Wheat_DATA_SHEET) -> 0 | H6: =(SUM(WHEAT!$L$14:$L$34)*(rng_rainfall=1)+SUM(WHEAT!$O$14:$O$34)*(rng_rainfall=2)+SUM(WHEAT!$R$14:$R$34)*(rng_rainfall=3))*(rng_APW_Wheat_DATA_SHEET) -> 0 | I6: =(SUM(WHEAT!$U$14:$U$34))*(rng_APW_Wheat_DATA_SHEET) -> 0 | J6: =(SUM(WHEAT!$L$37:$L$53)*(rng_rainfall=1)+SUM(WHEAT!$O$37:$O$53)*(rng_rainfall=2)+SUM(WHEAT!$R$37:$R$53)*(rng_rainfall=3))*(rng_APW_Wheat_DATA_SHEET) -> 0 | K6: =(SUM(WHEAT!$U$37:$U$53))*(rng_APW_Wheat_DATA_SHEET) -> 0 | L6: =(SUM(WHEAT!$L$57:$L$128)*(rng_rainfall=1)+SUM(WHEAT!$O$57:$O$128)*(rng_rainfall=2)+SUM(WHEAT!$R$57:$R$128)*(rng_rainfall=3))*(rng_APW_Wheat_DATA_SHEET) -> 0 | M6: =(SUM(WHEAT!$U$57:$U$128))*(rng_APW_Wheat_DATA_SHEET) -> 0 | N6: =(SUM(WHEAT!$L$132:$L$132)*(rng_rainfall=1)+SUM(WHEAT!$O$132:$O$132)*(rng_rainfall=2)+SUM(WHEAT!$R$132:$R$132)*(rng_rainfall=3))*(rng_APW_Wheat_DATA_SHEET) -> 0 | O6: =(SUM(WHEAT!$U$132:$U$132))*(rng_APW_Wheat_DATA_SHEET) -> 0 | P6: =(SUM(WHEAT!$L$133:$L$133)*(rng_rainfall=1)+SUM(WHEAT!$O$133:$O$133)*(rng_rainfall=2)+SUM(WHEAT!$R$133:$R$133)*(rng_rainfall=3))*(rng_APW_Wheat_DATA_SHEET) -> 0 | Q6: =(SUM(WHEAT!$U$133:$U$133))*(rng_APW_Wheat_DATA_SHEET) -> 0 | R6: =(SUM(WHEAT!$L$136:$L$138)*(rng_rainfall=1)+SUM(WHEAT!$O$136:$O$138)*(rng_rainfall=2)+SUM(WHEAT!$R$136:$R$138)*(rng_rainfall=3))*(rng_APW_Wheat_DATA_SHEET) -> 0 | S6: =(SUM(WHEAT!$U$136:$U$138))*(rng_APW_Wheat_DATA_SHEET) -> 0 | T6: =SUM(V6,-R6,-P6,-N6,-L6,-J6,-H6) -> 0 | U6: 0 | V6: =IFERROR(W6/C6,0) -> 0 | W6: =(WHEAT!$U$161)*(rng_APW_Wheat_DATA_SHEET) -> 0
B7: Durum | C7: =(DURUM!$U$6)*(rng_Durum_DATA_SHEET) -> 0 | D7: =(SUM(DURUM!$L$162)*(rng_rainfall=1)+SUM(DURUM!$O$162)*(rng_rainfall=2)+SUM(DURUM!$R$162)*(rng_rainfall=3))*(rng_Durum_DATA_SHEET) -> 0 | E7: =(DURUM!$U$162)*(rng_Durum_DATA_SHEET) -> 0 | F7: =(SUM(DURUM!$L$11)*(rng_rainfall=1)+SUM(DURUM!$O$11)*(rng_rainfall=2)+SUM(DURUM!$R$11)*(rng_rainfall=3))*(rng_Durum_DATA_SHEET) -> 0 | G7: =(DURUM!$U$11)*(rng_Durum_DATA_SHEET) -> 0 | H7: =(SUM(DURUM!$L$14:$L$34)*(rng_rainfall=1)+SUM(DURUM!$O$14:$O$34)*(rng_rainfall=2)+SUM(DURUM!$R$14:$R$34)*(rng_rainfall=3))*(rng_Durum_DATA_SHEET) -> 0 | I7: =(SUM(DURUM!$U$14:$U$34))*(rng_Durum_DATA_SHEET) -> 0 | J7: =(SUM(DURUM!$L$37:$L$53)*(rng_rainfall=1)+SUM(DURUM!$O$37:$O$53)*(rng_rainfall=2)+SUM(DURUM!$R$37:$R$53)*(rng_rainfall=3))*(rng_Durum_DATA_SHEET) -> 0 | K7: =(SUM(DURUM!$U$37:$U$53))*(rng_Durum_DATA_SHEET) -> 0 | L7: =(SUM(DURUM!$L$57:$L$128)*(rng_rainfall=1)+SUM(DURUM!$O$57:$O$128)*(rng_rainfall=2)+SUM(DURUM!$R$57:$R$128)*(rng_rainfall=3))*(rng_Durum_DATA_SHEET) -> 0 | M7: =(SUM(DURUM!$U$57:$U$128))*(rng_Durum_DATA_SHEET) -> 0 | N7: =(SUM(DURUM!$L$132:$L$132)*(rng_rainfall=1)+SUM(DURUM!$O$132:$O$132)*(rng_rainfall=2)+SUM(DURUM!$R$132:$R$132)*(rng_rainfall=3))*(rng_Durum_DATA_SHEET) -> 0 | O7: =(SUM(DURUM!$U$132:$U$132))*(rng_Durum_DATA_SHEET) -> 0 | P7: =(SUM(DURUM!$L$133:$L$133)*(rng_rainfall=1)+SUM(DURUM!$O$133:$O$133)*(rng_rainfall=2)+SUM(DURUM!$R$133:$R$133)*(rng_rainfall=3))*(rng_Durum_DATA_SHEET) -> 0 | Q7: =(SUM(DURUM!$U$133:$U$133))*(rng_Durum_DATA_SHEET) -> 0 | R7: =(SUM(DURUM!$L$136:$L$137)*(rng_rainfall=1)+SUM(DURUM!$O$136:$O$137)*(rng_rainfall=2)+SUM(DURUM!$R$136:$R$137)*(rng_rainfall=3))*(rng_Durum_DATA_SHEET) -> 0 | S7: =(SUM(DURUM!$U$136:$U$137))*(rng_Durum_DATA_SHEET) -> 0 | T7: 0 | U7: 0 | V7: 0 | W7: =(DURUM!$U$160)*(rng_Durum_DATA_SHEET) -> 0
B8: Malt Barley | C8: =('MALT BARLEY'!$U$6)*(rng_Malt_Barley_DATA_SHEET) -> 0 | D8: =(SUM('MALT BARLEY'!$L$162)*(rng_rainfall=1)+SUM('MALT BARLEY'!$O$162)*(rng_rainfall=2)+SUM('MALT BARLEY'!$R$162)*(rng_rainfall=3))*(rng_Malt_Barley_DATA_SHEET) -> 0 | E8: =('MALT BARLEY'!$U$162)*(rng_Malt_Barley_DATA_SHEET) -> 0 | F8: =(SUM('MALT BARLEY'!$L$11)*(rng_rainfall=1)+SUM('MALT BARLEY'!$O$11)*(rng_rainfall=2)+SUM('MALT BARLEY'!$R$11)*(rng_rainfall=3))*(rng_Malt_Barley_DATA_SHEET) -> 0 | G8: =('MALT BARLEY'!$U$11)*(rng_Malt_Barley_DATA_SHEET) -> 0 | H8: =(SUM('MALT BARLEY'!$L$14:$L$34)*(rng_rainfall=1)+SUM('MALT BARLEY'!$O$14:$O$34)*(rng_rainfall=2)+SUM('MALT BARLEY'!$R$14:$R$34)*(rng_rainfall=3))*(rng_Malt_Barley_DATA_SHEET) -> 0 | I8: =(SUM('MALT BARLEY'!$U$14:$U$34))*(rng_Malt_Barley_DATA_SHEET) -> 0 | J8: =(SUM('MALT BARLEY'!$L$37:$L$53)*(rng_rainfall=1)+SUM('MALT BARLEY'!$O$37:$O$53)*(rng_rainfall=2)+SUM('MALT BARLEY'!$R$37:$R$53)*(rng_rainfall=3))*(rng_Malt_Barley_DATA_SHEET) -> 0 | K8: =(SUM('MALT BARLEY'!$U$37:$U$53))*(rng_Malt_Barley_DATA_SHEET) -> 0 | L8: =(SUM('MALT BARLEY'!$L$57:$L$128)*(rng_rainfall=1)+SUM('MALT BARLEY'!$O$57:$O$128)*(rng_rainfall=2)+SUM('MALT BARLEY'!$R$57:$R$128)*(rng_rainfall=3))*(rng_Malt_Barley_DATA_SHEET) -> 0 | M8: =(SUM('MALT BARLEY'!$U$57:$U$128))*(rng_Malt_Barley_DATA_SHEET) -> 0 | N8: =(SUM('MALT BARLEY'!$L$132:$L$132)*(rng_rainfall=1)+SUM('MALT BARLEY'!$O$132:$O$132)*(rng_rainfall=2)+SUM('MALT BARLEY'!$R$132:$R$132)*(rng_rainfall=3))*(rng_Malt_Barley_DATA_SHEET) -> 0 | O8: =(SUM('MALT BARLEY'!$U$132:$U$132))*(rng_Malt_Barley_DATA_SHEET) -> 0 | P8: =(SUM('MALT BARLEY'!$L$133:$L$133)*(rng_rainfall=1)+SUM('MALT BARLEY'!$O$133:$O$133)*(rng_rainfall=2)+SUM('MALT BARLEY'!$R$133:$R$133)*(rng_rainfall=3))*(rng_Malt_Barley_DATA_SHEET) -> 0 | Q8: =(SUM('MALT BARLEY'!$U$133:$U$133))*(rng_Malt_Barley_DATA_SHEET) -> 0 | R8: =(SUM('MALT BARLEY'!$L$136:$L$137)*(rng_rainfall=1)+SUM('MALT BARLEY'!$O$136:$O$137)*(rng_rainfall=2)+SUM('MALT BARLEY'!$R$136:$R$137)*(rng_rainfall=3))*(rng_Malt_Barley_DATA_SHEET) -> 0 | S8: =(SUM('MALT BARLEY'!$U$136:$U$137))*(rng_Malt_Barley_DATA_SHEET) -> 0 | T8: 0 | U8: 0 | V8: 0 | W8: =('MALT BARLEY'!$U$160)*(rng_Malt_Barley_DATA_SHEET) -> 0
B9: Feed Barley | C9: =('FEED BARLEY'!$U$6)*(rng_Feed_Barley_DATA_SHEET) -> 0 | D9: =(SUM('FEED BARLEY'!$L$162)*(rng_rainfall=1)+SUM('FEED BARLEY'!$O$162)*(rng_rainfall=2)+SUM('FEED BARLEY'!$R$162)*(rng_rainfall=3))*(rng_Feed_Barley_DATA_SHEET) -> 0 | E9: =('FEED BARLEY'!$U$162)*(rng_Feed_Barley_DATA_SHEET) -> 0 | F9: =(SUM('FEED BARLEY'!$L$11)*(rng_rainfall=1)+SUM('FEED BARLEY'!$O$11)*(rng_rainfall=2)+SUM('FEED BARLEY'!$R$11)*(rng_rainfall=3))*(rng_Feed_Barley_DATA_SHEET) -> 0 | G9: =('FEED BARLEY'!$U$11)*(rng_Feed_Barley_DATA_SHEET) -> 0 | H9: =(SUM('FEED BARLEY'!$L$14:$L$34)*(rng_rainfall=1)+SUM('FEED BARLEY'!$O$14:$O$34)*(rng_rainfall=2)+SUM('FEED BARLEY'!$R$14:$R$34)*(rng_rainfall=3))*(rng_Feed_Barley_DATA_SHEET) -> 0 | I9: =(SUM('FEED BARLEY'!$U$14:$U$34))*(rng_Feed_Barley_DATA_SHEET) -> 0 | J9: =(SUM('FEED BARLEY'!$L$37:$L$53)*(rng_rainfall=1)+SUM('FEED BARLEY'!$O$37:$O$53)*(rng_rainfall=2)+SUM('FEED BARLEY'!$R$37:$R$53)*(rng_rainfall=3))*(rng_Feed_Barley_DATA_SHEET) -> 0 | K9: =(SUM('FEED BARLEY'!$U$37:$U$53))*(rng_Feed_Barley_DATA_SHEET) -> 0 | L9: =(SUM('FEED BARLEY'!$L$57:$L$128)*(rng_rainfall=1)+SUM('FEED BARLEY'!$O$57:$O$128)*(rng_rainfall=2)+SUM('FEED BARLEY'!$R$57:$R$128)*(rng_rainfall=3))*(rng_Feed_Barley_DATA_SHEET) -> 0 | M9: =(SUM('FEED BARLEY'!$U$57:$U$128))*(rng_Feed_Barley_DATA_SHEET) -> 0 | N9: =(SUM('FEED BARLEY'!$L$132:$L$132)*(rng_rainfall=1)+SUM('FEED BARLEY'!$O$132:$O$132)*(rng_rainfall=2)+SUM('FEED BARLEY'!$R$132:$R$132)*(rng_rainfall=3))*(rng_Feed_Barley_DATA_SHEET) -> 0 | O9: =(SUM('FEED BARLEY'!$U$132:$U$132))*(rng_Feed_Barley_DATA_SHEET) -> 0 | P9: =(SUM('FEED BARLEY'!$L$133:$L$133)*(rng_rainfall=1)+SUM('FEED BARLEY'!$O$133:$O$133)*(rng_rainfall=2)+SUM('FEED BARLEY'!$R$133:$R$133)*(rng_rainfall=3))*(rng_Feed_Barley_DATA_SHEET) -> 0 | Q9: =(SUM('FEED BARLEY'!$U$133:$U$133))*(rng_Feed_Barley_DATA_SHEET) -> 0 | R9: =(SUM('FEED BARLEY'!$L$136:$L$137)*(rng_rainfall=1)+SUM('FEED BARLEY'!$O$136:$O$137)*(rng_rainfall=2)+SUM('FEED BARLEY'!$R$136:$R$137)*(rng_rainfall=3))*(rng_Feed_Barley_DATA_SHEET) -> 0 | S9: =(SUM('FEED BARLEY'!$U$136:$U$137))*(rng_Feed_Barley_DATA_SHEET) -> 0 | T9: 0 | U9: 0 | V9: 0 | W9: =('FEED BARLEY'!$U$160)*(rng_Feed_Barley_DATA_SHEET) -> 0
B10: Milling Oats | C10: =('MILLING OATS'!$U$6)*(rng_Milling_DATA_SHEET) -> 0 | D10: =(SUM('MILLING OATS'!$L$162)*(rng_rainfall=1)+SUM('MILLING OATS'!$O$162)*(rng_rainfall=2)+SUM('MILLING OATS'!$R$162)*(rng_rainfall=3))*(rng_Milling_DATA_SHEET) -> 0 | E10: =('MILLING OATS'!$U$162)*(rng_Milling_DATA_SHEET) -> 0 | F10: =(SUM('MILLING OATS'!$L$11)*(rng_rainfall=1)+SUM('MILLING OATS'!$O$11)*(rng_rainfall=2)+SUM('MILLING OATS'!$R$11)*(rng_rainfall=3))*(rng_Milling_DATA_SHEET) -> 0 | G10: =('MILLING OATS'!$U$11)*(rng_Milling_DATA_SHEET) -> 0 | H10: =(SUM('MILLING OATS'!$L$14:$L$34)*(rng_rainfall=1)+SUM('MILLING OATS'!$O$14:$O$34)*(rng_rainfall=2)+SUM('MILLING OATS'!$R$14:$R$34)*(rng_rainfall=3))*(rng_Milling_DATA_SHEET) -> 0 | I10: =(SUM('MILLING OATS'!$U$14:$U$34))*(rng_Milling_DATA_SHEET) -> 0 | J10: =(SUM('MILLING OATS'!$L$37:$L$53)*(rng_rainfall=1)+SUM('MILLING OATS'!$O$37:$O$53)*(rng_rainfall=2)+SUM('MILLING OATS'!$R$37:$R$53)*(rng_rainfall=3))*(rng_Milling_DATA_SHEET) -> 0 | K10: =(SUM('MILLING OATS'!$U$37:$U$53))*(rng_Milling_DATA_SHEET) -> 0 | L10: =(SUM('MILLING OATS'!$L$57:$L$128)*(rng_rainfall=1)+SUM('MILLING OATS'!$O$57:$O$128)*(rng_rainfall=2)+SUM('MILLING OATS'!$R$57:$R$128)*(rng_rainfall=3))*(rng_Milling_DATA_SHEET) -> 0 | M10: =(SUM('MILLING OATS'!$U$57:$U$128))*(rng_Milling_DATA_SHEET) -> 0 | N10: =(SUM('MILLING OATS'!$L$132:$L$132)*(rng_rainfall=1)+SUM('MILLING OATS'!$O$132:$O$132)*(rng_rainfall=2)+SUM('MILLING OATS'!$R$132:$R$132)*(rng_rainfall=3))*(rng_Milling_DATA_SHEET) -> 0 | O10: =(SUM('MILLING OATS'!$U$132:$U$132))*(rng_Milling_DATA_SHEET) -> 0 | P10: =(SUM('MILLING OATS'!$L$133:$L$133)*(rng_rainfall=1)+SUM('MILLING OATS'!$O$133:$O$133)*(rng_rainfall=2)+SUM('MILLING OATS'!$R$133:$R$133)*(rng_rainfall=3))*(rng_Milling_DATA_SHEET) -> 0 | Q10: =(SUM('MILLING OATS'!$U$133:$U$133))*(rng_Milling_DATA_SHEET) -> 0 | R10: =(SUM('MILLING OATS'!$L$136:$L$137)*(rng_rainfall=1)+SUM('MILLING OATS'!$O$136:$O$137)*(rng_rainfall=2)+SUM('MILLING OATS'!$R$136:$R$137)*(rng_rainfall=3))*(rng_Milling_DATA_SHEET) -> 0 | S10: =(SUM('MILLING OATS'!$U$136:$U$137))*(rng_Milling_DATA_SHEET) -> 0 | T10: 0 | U10: 0 | V10: 0 | W10: =('MILLING OATS'!$U$160)*(rng_Milling_DATA_SHEET) -> 0
B11: Triticale | C11: =(TRITICALE!$U$6)*(rng_Triticale_DATA_SHEET) -> 0 | D11: =(SUM(TRITICALE!$L$162)*(rng_rainfall=1)+SUM(TRITICALE!$O$162)*(rng_rainfall=2)+SUM(TRITICALE!$R$162)*(rng_rainfall=3))*(rng_Triticale_DATA_SHEET) -> 0 | E11: =(TRITICALE!$U$162)*(rng_Triticale_DATA_SHEET) -> 0 | F11: =(SUM(TRITICALE!$L$11)*(rng_rainfall=1)+SUM(TRITICALE!$O$11)*(rng_rainfall=2)+SUM(TRITICALE!$R$11)*(rng_rainfall=3))*(rng_Triticale_DATA_SHEET) -> 0 | G11: =(TRITICALE!$U$11)*(rng_Triticale_DATA_SHEET) -> 0 | H11: =(SUM(TRITICALE!$L$14:$L$34)*(rng_rainfall=1)+SUM(TRITICALE!$O$14:$O$34)*(rng_rainfall=2)+SUM(TRITICALE!$R$14:$R$34)*(rng_rainfall=3))*(rng_Triticale_DATA_SHEET) -> 0 | I11: =(SUM(TRITICALE!$U$14:$U$34))*(rng_Triticale_DATA_SHEET) -> 0 | J11: =(SUM(TRITICALE!$L$37:$L$53)*(rng_rainfall=1)+SUM(TRITICALE!$O$37:$O$53)*(rng_rainfall=2)+SUM(TRITICALE!$R$37:$R$53)*(rng_rainfall=3))*(rng_Triticale_DATA_SHEET) -> 0 | K11: =(SUM(TRITICALE!$U$37:$U$53))*(rng_Triticale_DATA_SHEET) -> 0 | L11: =(SUM(TRITICALE!$L$57:$L$128)*(rng_rainfall=1)+SUM(TRITICALE!$O$57:$O$128)*(rng_rainfall=2)+SUM(TRITICALE!$R$57:$R$128)*(rng_rainfall=3))*(rng_Triticale_DATA_SHEET) -> 0 | M11: =(SUM(TRITICALE!$U$57:$U$128))*(rng_Triticale_DATA_SHEET) -> 0 | N11: =(SUM(TRITICALE!$L$132:$L$132)*(rng_rainfall=1)+SUM(TRITICALE!$O$132:$O$132)*(rng_rainfall=2)+SUM(TRITICALE!$R$132:$R$132)*(rng_rainfall=3))*(rng_Triticale_DATA_SHEET) -> 0 | O11: =(SUM(TRITICALE!$U$132:$U$132))*(rng_Triticale_DATA_SHEET) -> 0 | P11: =(SUM(TRITICALE!$L$133:$L$133)*(rng_rainfall=1)+SUM(TRITICALE!$O$133:$O$133)*(rng_rainfall=2)+SUM(TRITICALE!$R$133:$R$133)*(rng_rainfall=3))*(rng_Triticale_DATA_SHEET) -> 0 | Q11: =(SUM(TRITICALE!$U$133:$U$133))*(rng_Triticale_DATA_SHEET) -> 0 | R11: =(SUM(TRITICALE!$L$136:$L$137)*(rng_rainfall=1)+SUM(TRITICALE!$O$136:$O$137)*(rng_rainfall=2)+SUM(TRITICALE!$R$136:$R$137)*(rng_rainfall=3))*(rng_Triticale_DATA_SHEET) -> 0 | S11: =(SUM(TRITICALE!$U$136:$U$137))*(rng_Triticale_DATA_SHEET) -> 0 | T11: 0 | U11: 0 | V11: 0 | W11: =(TRITICALE!$U$160)*(rng_Triticale_DATA_SHEET) -> 0
B12: Export Oaten Hay | C12: =('EXPORT OATEN HAY'!$U$6)*(rng_Export_DATA_SHEET) -> 0 | D12: =(SUM('EXPORT OATEN HAY'!$L$162)*(rng_rainfall=1)+SUM('EXPORT OATEN HAY'!$O$162)*(rng_rainfall=2)+SUM('EXPORT OATEN HAY'!$R$162)*(rng_rainfall=3))*(rng_Export_DATA_SHEET) -> 0 | E12: =('EXPORT OATEN HAY'!$U$162)*(rng_Export_DATA_SHEET) -> 0 | F12: =(SUM('EXPORT OATEN HAY'!$L$11)*(rng_rainfall=1)+SUM('EXPORT OATEN HAY'!$O$11)*(rng_rainfall=2)+SUM('EXPORT OATEN HAY'!$R$11)*(rng_rainfall=3))*(rng_Export_DATA_SHEET) -> 0 | G12: =('EXPORT OATEN HAY'!$U$11)*(rng_Export_DATA_SHEET) -> 0 | H12: =(SUM('EXPORT OATEN HAY'!$L$14:$L$34)*(rng_rainfall=1)+SUM('EXPORT OATEN HAY'!$O$14:$O$34)*(rng_rainfall=2)+SUM('EXPORT OATEN HAY'!$R$14:$R$34)*(rng_rainfall=3))*(rng_Export_DATA_SHEET) -> 0 | I12: =(SUM('EXPORT OATEN HAY'!$U$14:$U$34))*(rng_Export_DATA_SHEET) -> 0 | J12: =(SUM('EXPORT OATEN HAY'!$L$37:$L$53)*(rng_rainfall=1)+SUM('EXPORT OATEN HAY'!$O$37:$O$53)*(rng_rainfall=2)+SUM('EXPORT OATEN HAY'!$R$37:$R$53)*(rng_rainfall=3))*(rng_Export_DATA_SHEET) -> 0 | K12: =(SUM('EXPORT OATEN HAY'!$U$37:$U$53))*(rng_Export_DATA_SHEET) -> 0 | L12: =(SUM('EXPORT OATEN HAY'!$L$57:$L$128)*(rng_rainfall=1)+SUM('EXPORT OATEN HAY'!$O$57:$O$128)*(rng_rainfall=2)+SUM('EXPORT OATEN HAY'!$R$57:$R$128)*(rng_rainfall=3))*(rng_Export_DATA_SHEET) -> 0 | M12: =(SUM('EXPORT OATEN HAY'!$U$57:$U$128))*(rng_Export_DATA_SHEET) -> 0 | N12: =(SUM('EXPORT OATEN HAY'!$L$132:$L$132)*(rng_rainfall=1)+SUM('EXPORT OATEN HAY'!$O$132:$O$132)*(rng_rainfall=2)+SUM('EXPORT OATEN HAY'!$R$132:$R$132)*(rng_rainfall=3))*(rng_Export_DATA_SHEET) -> 0 | O12: =(SUM('EXPORT OATEN HAY'!$U$132:$U$132))*(rng_Export_DATA_SHEET) -> 0 | P12: =(SUM('EXPORT OATEN HAY'!$L$133:$L$133)*(rng_rainfall=1)+SUM('EXPORT OATEN HAY'!$O$133:$O$133)*(rng_rainfall=2)+SUM('EXPORT OATEN HAY'!$R$133:$R$133)*(rng_rainfall=3))*(rng_Export_DATA_SHEET) -> 0 | Q12: =(SUM('EXPORT OATEN HAY'!$U$133:$U$133))*(rng_Export_DATA_SHEET) -> 0 | R12: =(SUM('EXPORT OATEN HAY'!$L$136:$L$137)*(rng_rainfall=1)+SUM('EXPORT OATEN HAY'!$O$136:$O$137)*(rng_rainfall=2)+SUM('EXPORT OATEN HAY'!$R$136:$R$137)*(rng_rainfall=3))*(rng_Export_DATA_SHEET) -> 0 | S12: =(SUM('EXPORT OATEN HAY'!$U$136:$U$137))*(rng_Export_DATA_SHEET) -> 0 | T12: 0 | U12: 0 | V12: 0 | W12: =('EXPORT OATEN HAY'!$U$160)*(rng_Export_DATA_SHEET) -> 0
B13: Vetch | C13: =(VETCH!$U$6)*(rng_Vetch_DATA_SHEET) -> 0 | D13: =(SUM(VETCH!$L$162)*(rng_rainfall=1)+SUM(VETCH!$O$162)*(rng_rainfall=2)+SUM(VETCH!$R$162)*(rng_rainfall=3))*(rng_Vetch_DATA_SHEET) -> 0 | E13: =(VETCH!$U$162)*(rng_Vetch_DATA_SHEET) -> 0 | F13: =(SUM(VETCH!$L$11)*(rng_rainfall=1)+SUM(VETCH!$O$11)*(rng_rainfall=2)+SUM(VETCH!$R$11)*(rng_rainfall=3))*(rng_Vetch_DATA_SHEET) -> 0 | G13: =(VETCH!$U$11)*(rng_Vetch_DATA_SHEET) -> 0 | H13: =(SUM(VETCH!$L$14:$L$34)*(rng_rainfall=1)+SUM(VETCH!$O$14:$O$34)*(rng_rainfall=2)+SUM(VETCH!$R$14:$R$34)*(rng_rainfall=3))*(rng_Vetch_DATA_SHEET) -> 0 | I13: =(SUM(VETCH!$U$14:$U$34))*(rng_Vetch_DATA_SHEET) -> 0 | J13: =(SUM(VETCH!$L$37:$L$53)*(rng_rainfall=1)+SUM(VETCH!$O$37:$O$53)*(rng_rainfall=2)+SUM(VETCH!$R$37:$R$53)*(rng_rainfall=3))*(rng_Vetch_DATA_SHEET) -> 0 | K13: =(SUM(VETCH!$U$37:$U$53))*(rng_Vetch_DATA_SHEET) -> 0 | L13: =(SUM(VETCH!$L$57:$L$128)*(rng_rainfall=1)+SUM(VETCH!$O$57:$O$128)*(rng_rainfall=2)+SUM(VETCH!$R$57:$R$128)*(rng_rainfall=3))*(rng_Vetch_DATA_SHEET) -> 0 | M13: =(SUM(VETCH!$U$57:$U$128))*(rng_Vetch_DATA_SHEET) -> 0 | N13: =(SUM(VETCH!$L$132:$L$132)*(rng_rainfall=1)+SUM(VETCH!$O$132:$O$132)*(rng_rainfall=2)+SUM(VETCH!$R$132:$R$132)*(rng_rainfall=3))*(rng_Vetch_DATA_SHEET) -> 0 | O13: =(SUM(VETCH!$U$132:$U$132))*(rng_Vetch_DATA_SHEET) -> 0 | P13: =(SUM(VETCH!$L$133:$L$133)*(rng_rainfall=1)+SUM(VETCH!$O$133:$O$133)*(rng_rainfall=2)+SUM(VETCH!$R$133:$R$133)*(rng_rainfall=3))*(rng_Vetch_DATA_SHEET) -> 0 | Q13: =(SUM(VETCH!$U$133:$U$133))*(rng_Vetch_DATA_SHEET) -> 0 | R13: =(SUM(VETCH!$L$136:$L$137)*(rng_rainfall=1)+SUM(VETCH!$O$136:$O$137)*(rng_rainfall=2)+SUM(VETCH!$R$136:$R$137)*(rng_rainfall=3))*(rng_Vetch_DATA_SHEET) -> 0 | S13: =(SUM(VETCH!$U$136:$U$137))*(rng_Vetch_DATA_SHEET) -> 0 | T13: 0 | U13: 0 | V13: 0 | W13: =(VETCH!$U$160)*(rng_Vetch_DATA_SHEET) -> 0
B14: Lupins | C14: =(LUPINS!$U$6)*(rng_Lupins_DATA_SHEET) -> 0 | D14: =(SUM(LUPINS!$L$162)*(rng_rainfall=1)+SUM(LUPINS!$O$162)*(rng_rainfall=2)+SUM(LUPINS!$R$162)*(rng_rainfall=3))*(rng_Lupins_DATA_SHEET) -> 0 | E14: =(LUPINS!$U$162)*(rng_Lupins_DATA_SHEET) -> 0 | F14: =(SUM(LUPINS!$L$11)*(rng_rainfall=1)+SUM(LUPINS!$O$11)*(rng_rainfall=2)+SUM(LUPINS!$R$11)*(rng_rainfall=3))*(rng_Lupins_DATA_SHEET) -> 0 | G14: =(LUPINS!$U$11)*(rng_Lupins_DATA_SHEET) -> 0 | H14: =(SUM(LUPINS!$L$14:$L$34)*(rng_rainfall=1)+SUM(LUPINS!$O$14:$O$34)*(rng_rainfall=2)+SUM(LUPINS!$R$14:$R$34)*(rng_rainfall=3))*(rng_Lupins_DATA_SHEET) -> 0 | I14: =(SUM(LUPINS!$U$14:$U$34))*(rng_Lupins_DATA_SHEET) -> 0 | J14: =(SUM(LUPINS!$L$37:$L$53)*(rng_rainfall=1)+SUM(LUPINS!$O$37:$O$53)*(rng_rainfall=2)+SUM(LUPINS!$R$37:$R$53)*(rng_rainfall=3))*(rng_Lupins_DATA_SHEET) -> 0 | K14: =(SUM(LUPINS!$U$37:$U$53))*(rng_Lupins_DATA_SHEET) -> 0 | L14: =(SUM(LUPINS!$L$57:$L$128)*(rng_rainfall=1)+SUM(LUPINS!$O$57:$O$128)*(rng_rainfall=2)+SUM(LUPINS!$R$57:$R$128)*(rng_rainfall=3))*(rng_Lupins_DATA_SHEET) -> 0 | M14: =(SUM(LUPINS!$U$57:$U$128))*(rng_Lupins_DATA_SHEET) -> 0 | N14: =(SUM(LUPINS!$L$132:$L$132)*(rng_rainfall=1)+SUM(LUPINS!$O$132:$O$132)*(rng_rainfall=2)+SUM(LUPINS!$R$132:$R$132)*(rng_rainfall=3))*(rng_Lupins_DATA_SHEET) -> 0 | O14: =(SUM(LUPINS!$U$132:$U$132))*(rng_Lupins_DATA_SHEET) -> 0 | P14: =(SUM(LUPINS!$L$133:$L$133)*(rng_rainfall=1)+SUM(LUPINS!$O$133:$O$133)*(rng_rainfall=2)+SUM(LUPINS!$R$133:$R$133)*(rng_rainfall=3))*(rng_Lupins_DATA_SHEET) -> 0 | Q14: =(SUM(LUPINS!$U$133:$U$133))*(rng_Lupins_DATA_SHEET) -> 0 | R14: =(SUM(LUPINS!$L$136:$L$137)*(rng_rainfall=1)+SUM(LUPINS!$O$136:$O$137)*(rng_rainfall=2)+SUM(LUPINS!$R$136:$R$137)*(rng_rainfall=3))*(rng_Lupins_DATA_SHEET) -> 0 | S14: =(SUM(LUPINS!$U$136:$U$137))*(rng_Lupins_DATA_SHEET) -> 0 | T14: 0 | U14: 0 | V14: 0 | W14: =(LUPINS!$U$160)*(rng_Lupins_DATA_SHEET) -> 0
B15: Lentils | C15: =(LENTILS!$U$6)*(rng_lentils_DATA_SHEET) -> 0 | D15: =(SUM(LENTILS!$L$163)*(rng_rainfall=1)+SUM(LENTILS!$O$163)*(rng_rainfall=2)+SUM(LENTILS!$R$163)*(rng_rainfall=3))*(rng_lentils_DATA_SHEET) -> 0 | E15: =(LENTILS!$U$163)*(rng_lentils_DATA_SHEET) -> 0 | F15: =(SUM(LENTILS!$L$11)*(rng_rainfall=1)+SUM(LENTILS!$O$11)*(rng_rainfall=2)+SUM(LENTILS!$R$11)*(rng_rainfall=3))*(rng_lentils_DATA_SHEET) -> 0 | G15: =(LENTILS!$U$11)*(rng_lentils_DATA_SHEET) -> 0 | H15: =(SUM(LENTILS!$L$14:$L$34)*(rng_rainfall=1)+SUM(LENTILS!$O$14:$O$34)*(rng_rainfall=2)+SUM(LENTILS!$R$14:$R$34)*(rng_rainfall=3))*(rng_lentils_DATA_SHEET) -> 0 | I15: =(SUM(LENTILS!$U$14:$U$34))*(rng_lentils_DATA_SHEET) -> 0 | J15: =(SUM(LENTILS!$L$37:$L$53)*(rng_rainfall=1)+SUM(LENTILS!$O$37:$O$53)*(rng_rainfall=2)+SUM(LENTILS!$R$37:$R$53)*(rng_rainfall=3))*(rng_lentils_DATA_SHEET) -> 0 | K15: =(SUM(LENTILS!$U$37:$U$53))*(rng_lentils_DATA_SHEET) -> 0 | L15: =(SUM(LENTILS!$L$57:$L$128)*(rng_rainfall=1)+SUM(LENTILS!$O$57:$O$128)*(rng_rainfall=2)+SUM(LENTILS!$R$57:$R$128)*(rng_rainfall=3))*(rng_lentils_DATA_SHEET) -> 0 | M15: =(SUM(LENTILS!$U$57:$U$128))*(rng_lentils_DATA_SHEET) -> 0 | N15: =(SUM(LENTILS!$L$132:$L$132)*(rng_rainfall=1)+SUM(LENTILS!$O$132:$O$132)*(rng_rainfall=2)+SUM(LENTILS!$R$132:$R$132)*(rng_rainfall=3))*(rng_lentils_DATA_SHEET) -> 0 | O15: =(SUM(LENTILS!$U$132:$U$132))*(rng_lentils_DATA_SHEET) -> 0 | P15: =(SUM(LENTILS!$L$133:$L$133)*(rng_rainfall=1)+SUM(LENTILS!$O$133:$O$133)*(rng_rainfall=2)+SUM(LENTILS!$R$133:$R$133)*(rng_rainfall=3))*(rng_lentils_DATA_SHEET) -> 0 | Q15: =(SUM(LENTILS!$U$133:$U$133))*(rng_lentils_DATA_SHEET) -> 0 | R15: =(SUM(LENTILS!$L$136:$L$138)*(rng_rainfall=1)+SUM(LENTILS!$O$136:$O$138)*(rng_rainfall=2)+SUM(LENTILS!$R$136:$R$138)*(rng_rainfall=3))*(rng_lentils_DATA_SHEET) -> 0 | S15: =(SUM(LENTILS!$U$136:$U$138))*(rng_lentils_DATA_SHEET) -> 0 | T15: 0 | U15: 0 | V15: 0 | W15: =(LENTILS!$U$161)*(rng_lentils_DATA_SHEET) -> 0
B16: Lentils IMI Tolerant | C16: =('LENTILS IMI TOLERANT'!$U$6)*(rng_lentils_imi_DATA_SHEET) -> 0 | D16: =(SUM('LENTILS IMI TOLERANT'!$L$163)*(rng_rainfall=1)+SUM('LENTILS IMI TOLERANT'!$O$163)*(rng_rainfall=2)+SUM('LENTILS IMI TOLERANT'!$R$163)*(rng_rainfall=3))*(rng_lentils_imi_DATA_SHEET) -> 0 | E16: =('LENTILS IMI TOLERANT'!$U$163)*(rng_lentils_imi_DATA_SHEET) -> 0 | F16: =(SUM('LENTILS IMI TOLERANT'!$L$11)*(rng_rainfall=1)+SUM('LENTILS IMI TOLERANT'!$O$11)*(rng_rainfall=2)+SUM('LENTILS IMI TOLERANT'!$R$11)*(rng_rainfall=3))*(rng_lentils_imi_DATA_SHEET) -> 0 | G16: =('LENTILS IMI TOLERANT'!$U$11)*(rng_lentils_imi_DATA_SHEET) -> 0 | H16: =(SUM('LENTILS IMI TOLERANT'!$L$14:$L$34)*(rng_rainfall=1)+SUM('LENTILS IMI TOLERANT'!$O$14:$O$34)*(rng_rainfall=2)+SUM('LENTILS IMI TOLERANT'!$R$14:$R$34)*(rng_rainfall=3))*(rng_lentils_imi_DATA_SHEET) -> 0 | I16: =(SUM('LENTILS IMI TOLERANT'!$U$14:$U$34))*(rng_lentils_imi_DATA_SHEET) -> 0 | J16: =(SUM('LENTILS IMI TOLERANT'!$L$37:$L$53)*(rng_rainfall=1)+SUM('LENTILS IMI TOLERANT'!$O$37:$O$53)*(rng_rainfall=2)+SUM('LENTILS IMI TOLERANT'!$R$37:$R$53)*(rng_rainfall=3))*(rng_lentils_imi_DATA_SHEET) -> 0 | K16: =(SUM('LENTILS IMI TOLERANT'!$U$37:$U$53))*(rng_lentils_imi_DATA_SHEET) -> 0 | L16: =(SUM('LENTILS IMI TOLERANT'!$L$57:$L$128)*(rng_rainfall=1)+SUM('LENTILS IMI TOLERANT'!$O$57:$O$128)*(rng_rainfall=2)+SUM('LENTILS IMI TOLERANT'!$R$57:$R$128)*(rng_rainfall=3))*(rng_lentils_imi_DATA_SHEET) -> 0 | M16: =(SUM('LENTILS IMI TOLERANT'!$U$57:$U$128))*(rng_lentils_imi_DATA_SHEET) -> 0 | N16: =(SUM('LENTILS IMI TOLERANT'!$L$132:$L$132)*(rng_rainfall=1)+SUM('LENTILS IMI TOLERANT'!$O$132:$O$132)*(rng_rainfall=2)+SUM('LENTILS IMI TOLERANT'!$R$132:$R$132)*(rng_rainfall=3))*(rng_lentils_imi_DATA_SHEET) -> 0 | O16: =(SUM('LENTILS IMI TOLERANT'!$U$132:$U$132))*(rng_lentils_imi_DATA_SHEET) -> 0 | P16: =(SUM('LENTILS IMI TOLERANT'!$L$133:$L$133)*(rng_rainfall=1)+SUM('LENTILS IMI TOLERANT'!$O$133:$O$133)*(rng_rainfall=2)+SUM('LENTILS IMI TOLERANT'!$R$133:$R$133)*(rng_rainfall=3))*(rng_lentils_imi_DATA_SHEET) -> 0 | Q16: =(SUM('LENTILS IMI TOLERANT'!$U$133:$U$133))*(rng_lentils_imi_DATA_SHEET) -> 0 | R16: =(SUM('LENTILS IMI TOLERANT'!$L$136:$L$138)*(rng_rainfall=1)+SUM('LENTILS IMI TOLERANT'!$O$136:$O$138)*(rng_rainfall=2)+SUM('LENTILS IMI TOLERANT'!$R$136:$R$138)*(rng_rainfall=3))*(rng_lentils_imi_DATA_SHEET) -> 0 | S16: =(SUM('LENTILS IMI TOLERANT'!$U$136:$U$138))*(rng_lentils_imi_DATA_SHEET) -> 0 | T16: 0 | U16: 0 | V16: 0 | W16: =('LENTILS IMI TOLERANT'!$U$161)*(rng_lentils_imi_DATA_SHEET) -> 0
B17: Lentils GIA Metro | C17: =('LENTILS GIA METRO'!$U$6)*(rng_LENTILS_GIA_DATA_SHEET) -> 0 | D17: =(SUM('LENTILS GIA METRO'!$L$163)*(rng_rainfall=1)+SUM('LENTILS GIA METRO'!$O$163)*(rng_rainfall=2)+SUM('LENTILS GIA METRO'!$R$163)*(rng_rainfall=3))*(rng_LENTILS_GIA_DATA_SHEET) -> 0 | E17: =('LENTILS GIA METRO'!$U$163)*(rng_LENTILS_GIA_DATA_SHEET) -> 0 | F17: =(SUM('LENTILS GIA METRO'!$L$11)*(rng_rainfall=1)+SUM('LENTILS GIA METRO'!$O$11)*(rng_rainfall=2)+SUM('LENTILS GIA METRO'!$R$11)*(rng_rainfall=3))*(rng_LENTILS_GIA_DATA_SHEET) -> 0 | G17: =('LENTILS GIA METRO'!$U$11)*(rng_LENTILS_GIA_DATA_SHEET) -> 0 | H17: =(SUM('LENTILS GIA METRO'!$L$14:$L$34)*(rng_rainfall=1)+SUM('LENTILS GIA METRO'!$O$14:$O$34)*(rng_rainfall=2)+SUM('LENTILS GIA METRO'!$R$14:$R$34)*(rng_rainfall=3))*(rng_LENTILS_GIA_DATA_SHEET) -> 0 | I17: =(SUM('LENTILS GIA METRO'!$U$14:$U$34))*(rng_LENTILS_GIA_DATA_SHEET) -> 0 | J17: =(SUM('LENTILS GIA METRO'!$L$37:$L$53)*(rng_rainfall=1)+SUM('LENTILS GIA METRO'!$O$37:$O$53)*(rng_rainfall=2)+SUM('LENTILS GIA METRO'!$R$37:$R$53)*(rng_rainfall=3))*(rng_LENTILS_GIA_DATA_SHEET) -> 0 | K17: =(SUM('LENTILS GIA METRO'!$U$37:$U$53))*(rng_LENTILS_GIA_DATA_SHEET) -> 0 | L17: =(SUM('LENTILS GIA METRO'!$L$57:$L$128)*(rng_rainfall=1)+SUM('LENTILS GIA METRO'!$O$57:$O$128)*(rng_rainfall=2)+SUM('LENTILS GIA METRO'!$R$57:$R$128)*(rng_rainfall=3))*(rng_LENTILS_GIA_DATA_SHEET) -> 0 | M17: =(SUM('LENTILS GIA METRO'!$U$57:$U$128))*(rng_LENTILS_GIA_DATA_SHEET) -> 0 | N17: =(SUM('LENTILS GIA METRO'!$L$132:$L$132)*(rng_rainfall=1)+SUM('LENTILS GIA METRO'!$O$132:$O$132)*(rng_rainfall=2)+SUM('LENTILS GIA METRO'!$R$132:$R$132)*(rng_rainfall=3))*(rng_LENTILS_GIA_DATA_SHEET) -> 0 | O17: =(SUM('LENTILS GIA METRO'!$U$132:$U$132))*(rng_LENTILS_GIA_DATA_SHEET) -> 0 | P17: =(SUM('LENTILS GIA METRO'!$L$133:$L$133)*(rng_rainfall=1)+SUM('LENTILS GIA METRO'!$O$133:$O$133)*(rng_rainfall=2)+SUM('LENTILS GIA METRO'!$R$133:$R$133)*(rng_rainfall=3))*(rng_LENTILS_GIA_DATA_SHEET) -> 0 | Q17: =(SUM('LENTILS GIA METRO'!$U$133:$U$133))*(rng_LENTILS_GIA_DATA_SHEET) -> 0 | R17: =(SUM('LENTILS GIA METRO'!$L$136:$L$138)*(rng_rainfall=1)+SUM('LENTILS GIA METRO'!$O$136:$O$138)*(rng_rainfall=2)+SUM('LENTILS GIA METRO'!$R$136:$R$138)*(rng_rainfall=3))*(rng_LENTILS_GIA_DATA_SHEET) -> 0 | S17: =(SUM('LENTILS GIA METRO'!$U$136:$U$138))*(rng_LENTILS_GIA_DATA_SHEET) -> 0 | T17: =SUM(V17,-R17,-P17,-N17,-L17,-J17,-H17) -> 0 | U17: =SUM(W17,-S17,-Q17,-O17,-M17,-K17,-I17) -> 0 | V17: =IFERROR(W17/C17,0) -> 0 | W17: =('LENTILS GIA METRO'!$U$161)*(rng_LENTILS_GIA_DATA_SHEET) -> 0
B18: Field Peas | C18: =(PEAS!$U$6)*(rng_Field_Peas_DATA_SHEET) -> 0 | D18: =(SUM(PEAS!$L$162)*(rng_rainfall=1)+SUM(PEAS!$O$162)*(rng_rainfall=2)+SUM(PEAS!$R$162)*(rng_rainfall=3))*(rng_Field_Peas_DATA_SHEET) -> 0 | E18: =(PEAS!$U$162)*(rng_Field_Peas_DATA_SHEET) -> 0 | F18: =(SUM(PEAS!$L$11)*(rng_rainfall=1)+SUM(PEAS!$O$11)*(rng_rainfall=2)+SUM(PEAS!$R$11)*(rng_rainfall=3))*(rng_Field_Peas_DATA_SHEET) -> 0 | G18: =(PEAS!$U$11)*(rng_Field_Peas_DATA_SHEET) -> 0 | H18: =(SUM(PEAS!$L$14:$L$34)*(rng_rainfall=1)+SUM(PEAS!$O$14:$O$34)*(rng_rainfall=2)+SUM(PEAS!$R$14:$R$34)*(rng_rainfall=3))*(rng_Field_Peas_DATA_SHEET) -> 0 | I18: =(SUM(PEAS!$U$14:$U$34))*(rng_Field_Peas_DATA_SHEET) -> 0 | J18: =(SUM(PEAS!$L$37:$L$53)*(rng_rainfall=1)+SUM(PEAS!$O$37:$O$53)*(rng_rainfall=2)+SUM(PEAS!$R$37:$R$53)*(rng_rainfall=3))*(rng_Field_Peas_DATA_SHEET) -> 0 | K18: =(SUM(PEAS!$U$37:$U$53))*(rng_Field_Peas_DATA_SHEET) -> 0 | L18: =(SUM(PEAS!$L$57:$L$128)*(rng_rainfall=1)+SUM(PEAS!$O$57:$O$128)*(rng_rainfall=2)+SUM(PEAS!$R$57:$R$128)*(rng_rainfall=3))*(rng_Field_Peas_DATA_SHEET) -> 0 | M18: =(SUM(PEAS!$U$57:$U$128))*(rng_Field_Peas_DATA_SHEET) -> 0 | N18: =(SUM(PEAS!$L$132:$L$132)*(rng_rainfall=1)+SUM(PEAS!$O$132:$O$132)*(rng_rainfall=2)+SUM(PEAS!$R$132:$R$132)*(rng_rainfall=3))*(rng_Field_Peas_DATA_SHEET) -> 0 | O18: =(SUM(PEAS!$U$132:$U$132))*(rng_Field_Peas_DATA_SHEET) -> 0 | P18: =(SUM(PEAS!$L$133:$L$133)*(rng_rainfall=1)+SUM(PEAS!$O$133:$O$133)*(rng_rainfall=2)+SUM(PEAS!$R$133:$R$133)*(rng_rainfall=3))*(rng_Field_Peas_DATA_SHEET) -> 0 | Q18: =(SUM(PEAS!$U$133:$U$133))*(rng_Field_Peas_DATA_SHEET) -> 0 | R18: =(SUM(PEAS!$L$136:$L$137)*(rng_rainfall=1)+SUM(PEAS!$O$136:$O$137)*(rng_rainfall=2)+SUM(PEAS!$R$136:$R$137)*(rng_rainfall=3))*(rng_Field_Peas_DATA_SHEET) -> 0 | S18: =(SUM(PEAS!$U$136:$U$137))*(rng_Field_Peas_DATA_SHEET) -> 0 | T18: 0 | U18: 0 | V18: 0 | W18: =(PEAS!$U$160)*(rng_Field_Peas_DATA_SHEET) -> 0
B19: Faba Beans | C19: =(BEANS!$U$6)*(rng_Beans_DATA_SHEET) -> 0 | D19: =(SUM(BEANS!$L$162)*(rng_rainfall=1)+SUM(BEANS!$O$162)*(rng_rainfall=2)+SUM(BEANS!$R$162)*(rng_rainfall=3))*(rng_Beans_DATA_SHEET) -> 0 | E19: =(BEANS!$U$162)*(rng_Beans_DATA_SHEET) -> 0 | F19: =(SUM(BEANS!$L$11)*(rng_rainfall=1)+SUM(BEANS!$O$11)*(rng_rainfall=2)+SUM(BEANS!$R$11)*(rng_rainfall=3))*(rng_Beans_DATA_SHEET) -> 0 | G19: =(BEANS!$U$11)*(rng_Beans_DATA_SHEET) -> 0 | H19: =(SUM(BEANS!$L$14:$L$34)*(rng_rainfall=1)+SUM(BEANS!$O$14:$O$34)*(rng_rainfall=2)+SUM(BEANS!$R$14:$R$34)*(rng_rainfall=3))*(rng_Beans_DATA_SHEET) -> 0 | I19: =(SUM(BEANS!$U$14:$U$34))*(rng_Beans_DATA_SHEET) -> 0 | J19: =(SUM(BEANS!$L$37:$L$53)*(rng_rainfall=1)+SUM(BEANS!$O$37:$O$53)*(rng_rainfall=2)+SUM(BEANS!$R$37:$R$53)*(rng_rainfall=3))*(rng_Beans_DATA_SHEET) -> 0 | K19: =(SUM(BEANS!$U$37:$U$53))*(rng_Beans_DATA_SHEET) -> 0 | L19: =(SUM(BEANS!$L$57:$L$128)*(rng_rainfall=1)+SUM(BEANS!$O$57:$O$128)*(rng_rainfall=2)+SUM(BEANS!$R$57:$R$128)*(rng_rainfall=3))*(rng_Beans_DATA_SHEET) ->  | M19: =(SUM(BEANS!$U$57:$U$128))*(rng_Beans_DATA_SHEET) ->  | N19: =(SUM(BEANS!$L$132:$L$132)*(rng_rainfall=1)+SUM(BEANS!$O$132:$O$132)*(rng_rainfall=2)+SUM(BEANS!$R$132:$R$132)*(rng_rainfall=3))*(rng_Beans_DATA_SHEET) -> 0 | O19: =(SUM(BEANS!$U$132:$U$132))*(rng_Beans_DATA_SHEET) -> 0 | P19: =(SUM(BEANS!$L$133:$L$133)*(rng_rainfall=1)+SUM(BEANS!$O$133:$O$133)*(rng_rainfall=2)+SUM(BEANS!$R$133:$R$133)*(rng_rainfall=3))*(rng_Beans_DATA_SHEET) -> 0 | Q19: =(SUM(BEANS!$U$133:$U$133))*(rng_Beans_DATA_SHEET) -> 0 | R19: =(SUM(BEANS!$L$136:$L$137)*(rng_rainfall=1)+SUM(BEANS!$O$136:$O$137)*(rng_rainfall=2)+SUM(BEANS!$R$136:$R$137)*(rng_rainfall=3))*(rng_Beans_DATA_SHEET) -> 0 | S19: =(SUM(BEANS!$U$136:$U$137))*(rng_Beans_DATA_SHEET) -> 0 | V19: 0 | W19: =(BEANS!$U$160)*(rng_Beans_DATA_SHEET) -> 0
B20: Kabuli Chickpeas | C20: =(CHICKPEAS!$U$6)*(rng_Chickpeas_DATA_SHEET) -> 0 | D20: =(SUM(CHICKPEAS!$L$162)*(rng_rainfall=1)+SUM(CHICKPEAS!$O$162)*(rng_rainfall=2)+SUM(CHICKPEAS!$R$162)*(rng_rainfall=3))*(rng_Chickpeas_DATA_SHEET) -> 0 | E20: =(CHICKPEAS!$U$162)*(rng_Chickpeas_DATA_SHEET) -> 0 | F20: =(SUM(CHICKPEAS!$L$11)*(rng_rainfall=1)+SUM(CHICKPEAS!$O$11)*(rng_rainfall=2)+SUM(CHICKPEAS!$R$11)*(rng_rainfall=3))*(rng_Chickpeas_DATA_SHEET) -> 0 | G20: =(CHICKPEAS!$U$11)*(rng_Chickpeas_DATA_SHEET) -> 0 | H20: =(SUM(CHICKPEAS!$L$14:$L$34)*(rng_rainfall=1)+SUM(CHICKPEAS!$O$14:$O$34)*(rng_rainfall=2)+SUM(CHICKPEAS!$R$14:$R$34)*(rng_rainfall=3))*(rng_Chickpeas_DATA_SHEET) -> 0 | I20: =(SUM(CHICKPEAS!$U$14:$U$34))*(rng_Chickpeas_DATA_SHEET) -> 0 | J20: =(SUM(CHICKPEAS!$L$37:$L$53)*(rng_rainfall=1)+SUM(CHICKPEAS!$O$37:$O$53)*(rng_rainfall=2)+SUM(CHICKPEAS!$R$37:$R$53)*(rng_rainfall=3))*(rng_Chickpeas_DATA_SHEET) -> 0 | K20: =(SUM(CHICKPEAS!$U$37:$U$53))*(rng_Chickpeas_DATA_SHEET) -> 0 | L20: =(SUM(CHICKPEAS!$L$57:$L$128)*(rng_rainfall=1)+SUM(CHICKPEAS!$O$57:$O$128)*(rng_rainfall=2)+SUM(CHICKPEAS!$R$57:$R$128)*(rng_rainfall=3))*(rng_Chickpeas_DATA_SHEET) -> 0 | M20: =(SUM(CHICKPEAS!$U$57:$U$128))*(rng_Chickpeas_DATA_SHEET) -> 0 | N20: =(SUM(CHICKPEAS!$L$132:$L$132)*(rng_rainfall=1)+SUM(CHICKPEAS!$O$132:$O$132)*(rng_rainfall=2)+SUM(CHICKPEAS!$R$132:$R$132)*(rng_rainfall=3))*(rng_Chickpeas_DATA_SHEET) -> 0 | O20: =(SUM(CHICKPEAS!$U$132:$U$132))*(rng_Chickpeas_DATA_SHEET) -> 0 | P20: =(SUM(CHICKPEAS!$L$133:$L$133)*(rng_rainfall=1)+SUM(CHICKPEAS!$O$133:$O$133)*(rng_rainfall=2)+SUM(CHICKPEAS!$R$133:$R$133)*(rng_rainfall=3))*(rng_Chickpeas_DATA_SHEET) -> 0 | Q20: =(SUM(CHICKPEAS!$U$133:$U$133))*(rng_Chickpeas_DATA_SHEET) -> 0 | R20: =(SUM(CHICKPEAS!$L$136:$L$137)*(rng_rainfall=1)+SUM(CHICKPEAS!$O$136:$O$137)*(rng_rainfall=2)+SUM(CHICKPEAS!$R$136:$R$137)*(rng_rainfall=3))*(rng_Chickpeas_DATA_SHEET) -> 0 | S20: =(SUM(CHICKPEAS!$U$136:$U$137))*(rng_Chickpeas_DATA_SHEET) -> 0 | T20: 0 | U20: 0 | V20: 0 | W20: =(CHICKPEAS!$U$160)*(rng_Chickpeas_DATA_SHEET) -> 0
B21: Canola Clearfield | C21: =('CANOLA CLEARFIELD'!$U$6)*(rng_Canola_Clear_DATA_SHEET) -> 0 | D21: =(SUM('CANOLA CLEARFIELD'!$L$162)*(rng_rainfall=1)+SUM('CANOLA CLEARFIELD'!$O$162)*(rng_rainfall=2)+SUM('CANOLA CLEARFIELD'!$R$162)*(rng_rainfall=3))*(rng_Canola_Clear_DATA_SHEET) -> 0 | E21: =('CANOLA CLEARFIELD'!$U$162)*(rng_Canola_Clear_DATA_SHEET) -> 0 | F21: =(SUM('CANOLA CLEARFIELD'!$L$11)*(rng_rainfall=1)+SUM('CANOLA CLEARFIELD'!$O$11)*(rng_rainfall=2)+SUM('CANOLA CLEARFIELD'!$R$11)*(rng_rainfall=3))*(rng_Canola_Clear_DATA_SHEET) -> 0 | G21: =('CANOLA CLEARFIELD'!$U$11)*(rng_Canola_Clear_DATA_SHEET) -> 0 | H21: =(SUM('CANOLA CLEARFIELD'!$L$14:$L$34)*(rng_rainfall=1)+SUM('CANOLA CLEARFIELD'!$O$14:$O$34)*(rng_rainfall=2)+SUM('CANOLA CLEARFIELD'!$R$14:$R$34)*(rng_rainfall=3))*(rng_Canola_Clear_DATA_SHEET) -> 0 | I21: =(SUM('CANOLA CLEARFIELD'!$U$14:$U$34))*(rng_Canola_Clear_DATA_SHEET) -> 0 | J21: =(SUM('CANOLA CLEARFIELD'!$L$37:$L$53)*(rng_rainfall=1)+SUM('CANOLA CLEARFIELD'!$O$37:$O$53)*(rng_rainfall=2)+SUM('CANOLA CLEARFIELD'!$R$37:$R$53)*(rng_rainfall=3))*(rng_Canola_Clear_DATA_SHEET) -> 0 | K21: =(SUM('CANOLA CLEARFIELD'!$U$37:$U$53))*(rng_Canola_Clear_DATA_SHEET) -> 0 | L21: =(SUM('CANOLA CLEARFIELD'!$L$57:$L$128)*(rng_rainfall=1)+SUM('CANOLA CLEARFIELD'!$O$57:$O$128)*(rng_rainfall=2)+SUM('CANOLA CLEARFIELD'!$R$57:$R$128)*(rng_rainfall=3))*(rng_Canola_Clear_DATA_SHEET) -> 0 | M21: =(SUM('CANOLA CLEARFIELD'!$U$57:$U$128))*(rng_Canola_Clear_DATA_SHEET) -> 0 | N21: =(SUM('CANOLA CLEARFIELD'!$L$132:$L$132)*(rng_rainfall=1)+SUM('CANOLA CLEARFIELD'!$O$132:$O$132)*(rng_rainfall=2)+SUM('CANOLA CLEARFIELD'!$R$132:$R$132)*(rng_rainfall=3))*(rng_Canola_Clear_DATA_SHEET) -> 0 | O21: =(SUM('CANOLA CLEARFIELD'!$U$132:$U$132))*(rng_Canola_Clear_DATA_SHEET) -> 0 | P21: =(SUM('CANOLA CLEARFIELD'!$L$133:$L$133)*(rng_rainfall=1)+SUM('CANOLA CLEARFIELD'!$O$133:$O$133)*(rng_rainfall=2)+SUM('CANOLA CLEARFIELD'!$R$133:$R$133)*(rng_rainfall=3))*(rng_Canola_Clear_DATA_SHEET) -> 0 | Q21: =(SUM('CANOLA CLEARFIELD'!$U$133:$U$133))*(rng_Canola_Clear_DATA_SHEET) -> 0 | R21: =(SUM('CANOLA CLEARFIELD'!$L$136:$L$137)*(rng_rainfall=1)+SUM('CANOLA CLEARFIELD'!$O$136:$O$137)*(rng_rainfall=2)+SUM('CANOLA CLEARFIELD'!$R$136:$R$137)*(rng_rainfall=3))*(rng_Canola_Clear_DATA_SHEET) -> 0 | S21: =(SUM('CANOLA CLEARFIELD'!$U$136:$U$137))*(rng_Canola_Clear_DATA_SHEET) -> 0 | T21: 0 | U21: 0 | V21: 0 | W21: =('CANOLA CLEARFIELD'!$U$160)*(rng_Canola_Clear_DATA_SHEET) -> 0
B22: Canola Conventional | C22: =('CANOLA CONVENTIONAL'!$U$6)*(rng_Canola_Conv_DATA_SHEET) -> 0 | D22: =(SUM('CANOLA CONVENTIONAL'!$L$162)*(rng_rainfall=1)+SUM('CANOLA CONVENTIONAL'!$O$162)*(rng_rainfall=2)+SUM('CANOLA CONVENTIONAL'!$R$162)*(rng_rainfall=3))*(rng_Canola_Conv_DATA_SHEET) -> 0 | E22: =('CANOLA CONVENTIONAL'!$U$162)*(rng_Canola_Conv_DATA_SHEET) -> 0 | F22: =(SUM('CANOLA CONVENTIONAL'!$L$11)*(rng_rainfall=1)+SUM('CANOLA CONVENTIONAL'!$O$11)*(rng_rainfall=2)+SUM('CANOLA CONVENTIONAL'!$R$11)*(rng_rainfall=3))*(rng_Canola_Conv_DATA_SHEET) -> 0 | G22: =('CANOLA CONVENTIONAL'!$U$11)*(rng_Canola_Conv_DATA_SHEET) -> 0 | H22: =(SUM('CANOLA CONVENTIONAL'!$L$14:$L$34)*(rng_rainfall=1)+SUM('CANOLA CONVENTIONAL'!$O$14:$O$34)*(rng_rainfall=2)+SUM('CANOLA CONVENTIONAL'!$R$14:$R$34)*(rng_rainfall=3))*(rng_Canola_Conv_DATA_SHEET) -> 0 | I22: =(SUM('CANOLA CONVENTIONAL'!$U$14:$U$34))*(rng_Canola_Conv_DATA_SHEET) -> 0 | J22: =(SUM('CANOLA CONVENTIONAL'!$L$37:$L$53)*(rng_rainfall=1)+SUM('CANOLA CONVENTIONAL'!$O$37:$O$53)*(rng_rainfall=2)+SUM('CANOLA CONVENTIONAL'!$R$37:$R$53)*(rng_rainfall=3))*(rng_Canola_Conv_DATA_SHEET) -> 0 | K22: =(SUM('CANOLA CONVENTIONAL'!$U$37:$U$53))*(rng_Canola_Conv_DATA_SHEET) -> 0 | L22: =(SUM('CANOLA CONVENTIONAL'!$L$57:$L$128)*(rng_rainfall=1)+SUM('CANOLA CONVENTIONAL'!$O$57:$O$128)*(rng_rainfall=2)+SUM('CANOLA CONVENTIONAL'!$R$57:$R$128)*(rng_rainfall=3))*(rng_Canola_Conv_DATA_SHEET) -> 0 | M22: =(SUM('CANOLA CONVENTIONAL'!$U$57:$U$128))*(rng_Canola_Conv_DATA_SHEET) -> 0 | N22: =(SUM('CANOLA CONVENTIONAL'!$L$132:$L$132)*(rng_rainfall=1)+SUM('CANOLA CONVENTIONAL'!$O$132:$O$132)*(rng_rainfall=2)+SUM('CANOLA CONVENTIONAL'!$R$132:$R$132)*(rng_rainfall=3))*(rng_Canola_Conv_DATA_SHEET) -> 0 | O22: =(SUM('CANOLA CONVENTIONAL'!$U$132:$U$132))*(rng_Canola_Conv_DATA_SHEET) -> 0 | P22: =(SUM('CANOLA CONVENTIONAL'!$L$133:$L$133)*(rng_rainfall=1)+SUM('CANOLA CONVENTIONAL'!$O$133:$O$133)*(rng_rainfall=2)+SUM('CANOLA CONVENTIONAL'!$R$133:$R$133)*(rng_rainfall=3))*(rng_Canola_Conv_DATA_SHEET) -> 0 | Q22: =(SUM('CANOLA CONVENTIONAL'!$U$133:$U$133))*(rng_Canola_Conv_DATA_SHEET) -> 0 | R22: =(SUM('CANOLA CONVENTIONAL'!$L$136:$L$137)*(rng_rainfall=1)+SUM('CANOLA CONVENTIONAL'!$O$136:$O$137)*(rng_rainfall=2)+SUM('CANOLA CONVENTIONAL'!$R$136:$R$137)*(rng_rainfall=3))*(rng_Canola_Conv_DATA_SHEET) -> 0 | S22: =(SUM('CANOLA CONVENTIONAL'!$U$136:$U$137))*(rng_Canola_Conv_DATA_SHEET) -> 0 | T22: 0 | U22: 0 | V22: 0 | W22: =('CANOLA CONVENTIONAL'!$U$160)*(rng_Canola_Conv_DATA_SHEET) -> 0
B23: Canola RoundUp Ready | C23: =('CANOLA ROUNDUP READY'!$U$6)*(rng_Canola_Round_DATA_SHEET) -> 0 | D23: =(SUM('CANOLA ROUNDUP READY'!$L$162)*(rng_rainfall=1)+SUM('CANOLA ROUNDUP READY'!$O$162)*(rng_rainfall=2)+SUM('CANOLA ROUNDUP READY'!$R$162)*(rng_rainfall=3))*(rng_Canola_Round_DATA_SHEET) -> 0 | E23: =('CANOLA ROUNDUP READY'!$U$162)*(rng_Canola_Round_DATA_SHEET) -> 0 | F23: =(SUM('CANOLA ROUNDUP READY'!$L$11)*(rng_rainfall=1)+SUM('CANOLA ROUNDUP READY'!$O$11)*(rng_rainfall=2)+SUM('CANOLA ROUNDUP READY'!$R$11)*(rng_rainfall=3))*(rng_Canola_Round_DATA_SHEET) -> 0 | G23: =('CANOLA ROUNDUP READY'!$U$11)*(rng_Canola_Round_DATA_SHEET) -> 0 | H23: =(SUM('CANOLA ROUNDUP READY'!$L$14:$L$34)*(rng_rainfall=1)+SUM('CANOLA ROUNDUP READY'!$O$14:$O$34)*(rng_rainfall=2)+SUM('CANOLA ROUNDUP READY'!$R$15:$R$35)*(rng_rainfall=3))*(rng_Canola_Round_DATA_SHEET) -> 0 | I23: =(SUM('CANOLA ROUNDUP READY'!$U$14:$U$34))*(rng_Canola_Round_DATA_SHEET) -> 0 | J23: =(SUM('CANOLA ROUNDUP READY'!$L$37:$L$53)*(rng_rainfall=1)+SUM('CANOLA ROUNDUP READY'!$O$37:$O$53)*(rng_rainfall=2)+SUM('CANOLA ROUNDUP READY'!$R$37:$R$53)*(rng_rainfall=3))*(rng_Canola_Round_DATA_SHEET) -> 0 | K23: =(SUM('CANOLA ROUNDUP READY'!$U$37:$U$53))*(rng_Canola_Round_DATA_SHEET) -> 0 | L23: =(SUM('CANOLA ROUNDUP READY'!$L$57:$L$118)*(rng_rainfall=1)+SUM('CANOLA ROUNDUP READY'!$O$57:$O$118)*(rng_rainfall=2)+SUM('CANOLA ROUNDUP READY'!$R$57:$R$118)*(rng_rainfall=3))*(rng_Canola_Round_DATA_SHEET) -> 0 | M23: =(SUM('CANOLA ROUNDUP READY'!$U$57:$U$128))*(rng_Canola_Round_DATA_SHEET) -> 0 | N23: =(SUM('CANOLA ROUNDUP READY'!$L$118:$L$132)*(rng_rainfall=1)+SUM('CANOLA ROUNDUP READY'!$O$118:$O$132)*(rng_rainfall=2)+SUM('CANOLA ROUNDUP READY'!$R$118:$R$132)*(rng_rainfall=3))*(rng_Canola_Round_DATA_SHEET) -> 0 | O23: =(SUM('CANOLA ROUNDUP READY'!$U$132:$U$132))*(rng_Canola_Round_DATA_SHEET) -> 0 | P23: =(SUM('CANOLA ROUNDUP READY'!$L$118:$L$133)*(rng_rainfall=1)+SUM('CANOLA ROUNDUP READY'!$O$118:$O$133)*(rng_rainfall=2)+SUM('CANOLA ROUNDUP READY'!$R$118:$R$133)*(rng_rainfall=3))*(rng_Canola_Round_DATA_SHEET) -> 0 | Q23: =(SUM('CANOLA ROUNDUP READY'!$U$133:$U$133))*(rng_Canola_Round_DATA_SHEET) -> 0 | R23: =(SUM('CANOLA ROUNDUP READY'!$L$136:$L$137)*(rng_rainfall=1)+SUM('CANOLA ROUNDUP READY'!$O$136:$O$137)*(rng_rainfall=2)+SUM('CANOLA ROUNDUP READY'!$R$15:$R$35)*(rng_rainfall=3))*(rng_Canola_Round_DATA_SHEET) -> 0 | S23: =(SUM('CANOLA ROUNDUP READY'!$U$136:$U$137))*(rng_Canola_Round_DATA_SHEET) -> 0 | T23: 0 | U23: 0 | V23: 0 | W23: =('CANOLA ROUNDUP READY'!$U$160)*(rng_Canola_Round_DATA_SHEET) -> 0
B24: Canola Tri Tolerant | C24: =('CANOLA TRITOLERANT'!$U$6)*(rng_Canola_Tri_DATA_SHEET) -> 0 | D24: =(SUM('CANOLA TRITOLERANT'!$L$162)*(rng_rainfall=1)+SUM('CANOLA TRITOLERANT'!$O$162)*(rng_rainfall=2)+SUM('CANOLA TRITOLERANT'!$R$162)*(rng_rainfall=3))*(rng_Canola_Tri_DATA_SHEET) -> 0 | E24: =('CANOLA TRITOLERANT'!$U$162)*(rng_Canola_Tri_DATA_SHEET) -> 0 | F24: =(SUM('CANOLA TRITOLERANT'!$L$11)*(rng_rainfall=1)+SUM('CANOLA TRITOLERANT'!$O$11)*(rng_rainfall=2)+SUM('CANOLA TRITOLERANT'!$R$11)*(rng_rainfall=3))*(rng_Canola_Tri_DATA_SHEET) -> 0 | G24: =('CANOLA TRITOLERANT'!$U$11)*(rng_Canola_Tri_DATA_SHEET) -> 0 | H24: =(SUM('CANOLA TRITOLERANT'!$L$14:$L$34)*(rng_rainfall=1)+SUM('CANOLA TRITOLERANT'!$O$14:$O$34)*(rng_rainfall=2)+SUM('CANOLA TRITOLERANT'!$R$14:$R$34)*(rng_rainfall=3))*(rng_Canola_Tri_DATA_SHEET) -> 0 | I24: =(SUM('CANOLA TRITOLERANT'!$U$14:$U$34))*(rng_Canola_Tri_DATA_SHEET) -> 0 | J24: =(SUM('CANOLA TRITOLERANT'!$L$37:$L$53)*(rng_rainfall=1)+SUM('CANOLA TRITOLERANT'!$O$37:$O$53)*(rng_rainfall=2)+SUM('CANOLA TRITOLERANT'!$R$37:$R$53)*(rng_rainfall=3))*(rng_Canola_Tri_DATA_SHEET) -> 0 | K24: =(SUM('CANOLA TRITOLERANT'!$U$37:$U$53))*(rng_Canola_Tri_DATA_SHEET) -> 0 | L24: =(SUM('CANOLA TRITOLERANT'!$L$57:$L$128)*(rng_rainfall=1)+SUM('CANOLA TRITOLERANT'!$O$57:$O$128)*(rng_rainfall=2)+SUM('CANOLA TRITOLERANT'!$R$57:$R$128)*(rng_rainfall=3))*(rng_Canola_Tri_DATA_SHEET) -> 0 | M24: =(SUM('CANOLA TRITOLERANT'!$U$57:$U$128))*(rng_Canola_Tri_DATA_SHEET) -> 0 | N24: =(SUM('CANOLA TRITOLERANT'!$L$132:$L$132)*(rng_rainfall=1)+SUM('CANOLA TRITOLERANT'!$O$132:$O$132)*(rng_rainfall=2)+SUM('CANOLA TRITOLERANT'!$R$132:$R$132)*(rng_rainfall=3))*(rng_Canola_Tri_DATA_SHEET) -> 0 | O24: =(SUM('CANOLA TRITOLERANT'!$U$132:$U$132))*(rng_Canola_Tri_DATA_SHEET) -> 0 | P24: =(SUM('CANOLA TRITOLERANT'!$L$133:$L$133)*(rng_rainfall=1)+SUM('CANOLA TRITOLERANT'!$O$133:$O$133)*(rng_rainfall=2)+SUM('CANOLA TRITOLERANT'!$R$133:$R$133)*(rng_rainfall=3))*(rng_Canola_Tri_DATA_SHEET) -> 0 | Q24: =(SUM('CANOLA TRITOLERANT'!$U$133:$U$133))*(rng_Canola_Tri_DATA_SHEET) -> 0 | R24: =(SUM('CANOLA TRITOLERANT'!$L$136:$L$137)*(rng_rainfall=1)+SUM('CANOLA TRITOLERANT'!$O$136:$O$137)*(rng_rainfall=2)+SUM('CANOLA TRITOLERANT'!$R$136:$R$137)*(rng_rainfall=3))*(rng_Canola_Tri_DATA_SHEET) -> 0 | S24: =(SUM('CANOLA TRITOLERANT'!$U$136:$U$137))*(rng_Canola_Tri_DATA_SHEET) -> 0 | T24: 0 | U24: 0 | V24: 0 | W24: =('CANOLA TRITOLERANT'!$U$160)*(rng_Canola_Tri_DATA_SHEET) -> 0
B25: Sown Pasture | C25: =('SOWN PASTURE'!$U$6)*(rng_sown_pasture_DATA_SHEET) -> 0 | D25: =(SUM('SOWN PASTURE'!$L$162)*(rng_rainfall=1)+SUM('SOWN PASTURE'!$O$162)*(rng_rainfall=2)+SUM('SOWN PASTURE'!$R$162)*(rng_rainfall=3))*(rng_sown_pasture_DATA_SHEET) -> 0 | E25: =('SOWN PASTURE'!$U$162)*(rng_sown_pasture_DATA_SHEET) -> 0 | F25: =(SUM('SOWN PASTURE'!$L$11)*(rng_rainfall=1)+SUM('SOWN PASTURE'!$O$11)*(rng_rainfall=2)+SUM('SOWN PASTURE'!$R$11)*(rng_rainfall=3))*(rng_sown_pasture_DATA_SHEET) -> 0 | G25: =('SOWN PASTURE'!$U$11)*(rng_sown_pasture_DATA_SHEET) -> 0 | H25: =(SUM('SOWN PASTURE'!$L$14:$L$34)*(rng_rainfall=1)+SUM('SOWN PASTURE'!$O$14:$O$34)*(rng_rainfall=2)+SUM('SOWN PASTURE'!$R$14:$R$34)*(rng_rainfall=3))*(rng_sown_pasture_DATA_SHEET) -> 0 | I25: =(SUM('SOWN PASTURE'!$U$14:$U$34))*(rng_sown_pasture_DATA_SHEET) -> 0 | J25: =(SUM('SOWN PASTURE'!$L$37:$L$53)*(rng_rainfall=1)+SUM('SOWN PASTURE'!$O$37:$O$53)*(rng_rainfall=2)+SUM('SOWN PASTURE'!$R$37:$R$53)*(rng_rainfall=3))*(rng_sown_pasture_DATA_SHEET) -> 0 | K25: =(SUM('SOWN PASTURE'!$U$37:$U$53))*(rng_sown_pasture_DATA_SHEET) -> 0 | L25: =(SUM('SOWN PASTURE'!$L$57:$L$128)*(rng_rainfall=1)+SUM('SOWN PASTURE'!$O$57:$O$128)*(rng_rainfall=2)+SUM('SOWN PASTURE'!$R$57:$R$128)*(rng_rainfall=3))*(rng_sown_pasture_DATA_SHEET) -> 0 | M25: =(SUM('SOWN PASTURE'!$U$57:$U$128))*(rng_sown_pasture_DATA_SHEET) -> 0 | N25: =(SUM('SOWN PASTURE'!$L$132:$L$132)*(rng_rainfall=1)+SUM('SOWN PASTURE'!$O$132:$O$132)*(rng_rainfall=2)+SUM('SOWN PASTURE'!$R$132:$R$132)*(rng_rainfall=3))*(rng_sown_pasture_DATA_SHEET) -> 0 | O25: =(SUM('SOWN PASTURE'!$U$132:$U$132))*(rng_sown_pasture_DATA_SHEET) -> 0 | P25: =(SUM('SOWN PASTURE'!$L$133:$L$133)*(rng_rainfall=1)+SUM('SOWN PASTURE'!$O$133:$O$133)*(rng_rainfall=2)+SUM('SOWN PASTURE'!$R$133:$R$133)*(rng_rainfall=3))*(rng_sown_pasture_DATA_SHEET) -> 0 | Q25: =(SUM('SOWN PASTURE'!$U$133:$U$133))*(rng_sown_pasture_DATA_SHEET) -> 0 | R25: =(SUM('SOWN PASTURE'!$L$136:$L$137)*(rng_rainfall=1)+SUM('SOWN PASTURE'!$O$136:$O$137)*(rng_rainfall=2)+SUM('SOWN PASTURE'!$R$136:$R$137)*(rng_rainfall=3))*(rng_sown_pasture_DATA_SHEET) -> 0 | S25: =(SUM('SOWN PASTURE'!$U$136:$U$137))*(rng_sown_pasture_DATA_SHEET) -> 0 | T25: 0 | U25: 0 | V25: 0 | W25: =('SOWN PASTURE'!$U$160)*(rng_sown_pasture_DATA_SHEET) -> 0
B26: Self Regen Pasture | C26: =('SELF REGEN PASTURE'!U$6)*(rng_self_regen_DATA_SHEET) -> 0 | D26: =(SUM('SELF REGEN PASTURE'!L$162)*(rng_rainfall=1)+SUM('SELF REGEN PASTURE'!O$162)*(rng_rainfall=2)+SUM('SELF REGEN PASTURE'!R$162)*(rng_rainfall=3))*(rng_self_regen_DATA_SHEET) -> 0 | E26: =('SELF REGEN PASTURE'!U$162)*(rng_self_regen_DATA_SHEET) -> 0 | F26: =(SUM('SELF REGEN PASTURE'!L$11)*(rng_rainfall=1)+SUM('SELF REGEN PASTURE'!O$11)*(rng_rainfall=2)+SUM('SELF REGEN PASTURE'!R$11)*(rng_rainfall=3))*(rng_self_regen_DATA_SHEET) -> 0 | G26: =('SELF REGEN PASTURE'!U$11)*(rng_self_regen_DATA_SHEET) -> 0 | H26: =(SUM('SELF REGEN PASTURE'!L$14:L$34)*(rng_rainfall=1)+SUM('SELF REGEN PASTURE'!O$14:O$34)*(rng_rainfall=2)+SUM('SELF REGEN PASTURE'!R$14:R$34)*(rng_rainfall=3))*(rng_self_regen_DATA_SHEET) -> 0 | I26: =(SUM('SELF REGEN PASTURE'!U$14:U$34))*(rng_self_regen_DATA_SHEET) -> 0 | J26: =(SUM('SELF REGEN PASTURE'!L$37:L$53)*(rng_rainfall=1)+SUM('SELF REGEN PASTURE'!O$37:O$53)*(rng_rainfall=2)+SUM('SELF REGEN PASTURE'!R$37:R$53)*(rng_rainfall=3))*(rng_self_regen_DATA_SHEET) -> 0 | K26: =(SUM('SELF REGEN PASTURE'!U$37:U$53))*(rng_self_regen_DATA_SHEET) -> 0 | L26: =(SUM('SELF REGEN PASTURE'!L$57:L$128)*(rng_rainfall=1)+SUM('SELF REGEN PASTURE'!O$57:O$128)*(rng_rainfall=2)+SUM('SELF REGEN PASTURE'!R$57:R$128)*(rng_rainfall=3))*(rng_self_regen_DATA_SHEET) -> 0 | M26: =(SUM('SELF REGEN PASTURE'!U$57:U$128))*(rng_self_regen_DATA_SHEET) -> 0 | N26: =(SUM('SELF REGEN PASTURE'!L$132:L$132)*(rng_rainfall=1)+SUM('SELF REGEN PASTURE'!O$132:O$132)*(rng_rainfall=2)+SUM('SELF REGEN PASTURE'!R$132:R$132)*(rng_rainfall=3))*(rng_self_regen_DATA_SHEET) -> 0 | O26: =(SUM('SELF REGEN PASTURE'!U$132:U$132))*(rng_self_regen_DATA_SHEET) -> 0 | P26: =(SUM('SELF REGEN PASTURE'!P$133:P$133)*(rng_rainfall=1)+SUM('SELF REGEN PASTURE'!S$133:S$133)*(rng_rainfall=2)+SUM('SELF REGEN PASTURE'!V$133:V$133)*(rng_rainfall=3))*(rng_self_regen_DATA_SHEET) -> 0 | Q26: =(SUM('SELF REGEN PASTURE'!U$133:U$133))*(rng_self_regen_DATA_SHEET) -> 0 | R26: =(SUM('SELF REGEN PASTURE'!V$136:V$137)*(rng_rainfall=1)+SUM('SELF REGEN PASTURE'!Y$136:Y$137)*(rng_rainfall=2)+SUM('SELF REGEN PASTURE'!AB$136:AB$137)*(rng_rainfall=3))*(rng_self_regen_DATA_SHEET) -> 0 | S26: =(SUM('SELF REGEN PASTURE'!AE$136:AE$137))*(rng_self_regen_DATA_SHEET) -> 0 | T26: 0 | U26: 0 | V26: 0 | W26: =('SELF REGEN PASTURE'!U$160)*(rng_self_regen_DATA_SHEET) -> 0
B27: Lucerne Pasture Cereal | C27: =('LUCERNE PASTURE CEREAL'!$U$6)*(rng_LUC_CEREAL_DATA_SHEET) -> 0 | D27: =(SUM('LUCERNE PASTURE CEREAL'!L$163)*(rng_rainfall=1)+SUM('LUCERNE PASTURE CEREAL'!O$163)*(rng_rainfall=2)+SUM('LUCERNE PASTURE CEREAL'!R$163)*(rng_rainfall=3))*(rng_LUC_CEREAL_DATA_SHEET) -> 0 | E27: =('LUCERNE PASTURE CEREAL'!U$163)*(rng_LUC_CEREAL_DATA_SHEET) -> 0 | F27: =(SUM('LUCERNE PASTURE CEREAL'!L$11)*(rng_rainfall=1)+SUM('LUCERNE PASTURE CEREAL'!O$11)*(rng_rainfall=2)+SUM('LUCERNE PASTURE CEREAL'!R$11)*(rng_rainfall=3))*(rng_LUC_CEREAL_DATA_SHEET) -> 0 | G27: =('LUCERNE PASTURE CEREAL'!U$11)*(rng_LUC_CEREAL_DATA_SHEET) -> 0 | H27: =(SUM('LUCERNE PASTURE CEREAL'!L$14:L$34)*(rng_rainfall=1)+SUM('LUCERNE PASTURE CEREAL'!O$14:O$34)*(rng_rainfall=2)+SUM('LUCERNE PASTURE CEREAL'!R$14:R$34)*(rng_rainfall=3))*(rng_LUC_CEREAL_DATA_SHEET) -> 0 | I27: =(SUM('LUCERNE PASTURE CEREAL'!U$14:U$34)/7)*(rng_LUC_CEREAL_DATA_SHEET) -> 0 | J27: =(SUM('LUCERNE PASTURE CEREAL'!L$37:L$53,'LUCERNE PASTURE CEREAL'!L$135:L$136)*(rng_rainfall=1)+SUM('LUCERNE PASTURE CEREAL'!O$37:O$53,'LUCERNE PASTURE CEREAL'!O$135:O$136)*(rng_rainfall=2)+SUM('LUCERNE PASTURE CEREAL'!R$37:R$53,'LUCERNE PASTURE CEREAL'!R$135:R$136)*(rng_rainfall=3))*(rng_LUC_CEREAL_DATA_SHEET) -> 0 | K27: =(SUM(SUM('LUCERNE PASTURE CEREAL'!U$37:U$53)/7,'LUCERNE PASTURE CEREAL'!U$135:U$136))*(rng_LUC_CEREAL_DATA_SHEET) -> 0 | L27: =(SUM('LUCERNE PASTURE CEREAL'!L$57:L$111,'LUCERNE PASTURE CEREAL'!L$125:L$133)*(rng_rainfall=1)+SUM('LUCERNE PASTURE CEREAL'!O$57:O$111,'LUCERNE PASTURE CEREAL'!O$125:O$133)*(rng_rainfall=2)+SUM('LUCERNE PASTURE CEREAL'!R$57:R$111,'LUCERNE PASTURE CEREAL'!R$125:R$133)*(rng_rainfall=3))*(rng_LUC_CEREAL_DATA_SHEET) -> 0 | M27: =(SUM(SUM('LUCERNE PASTURE CEREAL'!U$57:U$111)/7,'LUCERNE PASTURE CEREAL'!U$125:U$133))*(rng_LUC_CEREAL_DATA_SHEET) -> 0 | N27: =(SUM('LUCERNE PASTURE CEREAL'!L$113:L$113,'LUCERNE PASTURE CEREAL'!L$138:L$138)*(rng_rainfall=1)+SUM('LUCERNE PASTURE CEREAL'!O$113:O$113,'LUCERNE PASTURE CEREAL'!O$138:O$138)*(rng_rainfall=2)+SUM('LUCERNE PASTURE CEREAL'!R$113:R$113,'LUCERNE PASTURE CEREAL'!R$138:R$138)*(rng_rainfall=3))*(rng_LUC_CEREAL_DATA_SHEET) -> 0 | O27: =(SUM(SUM('LUCERNE PASTURE CEREAL'!U$113:U$113)/7,'LUCERNE PASTURE CEREAL'!U$138:U$138))*(rng_LUC_CEREAL_DATA_SHEET) -> 0 | P27: =(SUM('LUCERNE PASTURE CEREAL'!L$114:L$114,'LUCERNE PASTURE CEREAL'!L$139:L$139)*(rng_rainfall=1)+SUM('LUCERNE PASTURE CEREAL'!O$114:O$114,'LUCERNE PASTURE CEREAL'!O$139:O$139)*(rng_rainfall=2)+SUM('LUCERNE PASTURE CEREAL'!R$114:R$114,'LUCERNE PASTURE CEREAL'!R$139:R$139)*(rng_rainfall=3))*(rng_LUC_CEREAL_DATA_SHEET) -> 0 | Q27: =(SUM(SUM('LUCERNE PASTURE CEREAL'!U$114:W$114)/7,'LUCERNE PASTURE CEREAL'!U$139:W$139))*(rng_LUC_CEREAL_DATA_SHEET) -> 0 | R27: =(SUM('LUCERNE PASTURE CEREAL'!L$142:L$143)*(rng_rainfall=1)+SUM('LUCERNE PASTURE CEREAL'!O$142:O$143)*(rng_rainfall=2)+SUM('LUCERNE PASTURE CEREAL'!R$142:R$143)*(rng_rainfall=3))*(rng_LUC_CEREAL_DATA_SHEET) -> 0 | S27: =(SUM('LUCERNE PASTURE CEREAL'!U$142:W$143))*(rng_LUC_CEREAL_DATA_SHEET) -> 0 | T27: 0 | U27: 0 | V27: 0 | W27: =('LUCERNE PASTURE CEREAL'!$U$161)*(rng_LUC_CEREAL_DATA_SHEET) -> 0
B28: Lucerne Pasture Grazing | C28: =('LUCERNE PASTURE GRAZING'!$U$6)*(rng_LUC_GRAZ_DATA_SHEET) -> 0 | D28: =(SUM('LUCERNE PASTURE GRAZING'!L$163)*(rng_rainfall=1)+SUM('LUCERNE PASTURE GRAZING'!O$163)*(rng_rainfall=2)+SUM('LUCERNE PASTURE GRAZING'!R$163)*(rng_rainfall=3))*(rng_LUC_GRAZ_DATA_SHEET) -> 0 | E28: =('LUCERNE PASTURE GRAZING'!U$163)*(rng_LUC_GRAZ_DATA_SHEET) -> 0 | F28: =(SUM('LUCERNE PASTURE GRAZING'!L$11)*(rng_rainfall=1)+SUM('LUCERNE PASTURE GRAZING'!O$11)*(rng_rainfall=2)+SUM('LUCERNE PASTURE GRAZING'!R$11)*(rng_rainfall=3))*(rng_LUC_GRAZ_DATA_SHEET) -> 0 | G28: =('LUCERNE PASTURE GRAZING'!U$11)*(rng_LUC_GRAZ_DATA_SHEET) -> 0 | H28: =(SUM('LUCERNE PASTURE GRAZING'!L$14:L$34)*(rng_rainfall=1)+SUM('LUCERNE PASTURE GRAZING'!O$14:O$34)*(rng_rainfall=2)+SUM('LUCERNE PASTURE GRAZING'!R$14:R$34)*(rng_rainfall=3))*(rng_LUC_GRAZ_DATA_SHEET) -> 0 | I28: =(SUM('LUCERNE PASTURE GRAZING'!U$14:U$34)/7)*(rng_LUC_GRAZ_DATA_SHEET) -> 0 | J28: =(SUM('LUCERNE PASTURE GRAZING'!L$37:L$53,'LUCERNE PASTURE GRAZING'!L$135:L$136)*(rng_rainfall=1)+SUM('LUCERNE PASTURE GRAZING'!O$37:O$53,'LUCERNE PASTURE GRAZING'!O$135:O$136)*(rng_rainfall=2)+SUM('LUCERNE PASTURE GRAZING'!R$37:R$53,'LUCERNE PASTURE GRAZING'!R$135:R$136)*(rng_rainfall=3))*(rng_LUC_GRAZ_DATA_SHEET) -> 0 | K28: =(SUM(SUM('LUCERNE PASTURE GRAZING'!U$37:U$53)/7,'LUCERNE PASTURE GRAZING'!U$135:U$136))*(rng_LUC_GRAZ_DATA_SHEET) -> 0 | L28: =(SUM('LUCERNE PASTURE GRAZING'!L$57:L$111,'LUCERNE PASTURE GRAZING'!L$125:L$133)*(rng_rainfall=1)+SUM('LUCERNE PASTURE GRAZING'!O$57:O$111,'LUCERNE PASTURE GRAZING'!O$125:O$133)*(rng_rainfall=2)+SUM('LUCERNE PASTURE GRAZING'!R$57:R$111,'LUCERNE PASTURE GRAZING'!R$125:R$133)*(rng_rainfall=3))*(rng_LUC_GRAZ_DATA_SHEET) -> 0 | M28: =(SUM(SUM('LUCERNE PASTURE GRAZING'!U$57:U$111)/7,'LUCERNE PASTURE GRAZING'!U$125:U$133))*(rng_LUC_GRAZ_DATA_SHEET) -> 0 | N28: =(SUM('LUCERNE PASTURE GRAZING'!L$113:L$113,'LUCERNE PASTURE GRAZING'!L$138:L$138)*(rng_rainfall=1)+SUM('LUCERNE PASTURE GRAZING'!O$113:O$113,'LUCERNE PASTURE GRAZING'!O$138:O$138)*(rng_rainfall=2)+SUM('LUCERNE PASTURE GRAZING'!R$113:R$113,'LUCERNE PASTURE GRAZING'!R$138:R$138)*(rng_rainfall=3))*(rng_LUC_GRAZ_DATA_SHEET) -> 0 | O28: =(SUM(SUM('LUCERNE PASTURE GRAZING'!U$113:U$113)/7,'LUCERNE PASTURE GRAZING'!U$138:U$138))*(rng_LUC_GRAZ_DATA_SHEET) -> 0 | P28: =(SUM('LUCERNE PASTURE GRAZING'!L$114:L$114,'LUCERNE PASTURE GRAZING'!L$139:L$139)*(rng_rainfall=1)+SUM('LUCERNE PASTURE GRAZING'!O$114:O$114,'LUCERNE PASTURE GRAZING'!O$139:O$139)*(rng_rainfall=2)+SUM('LUCERNE PASTURE GRAZING'!R$114:R$114,'LUCERNE PASTURE GRAZING'!R$139:R$139)*(rng_rainfall=3))*(rng_LUC_GRAZ_DATA_SHEET) -> 0 | Q28: =(SUM(SUM('LUCERNE PASTURE GRAZING'!U$114:W$114)/7,'LUCERNE PASTURE GRAZING'!U$139:W$139))*(rng_LUC_GRAZ_DATA_SHEET) -> 0 | R28: =(SUM('LUCERNE PASTURE GRAZING'!L$142:L$143)*(rng_rainfall=1)+SUM('LUCERNE PASTURE GRAZING'!O$142:O$143)*(rng_rainfall=2)+SUM('LUCERNE PASTURE GRAZING'!R$142:R$143)*(rng_rainfall=3))*(rng_LUC_GRAZ_DATA_SHEET) -> 0 | S28: =(SUM('LUCERNE PASTURE GRAZING'!U$142:W$143))*(rng_LUC_GRAZ_DATA_SHEET) -> 0 | T28: 0 | U28: 0 | V28: 0 | W28: =('LUCERNE PASTURE GRAZING'!$U$161)*(rng_LUC_GRAZ_DATA_SHEET) -> 0
B29: Phalaris Sub Pasture Cereal | C29: =('PHALARIS SUB PASTURE CEREAL'!$U$6)*(rng_PHA_CEREAL_DATA_SHEET) -> 0 | D29: =(SUM('PHALARIS SUB PASTURE CEREAL'!L$162)*(rng_rainfall=1)+SUM('PHALARIS SUB PASTURE CEREAL'!O$162)*(rng_rainfall=2)+SUM('PHALARIS SUB PASTURE CEREAL'!R$162)*(rng_rainfall=3))*(rng_PHA_CEREAL_DATA_SHEET) -> 0 | E29: =('PHALARIS SUB PASTURE CEREAL'!U$162)*(rng_PHA_CEREAL_DATA_SHEET) -> 0 | F29: =(SUM('PHALARIS SUB PASTURE CEREAL'!L$11)*(rng_rainfall=1)+SUM('PHALARIS SUB PASTURE CEREAL'!O$11)*(rng_rainfall=2)+SUM('PHALARIS SUB PASTURE CEREAL'!R$11)*(rng_rainfall=3))*(rng_PHA_CEREAL_DATA_SHEET) -> 0 | G29: =('PHALARIS SUB PASTURE CEREAL'!U$11)*(rng_PHA_CEREAL_DATA_SHEET) -> 0 | H29: =(SUM('PHALARIS SUB PASTURE CEREAL'!L$14:L$34)*(rng_rainfall=1)+SUM('PHALARIS SUB PASTURE CEREAL'!O$14:O$34)*(rng_rainfall=2)+SUM('PHALARIS SUB PASTURE CEREAL'!R$14:R$34)*(rng_rainfall=3))*(rng_PHA_CEREAL_DATA_SHEET) -> 0 | I29: =(SUM('PHALARIS SUB PASTURE CEREAL'!U$14:U$34)/7)*(rng_PHA_CEREAL_DATA_SHEET) -> 0 | J29: =(SUM('PHALARIS SUB PASTURE CEREAL'!L$37:L$53,'PHALARIS SUB PASTURE CEREAL'!L$134:L$135)*(rng_rainfall=1)+SUM('PHALARIS SUB PASTURE CEREAL'!O$37:O$53,'PHALARIS SUB PASTURE CEREAL'!O$134:O$135)*(rng_rainfall=2)+SUM('PHALARIS SUB PASTURE CEREAL'!R$37:R$53,'PHALARIS SUB PASTURE CEREAL'!R$134:R$135)*(rng_rainfall=3))*(rng_PHA_CEREAL_DATA_SHEET) -> 0 | K29: =(SUM(SUM('PHALARIS SUB PASTURE CEREAL'!U$37:U$53)/7,'PHALARIS SUB PASTURE CEREAL'!U$134:U$135))*(rng_PHA_CEREAL_DATA_SHEET) -> 0 | L29: =(SUM('PHALARIS SUB PASTURE CEREAL'!L$57:L$111,'PHALARIS SUB PASTURE CEREAL'!L$125:L$133)*(rng_rainfall=1)+SUM('PHALARIS SUB PASTURE CEREAL'!O$57:O$111,'PHALARIS SUB PASTURE CEREAL'!O$125:O$133)*(rng_rainfall=2)+SUM('PHALARIS SUB PASTURE CEREAL'!R$57:R$111,'PHALARIS SUB PASTURE CEREAL'!R$125:R$133)*(rng_rainfall=3))*(rng_PHA_CEREAL_DATA_SHEET) -> 0 | M29: =(SUM(SUM('PHALARIS SUB PASTURE CEREAL'!U$57:U$111)/7,'PHALARIS SUB PASTURE CEREAL'!U$125:U$133))*(rng_PHA_CEREAL_DATA_SHEET) -> 0 | N29: =(SUM('PHALARIS SUB PASTURE CEREAL'!L$113:L$113,'PHALARIS SUB PASTURE CEREAL'!L$138:L$138)*(rng_rainfall=1)+SUM('PHALARIS SUB PASTURE CEREAL'!O$113:O$113,'PHALARIS SUB PASTURE CEREAL'!O$138:O$138)*(rng_rainfall=2)+SUM('PHALARIS SUB PASTURE CEREAL'!R$113:R$113,'PHALARIS SUB PASTURE CEREAL'!R$138:R$138)*(rng_rainfall=3))*(rng_PHA_CEREAL_DATA_SHEET) -> 0 | O29: =(SUM(SUM('PHALARIS SUB PASTURE CEREAL'!U$113:U$113)/7,'PHALARIS SUB PASTURE CEREAL'!U$138:U$138))*(rng_PHA_CEREAL_DATA_SHEET) -> 0 | P29: =(SUM('PHALARIS SUB PASTURE CEREAL'!L$114:L$114,'PHALARIS SUB PASTURE CEREAL'!L$139:L$139)*(rng_rainfall=1)+SUM('PHALARIS SUB PASTURE CEREAL'!O$114:O$114,'PHALARIS SUB PASTURE CEREAL'!O$139:O$139)*(rng_rainfall=2)+SUM('PHALARIS SUB PASTURE CEREAL'!R$114:R$114,'PHALARIS SUB PASTURE CEREAL'!R$139:R$139)*(rng_rainfall=3))*(rng_PHA_CEREAL_DATA_SHEET) -> 0 | Q29: =(SUM(SUM('PHALARIS SUB PASTURE CEREAL'!U$114:W$114)/7,'PHALARIS SUB PASTURE CEREAL'!U$139:W$139))*(rng_PHA_CEREAL_DATA_SHEET) -> 0 | R29: =(SUM('PHALARIS SUB PASTURE CEREAL'!L$142:L$143)*(rng_rainfall=1)+SUM('PHALARIS SUB PASTURE CEREAL'!O$142:O$143)*(rng_rainfall=2)+SUM('PHALARIS SUB PASTURE CEREAL'!R$142:R$143)*(rng_rainfall=3))*(rng_PHA_CEREAL_DATA_SHEET) -> 0 | S29: =(SUM('PHALARIS SUB PASTURE CEREAL'!U$142:W$143))*(rng_PHA_CEREAL_DATA_SHEET) -> 0 | T29: 0 | U29: 0 | V29: 0 | W29: =('PHALARIS SUB PASTURE CEREAL'!$U$160)*(rng_PHA_CEREAL_DATA_SHEET) -> 0
B30: Phalaris Sub Grazing | C30: =('PHALARIS SUB PASTURE GRAZING'!$U$6)*(rng_PHA_GRAZING_DATA_SHEET) -> 0 | D30: =(SUM('PHALARIS SUB PASTURE GRAZING'!L$162)*(rng_rainfall=1)+SUM('PHALARIS SUB PASTURE GRAZING'!O$162)*(rng_rainfall=2)+SUM('PHALARIS SUB PASTURE GRAZING'!R$162)*(rng_rainfall=3))*(rng_PHA_GRAZING_DATA_SHEET) -> 0 | E30: =('PHALARIS SUB PASTURE GRAZING'!U$162)*(rng_PHA_GRAZING_DATA_SHEET) -> 0 | F30: =(SUM('PHALARIS SUB PASTURE GRAZING'!L$11)*(rng_rainfall=1)+SUM('PHALARIS SUB PASTURE GRAZING'!O$11)*(rng_rainfall=2)+SUM('PHALARIS SUB PASTURE GRAZING'!R$11)*(rng_rainfall=3))*(rng_PHA_GRAZING_DATA_SHEET) -> 0 | G30: =('PHALARIS SUB PASTURE GRAZING'!U$11)*(rng_PHA_GRAZING_DATA_SHEET) -> 0 | H30: =(SUM('PHALARIS SUB PASTURE GRAZING'!L$14:L$34)*(rng_rainfall=1)+SUM('PHALARIS SUB PASTURE GRAZING'!O$14:O$34)*(rng_rainfall=2)+SUM('PHALARIS SUB PASTURE GRAZING'!R$14:R$34)*(rng_rainfall=3))*(rng_PHA_GRAZING_DATA_SHEET) -> 0 | I30: =(SUM('PHALARIS SUB PASTURE GRAZING'!U$14:U$34)/7)*(rng_PHA_GRAZING_DATA_SHEET) -> 0 | J30: =(SUM('PHALARIS SUB PASTURE GRAZING'!L$37:L$53,'PHALARIS SUB PASTURE GRAZING'!L$134:L$135)*(rng_rainfall=1)+SUM('PHALARIS SUB PASTURE GRAZING'!O$37:O$53,'PHALARIS SUB PASTURE GRAZING'!O$134:O$135)*(rng_rainfall=2)+SUM('PHALARIS SUB PASTURE GRAZING'!R$37:R$53,'PHALARIS SUB PASTURE GRAZING'!R$134:R$135)*(rng_rainfall=3))*(rng_PHA_GRAZING_DATA_SHEET) -> 0 | K30: =(SUM(SUM('PHALARIS SUB PASTURE GRAZING'!U$37:U$53)/7,'PHALARIS SUB PASTURE GRAZING'!U$134:U$135))*(rng_PHA_GRAZING_DATA_SHEET) -> 0 | L30: =(SUM('PHALARIS SUB PASTURE GRAZING'!L$57:L$111,'PHALARIS SUB PASTURE GRAZING'!L$125:L$133)*(rng_rainfall=1)+SUM('PHALARIS SUB PASTURE GRAZING'!O$57:O$111,'PHALARIS SUB PASTURE GRAZING'!O$125:O$133)*(rng_rainfall=2)+SUM('PHALARIS SUB PASTURE GRAZING'!R$57:R$111,'PHALARIS SUB PASTURE GRAZING'!R$125:R$133)*(rng_rainfall=3))*(rng_PHA_GRAZING_DATA_SHEET) -> 0 | M30: =(SUM(SUM('PHALARIS SUB PASTURE GRAZING'!U$57:U$111)/7,'PHALARIS SUB PASTURE GRAZING'!U$125:U$133))*(rng_PHA_GRAZING_DATA_SHEET) -> 0 | N30: =(SUM('PHALARIS SUB PASTURE GRAZING'!L$113:L$113,'PHALARIS SUB PASTURE GRAZING'!L$138:L$138)*(rng_rainfall=1)+SUM('PHALARIS SUB PASTURE GRAZING'!O$113:O$113,'PHALARIS SUB PASTURE GRAZING'!O$138:O$138)*(rng_rainfall=2)+SUM('PHALARIS SUB PASTURE GRAZING'!R$113:R$113,'PHALARIS SUB PASTURE GRAZING'!R$138:R$138)*(rng_rainfall=3))*(rng_PHA_GRAZING_DATA_SHEET) -> 0 | O30: =(SUM(SUM('PHALARIS SUB PASTURE GRAZING'!U$113:U$113)/7,'PHALARIS SUB PASTURE GRAZING'!U$138:U$138))*(rng_PHA_GRAZING_DATA_SHEET) -> 0 | P30: =(SUM('PHALARIS SUB PASTURE GRAZING'!L$114:L$114,'PHALARIS SUB PASTURE GRAZING'!L$139:L$139)*(rng_rainfall=1)+SUM('PHALARIS SUB PASTURE GRAZING'!O$114:O$114,'PHALARIS SUB PASTURE GRAZING'!O$139:O$139)*(rng_rainfall=2)+SUM('PHALARIS SUB PASTURE GRAZING'!R$114:R$114,'PHALARIS SUB PASTURE GRAZING'!R$139:R$139)*(rng_rainfall=3))*(rng_PHA_GRAZING_DATA_SHEET) -> 0 | Q30: =(SUM(SUM('PHALARIS SUB PASTURE GRAZING'!U$114:W$114)/7,'PHALARIS SUB PASTURE GRAZING'!U$139:W$139))*(rng_PHA_GRAZING_DATA_SHEET) -> 0 | R30: =(SUM('PHALARIS SUB PASTURE GRAZING'!L$142:L$143)*(rng_rainfall=1)+SUM('PHALARIS SUB PASTURE GRAZING'!O$142:O$143)*(rng_rainfall=2)+SUM('PHALARIS SUB PASTURE GRAZING'!R$142:R$143)*(rng_rainfall=3))*(rng_PHA_GRAZING_DATA_SHEET) -> 0 | S30: =(SUM('PHALARIS SUB PASTURE GRAZING'!U$142:W$143))*(rng_PHA_GRAZING_DATA_SHEET) -> 0 | T30: 0 | U30: 0 | V30: 0 | W30: =('PHALARIS SUB PASTURE GRAZING'!$U$160)*(rng_PHA_GRAZING_DATA_SHEET) -> 0
B31: ="TOTAL "&IF(var_rotationtype=2,"-ROTATION 1","") -> TOTAL | C31: =SUM(C6:C30) -> 0 | E31: =SUM(E6:E30) -> 0 | G31: =SUM(G6:G30) -> 0 | I31: =SUM(I6:I30) -> 0 | K31: =SUM(K6:K30) -> 0 | M31: =SUM(M6:M30) ->  | O31: =SUM(O6:O30) -> 0 | Q31: =SUM(Q6:Q30) -> 0 | S31: =SUM(S6:S30) -> 0 | U31: =SUM(U6:U30) ->  | W31: =SUM(W6:W30) -> 0
B33: ="Profit and Loss Statement "&IF(var_rotationtype=2,"(Rotation 1)","") -> Profit and Loss Statement | N33: Machinery Value (excluding leased machinery)
B34: Overhead Costs | F34: Amount | G34: Comments | N34: Item | Q34: Market Value
B35: Rates and Taxes | G35: Council rates and taxes | N35: Tractors | Q35: 350000
B36: General overheads | G36: Subscriptions, telephone, power, general insurance etc | N36: Seeder | Q36: 150000
B37: General R&M | G37: Excluding | H37: =Q31 -> 0 | I37: Cropping machinery R&M | N37: Sprayer/s | Q37: 200000
B38: Infrastructure depreciation / R&M | G38: Buildings, fences & watering systems | N38: Harvester | Q38: 400000
B39: Permanent Wages | G39: Wages paid to permanent employees, including family members | N39: Other Harvest (chase, bins, augers etc) | Q39: 120000
B40: Managers allowance-personal drawings | G40: Personel drawings | N40: Loader | Q40: 50000
B41: Machinery & plant depreciation | D41: TRUE | E41: Exclude | F41: =IF(D41=FALSE,Q49,0) -> 0 | G41: Normally 8 to 12% of market value; usually allow 10% (do not include leased machinery) | N41: Hay equipment | Q41: 20000
B42: Machinery lease | N42: Vehicles | Q42: 30000
B43: Land lease | N43: Truck/s | Q43: 40000
B44: Debt Servicing / Bank fees | G44: Interest and bank fees | N44: Spreader | Q44: 10000
B45: Total Overheads | F45: =SUM(F35:F44) -> 0 | N45: Other | Q45: 10000
B46: Farm Business Profit / Loss | F46: =E31-F45 -> 0 | N46: Sundries | Q46: 20000
N47: Total Machinery Value | Q47: =SUM(Q35:Q46) -> 1400000
B48: Percent Crop Income | F48: 1
B49: Wheat breakeven price | C49: (to cover variable | F49: =IFERROR( _xlfn.LET( _xlpm.ratio, C6/SUM(C6:C24), _xlpm.rain_idx, _xlfn.SWITCH(var_rain, "Low", 0, "medium", 3, "High", 6, 0), _xlpm.val_10, OFFSET(WHEAT!$L$10, 0, _xlpm.rain_idx), _xlpm.val_164, OFFSET(WHEAT!$L$165, 0, _xlpm.rain_idx), _xlpm.num, (_xlpm.ratio * SUM(F35, F39, F40, F43, F44) * F48) + (SUM(F41:F42) * _xlpm.ratio), _xlpm.den, _xlpm.val_10 * WHEAT!$U$6, (_xlpm.num / _xlpm.den) + _xlpm.val_164 ), 0) -> 0 | G49: /t | N49: Depreciation Rate % | P49: 0.1 | Q49: =Q47*P49 -> 140000
B50: Wheat breakeven yield | C50: and overhead costs) | F50: =F49 * CHOOSE(MATCH(var_rain, {"Low","medium","High"}, 0), WHEAT!$L$10/WHEAT!$L$8, WHEAT!$O$10/WHEAT!$O$8, WHEAT!$R$10/WHEAT!$R$8) ->  | G50: /t/ha
D52: Gross Margin | F52: Income | H52: Seeds & Levies | J52: Fertiliser | L52: Chemicals | N52: Fuel & Oil | P52: Machinery R&M | R52: Freight | T52: Other | V52: Total Var Costs
B53: Crop - Rotation 2 | C53: Area
B54: Wheat | C54: =('WHEAT R2'!U6)*(rng_APW_Wheat_DATA_Sheet_R2) -> 0 | D54: =(SUM('WHEAT R2'!L163)*(rng_rainfall=1)+SUM('WHEAT R2'!O163)*(rng_rainfall=2)+SUM('WHEAT R2'!R163)*(rng_rainfall=3))*(rng_APW_Wheat_DATA_Sheet_R2) -> 0 | E54: =('WHEAT R2'!U163)*(rng_APW_Wheat_DATA_Sheet_R2) -> 0 | F54: =(SUM('WHEAT R2'!L11)*(rng_rainfall=1)+SUM('WHEAT R2'!O11)*(rng_rainfall=2)+SUM('WHEAT R2'!R11)*(rng_rainfall=3))*(rng_APW_Wheat_DATA_Sheet_R2) -> 0 | G54: =('WHEAT R2'!U11)*(rng_APW_Wheat_DATA_Sheet_R2) -> 0 | H54: =(SUM('WHEAT R2'!L14:L34)*(rng_rainfall=1)+SUM('WHEAT R2'!O14:O34)*(rng_rainfall=2)+SUM('WHEAT R2'!R14:R34)*(rng_rainfall=3))*(rng_APW_Wheat_DATA_Sheet_R2) -> 0 | I54: =(SUM('WHEAT R2'!U14:U34))*(rng_APW_Wheat_DATA_Sheet_R2) -> 0 | J54: =(SUM('WHEAT R2'!$L$37:$L$53)*(rng_rainfall=1)+SUM('WHEAT R2'!$O$37:$O$53)*(rng_rainfall=2)+SUM('WHEAT R2'!$R$37:$R$53)*(rng_rainfall=3))*(rng_APW_Wheat_DATA_Sheet_R2) -> 0 | K54: =(SUM('WHEAT R2'!$U$37:$U$53))*(rng_APW_Wheat_DATA_Sheet_R2) -> 0 | L54: =(SUM('WHEAT R2'!$L$57:$L$128)*(rng_rainfall=1)+SUM('WHEAT R2'!$O$57:$O$128)*(rng_rainfall=2)+SUM('WHEAT R2'!$R$57:$R$128)*(rng_rainfall=3))*(rng_APW_Wheat_DATA_Sheet_R2) -> 0 | M54: =(SUM('WHEAT R2'!$U$57:$U$128))*(rng_APW_Wheat_DATA_Sheet_R2) -> 0 | N54: =(SUM('WHEAT R2'!$L$132:$L$132)*(rng_rainfall=1)+SUM('WHEAT R2'!$O$132:$O$132)*(rng_rainfall=2)+SUM('WHEAT R2'!$R$132:$R$132)*(rng_rainfall=3))*(rng_APW_Wheat_DATA_Sheet_R2) -> 0 | O54: =(SUM('WHEAT R2'!$U$132:$U$132))*(rng_APW_Wheat_DATA_Sheet_R2) -> 0 | P54: =(SUM('WHEAT R2'!$L$133:$L$133)*(rng_rainfall=1)+SUM('WHEAT R2'!$O$133:$O$133)*(rng_rainfall=2)+SUM('WHEAT R2'!$R$133:$R$133)*(rng_rainfall=3))*(rng_APW_Wheat_DATA_Sheet_R2) -> 0 | Q54: =(SUM('WHEAT R2'!$U$133:$U$133))*(rng_APW_Wheat_DATA_Sheet_R2) -> 0 | R54: =(SUM('WHEAT R2'!$L$136:$L$138)*(rng_rainfall=1)+SUM('WHEAT R2'!$O$136:$O$138)*(rng_rainfall=2)+SUM('WHEAT R2'!$R$136:$R$138)*(rng_rainfall=3))*(rng_APW_Wheat_DATA_Sheet_R2) -> 0 | S54: =(SUM('WHEAT R2'!$U$136:$U$138))*(rng_APW_Wheat_DATA_Sheet_R2) -> 0 | T54: =SUM(V54,-R54,-P54,-N54,-L54,-J54,-H54) -> 0 | U54: =SUM(W54,-S54,-Q54,-O54,-M54,-K54,-I54) -> 0 | V54: =IFERROR(W54/C54,0) -> 0 | W54: =('WHEAT R2'!$U$161)*(rng_APW_Wheat_DATA_Sheet_R2) -> 0
B55: Durum | C55: =('DURUM R2'!U6)*(rng_Durum_DATA_Sheet_R2) -> 0 | D55: =(SUM('DURUM R2'!L162)*(rng_rainfall=1)+SUM('DURUM R2'!O162)*(rng_rainfall=2)+SUM('DURUM R2'!R162)*(rng_rainfall=3))*(rng_Durum_DATA_Sheet_R2) -> 0 | E55: =('DURUM R2'!U162)*(rng_Durum_DATA_Sheet_R2) -> 0 | F55: =(SUM('DURUM R2'!L11)*(rng_rainfall=1)+SUM('DURUM R2'!O11)*(rng_rainfall=2)+SUM('DURUM R2'!R11)*(rng_rainfall=3))*(rng_Durum_DATA_Sheet_R2) -> 0 | G55: =('DURUM R2'!U11)*(rng_Durum_DATA_Sheet_R2) -> 0 | H55: =(SUM('DURUM R2'!L14:L34)*(rng_rainfall=1)+SUM('DURUM R2'!O14:O34)*(rng_rainfall=2)+SUM('DURUM R2'!R14:R34)*(rng_rainfall=3))*(rng_Durum_DATA_Sheet_R2) -> 0 | I55: =(SUM('DURUM R2'!U14:U34))*(rng_Durum_DATA_Sheet_R2) -> 0 | J55: =(SUM('DURUM R2'!$L$37:$L$53)*(rng_rainfall=1)+SUM('DURUM R2'!$O$37:$O$53)*(rng_rainfall=2)+SUM('DURUM R2'!$R$37:$R$53)*(rng_rainfall=3))*(rng_Durum_DATA_Sheet_R2) -> 0 | K55: =(SUM('DURUM R2'!$U$37:$U$53))*(rng_Durum_DATA_Sheet_R2) -> 0 | L55: =(SUM('DURUM R2'!$L$57:$L$128)*(rng_rainfall=1)+SUM('DURUM R2'!$O$57:$O$128)*(rng_rainfall=2)+SUM('DURUM R2'!$R$57:$R$128)*(rng_rainfall=3))*(rng_Durum_DATA_Sheet_R2) -> 0 | M55: =(SUM('DURUM R2'!$U$57:$U$128))*(rng_Durum_DATA_Sheet_R2) -> 0 | N55: =(SUM('DURUM R2'!$L$132:$L$132)*(rng_rainfall=1)+SUM('DURUM R2'!$O$132:$O$132)*(rng_rainfall=2)+SUM('DURUM R2'!$R$132:$R$132)*(rng_rainfall=3))*(rng_Durum_DATA_Sheet_R2) -> 0 | O55: =(SUM('DURUM R2'!$U$132:$U$132))*(rng_Durum_DATA_Sheet_R2) -> 0 | P55: =(SUM('DURUM R2'!$L$133:$L$133)*(rng_rainfall=1)+SUM('DURUM R2'!$O$133:$O$133)*(rng_rainfall=2)+SUM('DURUM R2'!$R$133:$R$133)*(rng_rainfall=3))*(rng_Durum_DATA_Sheet_R2) -> 0 | Q55: =(SUM('DURUM R2'!$U$133:$U$133))*(rng_Durum_DATA_Sheet_R2) -> 0 | R55: =(SUM('DURUM R2'!$L$136:$L$137)*(rng_rainfall=1)+SUM('DURUM R2'!$O$136:$O$137)*(rng_rainfall=2)+SUM('DURUM R2'!$R$136:$R$137)*(rng_rainfall=3))*(rng_Durum_DATA_Sheet_R2) -> 0 | S55: =(SUM('DURUM R2'!$U$136:$U$137))*(rng_Durum_DATA_Sheet_R2) -> 0 | T55: 0 | U55: 0 | V55: 0 | W55: =('DURUM R2'!$U$160)*(rng_Durum_DATA_Sheet_R2) -> 0
B56: Malt Barley | C56: =('MALT BARLEY R2'!U6)*(rng_Malt_Barley_DATA_Sheet_R2) -> 0 | D56: =(SUM('MALT BARLEY R2'!L162)*(rng_rainfall=1)+SUM('MALT BARLEY R2'!O162)*(rng_rainfall=2)+SUM('MALT BARLEY R2'!R162)*(rng_rainfall=3))*(rng_Malt_Barley_DATA_Sheet_R2) -> 0 | E56: =('MALT BARLEY R2'!U162)*(rng_Malt_Barley_DATA_Sheet_R2) -> 0 | F56: =(SUM('MALT BARLEY R2'!L11)*(rng_rainfall=1)+SUM('MALT BARLEY R2'!O11)*(rng_rainfall=2)+SUM('MALT BARLEY R2'!R11)*(rng_rainfall=3))*(rng_Malt_Barley_DATA_Sheet_R2) -> 0 | G56: =('MALT BARLEY R2'!U11)*(rng_Malt_Barley_DATA_Sheet_R2) -> 0 | H56: =(SUM('MALT BARLEY R2'!L14:L34)*(rng_rainfall=1)+SUM('MALT BARLEY R2'!O14:O34)*(rng_rainfall=2)+SUM('MALT BARLEY R2'!R14:R34)*(rng_rainfall=3))*(rng_Malt_Barley_DATA_Sheet_R2) -> 0 | I56: =(SUM('MALT BARLEY R2'!U14:U34))*(rng_Malt_Barley_DATA_Sheet_R2) -> 0 | J56: =(SUM('MALT BARLEY R2'!$L$37:$L$53)*(rng_rainfall=1)+SUM('MALT BARLEY R2'!$O$37:$O$53)*(rng_rainfall=2)+SUM('MALT BARLEY R2'!$R$37:$R$53)*(rng_rainfall=3))*(rng_Malt_Barley_DATA_Sheet_R2) -> 0 | K56: =(SUM('MALT BARLEY R2'!$U$37:$U$53))*(rng_Malt_Barley_DATA_Sheet_R2) -> 0 | L56: =(SUM('MALT BARLEY R2'!$L$57:$L$128)*(rng_rainfall=1)+SUM('MALT BARLEY R2'!$O$57:$O$128)*(rng_rainfall=2)+SUM('MALT BARLEY R2'!$R$57:$R$128)*(rng_rainfall=3))*(rng_Malt_Barley_DATA_Sheet_R2) -> 0 | M56: =(SUM('MALT BARLEY R2'!$U$57:$U$128))*(rng_Malt_Barley_DATA_Sheet_R2) -> 0 | N56: =(SUM('MALT BARLEY R2'!$L$132:$L$132)*(rng_rainfall=1)+SUM('MALT BARLEY R2'!$O$132:$O$132)*(rng_rainfall=2)+SUM('MALT BARLEY R2'!$R$132:$R$132)*(rng_rainfall=3))*(rng_Malt_Barley_DATA_Sheet_R2) -> 0 | O56: =(SUM('MALT BARLEY R2'!$U$132:$U$132))*(rng_Malt_Barley_DATA_Sheet_R2) -> 0 | P56: =(SUM('MALT BARLEY R2'!$L$133:$L$133)*(rng_rainfall=1)+SUM('MALT BARLEY R2'!$O$133:$O$133)*(rng_rainfall=2)+SUM('MALT BARLEY R2'!$R$133:$R$133)*(rng_rainfall=3))*(rng_Malt_Barley_DATA_Sheet_R2) -> 0 | Q56: =(SUM('MALT BARLEY R2'!$U$133:$U$133))*(rng_Malt_Barley_DATA_Sheet_R2) -> 0 | R56: =(SUM('MALT BARLEY R2'!$L$136:$L$137)*(rng_rainfall=1)+SUM('MALT BARLEY R2'!$O$136:$O$137)*(rng_rainfall=2)+SUM('MALT BARLEY R2'!$R$136:$R$137)*(rng_rainfall=3))*(rng_Malt_Barley_DATA_Sheet_R2) -> 0 | S56: =(SUM('MALT BARLEY R2'!$U$136:$U$137))*(rng_Malt_Barley_DATA_Sheet_R2) -> 0 | T56: 0 | U56: 0 | V56: 0 | W56: =('MALT BARLEY R2'!$U$160)*(rng_Malt_Barley_DATA_Sheet_R2) -> 0
B57: Feed Barley | C57: =('FEED BARLEY R2'!U6)*(rng_Feed_Barley_DATA_Sheet_R2) -> 0 | D57: =(SUM('FEED BARLEY R2'!L162)*(rng_rainfall=1)+SUM('FEED BARLEY R2'!O162)*(rng_rainfall=2)+SUM('FEED BARLEY R2'!R162)*(rng_rainfall=3))*(rng_Feed_Barley_DATA_Sheet_R2) -> 0 | E57: =('FEED BARLEY R2'!U162)*(rng_Feed_Barley_DATA_Sheet_R2) -> 0 | F57: =(SUM('FEED BARLEY R2'!L11)*(rng_rainfall=1)+SUM('FEED BARLEY R2'!O11)*(rng_rainfall=2)+SUM('FEED BARLEY R2'!R11)*(rng_rainfall=3))*(rng_Feed_Barley_DATA_Sheet_R2) -> 0 | G57: =('FEED BARLEY R2'!U11)*(rng_Feed_Barley_DATA_Sheet_R2) -> 0 | H57: =(SUM('FEED BARLEY R2'!L14:L34)*(rng_rainfall=1)+SUM('FEED BARLEY R2'!O14:O34)*(rng_rainfall=2)+SUM('FEED BARLEY R2'!R14:R34)*(rng_rainfall=3))*(rng_Feed_Barley_DATA_Sheet_R2) -> 0 | I57: =(SUM('FEED BARLEY R2'!U14:U34))*(rng_Feed_Barley_DATA_Sheet_R2) -> 0 | J57: =(SUM('FEED BARLEY R2'!$L$37:$L$53)*(rng_rainfall=1)+SUM('FEED BARLEY R2'!$O$37:$O$53)*(rng_rainfall=2)+SUM('FEED BARLEY R2'!$R$37:$R$53)*(rng_rainfall=3))*(rng_Feed_Barley_DATA_Sheet_R2) -> 0 | K57: =(SUM('FEED BARLEY R2'!$U$37:$U$53))*(rng_Feed_Barley_DATA_Sheet_R2) -> 0 | L57: =(SUM('FEED BARLEY R2'!$L$57:$L$128)*(rng_rainfall=1)+SUM('FEED BARLEY R2'!$O$57:$O$128)*(rng_rainfall=2)+SUM('FEED BARLEY R2'!$R$57:$R$128)*(rng_rainfall=3))*(rng_Feed_Barley_DATA_Sheet_R2) -> 0 | M57: =(SUM('FEED BARLEY R2'!$U$57:$U$128))*(rng_Feed_Barley_DATA_Sheet_R2) -> 0 | N57: =(SUM('FEED BARLEY R2'!$L$132:$L$132)*(rng_rainfall=1)+SUM('FEED BARLEY R2'!$O$132:$O$132)*(rng_rainfall=2)+SUM('FEED BARLEY R2'!$R$132:$R$132)*(rng_rainfall=3))*(rng_Feed_Barley_DATA_Sheet_R2) -> 0 | O57: =(SUM('FEED BARLEY R2'!$U$132:$U$132))*(rng_Feed_Barley_DATA_Sheet_R2) -> 0 | P57: =(SUM('FEED BARLEY R2'!$L$133:$L$133)*(rng_rainfall=1)+SUM('FEED BARLEY R2'!$O$133:$O$133)*(rng_rainfall=2)+SUM('FEED BARLEY R2'!$R$133:$R$133)*(rng_rainfall=3))*(rng_Feed_Barley_DATA_Sheet_R2) -> 0 | Q57: =(SUM('FEED BARLEY R2'!$U$133:$U$133))*(rng_Feed_Barley_DATA_Sheet_R2) -> 0 | R57: =(SUM('FEED BARLEY R2'!$L$136:$L$137)*(rng_rainfall=1)+SUM('FEED BARLEY R2'!$O$136:$O$137)*(rng_rainfall=2)+SUM('FEED BARLEY R2'!$R$136:$R$137)*(rng_rainfall=3))*(rng_Feed_Barley_DATA_Sheet_R2) -> 0 | S57: =(SUM('FEED BARLEY R2'!$U$136:$U$137))*(rng_Feed_Barley_DATA_Sheet_R2) -> 0 | T57: 0 | U57: 0 | V57: 0 | W57: =('FEED BARLEY R2'!$U$160)*(rng_Feed_Barley_DATA_Sheet_R2) -> 0
B58: Milling Oats | C58: =('MILLING OATS R2'!U6)*(rng_Milling_DATA_Sheet_R2) -> 0 | D58: =(SUM('MILLING OATS R2'!L162)*(rng_rainfall=1)+SUM('MILLING OATS R2'!O162)*(rng_rainfall=2)+SUM('MILLING OATS R2'!R162)*(rng_rainfall=3))*(rng_Milling_DATA_Sheet_R2) -> 0 | E58: =('MILLING OATS R2'!U162)*(rng_Milling_DATA_Sheet_R2) -> 0 | F58: =(SUM('MILLING OATS R2'!L11)*(rng_rainfall=1)+SUM('MILLING OATS R2'!O11)*(rng_rainfall=2)+SUM('MILLING OATS R2'!R11)*(rng_rainfall=3))*(rng_Milling_DATA_Sheet_R2) -> 0 | G58: =('MILLING OATS R2'!U11)*(rng_Milling_DATA_Sheet_R2) -> 0 | H58: =(SUM('MILLING OATS R2'!L14:L34)*(rng_rainfall=1)+SUM('MILLING OATS R2'!O14:O34)*(rng_rainfall=2)+SUM('MILLING OATS R2'!R14:R34)*(rng_rainfall=3))*(rng_Milling_DATA_Sheet_R2) -> 0 | I58: =(SUM('MILLING OATS R2'!U14:U34))*(rng_Milling_DATA_Sheet_R2) -> 0 | J58: =(SUM('MILLING OATS R2'!$L$37:$L$53)*(rng_rainfall=1)+SUM('MILLING OATS R2'!$O$37:$O$53)*(rng_rainfall=2)+SUM('MILLING OATS R2'!$R$37:$R$53)*(rng_rainfall=3))*(rng_Milling_DATA_Sheet_R2) -> 0 | K58: =(SUM('MILLING OATS R2'!$U$37:$U$53))*(rng_Milling_DATA_Sheet_R2) -> 0 | L58: =(SUM('MILLING OATS R2'!$L$57:$L$128)*(rng_rainfall=1)+SUM('MILLING OATS R2'!$O$57:$O$128)*(rng_rainfall=2)+SUM('MILLING OATS R2'!$R$57:$R$128)*(rng_rainfall=3))*(rng_Milling_DATA_Sheet_R2) -> 0 | M58: =(SUM('MILLING OATS R2'!$U$57:$U$128))*(rng_Milling_DATA_Sheet_R2) -> 0 | N58: =(SUM('MILLING OATS R2'!$L$132:$L$132)*(rng_rainfall=1)+SUM('MILLING OATS R2'!$O$132:$O$132)*(rng_rainfall=2)+SUM('MILLING OATS R2'!$R$132:$R$132)*(rng_rainfall=3))*(rng_Milling_DATA_Sheet_R2) -> 0 | O58: =(SUM('MILLING OATS R2'!$U$132:$U$132))*(rng_Milling_DATA_Sheet_R2) -> 0 | P58: =(SUM('MILLING OATS R2'!$L$133:$L$133)*(rng_rainfall=1)+SUM('MILLING OATS R2'!$O$133:$O$133)*(rng_rainfall=2)+SUM('MILLING OATS R2'!$R$133:$R$133)*(rng_rainfall=3))*(rng_Milling_DATA_Sheet_R2) -> 0 | Q58: =(SUM('MILLING OATS R2'!$U$133:$U$133))*(rng_Milling_DATA_Sheet_R2) -> 0 | R58: =(SUM('MILLING OATS R2'!$L$136:$L$137)*(rng_rainfall=1)+SUM('MILLING OATS R2'!$O$136:$O$137)*(rng_rainfall=2)+SUM('MILLING OATS R2'!$R$136:$R$137)*(rng_rainfall=3))*(rng_Milling_DATA_Sheet_R2) -> 0 | S58: =(SUM('MILLING OATS R2'!$U$136:$U$137))*(rng_Milling_DATA_Sheet_R2) -> 0 | T58: 0 | U58: 0 | V58: 0 | W58: =('MILLING OATS R2'!$U$160)*(rng_Milling_DATA_Sheet_R2) -> 0
B59: Triticale | C59: =('TRITICALE R2'!U6)*(rng_Triticale_DATA_Sheet_R2) -> 0 | D59: =(SUM('TRITICALE R2'!L162)*(rng_rainfall=1)+SUM('TRITICALE R2'!O162)*(rng_rainfall=2)+SUM('TRITICALE R2'!R162)*(rng_rainfall=3))*(rng_Triticale_DATA_Sheet_R2) -> 0 | E59: =('TRITICALE R2'!U162)*(rng_Triticale_DATA_Sheet_R2) -> 0 | F59: =(SUM('TRITICALE R2'!L11)*(rng_rainfall=1)+SUM('TRITICALE R2'!O11)*(rng_rainfall=2)+SUM('TRITICALE R2'!R11)*(rng_rainfall=3))*(rng_Triticale_DATA_Sheet_R2) -> 0 | G59: =('TRITICALE R2'!U11)*(rng_Triticale_DATA_Sheet_R2) -> 0 | H59: =(SUM('TRITICALE R2'!L14:L34)*(rng_rainfall=1)+SUM('TRITICALE R2'!O14:O34)*(rng_rainfall=2)+SUM('TRITICALE R2'!R14:R34)*(rng_rainfall=3))*(rng_Triticale_DATA_Sheet_R2) -> 0 | I59: =(SUM('TRITICALE R2'!U14:U34))*(rng_Triticale_DATA_Sheet_R2) -> 0 | J59: =(SUM('TRITICALE R2'!$L$37:$L$53)*(rng_rainfall=1)+SUM('TRITICALE R2'!$O$37:$O$53)*(rng_rainfall=2)+SUM('TRITICALE R2'!$R$37:$R$53)*(rng_rainfall=3))*(rng_Triticale_DATA_Sheet_R2) -> 0 | K59: =(SUM('TRITICALE R2'!$U$37:$U$53))*(rng_Triticale_DATA_Sheet_R2) -> 0 | L59: =(SUM('TRITICALE R2'!$L$57:$L$128)*(rng_rainfall=1)+SUM('TRITICALE R2'!$O$57:$O$128)*(rng_rainfall=2)+SUM('TRITICALE R2'!$R$57:$R$128)*(rng_rainfall=3))*(rng_Triticale_DATA_Sheet_R2) -> 0 | M59: =(SUM('TRITICALE R2'!$U$57:$U$128))*(rng_Triticale_DATA_Sheet_R2) -> 0 | N59: =(SUM('TRITICALE R2'!$L$132:$L$132)*(rng_rainfall=1)+SUM('TRITICALE R2'!$O$132:$O$132)*(rng_rainfall=2)+SUM('TRITICALE R2'!$R$132:$R$132)*(rng_rainfall=3))*(rng_Triticale_DATA_Sheet_R2) -> 0 | O59: =(SUM('TRITICALE R2'!$U$132:$U$132))*(rng_Triticale_DATA_Sheet_R2) -> 0 | P59: =(SUM('TRITICALE R2'!$L$133:$L$133)*(rng_rainfall=1)+SUM('TRITICALE R2'!$O$133:$O$133)*(rng_rainfall=2)+SUM('TRITICALE R2'!$R$133:$R$133)*(rng_rainfall=3))*(rng_Triticale_DATA_Sheet_R2) -> 0 | Q59: =(SUM('TRITICALE R2'!$U$133:$U$133))*(rng_Triticale_DATA_Sheet_R2) -> 0 | R59: =(SUM('TRITICALE R2'!$L$136:$L$137)*(rng_rainfall=1)+SUM('TRITICALE R2'!$O$136:$O$137)*(rng_rainfall=2)+SUM('TRITICALE R2'!$R$136:$R$137)*(rng_rainfall=3))*(rng_Triticale_DATA_Sheet_R2) -> 0 | S59: =(SUM('TRITICALE R2'!$U$136:$U$137))*(rng_Triticale_DATA_Sheet_R2) -> 0 | T59: 0 | U59: 0 | V59: 0 | W59: =('TRITICALE R2'!$U$160)*(rng_Triticale_DATA_Sheet_R2) -> 0
B60: Export Oaten Hay | C60: =('EXPORT OATEN HAY R2'!U6)*(rng_Export_DATA_Sheet_R2) -> 0 | D60: =(SUM('EXPORT OATEN HAY R2'!L162)*(rng_rainfall=1)+SUM('EXPORT OATEN HAY R2'!O162)*(rng_rainfall=2)+SUM('EXPORT OATEN HAY R2'!R162)*(rng_rainfall=3))*(rng_Export_DATA_Sheet_R2) -> 0 | E60: =('EXPORT OATEN HAY R2'!U162)*(rng_Export_DATA_Sheet_R2) -> 0 | F60: =(SUM('EXPORT OATEN HAY R2'!L11)*(rng_rainfall=1)+SUM('EXPORT OATEN HAY R2'!O11)*(rng_rainfall=2)+SUM('EXPORT OATEN HAY R2'!R11)*(rng_rainfall=3))*(rng_Export_DATA_Sheet_R2) -> 0 | G60: =('EXPORT OATEN HAY R2'!U11)*(rng_Export_DATA_Sheet_R2) -> 0 | H60: =(SUM('EXPORT OATEN HAY R2'!L14:L34)*(rng_rainfall=1)+SUM('EXPORT OATEN HAY R2'!O14:O34)*(rng_rainfall=2)+SUM('EXPORT OATEN HAY R2'!R14:R34)*(rng_rainfall=3))*(rng_Export_DATA_Sheet_R2) -> 0 | I60: =(SUM('EXPORT OATEN HAY R2'!U14:U34))*(rng_Export_DATA_Sheet_R2) -> 0 | J60: =(SUM('EXPORT OATEN HAY R2'!$L$37:$L$53)*(rng_rainfall=1)+SUM('EXPORT OATEN HAY R2'!$O$37:$O$53)*(rng_rainfall=2)+SUM('EXPORT OATEN HAY R2'!$R$37:$R$53)*(rng_rainfall=3))*(rng_Export_DATA_Sheet_R2) -> 0 | K60: =(SUM('EXPORT OATEN HAY R2'!$U$37:$U$53))*(rng_Export_DATA_Sheet_R2) -> 0 | L60: =(SUM('EXPORT OATEN HAY R2'!$L$57:$L$128)*(rng_rainfall=1)+SUM('EXPORT OATEN HAY R2'!$O$57:$O$128)*(rng_rainfall=2)+SUM('EXPORT OATEN HAY R2'!$R$57:$R$128)*(rng_rainfall=3))*(rng_Export_DATA_Sheet_R2) -> 0 | M60: =(SUM('EXPORT OATEN HAY R2'!$U$57:$U$128))*(rng_Export_DATA_Sheet_R2) -> 0 | N60: =(SUM('EXPORT OATEN HAY R2'!$L$132:$L$132)*(rng_rainfall=1)+SUM('EXPORT OATEN HAY R2'!$O$132:$O$132)*(rng_rainfall=2)+SUM('EXPORT OATEN HAY R2'!$R$132:$R$132)*(rng_rainfall=3))*(rng_Export_DATA_Sheet_R2) -> 0 | O60: =(SUM('EXPORT OATEN HAY R2'!$U$132:$U$132))*(rng_Export_DATA_Sheet_R2) -> 0 | P60: =(SUM('EXPORT OATEN HAY R2'!$L$133:$L$133)*(rng_rainfall=1)+SUM('EXPORT OATEN HAY R2'!$O$133:$O$133)*(rng_rainfall=2)+SUM('EXPORT OATEN HAY R2'!$R$133:$R$133)*(rng_rainfall=3))*(rng_Export_DATA_Sheet_R2) -> 0 | Q60: =(SUM('EXPORT OATEN HAY R2'!$U$133:$U$133))*(rng_Export_DATA_Sheet_R2) -> 0 | R60: =(SUM('EXPORT OATEN HAY R2'!$L$136:$L$137)*(rng_rainfall=1)+SUM('EXPORT OATEN HAY R2'!$O$136:$O$137)*(rng_rainfall=2)+SUM('EXPORT OATEN HAY R2'!$R$136:$R$137)*(rng_rainfall=3))*(rng_Export_DATA_Sheet_R2) -> 0 | S60: =(SUM('EXPORT OATEN HAY R2'!$U$136:$U$137))*(rng_Export_DATA_Sheet_R2) -> 0 | T60: 0 | U60: 0 | V60: 0 | W60: =('EXPORT OATEN HAY R2'!$U$160)*(rng_Export_DATA_Sheet_R2) -> 0
B61: Vetch | C61: =('VETCH R2'!U6)*(rng_Vetch_DATA_Sheet_R2) -> 0 | D61: =(SUM('VETCH R2'!L162)*(rng_rainfall=1)+SUM('VETCH R2'!O162)*(rng_rainfall=2)+SUM('VETCH R2'!R162)*(rng_rainfall=3))*(rng_Vetch_DATA_Sheet_R2) -> 0 | E61: =('VETCH R2'!U162)*(rng_Vetch_DATA_Sheet_R2) -> 0 | F61: =(SUM('VETCH R2'!L11)*(rng_rainfall=1)+SUM('VETCH R2'!O11)*(rng_rainfall=2)+SUM('VETCH R2'!R11)*(rng_rainfall=3))*(rng_Vetch_DATA_Sheet_R2) -> 0 | G61: =('VETCH R2'!U11)*(rng_Vetch_DATA_Sheet_R2) -> 0 | H61: =(SUM('VETCH R2'!L14:L34)*(rng_rainfall=1)+SUM('VETCH R2'!O14:O34)*(rng_rainfall=2)+SUM('VETCH R2'!R14:R34)*(rng_rainfall=3))*(rng_Vetch_DATA_Sheet_R2) -> 0 | I61: =(SUM('VETCH R2'!U14:U34))*(rng_Vetch_DATA_Sheet_R2) -> 0 | J61: =(SUM('VETCH R2'!$L$37:$L$53)*(rng_rainfall=1)+SUM('VETCH R2'!$O$37:$O$53)*(rng_rainfall=2)+SUM('VETCH R2'!$R$37:$R$53)*(rng_rainfall=3))*(rng_Vetch_DATA_Sheet_R2) -> 0 | K61: =(SUM('VETCH R2'!$U$37:$U$53))*(rng_Vetch_DATA_Sheet_R2) -> 0 | L61: =(SUM('VETCH R2'!$L$57:$L$128)*(rng_rainfall=1)+SUM('VETCH R2'!$O$57:$O$128)*(rng_rainfall=2)+SUM('VETCH R2'!$R$57:$R$128)*(rng_rainfall=3))*(rng_Vetch_DATA_Sheet_R2) -> 0 | M61: =(SUM('VETCH R2'!$U$57:$U$128))*(rng_Vetch_DATA_Sheet_R2) -> 0 | N61: =(SUM('VETCH R2'!$L$132:$L$132)*(rng_rainfall=1)+SUM('VETCH R2'!$O$132:$O$132)*(rng_rainfall=2)+SUM('VETCH R2'!$R$132:$R$132)*(rng_rainfall=3))*(rng_Vetch_DATA_Sheet_R2) -> 0 | O61: =(SUM('VETCH R2'!$U$132:$U$132))*(rng_Vetch_DATA_Sheet_R2) -> 0 | P61: =(SUM('VETCH R2'!$L$133:$L$133)*(rng_rainfall=1)+SUM('VETCH R2'!$O$133:$O$133)*(rng_rainfall=2)+SUM('VETCH R2'!$R$133:$R$133)*(rng_rainfall=3))*(rng_Vetch_DATA_Sheet_R2) -> 0 | Q61: =(SUM('VETCH R2'!$U$133:$U$133))*(rng_Vetch_DATA_Sheet_R2) -> 0 | R61: =(SUM('VETCH R2'!$L$136:$L$137)*(rng_rainfall=1)+SUM('VETCH R2'!$O$136:$O$137)*(rng_rainfall=2)+SUM('VETCH R2'!$R$136:$R$137)*(rng_rainfall=3))*(rng_Vetch_DATA_Sheet_R2) -> 0 | S61: =(SUM('VETCH R2'!$U$136:$U$137))*(rng_Vetch_DATA_Sheet_R2) -> 0 | T61: 0 | U61: 0 | V61: 0 | W61: =('VETCH R2'!$U$160)*(rng_Vetch_DATA_Sheet_R2) -> 0
B62: Lupins | C62: =('LUPINS R2'!U6)*(rng_Lupins_DATA_Sheet_R2) -> 0 | D62: =(SUM('LUPINS R2'!L162)*(rng_rainfall=1)+SUM('LUPINS R2'!O162)*(rng_rainfall=2)+SUM('LUPINS R2'!R162)*(rng_rainfall=3))*(rng_Lupins_DATA_Sheet_R2) -> 0 | E62: =('LUPINS R2'!U162)*(rng_Lupins_DATA_Sheet_R2) -> 0 | F62: =(SUM('LUPINS R2'!L11)*(rng_rainfall=1)+SUM('LUPINS R2'!O11)*(rng_rainfall=2)+SUM('LUPINS R2'!R11)*(rng_rainfall=3))*(rng_Lupins_DATA_Sheet_R2) -> 0 | G62: =('LUPINS R2'!U11)*(rng_Lupins_DATA_Sheet_R2) -> 0 | H62: =(SUM('LUPINS R2'!L14:L34)*(rng_rainfall=1)+SUM('LUPINS R2'!O14:O34)*(rng_rainfall=2)+SUM('LUPINS R2'!R14:R34)*(rng_rainfall=3))*(rng_Lupins_DATA_Sheet_R2) -> 0 | I62: =(SUM('LUPINS R2'!U14:U34))*(rng_Lupins_DATA_Sheet_R2) -> 0 | J62: =(SUM('LUPINS R2'!$L$37:$L$53)*(rng_rainfall=1)+SUM('LUPINS R2'!$O$37:$O$53)*(rng_rainfall=2)+SUM('LUPINS R2'!$R$37:$R$53)*(rng_rainfall=3))*(rng_Lupins_DATA_Sheet_R2) -> 0 | K62: =(SUM('LUPINS R2'!$U$37:$U$53))*(rng_Lupins_DATA_Sheet_R2) -> 0 | L62: =(SUM('LUPINS R2'!$L$57:$L$128)*(rng_rainfall=1)+SUM('LUPINS R2'!$O$57:$O$128)*(rng_rainfall=2)+SUM('LUPINS R2'!$R$57:$R$128)*(rng_rainfall=3))*(rng_Lupins_DATA_Sheet_R2) -> 0 | M62: =(SUM('LUPINS R2'!$U$57:$U$128))*(rng_Lupins_DATA_Sheet_R2) -> 0 | N62: =(SUM('LUPINS R2'!$L$132:$L$132)*(rng_rainfall=1)+SUM('LUPINS R2'!$O$132:$O$132)*(rng_rainfall=2)+SUM('LUPINS R2'!$R$132:$R$132)*(rng_rainfall=3))*(rng_Lupins_DATA_Sheet_R2) -> 0 | O62: =(SUM('LUPINS R2'!$U$132:$U$132))*(rng_Lupins_DATA_Sheet_R2) -> 0 | P62: =(SUM('LUPINS R2'!$L$133:$L$133)*(rng_rainfall=1)+SUM('LUPINS R2'!$O$133:$O$133)*(rng_rainfall=2)+SUM('LUPINS R2'!$R$133:$R$133)*(rng_rainfall=3))*(rng_Lupins_DATA_Sheet_R2) -> 0 | Q62: =(SUM('LUPINS R2'!$U$133:$U$133))*(rng_Lupins_DATA_Sheet_R2) -> 0 | R62: =(SUM('LUPINS R2'!$L$136:$L$137)*(rng_rainfall=1)+SUM('LUPINS R2'!$O$136:$O$137)*(rng_rainfall=2)+SUM('LUPINS R2'!$R$136:$R$137)*(rng_rainfall=3))*(rng_Lupins_DATA_Sheet_R2) -> 0 | S62: =(SUM('LUPINS R2'!$U$136:$U$137))*(rng_Lupins_DATA_Sheet_R2) -> 0 | T62: 0 | U62: 0 | V62: 0 | W62: =('LUPINS R2'!$U$160)*(rng_Lupins_DATA_Sheet_R2) -> 0
B63: Lentils | C63: =('LENTILS R2'!U6)*(rng_lentils_DATA_Sheet_R2) -> 0 | D63: =(SUM('LENTILS R2'!L163)*(rng_rainfall=1)+SUM('LENTILS R2'!O163)*(rng_rainfall=2)+SUM('LENTILS R2'!R163)*(rng_rainfall=3))*(rng_lentils_DATA_Sheet_R2) -> 0 | E63: =('LENTILS R2'!U163)*(rng_lentils_DATA_Sheet_R2) -> 0 | F63: =(SUM('LENTILS R2'!L11)*(rng_rainfall=1)+SUM('LENTILS R2'!O11)*(rng_rainfall=2)+SUM('LENTILS R2'!R11)*(rng_rainfall=3))*(rng_lentils_DATA_Sheet_R2) -> 0 | G63: =('LENTILS R2'!U11)*(rng_lentils_DATA_Sheet_R2) -> 0 | H63: =(SUM('LENTILS R2'!L14:L34)*(rng_rainfall=1)+SUM('LENTILS R2'!O14:O34)*(rng_rainfall=2)+SUM('LENTILS R2'!R14:R34)*(rng_rainfall=3))*(rng_lentils_DATA_Sheet_R2) -> 0 | I63: =(SUM('LENTILS R2'!U14:U34))*(rng_lentils_DATA_Sheet_R2) -> 0 | J63: =(SUM('LENTILS R2'!$L$37:$L$53)*(rng_rainfall=1)+SUM('LENTILS R2'!$O$37:$O$53)*(rng_rainfall=2)+SUM('LENTILS R2'!$R$37:$R$53)*(rng_rainfall=3))*(rng_lentils_DATA_Sheet_R2) -> 0 | K63: =(SUM('LENTILS R2'!$U$37:$U$53))*(rng_lentils_DATA_Sheet_R2) -> 0 | L63: =(SUM('LENTILS R2'!$L$57:$L$128)*(rng_rainfall=1)+SUM('LENTILS R2'!$O$57:$O$128)*(rng_rainfall=2)+SUM('LENTILS R2'!$R$57:$R$128)*(rng_rainfall=3))*(rng_lentils_DATA_Sheet_R2) -> 0 | M63: =(SUM('LENTILS R2'!$U$57:$U$128))*(rng_lentils_DATA_Sheet_R2) -> 0 | N63: =(SUM('LENTILS R2'!$L$132:$L$132)*(rng_rainfall=1)+SUM('LENTILS R2'!$O$132:$O$132)*(rng_rainfall=2)+SUM('LENTILS R2'!$R$132:$R$132)*(rng_rainfall=3))*(rng_lentils_DATA_Sheet_R2) -> 0 | O63: =(SUM('LENTILS R2'!$U$132:$U$132))*(rng_lentils_DATA_Sheet_R2) -> 0 | P63: =(SUM('LENTILS R2'!$L$133:$L$133)*(rng_rainfall=1)+SUM('LENTILS R2'!$O$133:$O$133)*(rng_rainfall=2)+SUM('LENTILS R2'!$R$133:$R$133)*(rng_rainfall=3))*(rng_lentils_DATA_Sheet_R2) -> 0 | Q63: =(SUM('LENTILS R2'!$U$133:$U$133))*(rng_lentils_DATA_Sheet_R2) -> 0 | R63: =(SUM('LENTILS R2'!$L$136:$L$138)*(rng_rainfall=1)+SUM('LENTILS R2'!$O$136:$O$138)*(rng_rainfall=2)+SUM('LENTILS R2'!$R$136:$R$138)*(rng_rainfall=3))*(rng_lentils_DATA_Sheet_R2) -> 0 | S63: =(SUM('LENTILS R2'!$U$136:$U$138))*(rng_lentils_DATA_Sheet_R2) -> 0 | T63: 0 | U63: 0 | V63: 0 | W63: =('LENTILS R2'!$U$161)*(rng_lentils_DATA_Sheet_R2) -> 0
B64: Lentils IMI Tolerant | C64: =('LENTILS IMI TOLERANT R2'!U6)*(rng_lentils_imi_DATA_Sheet_R2) -> 0 | D64: =(SUM('LENTILS IMI TOLERANT R2'!L163)*(rng_rainfall=1)+SUM('LENTILS IMI TOLERANT R2'!O163)*(rng_rainfall=2)+SUM('LENTILS IMI TOLERANT R2'!R163)*(rng_rainfall=3))*(rng_lentils_imi_DATA_Sheet_R2) -> 0 | E64: =('LENTILS IMI TOLERANT R2'!U163)*(rng_lentils_imi_DATA_Sheet_R2) -> 0 | F64: =(SUM('LENTILS IMI TOLERANT R2'!L11)*(rng_rainfall=1)+SUM('LENTILS IMI TOLERANT R2'!O11)*(rng_rainfall=2)+SUM('LENTILS IMI TOLERANT R2'!R11)*(rng_rainfall=3))*(rng_lentils_imi_DATA_Sheet_R2) -> 0 | G64: =('LENTILS IMI TOLERANT R2'!U11)*(rng_lentils_imi_DATA_Sheet_R2) -> 0 | H64: =(SUM('LENTILS IMI TOLERANT R2'!L14:L34)*(rng_rainfall=1)+SUM('LENTILS IMI TOLERANT R2'!O14:O34)*(rng_rainfall=2)+SUM('LENTILS IMI TOLERANT R2'!R14:R34)*(rng_rainfall=3))*(rng_lentils_imi_DATA_Sheet_R2) -> 0 | I64: =(SUM('LENTILS IMI TOLERANT R2'!U14:U34))*(rng_lentils_imi_DATA_Sheet_R2) -> 0 | J64: =(SUM('LENTILS IMI TOLERANT R2'!$L$37:$L$53)*(rng_rainfall=1)+SUM('LENTILS IMI TOLERANT R2'!$O$37:$O$53)*(rng_rainfall=2)+SUM('LENTILS IMI TOLERANT R2'!$R$37:$R$53)*(rng_rainfall=3))*(rng_lentils_imi_DATA_Sheet_R2) -> 0 | K64: =(SUM('LENTILS IMI TOLERANT R2'!$U$37:$U$53))*(rng_lentils_imi_DATA_Sheet_R2) -> 0 | L64: =(SUM('LENTILS IMI TOLERANT R2'!$L$57:$L$128)*(rng_rainfall=1)+SUM('LENTILS IMI TOLERANT R2'!$O$57:$O$128)*(rng_rainfall=2)+SUM('LENTILS IMI TOLERANT R2'!$R$57:$R$128)*(rng_rainfall=3))*(rng_lentils_imi_DATA_Sheet_R2) -> 0 | M64: =(SUM('LENTILS IMI TOLERANT R2'!$U$57:$U$128))*(rng_lentils_imi_DATA_Sheet_R2) -> 0 | N64: =(SUM('LENTILS IMI TOLERANT R2'!$L$132:$L$132)*(rng_rainfall=1)+SUM('LENTILS IMI TOLERANT R2'!$O$132:$O$132)*(rng_rainfall=2)+SUM('LENTILS IMI TOLERANT R2'!$R$132:$R$132)*(rng_rainfall=3))*(rng_lentils_imi_DATA_Sheet_R2) -> 0 | O64: =(SUM('LENTILS IMI TOLERANT R2'!$U$132:$U$132))*(rng_lentils_imi_DATA_Sheet_R2) -> 0 | P64: =(SUM('LENTILS IMI TOLERANT R2'!$L$133:$L$133)*(rng_rainfall=1)+SUM('LENTILS IMI TOLERANT R2'!$O$133:$O$133)*(rng_rainfall=2)+SUM('LENTILS IMI TOLERANT R2'!$R$133:$R$133)*(rng_rainfall=3))*(rng_lentils_imi_DATA_Sheet_R2) -> 0 | Q64: =(SUM('LENTILS IMI TOLERANT R2'!$U$133:$U$133))*(rng_lentils_imi_DATA_Sheet_R2) -> 0 | R64: =(SUM('LENTILS IMI TOLERANT R2'!$L$136:$L$138)*(rng_rainfall=1)+SUM('LENTILS IMI TOLERANT R2'!$O$136:$O$138)*(rng_rainfall=2)+SUM('LENTILS IMI TOLERANT R2'!$R$136:$R$138)*(rng_rainfall=3))*(rng_lentils_imi_DATA_Sheet_R2) -> 0 | S64: =(SUM('LENTILS IMI TOLERANT R2'!$U$136:$U$138))*(rng_lentils_imi_DATA_Sheet_R2) -> 0 | T64: 0 | U64: 0 | V64: 0 | W64: =('LENTILS IMI TOLERANT R2'!$U$161)*(rng_lentils_imi_DATA_Sheet_R2) -> 0
B65: Lentils GIA Metro | C65: =('LENTILS GIA METRO R2'!$U$6)*(rng_LENTILS_GIA_DATA_SHEET_R2) -> 0 | D65: =(SUM('LENTILS GIA METRO R2'!$L$163)*(rng_rainfall=1)+SUM('LENTILS GIA METRO R2'!$O$163)*(rng_rainfall=2)+SUM('LENTILS GIA METRO R2'!$R$163)*(rng_rainfall=3))*(rng_LENTILS_GIA_DATA_SHEET_R2) -> 0 | E65: =('LENTILS GIA METRO R2'!$U$163)*(rng_LENTILS_GIA_DATA_SHEET_R2) -> 0 | F65: =(SUM('LENTILS GIA METRO R2'!$L$11)*(rng_rainfall=1)+SUM('LENTILS GIA METRO R2'!$O$11)*(rng_rainfall=2)+SUM('LENTILS GIA METRO R2'!$R$11)*(rng_rainfall=3))*(rng_LENTILS_GIA_DATA_SHEET_R2) -> 0 | G65: =('LENTILS GIA METRO R2'!$U$11)*(rng_LENTILS_GIA_DATA_SHEET_R2) -> 0 | H65: =(SUM('LENTILS GIA METRO R2'!$L$14:$L$34)*(rng_rainfall=1)+SUM('LENTILS GIA METRO R2'!$O$14:$O$34)*(rng_rainfall=2)+SUM('LENTILS GIA METRO R2'!$R$14:$R$34)*(rng_rainfall=3))*(rng_LENTILS_GIA_DATA_SHEET_R2) -> 0 | I65: =(SUM('LENTILS GIA METRO R2'!$U$14:$U$34))*(rng_LENTILS_GIA_DATA_SHEET_R2) -> 0 | J65: =(SUM('LENTILS GIA METRO R2'!$L$37:$L$53)*(rng_rainfall=1)+SUM('LENTILS GIA METRO R2'!$O$37:$O$53)*(rng_rainfall=2)+SUM('LENTILS GIA METRO R2'!$R$37:$R$53)*(rng_rainfall=3))*(rng_LENTILS_GIA_DATA_SHEET_R2) -> 0 | K65: =(SUM('LENTILS GIA METRO R2'!$U$37:$U$53))*(rng_LENTILS_GIA_DATA_SHEET_R2) -> 0 | L65: =(SUM('LENTILS GIA METRO R2'!$L$57:$L$128)*(rng_rainfall=1)+SUM('LENTILS GIA METRO R2'!$O$57:$O$128)*(rng_rainfall=2)+SUM('LENTILS GIA METRO R2'!$R$57:$R$128)*(rng_rainfall=3))*(rng_LENTILS_GIA_DATA_SHEET_R2) -> 0 | M65: =(SUM('LENTILS GIA METRO R2'!$U$57:$U$128))*(rng_LENTILS_GIA_DATA_SHEET_R2) -> 0 | N65: =(SUM('LENTILS GIA METRO R2'!$L$132:$L$132)*(rng_rainfall=1)+SUM('LENTILS GIA METRO R2'!$O$132:$O$132)*(rng_rainfall=2)+SUM('LENTILS GIA METRO R2'!$R$132:$R$132)*(rng_rainfall=3))*(rng_LENTILS_GIA_DATA_SHEET_R2) -> 0 | O65: =(SUM('LENTILS GIA METRO R2'!$U$132:$U$132))*(rng_LENTILS_GIA_DATA_SHEET_R2) -> 0 | P65: =(SUM('LENTILS GIA METRO R2'!$L$133:$L$133)*(rng_rainfall=1)+SUM('LENTILS GIA METRO R2'!$O$133:$O$133)*(rng_rainfall=2)+SUM('LENTILS GIA METRO R2'!$R$133:$R$133)*(rng_rainfall=3))*(rng_LENTILS_GIA_DATA_SHEET_R2) -> 0 | Q65: =(SUM('LENTILS GIA METRO R2'!$U$133:$U$133))*(rng_LENTILS_GIA_DATA_SHEET_R2) -> 0 | R65: =(SUM('LENTILS GIA METRO R2'!$L$136:$L$138)*(rng_rainfall=1)+SUM('LENTILS GIA METRO R2'!$O$136:$O$138)*(rng_rainfall=2)+SUM('LENTILS GIA METRO R2'!$R$136:$R$138)*(rng_rainfall=3))*(rng_LENTILS_GIA_DATA_SHEET_R2) -> 0 | S65: =(SUM('LENTILS GIA METRO R2'!$U$136:$U$138))*(rng_LENTILS_GIA_DATA_SHEET_R2) -> 0 | T65: 0 | U65: 0 | V65: 0 | W65: =('LENTILS GIA METRO R2'!$U$161)*(rng_LENTILS_GIA_DATA_SHEET_R2) -> 0
B66: Field Peas | C66: =('PEAS R2'!U6)*(rng_Field_Peas_DATA_Sheet_R2) -> 0 | D66: =(SUM('PEAS R2'!L162)*(rng_rainfall=1)+SUM('PEAS R2'!O162)*(rng_rainfall=2)+SUM('PEAS R2'!R162)*(rng_rainfall=3))*(rng_Field_Peas_DATA_Sheet_R2) -> 0 | E66: =('PEAS R2'!U162)*(rng_Field_Peas_DATA_Sheet_R2) -> 0 | F66: =(SUM('PEAS R2'!L11)*(rng_rainfall=1)+SUM('PEAS R2'!O11)*(rng_rainfall=2)+SUM('PEAS R2'!R11)*(rng_rainfall=3))*(rng_Field_Peas_DATA_Sheet_R2) -> 0 | G66: =('PEAS R2'!U11)*(rng_Field_Peas_DATA_Sheet_R2) -> 0 | H66: =(SUM('PEAS R2'!L14:L34)*(rng_rainfall=1)+SUM('PEAS R2'!O14:O34)*(rng_rainfall=2)+SUM('PEAS R2'!R14:R34)*(rng_rainfall=3))*(rng_Field_Peas_DATA_Sheet_R2) -> 0 | I66: =(SUM('PEAS R2'!U14:U34))*(rng_Field_Peas_DATA_Sheet_R2) -> 0 | J66: =(SUM('PEAS R2'!$L$37:$L$53)*(rng_rainfall=1)+SUM('PEAS R2'!$O$37:$O$53)*(rng_rainfall=2)+SUM('PEAS R2'!$R$37:$R$53)*(rng_rainfall=3))*(rng_Field_Peas_DATA_Sheet_R2) -> 0 | K66: =(SUM('PEAS R2'!$U$37:$U$53))*(rng_Field_Peas_DATA_Sheet_R2) -> 0 | L66: =(SUM('PEAS R2'!$L$57:$L$128)*(rng_rainfall=1)+SUM('PEAS R2'!$O$57:$O$128)*(rng_rainfall=2)+SUM('PEAS R2'!$R$57:$R$128)*(rng_rainfall=3))*(rng_Field_Peas_DATA_Sheet_R2) -> 0 | M66: =(SUM('PEAS R2'!$U$57:$U$128))*(rng_Field_Peas_DATA_Sheet_R2) -> 0 | N66: =(SUM('PEAS R2'!$L$132:$L$132)*(rng_rainfall=1)+SUM('PEAS R2'!$O$132:$O$132)*(rng_rainfall=2)+SUM('PEAS R2'!$R$132:$R$132)*(rng_rainfall=3))*(rng_Field_Peas_DATA_Sheet_R2) -> 0 | O66: =(SUM('PEAS R2'!$U$132:$U$132))*(rng_Field_Peas_DATA_Sheet_R2) -> 0 | P66: =(SUM('PEAS R2'!$L$133:$L$133)*(rng_rainfall=1)+SUM('PEAS R2'!$O$133:$O$133)*(rng_rainfall=2)+SUM('PEAS R2'!$R$133:$R$133)*(rng_rainfall=3))*(rng_Field_Peas_DATA_Sheet_R2) -> 0 | Q66: =(SUM('PEAS R2'!$U$133:$U$133))*(rng_Field_Peas_DATA_Sheet_R2) -> 0 | R66: =(SUM('PEAS R2'!$L$136:$L$137)*(rng_rainfall=1)+SUM('PEAS R2'!$O$136:$O$137)*(rng_rainfall=2)+SUM('PEAS R2'!$R$136:$R$137)*(rng_rainfall=3))*(rng_Field_Peas_DATA_Sheet_R2) -> 0 | S66: =(SUM('PEAS R2'!$U$136:$U$137))*(rng_Field_Peas_DATA_Sheet_R2) -> 0 | T66: 0 | U66: 0 | V66: 0 | W66: =('PEAS R2'!$U$160)*(rng_Field_Peas_DATA_Sheet_R2) -> 0
B67: Faba Beans | C67: =('BEANS R2'!U6)*(rng_Beans_DATA_Sheet_R2) -> 0 | D67: =(SUM('BEANS R2'!L162)*(rng_rainfall=1)+SUM('BEANS R2'!O162)*(rng_rainfall=2)+SUM('BEANS R2'!R162)*(rng_rainfall=3))*(rng_Beans_DATA_Sheet_R2) -> 0 | E67: =('BEANS R2'!U162)*(rng_Beans_DATA_Sheet_R2) -> 0 | F67: =(SUM('BEANS R2'!L11)*(rng_rainfall=1)+SUM('BEANS R2'!O11)*(rng_rainfall=2)+SUM('BEANS R2'!R11)*(rng_rainfall=3))*(rng_Beans_DATA_Sheet_R2) -> 0 | G67: =('BEANS R2'!U11)*(rng_Beans_DATA_Sheet_R2) -> 0 | H67: =(SUM('BEANS R2'!L14:L34)*(rng_rainfall=1)+SUM('BEANS R2'!O14:O34)*(rng_rainfall=2)+SUM('BEANS R2'!R14:R34)*(rng_rainfall=3))*(rng_Beans_DATA_Sheet_R2) -> 0 | I67: =(SUM('BEANS R2'!U14:U34))*(rng_Beans_DATA_Sheet_R2) -> 0 | J67: =(SUM('BEANS R2'!$L$37:$L$53)*(rng_rainfall=1)+SUM('BEANS R2'!$O$37:$O$53)*(rng_rainfall=2)+SUM('BEANS R2'!$R$37:$R$53)*(rng_rainfall=3))*(rng_Beans_DATA_Sheet_R2) -> 0 | K67: =(SUM('BEANS R2'!$U$37:$U$53))*(rng_Beans_DATA_Sheet_R2) -> 0 | L67: =(SUM('BEANS R2'!$L$57:$L$128)*(rng_rainfall=1)+SUM('BEANS R2'!$O$57:$O$128)*(rng_rainfall=2)+SUM('BEANS R2'!$R$57:$R$128)*(rng_rainfall=3))*(rng_Beans_DATA_Sheet_R2) ->  | M67: =(SUM('BEANS R2'!$U$57:$U$128))*(rng_Beans_DATA_Sheet_R2) ->  | N67: =(SUM('BEANS R2'!$L$132:$L$132)*(rng_rainfall=1)+SUM('BEANS R2'!$O$132:$O$132)*(rng_rainfall=2)+SUM('BEANS R2'!$R$132:$R$132)*(rng_rainfall=3))*(rng_Beans_DATA_Sheet_R2) -> 0 | O67: =(SUM('BEANS R2'!$U$132:$U$132))*(rng_Beans_DATA_Sheet_R2) -> 0 | P67: =(SUM('BEANS R2'!$L$133:$L$133)*(rng_rainfall=1)+SUM('BEANS R2'!$O$133:$O$133)*(rng_rainfall=2)+SUM('BEANS R2'!$R$133:$R$133)*(rng_rainfall=3))*(rng_Beans_DATA_Sheet_R2) -> 0 | Q67: =(SUM('BEANS R2'!$U$133:$U$133))*(rng_Beans_DATA_Sheet_R2) -> 0 | R67: =(SUM('BEANS R2'!$L$136:$L$137)*(rng_rainfall=1)+SUM('BEANS R2'!$O$136:$O$137)*(rng_rainfall=2)+SUM('BEANS R2'!$R$136:$R$137)*(rng_rainfall=3))*(rng_Beans_DATA_Sheet_R2) -> 0 | S67: =(SUM('BEANS R2'!$U$136:$U$137))*(rng_Beans_DATA_Sheet_R2) -> 0 | V67: 0 | W67: =('BEANS R2'!$U$160)*(rng_Beans_DATA_Sheet_R2) -> 0
B68: Kabuli Chickpeas | C68: =('CHICKPEAS R2'!U6)*(rng_Chickpeas_DATA_Sheet_R2) -> 0 | D68: =(SUM('CHICKPEAS R2'!L162)*(rng_rainfall=1)+SUM('CHICKPEAS R2'!O162)*(rng_rainfall=2)+SUM('CHICKPEAS R2'!R162)*(rng_rainfall=3))*(rng_Chickpeas_DATA_Sheet_R2) -> 0 | E68: =('CHICKPEAS R2'!U162)*(rng_Chickpeas_DATA_Sheet_R2) -> 0 | F68: =(SUM('CHICKPEAS R2'!L11)*(rng_rainfall=1)+SUM('CHICKPEAS R2'!O11)*(rng_rainfall=2)+SUM('CHICKPEAS R2'!R11)*(rng_rainfall=3))*(rng_Chickpeas_DATA_Sheet_R2) -> 0 | G68: =('CHICKPEAS R2'!U11)*(rng_Chickpeas_DATA_Sheet_R2) -> 0 | H68: =(SUM('CHICKPEAS R2'!L14:L34)*(rng_rainfall=1)+SUM('CHICKPEAS R2'!O14:O34)*(rng_rainfall=2)+SUM('CHICKPEAS R2'!R14:R34)*(rng_rainfall=3))*(rng_Chickpeas_DATA_Sheet_R2) -> 0 | I68: =(SUM('CHICKPEAS R2'!U14:U34))*(rng_Chickpeas_DATA_Sheet_R2) -> 0 | J68: =(SUM('CHICKPEAS R2'!$L$37:$L$53)*(rng_rainfall=1)+SUM('CHICKPEAS R2'!$O$37:$O$53)*(rng_rainfall=2)+SUM('CHICKPEAS R2'!$R$37:$R$53)*(rng_rainfall=3))*(rng_Chickpeas_DATA_Sheet_R2) -> 0 | K68: =(SUM('CHICKPEAS R2'!$U$37:$U$53))*(rng_Chickpeas_DATA_Sheet_R2) -> 0 | L68: =(SUM('CHICKPEAS R2'!$L$57:$L$128)*(rng_rainfall=1)+SUM('CHICKPEAS R2'!$O$57:$O$128)*(rng_rainfall=2)+SUM('CHICKPEAS R2'!$R$57:$R$128)*(rng_rainfall=3))*(rng_Chickpeas_DATA_Sheet_R2) -> 0 | M68: =(SUM('CHICKPEAS R2'!$U$57:$U$128))*(rng_Chickpeas_DATA_Sheet_R2) -> 0 | N68: =(SUM('CHICKPEAS R2'!$L$132:$L$132)*(rng_rainfall=1)+SUM('CHICKPEAS R2'!$O$132:$O$132)*(rng_rainfall=2)+SUM('CHICKPEAS R2'!$R$132:$R$132)*(rng_rainfall=3))*(rng_Chickpeas_DATA_Sheet_R2) -> 0 | O68: =(SUM('CHICKPEAS R2'!$U$132:$U$132))*(rng_Chickpeas_DATA_Sheet_R2) -> 0 | P68: =(SUM('CHICKPEAS R2'!$L$133:$L$133)*(rng_rainfall=1)+SUM('CHICKPEAS R2'!$O$133:$O$133)*(rng_rainfall=2)+SUM('CHICKPEAS R2'!$R$133:$R$133)*(rng_rainfall=3))*(rng_Chickpeas_DATA_Sheet_R2) -> 0 | Q68: =(SUM('CHICKPEAS R2'!$U$133:$U$133))*(rng_Chickpeas_DATA_Sheet_R2) -> 0 | R68: =(SUM('CHICKPEAS R2'!$L$136:$L$137)*(rng_rainfall=1)+SUM('CHICKPEAS R2'!$O$136:$O$137)*(rng_rainfall=2)+SUM('CHICKPEAS R2'!$R$136:$R$137)*(rng_rainfall=3))*(rng_Chickpeas_DATA_Sheet_R2) -> 0 | S68: =(SUM('CHICKPEAS R2'!$U$136:$U$137))*(rng_Chickpeas_DATA_Sheet_R2) -> 0 | T68: 0 | U68: 0 | V68: 0 | W68: =('CHICKPEAS R2'!$U$160)*(rng_Chickpeas_DATA_Sheet_R2) -> 0
B69: Canola Clearfield | C69: =('CANOLA CLEARFIELD R2'!U6)*(rng_Canola_Clear_DATA_Sheet_R2) -> 0 | D69: =(SUM('CANOLA CLEARFIELD R2'!L162)*(rng_rainfall=1)+SUM('CANOLA CLEARFIELD R2'!O162)*(rng_rainfall=2)+SUM('CANOLA CLEARFIELD R2'!R162)*(rng_rainfall=3))*(rng_Canola_Clear_DATA_Sheet_R2) -> 0 | E69: =('CANOLA CLEARFIELD R2'!U162)*(rng_Canola_Clear_DATA_Sheet_R2) -> 0 | F69: =(SUM('CANOLA CLEARFIELD R2'!L11)*(rng_rainfall=1)+SUM('CANOLA CLEARFIELD R2'!O11)*(rng_rainfall=2)+SUM('CANOLA CLEARFIELD R2'!R11)*(rng_rainfall=3))*(rng_Canola_Clear_DATA_Sheet_R2) -> 0 | G69: =('CANOLA CLEARFIELD R2'!U11)*(rng_Canola_Clear_DATA_Sheet_R2) -> 0 | H69: =(SUM('CANOLA CLEARFIELD R2'!L14:L34)*(rng_rainfall=1)+SUM('CANOLA CLEARFIELD R2'!O14:O34)*(rng_rainfall=2)+SUM('CANOLA CLEARFIELD R2'!R14:R34)*(rng_rainfall=3))*(rng_Canola_Clear_DATA_Sheet_R2) -> 0 | I69: =(SUM('CANOLA CLEARFIELD R2'!U14:U34))*(rng_Canola_Clear_DATA_Sheet_R2) -> 0 | J69: =(SUM('CANOLA CLEARFIELD R2'!$L$37:$L$53)*(rng_rainfall=1)+SUM('CANOLA CLEARFIELD R2'!$O$37:$O$53)*(rng_rainfall=2)+SUM('CANOLA CLEARFIELD R2'!$R$37:$R$53)*(rng_rainfall=3))*(rng_Canola_Clear_DATA_Sheet_R2) -> 0 | K69: =(SUM('CANOLA CLEARFIELD R2'!$U$37:$U$53))*(rng_Canola_Clear_DATA_Sheet_R2) -> 0 | L69: =(SUM('CANOLA CLEARFIELD R2'!$L$57:$L$128)*(rng_rainfall=1)+SUM('CANOLA CLEARFIELD R2'!$O$57:$O$128)*(rng_rainfall=2)+SUM('CANOLA CLEARFIELD R2'!$R$57:$R$128)*(rng_rainfall=3))*(rng_Canola_Clear_DATA_Sheet_R2) -> 0 | M69: =(SUM('CANOLA CLEARFIELD R2'!$U$57:$U$128))*(rng_Canola_Clear_DATA_Sheet_R2) -> 0 | N69: =(SUM('CANOLA CLEARFIELD R2'!$L$132:$L$132)*(rng_rainfall=1)+SUM('CANOLA CLEARFIELD R2'!$O$132:$O$132)*(rng_rainfall=2)+SUM('CANOLA CLEARFIELD R2'!$R$132:$R$132)*(rng_rainfall=3))*(rng_Canola_Clear_DATA_Sheet_R2) -> 0 | O69: =(SUM('CANOLA CLEARFIELD R2'!$U$132:$U$132))*(rng_Canola_Clear_DATA_Sheet_R2) -> 0 | P69: =(SUM('CANOLA CLEARFIELD R2'!$L$133:$L$133)*(rng_rainfall=1)+SUM('CANOLA CLEARFIELD R2'!$O$133:$O$133)*(rng_rainfall=2)+SUM('CANOLA CLEARFIELD R2'!$R$133:$R$133)*(rng_rainfall=3))*(rng_Canola_Clear_DATA_Sheet_R2) -> 0 | Q69: =(SUM('CANOLA CLEARFIELD R2'!$U$133:$U$133))*(rng_Canola_Clear_DATA_Sheet_R2) -> 0 | R69: =(SUM('CANOLA CLEARFIELD R2'!$L$136:$L$137)*(rng_rainfall=1)+SUM('CANOLA CLEARFIELD R2'!$O$136:$O$137)*(rng_rainfall=2)+SUM('CANOLA CLEARFIELD R2'!$R$136:$R$137)*(rng_rainfall=3))*(rng_Canola_Clear_DATA_Sheet_R2) -> 0 | S69: =(SUM('CANOLA CLEARFIELD R2'!$U$136:$U$137))*(rng_Canola_Clear_DATA_Sheet_R2) -> 0 | T69: 0 | U69: 0 | V69: 0 | W69: =('CANOLA CLEARFIELD R2'!$U$160)*(rng_Canola_Clear_DATA_Sheet_R2) -> 0
B70: Canola Conventional | C70: =('CANOLA CONVENTIONAL R2'!U6)*(rng_Canola_Conv_DATA_Sheet_R2) -> 0 | D70: =(SUM('CANOLA CONVENTIONAL R2'!L162)*(rng_rainfall=1)+SUM('CANOLA CONVENTIONAL R2'!O162)*(rng_rainfall=2)+SUM('CANOLA CONVENTIONAL R2'!R162)*(rng_rainfall=3))*(rng_Canola_Conv_DATA_Sheet_R2) -> 0 | E70: =('CANOLA CONVENTIONAL R2'!U162)*(rng_Canola_Conv_DATA_Sheet_R2) -> 0 | F70: =(SUM('CANOLA CONVENTIONAL R2'!L11)*(rng_rainfall=1)+SUM('CANOLA CONVENTIONAL R2'!O11)*(rng_rainfall=2)+SUM('CANOLA CONVENTIONAL R2'!R11)*(rng_rainfall=3))*(rng_Canola_Conv_DATA_Sheet_R2) -> 0 | G70: =('CANOLA CONVENTIONAL R2'!U11)*(rng_Canola_Conv_DATA_Sheet_R2) -> 0 | H70: =(SUM('CANOLA CONVENTIONAL R2'!L14:L34)*(rng_rainfall=1)+SUM('CANOLA CONVENTIONAL R2'!O14:O34)*(rng_rainfall=2)+SUM('CANOLA CONVENTIONAL R2'!R14:R34)*(rng_rainfall=3))*(rng_Canola_Conv_DATA_Sheet_R2) -> 0 | I70: =(SUM('CANOLA CONVENTIONAL R2'!U14:U34))*(rng_Canola_Conv_DATA_Sheet_R2) -> 0 | J70: =(SUM('CANOLA CONVENTIONAL R2'!$L$37:$L$53)*(rng_rainfall=1)+SUM('CANOLA CONVENTIONAL R2'!$O$37:$O$53)*(rng_rainfall=2)+SUM('CANOLA CONVENTIONAL R2'!$R$37:$R$53)*(rng_rainfall=3))*(rng_Canola_Conv_DATA_Sheet_R2) -> 0 | K70: =(SUM('CANOLA CONVENTIONAL R2'!$U$37:$U$53))*(rng_Canola_Conv_DATA_Sheet_R2) -> 0 | L70: =(SUM('CANOLA CONVENTIONAL R2'!$L$57:$L$128)*(rng_rainfall=1)+SUM('CANOLA CONVENTIONAL R2'!$O$57:$O$128)*(rng_rainfall=2)+SUM('CANOLA CONVENTIONAL R2'!$R$57:$R$128)*(rng_rainfall=3))*(rng_Canola_Conv_DATA_Sheet_R2) -> 0 | M70: =(SUM('CANOLA CONVENTIONAL R2'!$U$57:$U$128))*(rng_Canola_Conv_DATA_Sheet_R2) -> 0 | N70: =(SUM('CANOLA CONVENTIONAL R2'!$L$132:$L$132)*(rng_rainfall=1)+SUM('CANOLA CONVENTIONAL R2'!$O$132:$O$132)*(rng_rainfall=2)+SUM('CANOLA CONVENTIONAL R2'!$R$132:$R$132)*(rng_rainfall=3))*(rng_Canola_Conv_DATA_Sheet_R2) -> 0 | O70: =(SUM('CANOLA CONVENTIONAL R2'!$U$132:$U$132))*(rng_Canola_Conv_DATA_Sheet_R2) -> 0 | P70: =(SUM('CANOLA CONVENTIONAL R2'!$L$133:$L$133)*(rng_rainfall=1)+SUM('CANOLA CONVENTIONAL R2'!$O$133:$O$133)*(rng_rainfall=2)+SUM('CANOLA CONVENTIONAL R2'!$R$133:$R$133)*(rng_rainfall=3))*(rng_Canola_Conv_DATA_Sheet_R2) -> 0 | Q70: =(SUM('CANOLA CONVENTIONAL R2'!$U$133:$U$133))*(rng_Canola_Conv_DATA_Sheet_R2) -> 0 | R70: =(SUM('CANOLA CONVENTIONAL R2'!$L$136:$L$137)*(rng_rainfall=1)+SUM('CANOLA CONVENTIONAL R2'!$O$136:$O$137)*(rng_rainfall=2)+SUM('CANOLA CONVENTIONAL R2'!$R$136:$R$137)*(rng_rainfall=3))*(rng_Canola_Conv_DATA_Sheet_R2) -> 0 | S70: =(SUM('CANOLA CONVENTIONAL R2'!$U$136:$U$137))*(rng_Canola_Conv_DATA_Sheet_R2) -> 0 | T70: 0 | U70: 0 | V70: 0 | W70: =('CANOLA CONVENTIONAL R2'!$U$160)*(rng_Canola_Conv_DATA_Sheet_R2) -> 0
B71: Canola RoundUp Ready | C71: =('CANOLA ROUNDUP READY R2'!U6)*(rng_Canola_Round_DATA_Sheet_R2) -> 0 | D71: =(SUM('CANOLA ROUNDUP READY R2'!L162)*(rng_rainfall=1)+SUM('CANOLA ROUNDUP READY R2'!O162)*(rng_rainfall=2)+SUM('CANOLA ROUNDUP READY R2'!R162)*(rng_rainfall=3))*(rng_Canola_Round_DATA_Sheet_R2) -> 0 | E71: =('CANOLA ROUNDUP READY R2'!U162)*(rng_Canola_Round_DATA_Sheet_R2) -> 0 | F71: =(SUM('CANOLA ROUNDUP READY R2'!L11)*(rng_rainfall=1)+SUM('CANOLA ROUNDUP READY R2'!O11)*(rng_rainfall=2)+SUM('CANOLA ROUNDUP READY R2'!R11)*(rng_rainfall=3))*(rng_Canola_Round_DATA_Sheet_R2) -> 0 | G71: =('CANOLA ROUNDUP READY R2'!U11)*(rng_Canola_Round_DATA_Sheet_R2) -> 0 | H71: =(SUM('CANOLA ROUNDUP READY R2'!L14:L34)*(rng_rainfall=1)+SUM('CANOLA ROUNDUP READY R2'!O14:O34)*(rng_rainfall=2)+SUM('CANOLA ROUNDUP READY R2'!R14:R34)*(rng_rainfall=3))*(rng_Canola_Round_DATA_Sheet_R2) -> 0 | I71: =(SUM('CANOLA ROUNDUP READY R2'!U14:U34))*(rng_Canola_Round_DATA_Sheet_R2) -> 0 | J71: =(SUM('CANOLA ROUNDUP READY R2'!$L$37:$L$53)*(rng_rainfall=1)+SUM('CANOLA ROUNDUP READY R2'!$O$37:$O$53)*(rng_rainfall=2)+SUM('CANOLA ROUNDUP READY R2'!$R$37:$R$53)*(rng_rainfall=3))*(rng_Canola_Round_DATA_Sheet_R2) -> 0 | K71: =(SUM('CANOLA ROUNDUP READY R2'!$U$37:$U$53))*(rng_Canola_Round_DATA_Sheet_R2) -> 0 | L71: =(SUM('CANOLA ROUNDUP READY R2'!$L$57:$L$118)*(rng_rainfall=1)+SUM('CANOLA ROUNDUP READY R2'!$O$57:$O$118)*(rng_rainfall=2)+SUM('CANOLA ROUNDUP READY R2'!$R$57:$R$118)*(rng_rainfall=3))*(rng_Canola_Round_DATA_Sheet_R2) -> 0 | M71: =(SUM('CANOLA ROUNDUP READY R2'!$U$57:$U$128))*(rng_Canola_Round_DATA_Sheet_R2) -> 0 | N71: =(SUM('CANOLA ROUNDUP READY R2'!$L$118:$L$132)*(rng_rainfall=1)+SUM('CANOLA ROUNDUP READY R2'!$O$118:$O$132)*(rng_rainfall=2)+SUM('CANOLA ROUNDUP READY R2'!$R$118:$R$132)*(rng_rainfall=3))*(rng_Canola_Round_DATA_Sheet_R2) -> 0 | O71: =(SUM('CANOLA ROUNDUP READY R2'!$U$132:$U$132))*(rng_Canola_Round_DATA_Sheet_R2) -> 0 | P71: =(SUM('CANOLA ROUNDUP READY R2'!$L$118:$L$133)*(rng_rainfall=1)+SUM('CANOLA ROUNDUP READY R2'!$O$118:$O$133)*(rng_rainfall=2)+SUM('CANOLA ROUNDUP READY R2'!$R$118:$R$133)*(rng_rainfall=3))*(rng_Canola_Round_DATA_Sheet_R2) -> 0 | Q71: =(SUM('CANOLA ROUNDUP READY R2'!$U$133:$U$133))*(rng_Canola_Round_DATA_Sheet_R2) -> 0 | R71: =(SUM('CANOLA ROUNDUP READY R2'!$L$136:$L$137)*(rng_rainfall=1)+SUM('CANOLA ROUNDUP READY R2'!$O$136:$O$137)*(rng_rainfall=2)+SUM('CANOLA ROUNDUP READY R2'!$R$15:$R$35)*(rng_rainfall=3))*(rng_Canola_Round_DATA_Sheet_R2) -> 0 | S71: =(SUM('CANOLA ROUNDUP READY R2'!$U$136:$U$137))*(rng_Canola_Round_DATA_Sheet_R2) -> 0 | T71: 0 | U71: 0 | V71: 0 | W71: =('CANOLA ROUNDUP READY R2'!$U$160)*(rng_Canola_Round_DATA_Sheet_R2) -> 0
B72: Canola Tri Tolerant | C72: =('CANOLA TRITOLERANT R2'!U6)*(rng_Canola_Tri_DATA_Sheet_R2) -> 0 | D72: =(SUM('CANOLA TRITOLERANT R2'!L162)*(rng_rainfall=1)+SUM('CANOLA TRITOLERANT R2'!O162)*(rng_rainfall=2)+SUM('CANOLA TRITOLERANT R2'!R162)*(rng_rainfall=3))*(rng_Canola_Tri_DATA_Sheet_R2) -> 0 | E72: =('CANOLA TRITOLERANT R2'!U162)*(rng_Canola_Tri_DATA_Sheet_R2) -> 0 | F72: =(SUM('CANOLA TRITOLERANT R2'!L11)*(rng_rainfall=1)+SUM('CANOLA TRITOLERANT R2'!O11)*(rng_rainfall=2)+SUM('CANOLA TRITOLERANT R2'!R11)*(rng_rainfall=3))*(rng_Canola_Tri_DATA_Sheet_R2) -> 0 | G72: =('CANOLA TRITOLERANT R2'!U11)*(rng_Canola_Tri_DATA_Sheet_R2) -> 0 | H72: =(SUM('CANOLA TRITOLERANT R2'!L14:L34)*(rng_rainfall=1)+SUM('CANOLA TRITOLERANT R2'!O14:O34)*(rng_rainfall=2)+SUM('CANOLA TRITOLERANT R2'!R14:R34)*(rng_rainfall=3))*(rng_Canola_Tri_DATA_Sheet_R2) -> 0 | I72: =(SUM('CANOLA TRITOLERANT R2'!U14:U34))*(rng_Canola_Tri_DATA_Sheet_R2) -> 0 | J72: =(SUM('CANOLA TRITOLERANT R2'!$L$37:$L$53)*(rng_rainfall=1)+SUM('CANOLA TRITOLERANT R2'!$O$37:$O$53)*(rng_rainfall=2)+SUM('CANOLA TRITOLERANT R2'!$R$37:$R$53)*(rng_rainfall=3))*(rng_Canola_Tri_DATA_Sheet_R2) -> 0 | K72: =(SUM('CANOLA TRITOLERANT R2'!$U$37:$U$53))*(rng_Canola_Tri_DATA_Sheet_R2) -> 0 | L72: =(SUM('CANOLA TRITOLERANT R2'!$L$57:$L$128)*(rng_rainfall=1)+SUM('CANOLA TRITOLERANT R2'!$O$57:$O$128)*(rng_rainfall=2)+SUM('CANOLA TRITOLERANT R2'!$R$57:$R$128)*(rng_rainfall=3))*(rng_Canola_Tri_DATA_Sheet_R2) -> 0 | M72: =(SUM('CANOLA TRITOLERANT R2'!$U$57:$U$128))*(rng_Canola_Tri_DATA_Sheet_R2) -> 0 | N72: =(SUM('CANOLA TRITOLERANT R2'!$L$132:$L$132)*(rng_rainfall=1)+SUM('CANOLA TRITOLERANT R2'!$O$132:$O$132)*(rng_rainfall=2)+SUM('CANOLA TRITOLERANT R2'!$R$132:$R$132)*(rng_rainfall=3))*(rng_Canola_Tri_DATA_Sheet_R2) -> 0 | O72: =(SUM('CANOLA TRITOLERANT R2'!$U$132:$U$132))*(rng_Canola_Tri_DATA_Sheet_R2) -> 0 | P72: =(SUM('CANOLA TRITOLERANT R2'!$L$133:$L$133)*(rng_rainfall=1)+SUM('CANOLA TRITOLERANT R2'!$O$133:$O$133)*(rng_rainfall=2)+SUM('CANOLA TRITOLERANT R2'!$R$133:$R$133)*(rng_rainfall=3))*(rng_Canola_Tri_DATA_Sheet_R2) -> 0 | Q72: =(SUM('CANOLA TRITOLERANT R2'!$U$133:$U$133))*(rng_Canola_Tri_DATA_Sheet_R2) -> 0 | R72: =(SUM('CANOLA TRITOLERANT R2'!$L$136:$L$137)*(rng_rainfall=1)+SUM('CANOLA TRITOLERANT R2'!$O$136:$O$137)*(rng_rainfall=2)+SUM('CANOLA TRITOLERANT R2'!$R$136:$R$137)*(rng_rainfall=3))*(rng_Canola_Tri_DATA_Sheet_R2) -> 0 | S72: =(SUM('CANOLA TRITOLERANT R2'!$U$136:$U$137))*(rng_Canola_Tri_DATA_Sheet_R2) -> 0 | T72: 0 | U72: 0 | V72: 0 | W72: =('CANOLA TRITOLERANT R2'!$U$160)*(rng_Canola_Tri_DATA_Sheet_R2) -> 0
B73: Sown Pasture | C73: =('SOWN PASTURE R2'!U6)*(rng_sown_pasture_DATA_Sheet_R2) -> 0 | D73: =(SUM('SOWN PASTURE R2'!L162)*(rng_rainfall=1)+SUM('SOWN PASTURE R2'!O162)*(rng_rainfall=2)+SUM('SOWN PASTURE R2'!R162)*(rng_rainfall=3))*(rng_sown_pasture_DATA_Sheet_R2) -> 0 | E73: =('SOWN PASTURE R2'!U162)*(rng_sown_pasture_DATA_Sheet_R2) -> 0 | F73: =(SUM('SOWN PASTURE R2'!L11)*(rng_rainfall=1)+SUM('SOWN PASTURE R2'!O11)*(rng_rainfall=2)+SUM('SOWN PASTURE R2'!R11)*(rng_rainfall=3))*(rng_sown_pasture_DATA_Sheet_R2) -> 0 | G73: =('SOWN PASTURE R2'!U11)*(rng_sown_pasture_DATA_Sheet_R2) -> 0 | H73: =(SUM('SOWN PASTURE R2'!L14:L34)*(rng_rainfall=1)+SUM('SOWN PASTURE R2'!O14:O34)*(rng_rainfall=2)+SUM('SOWN PASTURE R2'!R14:R34)*(rng_rainfall=3))*(rng_sown_pasture_DATA_Sheet_R2) -> 0 | I73: =(SUM('SOWN PASTURE R2'!U14:U34))*(rng_sown_pasture_DATA_Sheet_R2) -> 0 | J73: =(SUM('SOWN PASTURE R2'!$L$37:$L$53)*(rng_rainfall=1)+SUM('SOWN PASTURE R2'!$O$37:$O$53)*(rng_rainfall=2)+SUM('SOWN PASTURE R2'!$R$37:$R$53)*(rng_rainfall=3))*(rng_sown_pasture_DATA_Sheet_R2) -> 0 | K73: =(SUM('SOWN PASTURE R2'!$U$37:$U$53))*(rng_sown_pasture_DATA_Sheet_R2) -> 0 | L73: =(SUM('SOWN PASTURE R2'!$L$57:$L$128)*(rng_rainfall=1)+SUM('SOWN PASTURE R2'!$O$57:$O$128)*(rng_rainfall=2)+SUM('SOWN PASTURE R2'!$R$57:$R$128)*(rng_rainfall=3))*(rng_sown_pasture_DATA_Sheet_R2) -> 0 | M73: =(SUM('SOWN PASTURE R2'!$U$57:$U$128))*(rng_sown_pasture_DATA_Sheet_R2) -> 0 | N73: =(SUM('SOWN PASTURE R2'!$L$132:$L$132)*(rng_rainfall=1)+SUM('SOWN PASTURE R2'!$O$132:$O$132)*(rng_rainfall=2)+SUM('SOWN PASTURE R2'!$R$132:$R$132)*(rng_rainfall=3))*(rng_sown_pasture_DATA_Sheet_R2) -> 0 | O73: =(SUM('SOWN PASTURE R2'!$U$132:$U$132))*(rng_sown_pasture_DATA_Sheet_R2) -> 0 | P73: =(SUM('SOWN PASTURE R2'!$L$133:$L$133)*(rng_rainfall=1)+SUM('SOWN PASTURE R2'!$O$133:$O$133)*(rng_rainfall=2)+SUM('SOWN PASTURE R2'!$R$133:$R$133)*(rng_rainfall=3))*(rng_sown_pasture_DATA_Sheet_R2) -> 0 | Q73: =(SUM('SOWN PASTURE R2'!$U$133:$U$133))*(rng_sown_pasture_DATA_Sheet_R2) -> 0 | R73: =(SUM('SOWN PASTURE R2'!$L$136:$L$137)*(rng_rainfall=1)+SUM('SOWN PASTURE R2'!$O$136:$O$137)*(rng_rainfall=2)+SUM('SOWN PASTURE R2'!$R$136:$R$137)*(rng_rainfall=3))*(rng_sown_pasture_DATA_Sheet_R2) -> 0 | S73: =(SUM('SOWN PASTURE R2'!$U$136:$U$137))*(rng_sown_pasture_DATA_Sheet_R2) -> 0 | T73: 0 | U73: 0 | V73: 0 | W73: =('SOWN PASTURE R2'!$U$160)*(rng_sown_pasture_DATA_Sheet_R2) -> 0
B74: Self Regen Pasture | C74: =('SELF REGEN PASTURE R2'!U6)*(rng_self_regen_DATA_Sheet_R2) -> 0 | D74: =(SUM('SELF REGEN PASTURE R2'!L162)*(rng_rainfall=1)+SUM('SELF REGEN PASTURE R2'!O162)*(rng_rainfall=2)+SUM('SELF REGEN PASTURE R2'!R162)*(rng_rainfall=3))*(rng_self_regen_DATA_Sheet_R2) -> 0 | E74: =('SELF REGEN PASTURE R2'!U162)*(rng_self_regen_DATA_Sheet_R2) -> 0 | F74: =(SUM('SELF REGEN PASTURE R2'!L11)*(rng_rainfall=1)+SUM('SELF REGEN PASTURE R2'!O11)*(rng_rainfall=2)+SUM('SELF REGEN PASTURE R2'!R11)*(rng_rainfall=3))*(rng_self_regen_DATA_Sheet_R2) -> 0 | G74: =('SELF REGEN PASTURE R2'!U11)*(rng_self_regen_DATA_Sheet_R2) -> 0 | H74: =(SUM('SELF REGEN PASTURE R2'!L14:L34)*(rng_rainfall=1)+SUM('SELF REGEN PASTURE R2'!O14:O34)*(rng_rainfall=2)+SUM('SELF REGEN PASTURE R2'!R14:R34)*(rng_rainfall=3))*(rng_self_regen_DATA_Sheet_R2) -> 0 | I74: =(SUM('SELF REGEN PASTURE R2'!U14:U34))*(rng_self_regen_DATA_Sheet_R2) -> 0 | J74: =(SUM('SELF REGEN PASTURE R2'!L$37:L$53)*(rng_rainfall=1)+SUM('SELF REGEN PASTURE R2'!O$37:O$53)*(rng_rainfall=2)+SUM('SELF REGEN PASTURE R2'!R$37:R$53)*(rng_rainfall=3))*(rng_self_regen_DATA_Sheet_R2) -> 0 | K74: =(SUM('SELF REGEN PASTURE R2'!U$37:U$53))*(rng_self_regen_DATA_Sheet_R2) -> 0 | L74: =(SUM('SELF REGEN PASTURE R2'!L$57:L$128)*(rng_rainfall=1)+SUM('SELF REGEN PASTURE R2'!O$57:O$128)*(rng_rainfall=2)+SUM('SELF REGEN PASTURE R2'!R$57:R$128)*(rng_rainfall=3))*(rng_self_regen_DATA_Sheet_R2) -> 0 | M74: =(SUM('SELF REGEN PASTURE R2'!U$57:U$128))*(rng_self_regen_DATA_Sheet_R2) -> 0 | N74: =(SUM('SELF REGEN PASTURE R2'!L$132:L$132)*(rng_rainfall=1)+SUM('SELF REGEN PASTURE R2'!O$132:O$132)*(rng_rainfall=2)+SUM('SELF REGEN PASTURE R2'!R$132:R$132)*(rng_rainfall=3))*(rng_self_regen_DATA_Sheet_R2) -> 0 | O74: =(SUM('SELF REGEN PASTURE R2'!U$132:U$132))*(rng_self_regen_DATA_Sheet_R2) -> 0 | P74: =(SUM('SELF REGEN PASTURE R2'!L$133:L$133)*(rng_rainfall=1)+SUM('SELF REGEN PASTURE R2'!O$133:O$133)*(rng_rainfall=2)+SUM('SELF REGEN PASTURE R2'!R$133:R$133)*(rng_rainfall=3))*(rng_self_regen_DATA_Sheet_R2) -> 0 | Q74: =(SUM('SELF REGEN PASTURE R2'!U$133:W$133))*(rng_self_regen_DATA_Sheet_R2) -> 0 | R74: =(SUM('SELF REGEN PASTURE R2'!L$136:L$137)*(rng_rainfall=1)+SUM('SELF REGEN PASTURE R2'!O$136:O$137)*(rng_rainfall=2)+SUM('SELF REGEN PASTURE R2'!R$136:R$137)*(rng_rainfall=3))*(rng_self_regen_DATA_Sheet_R2) -> 0 | S74: =(SUM('SELF REGEN PASTURE R2'!U$136:W$137))*(rng_self_regen_DATA_Sheet_R2) -> 0 | T74: 0 | U74: 0 | V74: 0 | W74: =('SELF REGEN PASTURE R2'!U$160)*(rng_self_regen_DATA_Sheet_R2) -> 0
B75: Lucerne Pasture Cereal | C75: =('LUCERNE PASTURE CEREAL R2'!U$6)*(rng_LUC_CEREAL_DATA_SHEET_R2) -> 0 | D75: =(SUM('LUCERNE PASTURE CEREAL R2'!L$163)*(rng_rainfall=1)+SUM('LUCERNE PASTURE CEREAL R2'!O$163)*(rng_rainfall=2)+SUM('LUCERNE PASTURE CEREAL R2'!R$163)*(rng_rainfall=3))*(rng_LUC_CEREAL_DATA_SHEET_R2) -> 0 | E75: =('LUCERNE PASTURE CEREAL R2'!U$163)*(rng_LUC_CEREAL_DATA_SHEET_R2) -> 0 | F75: =(SUM('LUCERNE PASTURE CEREAL R2'!L$11)*(rng_rainfall=1)+SUM('LUCERNE PASTURE CEREAL R2'!O$11)*(rng_rainfall=2)+SUM('LUCERNE PASTURE CEREAL R2'!R$11)*(rng_rainfall=3))*(rng_LUC_CEREAL_DATA_SHEET_R2) -> 0 | G75: =('LUCERNE PASTURE CEREAL R2'!U$11)*(rng_LUC_CEREAL_DATA_SHEET_R2) -> 0 | H75: =(SUM('LUCERNE PASTURE CEREAL R2'!L$14:L$34)*(rng_rainfall=1)+SUM('LUCERNE PASTURE CEREAL R2'!O$14:O$34)*(rng_rainfall=2)+SUM('LUCERNE PASTURE CEREAL R2'!R$14:R$34)*(rng_rainfall=3))*(rng_LUC_CEREAL_DATA_SHEET_R2) -> 0 | I75: =(SUM('LUCERNE PASTURE CEREAL R2'!U$14:U$34)/7)*(rng_LUC_CEREAL_DATA_SHEET_R2) -> 0 | J75: =(SUM('LUCERNE PASTURE CEREAL R2'!L$37:L$53,'LUCERNE PASTURE CEREAL R2'!L$135:L$136)*(rng_rainfall=1)+SUM('LUCERNE PASTURE CEREAL R2'!O$37:O$53,'LUCERNE PASTURE CEREAL R2'!O$135:O$136)*(rng_rainfall=2)+SUM('LUCERNE PASTURE CEREAL R2'!R$37:R$53,'LUCERNE PASTURE CEREAL R2'!R$135:R$136)*(rng_rainfall=3))*(rng_LUC_CEREAL_DATA_SHEET_R2) -> 0 | K75: =(SUM(SUM('LUCERNE PASTURE CEREAL R2'!U$37:U$53)/7,'LUCERNE PASTURE CEREAL R2'!U$135:U$136))*(rng_LUC_CEREAL_DATA_SHEET_R2) -> 0 | L75: =(SUM('LUCERNE PASTURE CEREAL R2'!L$57:L$111,'LUCERNE PASTURE CEREAL R2'!L$125:L$133)*(rng_rainfall=1)+SUM('LUCERNE PASTURE CEREAL R2'!O$57:O$111,'LUCERNE PASTURE CEREAL R2'!O$125:O$133)*(rng_rainfall=2)+SUM('LUCERNE PASTURE CEREAL R2'!R$57:R$111,'LUCERNE PASTURE CEREAL R2'!R$125:R$133)*(rng_rainfall=3))*(rng_LUC_CEREAL_DATA_SHEET_R2) -> 0 | M75: =(SUM(SUM('LUCERNE PASTURE CEREAL R2'!U$57:U$111)/7,'LUCERNE PASTURE CEREAL R2'!U$125:U$133))*(rng_LUC_CEREAL_DATA_SHEET_R2) -> 0 | N75: =(SUM('LUCERNE PASTURE CEREAL R2'!L$113:L$113,'LUCERNE PASTURE CEREAL R2'!L$138:L$138)*(rng_rainfall=1)+SUM('LUCERNE PASTURE CEREAL R2'!O$113:O$113,'LUCERNE PASTURE CEREAL R2'!O$138:O$138)*(rng_rainfall=2)+SUM('LUCERNE PASTURE CEREAL R2'!R$113:R$113,'LUCERNE PASTURE CEREAL R2'!R$138:R$138)*(rng_rainfall=3))*(rng_LUC_CEREAL_DATA_SHEET_R2) -> 0 | O75: =(SUM(SUM('LUCERNE PASTURE CEREAL R2'!U$113:U$113)/7,'LUCERNE PASTURE CEREAL R2'!U$138:U$138))*(rng_LUC_CEREAL_DATA_SHEET_R2) -> 0 | P75: =(SUM('LUCERNE PASTURE CEREAL R2'!L$114:L$114,'LUCERNE PASTURE CEREAL R2'!L$139:L$139)*(rng_rainfall=1)+SUM('LUCERNE PASTURE CEREAL R2'!O$114:O$114,'LUCERNE PASTURE CEREAL R2'!O$139:O$139)*(rng_rainfall=2)+SUM('LUCERNE PASTURE CEREAL R2'!R$114:R$114,'LUCERNE PASTURE CEREAL R2'!R$139:R$139)*(rng_rainfall=3))*(rng_LUC_CEREAL_DATA_SHEET_R2) -> 0 | Q75: =(SUM(SUM('LUCERNE PASTURE CEREAL R2'!U$114:W$114)/7,'LUCERNE PASTURE CEREAL R2'!U$139:W$139))*(rng_LUC_CEREAL_DATA_SHEET_R2) -> 0 | R75: =(SUM('LUCERNE PASTURE CEREAL R2'!L$142:L$143)*(rng_rainfall=1)+SUM('LUCERNE PASTURE CEREAL R2'!O$142:O$143)*(rng_rainfall=2)+SUM('LUCERNE PASTURE CEREAL R2'!R$142:R$143)*(rng_rainfall=3))*(rng_LUC_CEREAL_DATA_SHEET_R2) -> 0 | S75: =(SUM('LUCERNE PASTURE CEREAL R2'!U$142:W$143))*(rng_LUC_CEREAL_DATA_SHEET_R2) -> 0 | T75: 0 | U75: 0 | V75: 0 | W75: =('LUCERNE PASTURE CEREAL R2'!$U$161)*(rng_LUC_CEREAL_DATA_SHEET_R2) -> 0
B76: Lucerne Pasture Grazing | C76: =('LUCERNE PASTURE GRAZING R2'!U$6)*(rng_LUC_GRAZ_DATA_SHEET_R2) -> 0 | D76: =(SUM('LUCERNE PASTURE GRAZING R2'!L$163)*(rng_rainfall=1)+SUM('LUCERNE PASTURE GRAZING R2'!O$163)*(rng_rainfall=2)+SUM('LUCERNE PASTURE GRAZING R2'!R$163)*(rng_rainfall=3))*(rng_LUC_GRAZ_DATA_SHEET_R2) -> 0 | E76: =('LUCERNE PASTURE GRAZING R2'!U$163)*(rng_LUC_GRAZ_DATA_SHEET_R2) -> 0 | F76: =(SUM('LUCERNE PASTURE GRAZING R2'!L$11)*(rng_rainfall=1)+SUM('LUCERNE PASTURE GRAZING R2'!O$11)*(rng_rainfall=2)+SUM('LUCERNE PASTURE GRAZING R2'!R$11)*(rng_rainfall=3))*(rng_LUC_GRAZ_DATA_SHEET_R2) -> 0 | G76: =('LUCERNE PASTURE GRAZING R2'!U$11)*(rng_LUC_GRAZ_DATA_SHEET_R2) -> 0 | H76: =(SUM('LUCERNE PASTURE GRAZING R2'!L$14:L$34)*(rng_rainfall=1)+SUM('LUCERNE PASTURE GRAZING R2'!O$14:O$34)*(rng_rainfall=2)+SUM('LUCERNE PASTURE GRAZING R2'!R$14:R$34)*(rng_rainfall=3))*(rng_LUC_GRAZ_DATA_SHEET_R2) -> 0 | I76: =(SUM('LUCERNE PASTURE GRAZING R2'!U$14:U$34)/7)*(rng_LUC_GRAZ_DATA_SHEET_R2) -> 0 | J76: =(SUM('LUCERNE PASTURE GRAZING R2'!L$37:L$53,'LUCERNE PASTURE GRAZING R2'!L$135:L$136)*(rng_rainfall=1)+SUM('LUCERNE PASTURE GRAZING R2'!O$37:O$53,'LUCERNE PASTURE GRAZING R2'!O$135:O$136)*(rng_rainfall=2)+SUM('LUCERNE PASTURE GRAZING R2'!R$37:R$53,'LUCERNE PASTURE GRAZING R2'!R$135:R$136)*(rng_rainfall=3))*(rng_LUC_GRAZ_DATA_SHEET_R2) -> 0 | K76: =(SUM(SUM('LUCERNE PASTURE GRAZING R2'!U$37:U$53)/7,'LUCERNE PASTURE GRAZING R2'!U$135:U$136))*(rng_LUC_GRAZ_DATA_SHEET_R2) -> 0 | L76: =(SUM('LUCERNE PASTURE GRAZING R2'!L$57:L$111,'LUCERNE PASTURE GRAZING R2'!L$125:L$133)*(rng_rainfall=1)+SUM('LUCERNE PASTURE GRAZING R2'!O$57:O$111,'LUCERNE PASTURE GRAZING R2'!O$125:O$133)*(rng_rainfall=2)+SUM('LUCERNE PASTURE GRAZING R2'!R$57:R$111,'LUCERNE PASTURE GRAZING R2'!R$125:R$133)*(rng_rainfall=3))*(rng_LUC_GRAZ_DATA_SHEET_R2) -> 0 | M76: =(SUM(SUM('LUCERNE PASTURE GRAZING R2'!U$57:U$111)/7,'LUCERNE PASTURE GRAZING R2'!U$125:U$133))*(rng_LUC_GRAZ_DATA_SHEET_R2) -> 0 | N76: =(SUM('LUCERNE PASTURE GRAZING R2'!L$113:L$113,'LUCERNE PASTURE GRAZING R2'!L$138:L$138)*(rng_rainfall=1)+SUM('LUCERNE PASTURE GRAZING R2'!O$113:O$113,'LUCERNE PASTURE GRAZING R2'!O$138:O$138)*(rng_rainfall=2)+SUM('LUCERNE PASTURE GRAZING R2'!R$113:R$113,'LUCERNE PASTURE GRAZING R2'!R$138:R$138)*(rng_rainfall=3))*(rng_LUC_GRAZ_DATA_SHEET_R2) -> 0 | O76: =(SUM(SUM('LUCERNE PASTURE GRAZING R2'!U$113:U$113)/7,'LUCERNE PASTURE GRAZING R2'!U$138:U$138))*(rng_LUC_GRAZ_DATA_SHEET_R2) -> 0 | P76: =(SUM('LUCERNE PASTURE GRAZING R2'!L$114:L$114,'LUCERNE PASTURE GRAZING R2'!L$139:L$139)*(rng_rainfall=1)+SUM('LUCERNE PASTURE GRAZING R2'!O$114:O$114,'LUCERNE PASTURE GRAZING R2'!O$139:O$139)*(rng_rainfall=2)+SUM('LUCERNE PASTURE GRAZING R2'!R$114:R$114,'LUCERNE PASTURE GRAZING R2'!R$139:R$139)*(rng_rainfall=3))*(rng_LUC_GRAZ_DATA_SHEET_R2) -> 0 | Q76: =(SUM(SUM('LUCERNE PASTURE GRAZING R2'!U$114:W$114)/7,'LUCERNE PASTURE GRAZING R2'!U$139:W$139))*(rng_LUC_GRAZ_DATA_SHEET_R2) -> 0 | R76: =(SUM('LUCERNE PASTURE GRAZING R2'!L$142:L$143)*(rng_rainfall=1)+SUM('LUCERNE PASTURE GRAZING R2'!O$142:O$143)*(rng_rainfall=2)+SUM('LUCERNE PASTURE GRAZING R2'!R$142:R$143)*(rng_rainfall=3))*(rng_LUC_GRAZ_DATA_SHEET_R2) -> 0 | S76: =(SUM('LUCERNE PASTURE GRAZING R2'!U$142:W$143))*(rng_LUC_GRAZ_DATA_SHEET_R2) -> 0 | T76: 0 | U76: 0 | V76: 0 | W76: =('LUCERNE PASTURE GRAZING R2'!$U$161)*(rng_LUC_GRAZ_DATA_SHEET_R2) -> 0
B77: Phalaris Sub Pasture Cereal | C77: =('PHALARIS SUB PASTURE CEREAL R2'!U$6)*(rng_PHA_CEREAL_DATA_SHEET_R2) -> 0 | D77: =(SUM('PHALARIS SUB PASTURE CEREAL R2'!L$162)*(rng_rainfall=1)+SUM('PHALARIS SUB PASTURE CEREAL R2'!O$162)*(rng_rainfall=2)+SUM('PHALARIS SUB PASTURE CEREAL R2'!R$162)*(rng_rainfall=3))*(rng_PHA_CEREAL_DATA_SHEET_R2) -> 0 | E77: =('PHALARIS SUB PASTURE CEREAL R2'!U$162)*(rng_PHA_CEREAL_DATA_SHEET_R2) -> 0 | F77: =(SUM('PHALARIS SUB PASTURE CEREAL R2'!L$11)*(rng_rainfall=1)+SUM('PHALARIS SUB PASTURE CEREAL R2'!O$11)*(rng_rainfall=2)+SUM('PHALARIS SUB PASTURE CEREAL R2'!R$11)*(rng_rainfall=3))*(rng_PHA_CEREAL_DATA_SHEET_R2) -> 0 | G77: =('PHALARIS SUB PASTURE CEREAL R2'!U$11)*(rng_PHA_CEREAL_DATA_SHEET_R2) -> 0 | H77: =(SUM('PHALARIS SUB PASTURE CEREAL R2'!L$14:L$34)*(rng_rainfall=1)+SUM('PHALARIS SUB PASTURE CEREAL R2'!O$14:O$34)*(rng_rainfall=2)+SUM('PHALARIS SUB PASTURE CEREAL R2'!R$14:R$34)*(rng_rainfall=3))*(rng_PHA_CEREAL_DATA_SHEET_R2) -> 0 | I77: =(SUM('PHALARIS SUB PASTURE CEREAL R2'!U$14:U$34)/7)*(rng_PHA_CEREAL_DATA_SHEET_R2) -> 0 | J77: =(SUM('PHALARIS SUB PASTURE CEREAL R2'!L$37:L$53,'PHALARIS SUB PASTURE CEREAL R2'!L$134:L$135)*(rng_rainfall=1)+SUM('PHALARIS SUB PASTURE CEREAL R2'!O$37:O$53,'PHALARIS SUB PASTURE CEREAL R2'!O$134:O$135)*(rng_rainfall=2)+SUM('PHALARIS SUB PASTURE CEREAL R2'!R$37:R$53,'PHALARIS SUB PASTURE CEREAL R2'!R$134:R$135)*(rng_rainfall=3))*(rng_PHA_CEREAL_DATA_SHEET_R2) -> 0 | K77: =(SUM(SUM('PHALARIS SUB PASTURE CEREAL R2'!U$37:U$53)/7,'PHALARIS SUB PASTURE CEREAL R2'!U$134:U$135))*(rng_PHA_CEREAL_DATA_SHEET_R2) -> 0 | L77: =(SUM('PHALARIS SUB PASTURE CEREAL R2'!L$57:L$111,'PHALARIS SUB PASTURE CEREAL R2'!L$125:L$133)*(rng_rainfall=1)+SUM('PHALARIS SUB PASTURE CEREAL R2'!O$57:O$111,'PHALARIS SUB PASTURE CEREAL R2'!O$125:O$133)*(rng_rainfall=2)+SUM('PHALARIS SUB PASTURE CEREAL R2'!R$57:R$111,'PHALARIS SUB PASTURE CEREAL R2'!R$125:R$133)*(rng_rainfall=3))*(rng_PHA_CEREAL_DATA_SHEET_R2) -> 0 | M77: =(SUM(SUM('PHALARIS SUB PASTURE CEREAL R2'!U$57:U$111)/7,'PHALARIS SUB PASTURE CEREAL R2'!U$125:U$133))*(rng_PHA_CEREAL_DATA_SHEET_R2) -> 0 | N77: =(SUM('PHALARIS SUB PASTURE CEREAL R2'!L$113:L$113,'PHALARIS SUB PASTURE CEREAL R2'!L$138:L$138)*(rng_rainfall=1)+SUM('PHALARIS SUB PASTURE CEREAL R2'!O$113:O$113,'PHALARIS SUB PASTURE CEREAL R2'!O$138:O$138)*(rng_rainfall=2)+SUM('PHALARIS SUB PASTURE CEREAL R2'!R$113:R$113,'PHALARIS SUB PASTURE CEREAL R2'!R$138:R$138)*(rng_rainfall=3))*(rng_PHA_CEREAL_DATA_SHEET_R2) -> 0 | O77: =(SUM(SUM('PHALARIS SUB PASTURE CEREAL R2'!U$113:U$113)/7,'PHALARIS SUB PASTURE CEREAL R2'!U$138:U$138))*(rng_PHA_CEREAL_DATA_SHEET_R2) -> 0 | P77: =(SUM('PHALARIS SUB PASTURE CEREAL R2'!L$114:L$114,'PHALARIS SUB PASTURE CEREAL R2'!L$139:L$139)*(rng_rainfall=1)+SUM('PHALARIS SUB PASTURE CEREAL R2'!O$114:O$114,'PHALARIS SUB PASTURE CEREAL R2'!O$139:O$139)*(rng_rainfall=2)+SUM('PHALARIS SUB PASTURE CEREAL R2'!R$114:R$114,'PHALARIS SUB PASTURE CEREAL R2'!R$139:R$139)*(rng_rainfall=3))*(rng_PHA_CEREAL_DATA_SHEET_R2) -> 0 | Q77: =(SUM(SUM('PHALARIS SUB PASTURE CEREAL R2'!U$114:W$114)/7,'PHALARIS SUB PASTURE CEREAL R2'!U$139:W$139))*(rng_PHA_CEREAL_DATA_SHEET_R2) -> 0 | R77: =(SUM('PHALARIS SUB PASTURE CEREAL R2'!L$142:L$143)*(rng_rainfall=1)+SUM('PHALARIS SUB PASTURE CEREAL R2'!O$142:O$143)*(rng_rainfall=2)+SUM('PHALARIS SUB PASTURE CEREAL R2'!R$142:R$143)*(rng_rainfall=3))*(rng_PHA_CEREAL_DATA_SHEET_R2) -> 0 | S77: =(SUM('PHALARIS SUB PASTURE CEREAL R2'!U$142:W$143))*(rng_PHA_CEREAL_DATA_SHEET_R2) -> 0 | T77: 0 | U77: 0 | V77: 0 | W77: =('PHALARIS SUB PASTURE CEREAL R2'!$U$160)*(rng_PHA_CEREAL_DATA_SHEET_R2) -> 0
B78: Phalaris Sub Grazing | C78: =('PHALARIS SUB PASTURE GRAZING R2'!U$6)*(rng_PHA_GRAZING_DATA_SHEET_R2) -> 0 | D78: =(SUM('PHALARIS SUB PASTURE GRAZING R2'!L$162)*(rng_rainfall=1)+SUM('PHALARIS SUB PASTURE GRAZING R2'!O$162)*(rng_rainfall=2)+SUM('PHALARIS SUB PASTURE GRAZING R2'!R$162)*(rng_rainfall=3))*(rng_PHA_GRAZING_DATA_SHEET_R2) -> 0 | E78: =('PHALARIS SUB PASTURE GRAZING R2'!U$162)*(rng_PHA_GRAZING_DATA_SHEET_R2) -> 0 | F78: =(SUM('PHALARIS SUB PASTURE GRAZING R2'!L$11)*(rng_rainfall=1)+SUM('PHALARIS SUB PASTURE GRAZING R2'!O$11)*(rng_rainfall=2)+SUM('PHALARIS SUB PASTURE GRAZING R2'!R$11)*(rng_rainfall=3))*(rng_PHA_GRAZING_DATA_SHEET_R2) -> 0 | G78: =('PHALARIS SUB PASTURE GRAZING R2'!U$11)*(rng_PHA_GRAZING_DATA_SHEET_R2) -> 0 | H78: =(SUM('PHALARIS SUB PASTURE GRAZING R2'!L$14:L$34)*(rng_rainfall=1)+SUM('PHALARIS SUB PASTURE GRAZING R2'!O$14:O$34)*(rng_rainfall=2)+SUM('PHALARIS SUB PASTURE GRAZING R2'!R$14:R$34)*(rng_rainfall=3))*(rng_PHA_GRAZING_DATA_SHEET_R2) -> 0 | I78: =(SUM('PHALARIS SUB PASTURE GRAZING R2'!U$14:U$34)/7)*(rng_PHA_GRAZING_DATA_SHEET_R2) -> 0 | J78: =(SUM('PHALARIS SUB PASTURE GRAZING R2'!L$37:L$53,'PHALARIS SUB PASTURE GRAZING R2'!L$134:L$135)*(rng_rainfall=1)+SUM('PHALARIS SUB PASTURE GRAZING R2'!O$37:O$53,'PHALARIS SUB PASTURE GRAZING R2'!O$134:O$135)*(rng_rainfall=2)+SUM('PHALARIS SUB PASTURE GRAZING R2'!R$37:R$53,'PHALARIS SUB PASTURE GRAZING R2'!R$134:R$135)*(rng_rainfall=3))*(rng_PHA_GRAZING_DATA_SHEET_R2) -> 0 | K78: =(SUM(SUM('PHALARIS SUB PASTURE GRAZING R2'!U$37:U$53)/7,'PHALARIS SUB PASTURE GRAZING R2'!U$134:U$135))*(rng_PHA_GRAZING_DATA_SHEET_R2) -> 0 | L78: =(SUM('PHALARIS SUB PASTURE GRAZING R2'!L$57:L$111,'PHALARIS SUB PASTURE GRAZING R2'!L$125:L$133)*(rng_rainfall=1)+SUM('PHALARIS SUB PASTURE GRAZING R2'!O$57:O$111,'PHALARIS SUB PASTURE GRAZING R2'!O$125:O$133)*(rng_rainfall=2)+SUM('PHALARIS SUB PASTURE GRAZING R2'!R$57:R$111,'PHALARIS SUB PASTURE GRAZING R2'!R$125:R$133)*(rng_rainfall=3))*(rng_PHA_GRAZING_DATA_SHEET_R2) -> 0 | M78: =(SUM(SUM('PHALARIS SUB PASTURE GRAZING R2'!U$57:U$111)/7,'PHALARIS SUB PASTURE GRAZING R2'!U$125:U$133))*(rng_PHA_GRAZING_DATA_SHEET_R2) -> 0 | N78: =(SUM('PHALARIS SUB PASTURE GRAZING R2'!L$113:L$113,'PHALARIS SUB PASTURE GRAZING R2'!L$138:L$138)*(rng_rainfall=1)+SUM('PHALARIS SUB PASTURE GRAZING R2'!O$113:O$113,'PHALARIS SUB PASTURE GRAZING R2'!O$138:O$138)*(rng_rainfall=2)+SUM('PHALARIS SUB PASTURE GRAZING R2'!R$113:R$113,'PHALARIS SUB PASTURE GRAZING R2'!R$138:R$138)*(rng_rainfall=3))*(rng_PHA_GRAZING_DATA_SHEET_R2) -> 0 | O78: =(SUM(SUM('PHALARIS SUB PASTURE GRAZING R2'!U$113:U$113)/7,'PHALARIS SUB PASTURE GRAZING R2'!U$138:U$138))*(rng_PHA_GRAZING_DATA_SHEET_R2) -> 0 | P78: =(SUM('PHALARIS SUB PASTURE GRAZING R2'!L$114:L$114,'PHALARIS SUB PASTURE GRAZING R2'!L$139:L$139)*(rng_rainfall=1)+SUM('PHALARIS SUB PASTURE GRAZING R2'!O$114:O$114,'PHALARIS SUB PASTURE GRAZING R2'!O$139:O$139)*(rng_rainfall=2)+SUM('PHALARIS SUB PASTURE GRAZING R2'!R$114:R$114,'PHALARIS SUB PASTURE GRAZING R2'!R$139:R$139)*(rng_rainfall=3))*(rng_PHA_GRAZING_DATA_SHEET_R2) -> 0 | Q78: =(SUM(SUM('PHALARIS SUB PASTURE GRAZING R2'!U$114:W$114)/7,'PHALARIS SUB PASTURE GRAZING R2'!U$139:W$139))*(rng_PHA_GRAZING_DATA_SHEET_R2) -> 0 | R78: =(SUM('PHALARIS SUB PASTURE GRAZING R2'!L$142:L$143)*(rng_rainfall=1)+SUM('PHALARIS SUB PASTURE GRAZING R2'!O$142:O$143)*(rng_rainfall=2)+SUM('PHALARIS SUB PASTURE GRAZING R2'!R$142:R$143)*(rng_rainfall=3))*(rng_PHA_GRAZING_DATA_SHEET_R2) -> 0 | S78: =(SUM('PHALARIS SUB PASTURE GRAZING R2'!U$142:W$143))*(rng_PHA_GRAZING_DATA_SHEET_R2) -> 0 | T78: 0 | U78: 0 | V78: 0 | W78: =('PHALARIS SUB PASTURE GRAZING R2'!$U$160)*(rng_PHA_GRAZING_DATA_SHEET_R2) -> 0
B79: TOTAL-ROTATION 2 | C79: =SUM(C54:C78) -> 0 | E79: =SUM(E54:E78) -> 0 | G79: =SUM(G54:G78) -> 0 | I79: =SUM(I54:I78) -> 0 | K79: =SUM(K54:K78) -> 0 | M79: =SUM(M54:M78) ->  | O79: =SUM(O54:O78) -> 0 | Q79: =SUM(Q54:Q78) -> 0 | S79: =SUM(S54:S78) -> 0 | U79: =SUM(U54:U78) ->  | W79: =SUM(W54:W78) -> 0
B81: Profit and Loss Statement (Rotation 2) | N81: Machinery Value (excluding leased machinery)
B82: Overhead Costs | F82: Amount | G82: Comments | N82: Item | Q82: Market Value
B83: Rates and Taxes | G83: Council rates and taxes | N83: Tractors | Q83: 350000
B84: General overheads | G84: Subscriptions, telephone, power, general insurance etc | N84: Seeder | Q84: 150000
B85: General R&M | G85: Excluding | H85: =Q79 -> 0 | I85: Cropping machinery R&M | N85: Sprayer/s | Q85: 200000
B86: Infrastructure depreciation / R&M | G86: Buildings, fences & watering systems | N86: Harvester | Q86: 400000
B87: Permanent Wages | G87: Wages paid to permanent employees, including family members | N87: Other Harvest (chase, bins, augers etc) | Q87: 120000
B88: Managers allowance-personal drawings | G88: Personel drawings | N88: Loader | Q88: 50000
B89: Machinery & plant depreciation | D89: TRUE | E89: Exclude | F89: =IF(D89=FALSE,Q97,0) -> 0 | G89: Normally 8 to 12% of market value; usually allow 10% (do not include leased machinery) | N89: Hay equipment | Q89: 20000
B90: Machinery lease | N90: Vehicles | Q90: 30000
B91: Land lease | N91: Truck/s | Q91: 40000
B92: Debt Servicing / Bank fees | G92: Interest and bank fees | N92: Spreader | Q92: 10000
B93: Total Overheads | F93: =SUM(F83:F92) -> 0 | N93: Other | Q93: 10000
B94: Farm Business Profit / Loss | F94: =E79-F93 -> 0 | N94: Sundries | Q94: 20000
N95: Total Machinery Value | Q95: =SUM(Q83:Q94) -> 1400000
B96: Percent Crop Income | F96: 1
B97: Wheat breakeven price | C97: (to cover variable | F97: =IFERROR( _xlfn.LET( _xlpm.ratio, C6/SUM(C6:C24), _xlpm.rain_idx, _xlfn.SWITCH(var_rain, "Low", 0, "medium", 3, "High", 6, 0), _xlpm.val_10, OFFSET('WHEAT R2'!$L$10, 0, _xlpm.rain_idx), _xlpm.val_164, OFFSET('WHEAT R2'!$L$165, 0, _xlpm.rain_idx), _xlpm.num, (_xlpm.ratio * SUM(F35, F39, F40, F43, F44) * F48) + (SUM(F41:F42) * _xlpm.ratio), _xlpm.den, _xlpm.val_10 * 'WHEAT R2'!$Y$6, (_xlpm.num / _xlpm.den) + _xlpm.val_164 ), 0) -> 0 | N97: Depreciation Rate % | P97: 0.1 | Q97: =Q95*P97 -> 140000
B98: Wheat breakeven yield | C98: and overhead costs) | F98: =F49 * CHOOSE(MATCH(var_rain, {"Low","medium","High"}, 0), 'WHEAT R2'!$L$10/'WHEAT R2'!$L$8, 'WHEAT R2'!$Q$10/'WHEAT R2'!$Q$8, 'WHEAT R2'!$V$10/'WHEAT R2'!$V$8) ->  | G98: /t/ha

Sheet Cash Flow
A1: Cash Flow
A2: Insert percentage of estimated "Income" and "Expenses" for each month
A3: Note: All prices and costs are GST exclusive.
A4: Income | B4: March | C4: April | D4: May | E4: June | F4: July | G4: Aug | H4: Sept | I4: Oct | J4: Nov | K4: Dec | L4: Jan | M4: Feb
A5: Wheat
A6: Barley
A7: Other cereals
A8: Pulses
A9: Canola
A10: Hay
A12: Expenses
A13: Fertiliser
A14: Chemicals
A15: Fuel and Oil
A16: R & M machinery
A17: Bank Interest
A19: Cash Flow for Peak Debt
A20: System 1 | B20: March | C20: April | D20: May | E20: June | F20: July | G20: Aug | H20: Sept | I20: Oct | J20: Nov | K20: Dec | L20: Jan | M20: Feb | N20: Total
A21: Income
A22: Wheat | B22: =Summary!$G6*B5 -> 0 | C22: =Summary!$G6*C5 -> 0 | D22: =Summary!$G6*D5 -> 0 | E22: =Summary!$G6*E5 -> 0 | F22: =Summary!$G6*F5 -> 0 | G22: =Summary!$G6*G5 -> 0 | H22: =Summary!$G6*H5 -> 0 | I22: =Summary!$G6*I5 -> 0 | J22: =Summary!$G6*J5 -> 0 | K22: =Summary!$G6*K5 -> 0 | L22: =Summary!$G6*L5 -> 0 | M22: =Summary!$G6*M5 -> 0 | N22: =SUM(B22:M22) -> 0 | O22: Reset formulas in aqua cells to the left for this row only
A23: Barley | B23: =(Summary!$G8+Summary!$G9)*B6 -> 0 | C23: =(Summary!$G8+Summary!$G9)*C6 -> 0 | D23: =(Summary!$G8+Summary!$G9)*D6 -> 0 | E23: =(Summary!$G8+Summary!$G9)*E6 -> 0 | F23: =(Summary!$G8+Summary!$G9)*F6 -> 0 | G23: =(Summary!$G8+Summary!$G9)*G6 -> 0 | H23: =(Summary!$G8+Summary!$G9)*H6 -> 0 | I23: =(Summary!$G8+Summary!$G9)*I6 -> 0 | J23: =(Summary!$G8+Summary!$G9)*J6 -> 0 | K23: =(Summary!$G8+Summary!$G9)*K6 -> 0 | L23: =(Summary!$G8+Summary!$G9)*L6 -> 0 | M23: =(Summary!$G8+Summary!$G9)*M6 -> 0 | N23: 0 | O23: Reset formulas in aqua cells to the left for this row only
A24: Other cereals | B24: =(Summary!$G7+Summary!$G10+Summary!$G11)*'Cash Flow'!B7 -> 0 | C24: =(Summary!$G7+Summary!$G10+Summary!$G11)*'Cash Flow'!C7 -> 0 | D24: =(Summary!$G7+Summary!$G10+Summary!$G11)*'Cash Flow'!D7 -> 0 | E24: =(Summary!$G7+Summary!$G10+Summary!$G11)*'Cash Flow'!E7 -> 0 | F24: =(Summary!$G7+Summary!$G10+Summary!$G11)*'Cash Flow'!F7 -> 0 | G24: =(Summary!$G7+Summary!$G10+Summary!$G11)*'Cash Flow'!G7 -> 0 | H24: =(Summary!$G7+Summary!$G10+Summary!$G11)*'Cash Flow'!H7 -> 0 | I24: =(Summary!$G7+Summary!$G10+Summary!$G11)*'Cash Flow'!I7 -> 0 | J24: =(Summary!$G7+Summary!$G10+Summary!$G11)*'Cash Flow'!J7 -> 0 | K24: =(Summary!$G7+Summary!$G10+Summary!$G11)*'Cash Flow'!K7 -> 0 | L24: =(Summary!$G7+Summary!$G10+Summary!$G11)*'Cash Flow'!L7 -> 0 | M24: =(Summary!$G7+Summary!$G10+Summary!$G11)*'Cash Flow'!M7 -> 0 | N24: 0 | O24: Reset formulas in aqua cells to the left for this row only
A25: Pulses | B25: =(SUM(Summary!$G13:$G16)+Summary!$G19+Summary!$G20)*'Cash Flow'!B8 -> 0 | C25: =(SUM(Summary!$G13:$G16)+Summary!$G19+Summary!$G20)*'Cash Flow'!C8 -> 0 | D25: =(SUM(Summary!$G13:$G16)+Summary!$G19+Summary!$G20)*'Cash Flow'!D8 -> 0 | E25: =(SUM(Summary!$G13:$G16)+Summary!$G19+Summary!$G20)*'Cash Flow'!E8 -> 0 | F25: =(SUM(Summary!$G13:$G16)+Summary!$G19+Summary!$G20)*'Cash Flow'!F8 -> 0 | G25: =(SUM(Summary!$G13:$G16)+Summary!$G19+Summary!$G20)*'Cash Flow'!G8 -> 0 | H25: =(SUM(Summary!$G13:$G16)+Summary!$G19+Summary!$G20)*'Cash Flow'!H8 -> 0 | I25: =(SUM(Summary!$G13:$G16)+Summary!$G19+Summary!$G20)*'Cash Flow'!I8 -> 0 | J25: =(SUM(Summary!$G13:$G16)+Summary!$G19+Summary!$G20)*'Cash Flow'!J8 -> 0 | K25: =(SUM(Summary!$G13:$G16)+Summary!$G19+Summary!$G20)*'Cash Flow'!K8 -> 0 | L25: =(SUM(Summary!$G13:$G16)+Summary!$G19+Summary!$G20)*'Cash Flow'!L8 -> 0 | M25: =(SUM(Summary!$G13:$G16)+Summary!$G19+Summary!$G20)*'Cash Flow'!M8 -> 0 | N25: 0 | O25: Reset formulas in aqua cells to the left for this row only
A26: Canola | B26: =SUM(Summary!$G$21:$G$24)*'Cash Flow'!B9 -> 0 | C26: =SUM(Summary!$G$21:$G$24)*'Cash Flow'!C9 -> 0 | D26: =SUM(Summary!$G$21:$G$24)*'Cash Flow'!D9 -> 0 | E26: =SUM(Summary!$G$21:$G$24)*'Cash Flow'!E9 -> 0 | F26: =SUM(Summary!$G$21:$G$24)*'Cash Flow'!F9 -> 0 | G26: =SUM(Summary!$G$21:$G$24)*'Cash Flow'!G9 -> 0 | H26: =SUM(Summary!$G$21:$G$24)*'Cash Flow'!H9 -> 0 | I26: =SUM(Summary!$G$21:$G$24)*'Cash Flow'!I9 -> 0 | J26: =SUM(Summary!$G$21:$G$24)*'Cash Flow'!J9 -> 0 | K26: =SUM(Summary!$G$21:$G$24)*'Cash Flow'!K9 -> 0 | L26: =SUM(Summary!$G$21:$G$24)*'Cash Flow'!L9 -> 0 | M26: =SUM(Summary!$G$21:$G$24)*'Cash Flow'!M9 -> 0 | N26: 0 | O26: Reset formulas in aqua cells to the left for this row only
A27: Hay | B27: =Summary!$G12*'Cash Flow'!B10 -> 0 | C27: =Summary!$G12*'Cash Flow'!C10 -> 0 | D27: =Summary!$G12*'Cash Flow'!D10 -> 0 | E27: =Summary!$G12*'Cash Flow'!E10 -> 0 | F27: =Summary!$G12*'Cash Flow'!F10 -> 0 | G27: =Summary!$G12*'Cash Flow'!G10 -> 0 | H27: =Summary!$G12*'Cash Flow'!H10 -> 0 | I27: =Summary!$G12*'Cash Flow'!I10 -> 0 | J27: =Summary!$G12*'Cash Flow'!J10 -> 0 | K27: =Summary!$G12*'Cash Flow'!K10 -> 0 | L27: =Summary!$G12*'Cash Flow'!L10 -> 0 | M27: =Summary!$G12*'Cash Flow'!M10 -> 0 | N27: 0 | O27: Reset formulas in aqua cells to the left for this row only
A28: Wool | N28: 0 | P28: Obtain from Livestock Gross margins file
A29: Lamb Sales | N29: 0 | P29: Obtain from Livestock Gross margins file
A30: Other Livestock | N30: 0 | P30: Obtain from Livestock Gross margins file
A31: Contracting | N31: 0
A32: Other Income | N32: 0
N33: 0
N34: 0
A35: Monthly Income | B35: =SUM(B22:B32) -> 0 | C35: 0 | D35: 0 | E35: 0 | F35: 0 | G35: 0 | H35: 0 | I35: 0 | J35: 0 | K35: 0 | L35: 0 | M35: 0 | N35: 0
A37: Costs | B37: March | C37: April | D37: May | E37: June | F37: July | G37: Aug | H37: Sept | I37: Oct | J37: Nov | K37: Dec | L37: Jan | M37: Feb | N37: Total
A38: Fetiliser | B38: =Summary!$K31*'Cash Flow'!B13 -> 0 | C38: =Summary!$K31*'Cash Flow'!C13 -> 0 | D38: =Summary!$K31*'Cash Flow'!D13 -> 0 | E38: =Summary!$K31*'Cash Flow'!E13 -> 0 | F38: =Summary!$K31*'Cash Flow'!F13 -> 0 | G38: =Summary!$K31*'Cash Flow'!G13 -> 0 | H38: =Summary!$K31*'Cash Flow'!H13 -> 0 | I38: =Summary!$K31*'Cash Flow'!I13 -> 0 | J38: =Summary!$K31*'Cash Flow'!J13 -> 0 | K38: =Summary!$K31*'Cash Flow'!K13 -> 0 | L38: =Summary!$K31*'Cash Flow'!L13 -> 0 | M38: =Summary!$K31*'Cash Flow'!M13 -> 0 | N38: =SUM(B38:M38) -> 0 | O38: Reset formulas in aqua cells to the left for this row only
A39: Chemicals | B39: =Summary!$M31*B14 ->  | C39: =Summary!$M31*C14 ->  | D39: =Summary!$M31*D14 ->  | E39: =Summary!$M31*E14 ->  | F39: =Summary!$M31*F14 ->  | G39: =Summary!$M31*G14 ->  | H39: =Summary!$M31*H14 ->  | I39: =Summary!$M31*I14 ->  | J39: =Summary!$M31*J14 ->  | K39: =Summary!$M31*K14 ->  | L39: =Summary!$M31*L14 ->  | M39: =Summary!$M31*M14 ->  | O39: Reset formulas in aqua cells to the left for this row only
A40: Seed | N40: 0 | O40: =Summary!I31 -> 0 | P40: Cropping/Pastures
A41: Fuel and Oil | N41: 0 | O41: =Summary!O31 -> 0 | P41: Cropping/Pastures
A42: R & M machinery | N42: 0 | O42: =Summary!Q31 -> 0 | P42: Cropping/Pastures
A43: R & M infrastructure | N43: 0
A44: Contract work | N44: 0
A45: Freight | N45: 0 | O45: =Summary!S31 -> 0 | P45: Cropping
A46: Land Lease | N46: 0
A47: Machinery Lease | N47: 0
A48: Bank Interest | B48: =Summary!$F44*B17 -> 0 | C48: =Summary!$F44*C17 -> 0 | D48: =Summary!$F44*D17 -> 0 | E48: =Summary!$F44*E17 -> 0 | F48: =Summary!$F44*F17 -> 0 | G48: =Summary!$F44*G17 -> 0 | H48: =Summary!$F44*H17 -> 0 | I48: =Summary!$F44*I17 -> 0 | J48: =Summary!$F44*J17 -> 0 | K48: =Summary!$F44*K17 -> 0 | L48: =Summary!$F44*L17 -> 0 | M48: =Summary!$F44*M17 -> 0 | N48: 0 | O48: Reset formulas in aqua cells to the left for this row only
A49: General Overheads | B49: =Summary!$F35/12 -> 0 | C49: =Summary!$F35/12 -> 0 | D49: =Summary!$F35/12 -> 0 | E49: =Summary!$F35/12 -> 0 | F49: =Summary!$F35/12 -> 0 | G49: =Summary!$F35/12 -> 0 | H49: =Summary!$F35/12 -> 0 | I49: =Summary!$F35/12 -> 0 | J49: =Summary!$F35/12 -> 0 | K49: =Summary!$F35/12 -> 0 | L49: =Summary!$F35/12 -> 0 | M49: =Summary!$F35/12 -> 0 | N49: 0 | O49: Reset formulas in aqua cells to the left for this row only
A50: Permanent Wages | B50: =Summary!$F39/12 -> 0 | C50: =Summary!$F39/12 -> 0 | D50: =Summary!$F39/12 -> 0 | E50: =Summary!$F39/12 -> 0 | F50: =Summary!$F39/12 -> 0 | G50: =Summary!$F39/12 -> 0 | H50: =Summary!$F39/12 -> 0 | I50: =Summary!$F39/12 -> 0 | J50: =Summary!$F39/12 -> 0 | K50: =Summary!$F39/12 -> 0 | L50: =Summary!$F39/12 -> 0 | M50: =Summary!$F39/12 -> 0 | N50: 0 | O50: Reset formulas in aqua cells to the left for this row only
A51: Personal Drawings | B51: =Summary!$F40/12 -> 0 | C51: =Summary!$F40/12 -> 0 | D51: =Summary!$F40/12 -> 0 | E51: =Summary!$F40/12 -> 0 | F51: =Summary!$F40/12 -> 0 | G51: =Summary!$F40/12 -> 0 | H51: =Summary!$F40/12 -> 0 | I51: =Summary!$F40/12 -> 0 | J51: =Summary!$F40/12 -> 0 | K51: =Summary!$F40/12 -> 0 | L51: =Summary!$F40/12 -> 0 | M51: =Summary!$F40/12 -> 0 | N51: 0 | O51: Reset formulas in aqua cells to the left for this row only
A52: Shearing & crutching | N52: 0 | P52: Obtain from Livestock Gross margins file
A53: Animal Health | N53: 0 | P53: Obtain from Livestock Gross margins file
A54: Livestock purchases | N54: 0 | P54: Obtain from Livestock Gross margins file
A55: Livestock Fodder | N55: 0
N56: 0
N57: 0
N58: 0
A59: Monthly Costs | B59: =SUM(B38:B55) -> 
A60: Monthly Balance | B60: =B35-B59 -> 
A61: Peak Debt | B61: =$B63+B60 ->  | C61: =B61+C60 -> 
A63: Starting Balance | B63: 0 | C63: Short term debt as negative
A65: Peak Debt | B65: =MIN(B61:M61) -> 

Sheet Yield Calculator (hidden)
A1: SARDI YIELD ESTIMATOR | C1: Modified from the SARDI WUE Spreadsheet
C2: For original spreadsheet, contact Dane Thomas Dane.Thomas@sa.gov.au or Pater Hayman Peter.Hayman@sa.gov.au | CG2: Variation in intecept of French Schultz equation with available water
C3: Primary Industries and Regions SA | CB3: Soil Data Lookup Table | CG3: Decile | CI3: Low | CJ3: 1 | CK3: 2 | CL3: 3 | CM3: 4 | CN3: 5 | CO3: 6 | CP3: 7 | CQ3: 8 | CR3: 9 | CS3: High
BX4: =VLOOKUP(CI4,$CG12:$CH35,2,TRUE) ->  | CB4: Texture | CC4: Texture Class | CD4: Bulk Density | CE4: C/N Ratio | CG4: Rainfall | CI4: =D18 -> 0 | CJ4: =$D19 -> 147.9 | CK4: =$D20 -> 178.3 | CL4: =$D21 -> 191.8 | CM4: =$D22 -> 219.2 | CN4: =$D23 -> 246.4 | CO4: =$D24 -> 262.8 | CP4: =$D25 -> 287.3 | CQ4: =$D26 -> 317.9 | CR4: =$D27 -> 365.5 | CS4: =D28 -> 478
A5: How to use this program: | CB5: Sand | CC5: 1 | CD5: 1.7 | CE5: 13.2 | CG5: GS available water code a | CK5: =IF(GS_rf<140,1,IF(GS_rf<150,2,IF(GS_rf<160,3,IF(GS_rf<170,4,IF(GS_rf<180,5,IF(GS_rf<190,6,IF(GS_rf<200,7,IF(GS_rf<210,8,"")))))))) -> 5
C6: Rainfall data from Silo https://www.longpaddock.qld.gov.au/silo/ | CB6: Loamy sand | CC6: 2 | CD6: 1.6 | CE6: 13.2 | CG6: GS available water code b | CK6: =IF(GS_rf<210,"",IF(GS_rf<220,9,IF(GS_rf<230,10,IF(GS_rf<240,11,IF(GS_rf<250,12,IF(GS_rf<260,13,IF(GS_rf<280,14,IF(GS_rf<300,15,IF(GS_rf<320,16,IF(GS_rf<340,17,18)))))))))) -> 
A7: 1. Select Location * - drop down menu | B7: User | C7: 1. Location (drop down menu) | D7: SNOWTOWN (RAYVILLE PARK) | G7: Crop | N7: Data used | Q7: Calculations | AF7: SILO input Data | CB7: Sandy loam | CC7: 3 | CD7: 1.5 | CE7: 11.4 | CG7: GS available water Code | CI7: =IF(ISNUMBER(VLOOKUP(CI4,$CG12:$CH35,2,TRUE)),VLOOKUP(CI4,$CG12:$CH35,2,TRUE),1) -> 1 | CJ7: =IF(ISNUMBER(VLOOKUP(CJ4,$CG12:$CH35,2,TRUE)),VLOOKUP(CJ4,$CG12:$CH35,2,TRUE),1) -> 4 | CK7: =IF(ISNUMBER(VLOOKUP(CK4,$CG12:$CH35,2,TRUE)),VLOOKUP(CK4,$CG12:$CH35,2,TRUE),1) -> 7 | CL7: 9 | CM7: 11 | CN7: 14 | CO7: 16 | CP7: 17 | CQ7: 18 | CR7: 21 | CS7: =IF(ISNUMBER(VLOOKUP(CS4,$CG12:$CH35,2,TRUE)),VLOOKUP(CS4,$CG15:$CH35,2,TRUE),1) -> 24
A8: 2. Select Soil type - for intercept calculation | B8: User | C8: 2. Soil Type (drop down) | D8: 5 | G8: Wheat | H8: Barley | I8: Canola | J8: Hay | K8: Pulse 1 | L8: Pulse 2 | N8: PLEASE DON'T DELETE OR ADJUST FORMULA IN THESE COLUMNS | CB8: Light sandy clay loam | CC8: 4 | CD8: 1.4 | CE8: 11.4 | CG8: Soil type code | CK8: =$D$8 -> 5
A9: 3. Input Rain from sowing to today | B9: User | C9: 3. Rain from sowing to today (mm) | D9: 0 | G9: WUE | H9: WUE | I9: WUE | J9: WUE | K9: WUE | L9: WUE | Q9: From | R9: 91 | S9: =D11-DATE(YEAR(D11),1,1)+1 -> 121 | CB9: Loam | CC9: 5 | CD9: 1.3 | CE9: 10.5 | CG9: Intercept | CI9: =INDEX(fs_intercept_array,CI7,soil_type_code) -> 80 | CJ9: 80 | CK9: 90 | CL9: 96.66666667 | CM9: 101.6666667 | CN9: 106 | CO9: 109 | CP9: 112 | CQ9: 114 | CR9: 128 | CS9: 145
C10: Historic Rain | E10: 7. Starting soil water (mm) | G10: 20 | H10: 10 | I10: 0 | J10: 0 | K10: 0 | L10: 0 | Q10: To | R10: 304 | S10: =D12-DATE(YEAR(D12),1,1)+1 -> 283 | AB10: =INDEX($AD$10:$AY$10,MATCH($D$7,$AD$12:$BD$12,0)) -> 9 | AD10: 1 | AE10: 2 | AF10: 3 | AG10: 4 | AH10: 5 | AI10: 6 | AJ10: 7 | AK10: 8 | AL10: 9 | AM10: 10 | AN10: 11 | AO10: 12 | AP10: 13 | AQ10: 14 | AR10: 15 | AS10: 16 | AT10: 17 | AU10: 18 | AV10: 19 | AW10: 20 | CB10: Sandy clay | CC10: 6 | CD10: 1.4 | CE10: 10.5
A11: 4. Enter date of today | B11: User | C11: 4. From Today (enter Date) | D11: 2025-05-01 | E11: 8. Intercept adjustment mm | G11: 0 | H11: 0 | I11: 0 | J11: 0 | K11: 10 | L11: 0 | AD11: 21016 | AE11: 21002 | AF11: 19006 | AG11: 21060 | AH11: 22008 | AI11: 23009 | AJ11: 19032 | AK11: 19037 | AL11: 21133 | CB11: Light clay | CC11: 7 | CD11: 1.4 | CE11: 10.5 | CG11: GSR | CH11: GSR code | CI11: sand | CJ11: loamy sand | CK11: sandy loam | CL11: light sandy clay loam | CM11: loam | CN11: sandy clay | CO11: light clay | CP11: clay loam | CQ11: clay
A12: 5. Enter End of period (crop maturity) | B12: User | C12: 5. To (enter Date) | D12: 2025-10-10 | E12: 9. Yield Slope kg/ha/mm | G12: 22 | H12: 20 | I12: 12 | J12: 35 | K12: 10 | L12: 11 | P12: =D7 -> SNOWTOWN (RAYVILLE PARK) | AD12: CRYSTAL BROOK | AE12: BALAKLAVA | AF12: BOOLEROO CTRE | AG12: JAMESTOWN PIRSA | AH12: MAITLAND | AI12: MALLALA | AJ12: ORROROO | AK12: PORT GERMEIN | AL12: SNOWTOWN (RAYVILLE PARK) | CB12: Clay loam | CC12: 8 | CD12: 1.5 | CE12: 9.8 | CG12: 110 | CH12: 1 | CI12: 50 | CJ12: 55 | CK12: 60 | CL12: 75 | CM12: 80 | CN12: 85 | CO12: 90 | CP12: 90 | CQ12: 110
A13: 6. Select Climate Driver | B13: User | C13: 6. Climate Driver (select) | D13: Ignore Climate Drivers | N13: year | O13: day | P13: rain | Q13: Date | R13: Month | S13: Dates | T13: Year | U13: ClimateDriver | V13: Driver | W13: GSR | X13: Decile | Y13: Rain From Date | Z13: Decile | AB13: year | AC13: day | AD13: Rain | AE13: Rain | AF13: Rain | AG13: Rain | AH13: Rain | AI13: Rain | AJ13: Rain | AK13: Rain | AL13: Rain | CB13: Clay | CC13: 9 | CD13: 1.6 | CE13: 9.8 | CG13: 120 | CH13: 2 | CI13: 53 | CJ13: 58 | CK13: 63 | CL13: 75 | CM13: 80 | CN13: 85 | CO13: 90 | CP13: 90 | CQ13: 110
A14: 7. Starting soil water at sowing - input | B14: User | C14: Number of years in the sample | D14: =CONCATENATE(W191, " Years") -> 126 Years | N14: 1900 | O14: 1 | P14: =OFFSET(AC14,0,$AB$10) -> 0 | Q14: 1900-01-01 | R14: =_xlfn.LET( _xlpm.full_col, N14:N100000, _xlpm.last_row, MATCH(2, 1/(_xlpm.full_col<>""), 1), _xlpm.yrs, _xlfn.TAKE(N14:N100000, _xlpm.last_row), _xlpm.vals, _xlfn.TAKE(O14:O100000, _xlpm.last_row), _xlpm.is_leap, (MOD(_xlpm.yrs, 4) = 0), IFERROR(--((_xlpm.vals >= R$9 + _xlpm.is_leap) * (_xlpm.vals <= R$10 + _xlpm.is_leap)), 0) ) -> 0 | S14: =_xlfn.LET( _xlpm.full_col, N14:N100000, _xlpm.last_row, MATCH(2, 1/(_xlpm.full_col<>""), 1), _xlpm.yrs, _xlfn.TAKE(N14:N100000, _xlpm.last_row), _xlpm.vals, _xlfn.TAKE(O14:O100000, _xlpm.last_row), _xlpm.is_leap, (MOD(_xlpm.yrs, 4) = 0), IFERROR(--((_xlpm.vals >= S$9 + _xlpm.is_leap) * (_xlpm.vals <= S$10 + _xlpm.is_leap)), 0) ) -> 0 | T14: 1900 | U14: Neutral | V14: 1 | W14: =_xlfn.LET( _xlpm.data_end, MATCH(2, 1/(N:N<>""), 1), _xlpm.p_range, INDEX(P:P, 14):INDEX(P:P, _xlpm.data_end), _xlpm.n_range, INDEX(N:N, 14):INDEX(N:N, _xlpm.data_end), _xlpm.r_range, INDEX(R:R, 14):INDEX(R:R, _xlpm.data_end), _xlpm.last_t_row, MATCH(9.9E+307, T14:T150, 1), _xlpm.t_years, _xlfn.TAKE(T14:T150, _xlpm.last_t_row), _xlpm.results, _xlfn.MAP(_xlpm.t_years, _xlfn.LAMBDA(_xlpm.yr, SUMIFS(_xlpm.p_range, _xlpm.n_range, _xlpm.yr, _xlpm.r_range, 1))), _xlpm.results ) -> 352.5 | X14: =_xlfn.XMATCH(W14, W$154:W$163,1) -> 8 | Y14: =_xlfn.LET( _xlpm.data_end, MATCH(2, 1/(N:N<>""), 1), _xlpm.p_range, INDEX(P:P, 14):INDEX(P:P, _xlpm.data_end), _xlpm.n_range, INDEX(N:N, 14):INDEX(N:N, _xlpm.data_end), _xlpm.s_range, INDEX(S:S, 14):INDEX(S:S, _xlpm.data_end), _xlpm.last_t_row, MATCH(9.9E+307, T14:T150, 1), _xlpm.t_years, _xlfn.TAKE(T14:T150, _xlpm.last_t_row), _xlpm.results, _xlfn.MAP(_xlpm.t_years, _xlfn.LAMBDA(_xlpm.yr, SUMIFS(_xlpm.p_range, _xlpm.n_range, _xlpm.yr, _xlpm.s_range, 1))), _xlpm.results ) -> 285.6 | Z14: =_xlfn.XMATCH(Y14, Y$154:Y$163,1) -> 7 | AB14: 1900 | AC14: 1 | AD14: 0 | AE14: 0 | AF14: 0 | AG14: 0 | AH14: 0 | AI14: 0 | AJ14: 0 | AK14: 0 | AL14: 0 | CG14: 130 | CH14: 3 | CI14: 57 | CJ14: 62 | CK14: 67 | CL14: 75 | CM14: 80 | CN14: 85 | CO14: 90 | CP14: 90 | CQ14: 110
A15: 8. Adjust intercept for soil constraints. | B15: User | N15: 1900 | O15: 2 | P15: 0 | Q15: 1900-01-02 | R15: 0 | S15: 0 | T15: 1901 | U15: Neutral | V15: 1 | W15: 292.1 | X15: 5 | Y15: 197.6 | Z15: 4 | AB15: 1900 | AC15: 2 | AD15: 0 | AE15: 0 | AF15: 0 | AG15: 0 | AH15: 0 | AI15: 0 | AJ15: 0 | AK15: 0 | AL15: 0 | CG15: 140 | CH15: 4 | CI15: 60 | CJ15: 65 | CK15: 70 | CL15: 75 | CM15: 80 | CN15: 85 | CO15: 90 | CP15: 90 | CQ15: 110
A16: 9. Yield slope for water use efficiency. User can alter 10. WUE intercept varies with soil type and rainfall | B16: User | D16: Historic Rain | E16: Estimate Crop Water Supply mm | F16: 10. WUE Intercept mm | G16: =G8 -> Wheat | H16: Barley | I16: Canola | J16: Hay | K16: Pulse 1 | L16: Pulse 2 | M16: Crop | N16: 1900 | O16: 3 | P16: 0.2 | Q16: 1900-01-03 | R16: 0 | S16: 0 | T16: 1902 | U16: El Nino / +IOD | V16: 6 | W16: 178.4 | X16: 2 | Y16: 145.3 | Z16: 1 | AB16: 1900 | AC16: 3 | AD16: 0.8 | AE16: 0 | AF16: 0 | AG16: 0 | AH16: 0 | AI16: 0 | AJ16: 0.5 | AK16: 0 | AL16: 0.2 | CG16: 150 | CH16: 5 | CI16: 63 | CJ16: 68 | CK16: 73 | CL16: =CL15+(CL18-CL15)/3 -> 78.33333333 | CM16: 83.33333333 | CN16: 88.33333333 | CO16: 91.66666667 | CP16: 91 | CQ16: 110
D17: mm | F17: from APSIM | G17: t/ha | H17: t/ha | I17: t/ha | J17: t/ha | K17: t/ha | L17: t/ha | M17: Production | N17: 1900 | O17: 4 | P17: 0 | Q17: 1900-01-04 | R17: 0 | S17: 0 | T17: 1903 | U17: La Nina | V17: 2 | W17: 307 | X17: 6 | Y17: 247.1 | Z17: 6 | AB17: 1900 | AC17: 4 | AD17: 0 | AE17: 0 | AF17: 0 | AG17: 0 | AH17: 0 | AI17: 0 | AJ17: 0 | AK17: 0 | AL17: 0 | CC17: Decile | CD17: Season | CG17: 160 | CH17: 6 | CI17: 67 | CJ17: 72 | CK17: 77 | CL17: =CL15+(CL18-CL15)/3*2 -> 81.66666667 | CM17: 86.66666667 | CN17: 91.66666667 | CO17: 93.33333333 | CP17: 92 | CQ17: 110
B18: Calc | C18: Minimum in Record | D18: =Y192 -> 0 | E18: =$G$10+$D$9+D18 -> 20 | F18: =CI9 -> 80 | G18: =MAX(0,($E18-$F18-G$11)*G$12/1000) -> 0 | H18: =MAX(0,($E18+(H$10-$G$10)-$F18-H$11)*H$12/1000) -> 0 | I18: 0 | J18: 0 | K18: =MAX(0,($E18+(K$10-$G$10)-$F18-K$11)*K$12/1000) -> 0 | L18: 0 | N18: 1900 | O18: 5 | P18: 0 | Q18: 1900-01-05 | R18: 0 | S18: 0 | T18: 1904 | U18: Neutral | V18: 1 | W18: 318.2 | X18: 7 | Y18: 226.6 | Z18: 5 | AB18: 1900 | AC18: 5 | AD18: 0 | AE18: 0 | AF18: 0 | AG18: 0 | AH18: 0 | AI18: 0 | AJ18: 0 | AK18: 0 | AL18: 0 | CB18: 1 | CC18: Decile 1 | CD18: Poor | CG18: 170 | CH18: 7 | CI18: 70 | CJ18: 75 | CK18: 80 | CL18: 85 | CM18: 90 | CN18: 95 | CO18: 95 | CP18: 93 | CQ18: 110
A19: * Click to get "Instructions for new locations" | B19: Calc | C19: Decile 1 | D19: 147.9 | E19: 167.9 | F19: =CJ9 -> 80 | G19: 1.9338 | H19: 1.558 | I19: 0.8148 | J19: 2.3765 | K19: 0.579 | L19: 0.7469 | M19: Poor | N19: 1900 | O19: 6 | P19: 0 | Q19: 1900-01-06 | R19: 0 | S19: 0 | T19: 1905 | U19: El Nino | V19: 3 | W19: 450.4 | X19: 10 | Y19: 306.7 | Z19: 8 | AB19: 1900 | AC19: 6 | AD19: 0 | AE19: 0 | AF19: 0 | AG19: 0 | AH19: 0 | AI19: 0 | AJ19: 0 | AK19: 0 | AL19: 0 | CB19: 2 | CC19: Decile 3 | CD19: Below average | CG19: 180 | CH19: 8 | CI19: 73 | CJ19: 78 | CK19: 83 | CL19: =CL18+(CL21-CL18)/3 -> 88.33333333 | CM19: 93.33333333 | CN19: 98 | CO19: 98.33333333 | CP19: 98.66666667 | CQ19: 113.3333333
B20: Calc | C20: Decile 2 | D20: 178.3 | E20: 198.3 | F20: =CK9 -> 90 | G20: 2.3826 | H20: 1.966 | I20: 1.0596 | J20: 3.0905 | K20: 0.783 | L20: 0.9713 | N20: 1900 | O20: 7 | P20: 0 | Q20: 1900-01-07 | R20: 0 | S20: 0 | T20: 1906 | U20: La Nina / -IOD | V20: 7 | W20: 332.6 | X20: 7 | Y20: 321.9 | Z20: 9 | AB20: 1900 | AC20: 7 | AD20: 0 | AE20: 0 | AF20: 0 | AG20: 0 | AH20: 0 | AI20: 0 | AJ20: 0 | AK20: 0 | AL20: 0 | CB20: 3 | CC20: Decile 5 | CD20: Average | CG20: 190 | CH20: 9 | CI20: =CI18+(CI21-CI18)/3*2 -> 76.66666667 | CJ20: 82 | CK20: 87 | CL20: 92 | CM20: 96.66666667 | CN20: 102 | CO20: 101.6666667 | CP20: 104.3333333 | CQ20: 116.6666667
B21: Calc | C21: Decile 3 | D21: 191.8 | E21: 211.8 | F21: =CL9 -> 96.66666667 | G21: 2.532933333 | H21: 2.102666667 | I21: 1.1416 | J21: 3.329666667 | K21: 0.8513333333 | L21: 1.046466667 | M21: Below Average | N21: 1900 | O21: 8 | P21: 0 | Q21: 1900-01-08 | R21: 0 | S21: 0 | T21: 1907 | U21: Neutral | V21: 1 | W21: 321.5 | X21: 7 | Y21: 251.3 | Z21: 6 | AB21: 1900 | AC21: 8 | AD21: 0 | AE21: 0 | AF21: 0 | AG21: 0 | AH21: 0 | AI21: 0 | AJ21: 0 | AK21: 0 | AL21: 0 | CB21: 4 | CC21: Decile 7 | CD21: Above average | CG21: 200 | CH21: 10 | CI21: 80 | CJ21: 85 | CK21: 90 | CL21: 95 | CM21: 100 | CN21: 105 | CO21: 105 | CP21: 110 | CQ21: 120
B22: Calc | C22: Decile 4 | D22: 219.2 | E22: 239.2 | F22: =CM9 -> 101.6666667 | G22: 3.025733333 | H22: 2.550666667 | I22: 1.4104 | J22: 4.113666667 | K22: 1.075333333 | L22: 1.292866667 | N22: 1900 | O22: 9 | P22: 0 | Q22: 1900-01-09 | R22: 0 | S22: 0 | T22: 1908 | U22: Neutral | V22: 1 | W22: 487.3 | X22: 10 | Y22: 426.3 | Z22: 10 | AB22: 1900 | AC22: 9 | AD22: 0 | AE22: 0 | AF22: 0 | AG22: 0 | AH22: 20 | AI22: 0 | AJ22: 0 | AK22: 0 | AL22: 0 | CB22: 5 | CC22: Decile 9 | CD22: Very good | CG22: 210 | CH22: 11 | CI22: 85 | CJ22: 90 | CK22: 93 | CL22: 98 | CM22: =CM21+(CM24-CM21)/3 -> 101.6666667 | CN22: =CN21+(CN24-CN21)/3 -> 106.6666667 | CO22: =CO21+(CO24-CO21)/3 -> 106.6666667 | CP22: =CP21+(CP24-CP21)/3 -> 111.6666667 | CQ22: =CQ21+(CQ24-CQ21)/3 -> 121.6666667
B23: Calc | C23: Decile 5 | D23: 246.4 | E23: 266.4 | F23: =CN9 -> 106 | G23: 3.5288 | H23: 3.008 | I23: 1.6848 | J23: 4.914 | K23: 1.304 | L23: 1.5444 | M23: Average | N23: 1900 | O23: 10 | P23: 0.4 | Q23: 1900-01-10 | R23: 0 | S23: 0 | T23: 1909 | U23: La Nina / -IOD | V23: 7 | W23: 442.9 | X23: 10 | Y23: 378.9 | Z23: 10 | AB23: 1900 | AC23: 10 | AD23: 0.5 | AE23: 1.3 | AF23: 0 | AG23: 0 | AH23: 2.5 | AI23: 2.8 | AJ23: 0.3 | AK23: 0 | AL23: 0.4 | CG23: 220 | CH23: 12 | CI23: 91 | CJ23: 95 | CK23: 97 | CL23: 101 | CM23: =CM21+(CM24-CM21)/3*2 -> 103.3333333 | CN23: =CN21+(CN24-CN21)/3*2 -> 108.3333333 | CO23: =CO21+(CO24-CO21)/3*2 -> 108.3333333 | CP23: =CP21+(CP24-CP21)/3*2 -> 113.3333333 | CQ23: =CQ21+(CQ24-CQ21)/3*2 -> 123.3333333
B24: Calc | C24: Decile 6 | D24: 262.8 | E24: 282.8 | F24: =CO9 -> 109 | G24: 3.8236 | H24: 3.276 | I24: 1.8456 | J24: 5.383 | K24: 1.438 | L24: 1.6918 | N24: 1900 | O24: 11 | P24: 0 | Q24: 1900-01-11 | R24: 0 | S24: 0 | T24: 1910 | U24: La Nina | V24: 2 | W24: 448.5 | X24: 10 | Y24: 423.2 | Z24: 10 | AB24: 1900 | AC24: 11 | AD24: 0 | AE24: 0 | AF24: 0 | AG24: 0.1 | AH24: 0 | AI24: 0 | AJ24: 0 | AK24: 0.5 | AL24: 0 | CG24: 230 | CH24: 13 | CI24: 98 | CJ24: 98 | CK24: 100 | CL24: 104 | CM24: 105 | CN24: 110 | CO24: 110 | CP24: 115 | CQ24: 125
B25: Calc | C25: Decile 7 | D25: 287.3 | E25: 307.3 | F25: =CP9 -> 112 | G25: 4.2966 | H25: 3.706 | I25: 2.1036 | J25: 6.1355 | K25: 1.653 | L25: 1.9283 | M25: Above Average | N25: 1900 | O25: 12 | P25: 0 | Q25: 1900-01-12 | R25: 0 | S25: 0 | T25: 1911 | U25: El Nino | V25: 3 | W25: 214.4 | X25: 3 | Y25: 206.2 | Z25: 4 | AB25: 1900 | AC25: 12 | AD25: 0 | AE25: 0 | AF25: 0 | AG25: 0 | AH25: 0 | AI25: 0 | AJ25: 0 | AK25: 0 | AL25: 0 | CG25: 240 | CH25: 14 | CI25: 104 | CJ25: 103 | CK25: 103 | CL25: 106 | CM25: 106 | CN25: 112 | CO25: 112 | CP25: 117 | CQ25: =CQ24+(CQ27-CQ24)/3 -> 125.6666667
B26: Calc | C26: Decile 8 | D26: 317.9 | E26: 337.9 | F26: =CQ9 -> 114 | G26: 4.9258 | H26: 4.278 | I26: 2.4468 | J26: 7.1365 | K26: 1.939 | L26: 2.2429 | N26: 1900 | O26: 13 | P26: 0 | Q26: 1900-01-13 | R26: 0 | S26: 0 | T26: 1912 | U26: Neutral | V26: 1 | W26: 247.1 | X26: 4 | Y26: 232 | Z26: 5 | AB26: 1900 | AC26: 13 | AD26: 0 | AE26: 0 | AF26: 0 | AG26: 0 | AH26: 0 | AI26: 0 | AJ26: 0 | AK26: 0 | AL26: 0 | CG26: 250 | CH26: 15 | CI26: 110 | CJ26: 108 | CK26: 107 | CL26: 108 | CM26: 107 | CN26: 113 | CO26: 113 | CP26: 118 | CQ26: =CQ24+(CQ27-CQ24)/3*2 -> 126.3333333
B27: Calc | C27: Decile 9 | D27: 365.5 | E27: 385.5 | F27: =CR9 -> 128 | G27: 5.665 | H27: 4.95 | I27: 2.85 | J27: 8.3125 | K27: 2.275 | L27: 2.6125 | M27: Very Good | N27: 1900 | O27: 14 | P27: 0 | Q27: 1900-01-14 | R27: 0 | S27: 0 | T27: 1913 | U27: El Nino / +IOD | V27: 6 | W27: 223.6 | X27: 3 | Y27: 179.7 | Z27: 3 | AB27: 1900 | AC27: 14 | AD27: 0 | AE27: 0 | AF27: 0 | AG27: 0 | AH27: 0 | AI27: 0 | AJ27: 0 | AK27: 0 | AL27: 0 | CG27: 260 | CH27: 16 | CI27: 116 | CJ27: 114 | CK27: 112 | CL27: 110 | CM27: 109 | CN27: 115 | CO27: 115 | CP27: 119 | CQ27: 127
B28: Calc | C28: Decile 10 (maximum on Record) | D28: 478 | E28: 498 | F28: =CS9 -> 145 | G28: 7.766 | H28: 6.86 | I28: 3.996 | J28: 11.655 | K28: 3.23 | L28: 3.663 | N28: 1900 | O28: 15 | P28: 0 | Q28: 1900-01-15 | R28: 0 | S28: 0 | T28: 1914 | U28: El Nino | V28: 3 | W28: 111.7 | X28: 1 | Y28: 91.5 | Z28: 1 | AB28: 1900 | AC28: 15 | AD28: 0 | AE28: 0 | AF28: 0 | AG28: 0 | AH28: 0 | AI28: 0 | AJ28: 0 | AK28: 0 | AL28: 0 | CG28: 280 | CH28: 17 | CI28: 124 | CJ28: 122 | CK28: 118 | CL28: 113 | CM28: 112 | CN28: 117 | CO28: 117 | CP28: 122 | CQ28: 129
N29: 1900 | O29: 16 | P29: 0 | Q29: 1900-01-16 | R29: 0 | S29: 0 | T29: 1915 | U29: Negative IOD | V29: 4 | W29: 409.8 | X29: 9 | Y29: 328 | Z29: 9 | AB29: 1900 | AC29: 16 | AD29: 0 | AE29: 0 | AF29: 0 | AG29: 0 | AH29: 0 | AI29: 0 | AJ29: 0 | AK29: 0 | AL29: 0 | CG29: 300 | CH29: 18 | CI29: 132 | CJ29: 132 | CK29: 126 | CL29: 116 | CM29: 114 | CN29: 120 | CO29: 120 | CP29: 124 | CQ29: 130
A30: Crop Yield Slope Guide ** | N30: 1900 | O30: 17 | P30: 0.2 | Q30: 1900-01-17 | R30: 0 | S30: 0 | T30: 1916 | U30: La Nina / -IOD | V30: 7 | W30: 538.8 | X30: 10 | Y30: 474.3 | Z30: 10 | AB30: 1900 | AC30: 17 | AD30: 0.8 | AE30: 0 | AF30: 0 | AG30: 0 | AH30: 0 | AI30: 0 | AJ30: 0 | AK30: 0 | AL30: 0.2 | CG30: 320 | CH30: 19 | CI30: 140 | CJ30: 140 | CK30: 132 | CL30: 120 | CM30: 118 | CN30: 124 | CO30: 124 | CP30: 126 | CQ30: 133
A31: Wheat | B31: 24 | N31: 1900 | O31: 18 | P31: 0.7 | Q31: 1900-01-18 | R31: 0 | S31: 0 | T31: 1917 | U31: La Nina / -IOD | V31: 7 | W31: 519.3 | X31: 10 | Y31: 478 | Z31: 10 | AB31: 1900 | AC31: 18 | AD31: 0 | AE31: 0 | AF31: 0 | AG31: 0 | AH31: 1 | AI31: 0 | AJ31: 1.8 | AK31: 0 | AL31: 0.7 | CG31: 340 | CH31: 20 | CI31: 148 | CJ31: 148 | CK31: 136 | CL31: 125 | CM31: 122 | CN31: 128 | CO31: 128 | CP31: 130 | CQ31: 135
A32: Barley | B32: 22 | N32: 1900 | O32: 19 | P32: 2.5 | Q32: 1900-01-19 | R32: 0 | S32: 0 | T32: 1918 | U32: Neutral | V32: 1 | W32: 294.7 | X32: 5 | Y32: 251 | Z32: 6 | AB32: 1900 | AC32: 19 | AD32: 4.6 | AE32: 4.6 | AF32: 12.7 | AG32: 6.7 | AH32: 0 | AI32: 0 | AJ32: 4.3 | AK32: 3.6 | AL32: 2.5 | CG32: 360 | CH32: 21 | CI32: 156 | CJ32: 156 | CK32: 140 | CL32: 130 | CM32: 128 | CN32: 132 | CO32: 132 | CP32: 133 | CQ32: 138
A33: Other cereals | B33: 20 | N33: 1900 | O33: 20 | P33: 0 | Q33: 1900-01-20 | R33: 0 | S33: 0 | T33: 1919 | U33: El Nino / +IOD | V33: 6 | W33: 274 | X33: 5 | Y33: 247.1 | Z33: 6 | AB33: 1900 | AC33: 20 | AD33: 0 | AE33: 0 | AF33: 0 | AG33: 0 | AH33: 0 | AI33: 0 | AJ33: 0 | AK33: 0 | AL33: 0 | CG33: 380 | CH33: 22 | CI33: 163 | CJ33: 163 | CK33: 144 | CL33: 134 | CM33: 134 | CN33: 136 | CO33: 136 | CP33: 137 | CQ33: 140
A34: Oaten hay | B34: 38 | N34: 1900 | O34: 21 | P34: 0.7 | Q34: 1900-01-21 | R34: 0 | S34: 0 | T34: 1920 | U34: Neutral | V34: 1 | W34: 415.2 | X34: 9 | Y34: 352.1 | Z34: 9 | AB34: 1900 | AC34: 21 | AD34: 3.2 | AE34: 0 | AF34: 0 | AG34: 0.4 | AH34: 5.6 | AI34: 0 | AJ34: 2 | AK34: 0 | AL34: 0.7 | CG34: 400 | CH34: 23 | CI34: 170 | CJ34: 170 | CK34: 148 | CL34: 138 | CM34: 140 | CN34: 140 | CO34: 140 | CP34: 141 | CQ34: 142
A35: Canola | B35: 11 | N35: 1900 | O35: 22 | P35: 0 | Q35: 1900-01-22 | R35: 0 | S35: 0 | T35: 1921 | U35: Neutral | V35: 1 | W35: 319.7 | X35: 7 | Y35: 302.2 | Z35: 8 | AB35: 1900 | AC35: 22 | AD35: 0.9 | AE35: 0 | AF35: 0 | AG35: 0.8 | AH35: 0 | AI35: 6.9 | AJ35: 0 | AK35: 0 | AL35: 0 | CG35: 450 | CH35: 24 | CI35: 180 | CJ35: 180 | CK35: 160 | CL35: 145 | CM35: 145 | CN35: 150 | CO35: 150 | CP35: 150 | CQ35: 150
A36: Lentils | B36: 11 | N36: 1900 | O36: 23 | P36: 0 | Q36: 1900-01-23 | R36: 0 | S36: 0 | T36: 1922 | U36: Neutral | V36: 1 | W36: 341 | X36: 7 | Y36: 290.1 | Z36: 8 | AB36: 1900 | AC36: 23 | AD36: 0 | AE36: 0 | AF36: 0 | AG36: 0 | AH36: 0 | AI36: 0 | AJ36: 0 | AK36: 0 | AL36: 0
A37: Beans | B37: 11 | N37: 1900 | O37: 24 | P37: 0 | Q37: 1900-01-24 | R37: 0 | S37: 0 | T37: 1923 | U37: Positive IOD | V37: 5 | W37: 402.8 | X37: 9 | Y37: 365.5 | Z37: 9 | AB37: 1900 | AC37: 24 | AD37: 0 | AE37: 0 | AF37: 0 | AG37: 0 | AH37: 0 | AI37: 0 | AJ37: 0 | AK37: 0 | AL37: 0
A38: Field peas | B38: 11 | N38: 1900 | O38: 25 | P38: 0 | Q38: 1900-01-25 | R38: 0 | S38: 0 | T38: 1924 | U38: La Nina | V38: 2 | W38: 305.6 | X38: 6 | Y38: 239.6 | Z38: 5 | AB38: 1900 | AC38: 25 | AD38: 0 | AE38: 0 | AF38: 0 | AG38: 0 | AH38: 0 | AI38: 0 | AJ38: 0 | AK38: 0 | AL38: 0
A39: Chickpeas | B39: 10 | N39: 1900 | O39: 26 | P39: 0 | Q39: 1900-01-26 | R39: 0 | S39: 0 | T39: 1925 | U39: El Nino | V39: 3 | W39: 263.4 | X39: 4 | Y39: 201.9 | Z39: 4 | AB39: 1900 | AC39: 26 | AD39: 0 | AE39: 0 | AF39: 0 | AG39: 0 | AH39: 0 | AI39: 0 | AJ39: 0 | AK39: 0 | AL39: 0
A40: Lupins | B40: 10 | N40: 1900 | O40: 27 | P40: 0 | Q40: 1900-01-27 | R40: 0 | S40: 0 | T40: 1926 | U40: Positive IOD | V40: 5 | W40: 349.8 | X40: 8 | Y40: 299.6 | Z40: 8 | AB40: 1900 | AC40: 27 | AD40: 0 | AE40: 0 | AF40: 0 | AG40: 0 | AH40: 0 | AI40: 0 | AJ40: 0 | AK40: 0 | AL40: 0
A41: Vetch | B41: 8 | N41: 1900 | O41: 28 | P41: 0.2 | Q41: 1900-01-28 | R41: 0 | S41: 0 | T41: 1927 | U41: Neutral | V41: 1 | W41: 201.2 | X41: 2 | Y41: 191.8 | Z41: 3 | AB41: 1900 | AC41: 28 | AD41: 0 | AE41: 0 | AF41: 0 | AG41: 0 | AH41: 0 | AI41: 0 | AJ41: 0 | AK41: 0 | AL41: 0.2
A42: ** Will be lower where time of sowing, weeds, disease | N42: 1900 | O42: 29 | P42: 0 | Q42: 1900-01-29 | R42: 0 | S42: 0 | T42: 1928 | U42: La Nina | V42: 2 | W42: 189.2 | X42: 2 | Y42: 171.6 | Z42: 2 | AB42: 1900 | AC42: 29 | AD42: 0 | AE42: 0 | AF42: 0 | AG42: 0 | AH42: 6.1 | AI42: 3.8 | AJ42: 0 | AK42: 0 | AL42: 0
A43: or nutrition limit yield | N43: 1900 | O43: 30 | P43: 0.8 | Q43: 1900-01-30 | R43: 0 | S43: 0 | T43: 1929 | U43: La Nina | V43: 2 | W43: 195.2 | X43: 2 | Y43: 189.9 | Z43: 3 | AB43: 1900 | AC43: 30 | AD43: 0 | AE43: 4.3 | AF43: 0 | AG43: 0 | AH43: 0 | AI43: 2.3 | AJ43: 0 | AK43: 0 | AL43: 0.8
N44: 1900 | O44: 31 | P44: 0 | Q44: 1900-01-31 | R44: 0 | S44: 0 | T44: 1930 | U44: Negative IOD | V44: 4 | W44: 270.3 | X44: 4 | Y44: 173.8 | Z44: 2 | AB44: 1900 | AC44: 31 | AD44: 0 | AE44: 0 | AF44: 0 | AG44: 0 | AH44: 1 | AI44: 0 | AJ44: 0 | AK44: 0 | AL44: 0
C45: =W206 -> Years in each decile of rain from 1-May to 10-Oct | N45: 1900 | O45: 32 | P45: 0 | Q45: 1900-02-01 | R45: 0 | S45: 0 | T45: 1931 | U45: Neutral | V45: 1 | W45: 380.2 | X45: 8 | Y45: 326.6 | Z45: 9 | AB45: 1900 | AC45: 32 | AD45: 0 | AE45: 0 | AF45: 0 | AG45: 0 | AH45: 0 | AI45: 0 | AJ45: 0 | AK45: 0 | AL45: 0
C46: =W207 -> Historic | N46: 1900 | O46: 33 | P46: 0 | Q46: 1900-02-02 | R46: 0 | S46: 0 | T46: 1932 | U46: Neutral | V46: 1 | W46: 423.4 | X46: =_xlfn.XMATCH(W46, W$154:W$163,1) -> 9 | Y46: 309.1 | Z46: =_xlfn.XMATCH(Y46, Y$154:Y$163,1) -> 8 | AB46: 1900 | AC46: 33 | AD46: 0 | AE46: 0 | AF46: 0 | AG46: 0 | AH46: 0 | AI46: 0 | AJ46: 0 | AK46: 0 | AL46: 0
N47: 1900 | O47: 34 | P47: 0 | Q47: 1900-02-03 | R47: 0 | S47: 0 | T47: 1933 | U47: Negative IOD | V47: 4 | W47: 345.2 | X47: 8 | Y47: 326.6 | Z47: 9 | AB47: 1900 | AC47: 34 | AD47: 0 | AE47: 0 | AF47: 0 | AG47: 0 | AH47: 0 | AI47: 0 | AJ47: 0 | AK47: 0 | AL47: 0
N48: 1900 | O48: 35 | P48: 0 | Q48: 1900-02-04 | R48: 0 | S48: 0 | T48: 1934 | U48: Neutral | V48: 1 | W48: 240.6 | X48: 3 | Y48: 185.2 | Z48: 3 | AB48: 1900 | AC48: 35 | AD48: 0 | AE48: 0 | AF48: 0 | AG48: 0 | AH48: 0 | AI48: 0 | AJ48: 0 | AK48: 0 | AL48: 0
N49: 1900 | O49: 36 | P49: 0 | Q49: 1900-02-05 | R49: 0 | S49: 0 | T49: 1935 | U49: Positive IOD | V49: 5 | W49: 295 | X49: 5 | Y49: 204.4 | Z49: 4 | AB49: 1900 | AC49: 36 | AD49: 0 | AE49: 0 | AF49: 0 | AG49: 0 | AH49: 0 | AI49: 0 | AJ49: 0 | AK49: 0 | AL49: 0
N50: 1900 | O50: 37 | P50: 0 | Q50: 1900-02-06 | R50: 0 | S50: 0 | T50: 1936 | U50: Neutral | V50: 1 | W50: 233.9 | X50: 3 | Y50: 181.7 | Z50: 3 | AB50: 1900 | AC50: 37 | AD50: 0 | AE50: 0 | AF50: 0 | AG50: 0 | AH50: 0 | AI50: 0 | AJ50: 0 | AK50: 0 | AL50: 0
N51: 1900 | O51: 38 | P51: 0 | Q51: 1900-02-07 | R51: 0 | S51: 0 | T51: 1937 | U51: Neutral | V51: 1 | W51: 317.6 | X51: 6 | Y51: 279.5 | Z51: 7 | AB51: 1900 | AC51: 38 | AD51: 0 | AE51: 0 | AF51: 0 | AG51: 0 | AH51: 0 | AI51: 0 | AJ51: 0 | AK51: 0 | AL51: 0
N52: 1900 | O52: 39 | P52: 0 | Q52: 1900-02-08 | R52: 0 | S52: 0 | T52: 1938 | U52: La Nina | V52: 2 | W52: 292.4 | X52: 5 | Y52: 183.8 | Z52: 3 | AB52: 1900 | AC52: 39 | AD52: 0 | AE52: 0 | AF52: 0 | AG52: 0 | AH52: 0 | AI52: 0 | AJ52: 0 | AK52: 0 | AL52: 0
N53: 1900 | O53: 40 | P53: 0 | Q53: 1900-02-09 | R53: 0 | S53: 0 | T53: 1939 | U53: Neutral | V53: 1 | W53: 288.8 | X53: 5 | Y53: 268.3 | Z53: 7 | AB53: 1900 | AC53: 40 | AD53: 0 | AE53: 0 | AF53: 0 | AG53: 0 | AH53: 0 | AI53: 0 | AJ53: 0 | AK53: 0 | AL53: 0
C54: =X207 -> In all 126 years | N54: 1900 | O54: 41 | P54: 0 | Q54: 1900-02-10 | R54: 0 | S54: 0 | T54: 1940 | U54: El Nino | V54: 3 | W54: 151.1 | X54: 1 | Y54: 123.1 | Z54: 1 | AB54: 1900 | AC54: 41 | AD54: 0 | AE54: 0 | AF54: 0 | AG54: 0 | AH54: 0 | AI54: 0 | AJ54: 0 | AK54: 0 | AL54: 0
N55: 1900 | O55: 42 | P55: 0 | Q55: 1900-02-11 | R55: 0 | S55: 0 | T55: 1941 | U55: El Nino | V55: 3 | W55: 300.6 | X55: 6 | Y55: 265.2 | Z55: 7 | AB55: 1900 | AC55: 42 | AD55: 0 | AE55: 0 | AF55: 0 | AG55: 0 | AH55: 0 | AI55: 0 | AJ55: 0 | AK55: 0 | AL55: 0
N56: 1900 | O56: 43 | P56: 0.3 | Q56: 1900-02-12 | R56: 0 | S56: 0 | T56: 1942 | U56: La Nina / -IOD | V56: 7 | W56: 463.9 | X56: 10 | Y56: 420.7 | Z56: 10 | AB56: 1900 | AC56: 43 | AD56: 0 | AE56: 0 | AF56: 0 | AG56: 0 | AH56: 0 | AI56: 0 | AJ56: 0 | AK56: 0 | AL56: 0.3
N57: 1900 | O57: 44 | P57: 0 | Q57: 1900-02-13 | R57: 0 | S57: 0 | T57: 1943 | U57: Neutral | V57: 1 | W57: 250.3 | X57: 4 | Y57: 197.7 | Z57: 4 | AB57: 1900 | AC57: 44 | AD57: 0 | AE57: 0 | AF57: 0 | AG57: 0 | AH57: 0 | AI57: 0 | AJ57: 0 | AK57: 0 | AL57: 0
N58: 1900 | O58: 45 | P58: 0 | Q58: 1900-02-14 | R58: 0 | S58: 0 | T58: 1944 | U58: Positive IOD | V58: 5 | W58: 194.7 | X58: 2 | Y58: 141.2 | Z58: 1 | AB58: 1900 | AC58: 45 | AD58: 0 | AE58: 0 | AF58: 0 | AG58: 0 | AH58: 0 | AI58: 0 | AJ58: 0 | AK58: 0 | AL58: 0
N59: 1900 | O59: 46 | P59: 0 | Q59: 1900-02-15 | R59: 0 | S59: 0 | T59: 1945 | U59: Positive IOD | V59: 5 | W59: 283 | X59: 5 | Y59: 229.4 | Z59: 5 | AB59: 1900 | AC59: 46 | AD59: 0 | AE59: 0 | AF59: 0 | AG59: 0 | AH59: 0 | AI59: 0 | AJ59: 0 | AK59: 0 | AL59: 0
N60: 1900 | O60: 47 | P60: 0 | Q60: 1900-02-16 | R60: 0 | S60: 0 | T60: 1946 | U60: El Nino / +IOD | V60: 6 | W60: 213.5 | X60: 2 | Y60: 182.6 | Z60: 3 | AB60: 1900 | AC60: 47 | AD60: 0 | AE60: 0 | AF60: 0 | AG60: 0 | AH60: 0 | AI60: 0 | AJ60: 0 | AK60: 0 | AL60: 0
N61: 1900 | O61: 48 | P61: 0 | Q61: 1900-02-17 | R61: 0 | S61: 0 | T61: 1947 | U61: Neutral | V61: 1 | W61: 373.6 | X61: 8 | Y61: 297.5 | Z61: 8 | AB61: 1900 | AC61: 48 | AD61: 0 | AE61: 0 | AF61: 0 | AG61: 0 | AH61: 0 | AI61: 0 | AJ61: 0 | AK61: 0 | AL61: 0
N62: 1900 | O62: 49 | P62: 0 | Q62: 1900-02-18 | R62: 0 | S62: 0 | T62: 1948 | U62: Neutral | V62: 1 | W62: 307.9 | X62: 6 | Y62: 197.4 | Z62: 4 | AB62: 1900 | AC62: 49 | AD62: 0 | AE62: 0 | AF62: 0 | AG62: 0 | AH62: 0 | AI62: 0 | AJ62: 0 | AK62: 0 | AL62: 0
N63: 1900 | O63: 50 | P63: 0 | Q63: 1900-02-19 | R63: 0 | S63: 0 | T63: 1949 | U63: La Nina | V63: 2 | W63: 314.5 | X63: 6 | Y63: 246.4 | Z63: 5 | AB63: 1900 | AC63: 50 | AD63: 0 | AE63: 0 | AF63: 0 | AG63: 0 | AH63: 0 | AI63: 0 | AJ63: 0 | AK63: 0 | AL63: 0
C64: Data from SILO from 1900 to 2022 (123 years) | N64: 1900 | O64: 51 | P64: 0 | Q64: 1900-02-20 | R64: 0 | S64: 0 | T64: 1950 | U64: La Nina | V64: 2 | W64: 274.8 | X64: 5 | Y64: 249.4 | Z64: 6 | AB64: 1900 | AC64: 51 | AD64: 0 | AE64: 0 | AF64: 0 | AG64: 0 | AH64: 0 | AI64: 0 | AJ64: 0 | AK64: 0 | AL64: 0
N65: 1900 | O65: 52 | P65: 0 | Q65: 1900-02-21 | R65: 0 | S65: 0 | T65: 1951 | U65: El Nino | V65: 3 | W65: 434.1 | X65: 10 | Y65: 371.8 | Z65: 10 | AB65: 1900 | AC65: 52 | AD65: 0 | AE65: 0 | AF65: 0 | AG65: 0 | AH65: 0 | AI65: 0 | AJ65: 0 | AK65: 0 | AL65: 0
C66: Estimated Water supply graph | D66: All years | E66: =W190 -> In all 126 years | N66: 1900 | O66: 53 | P66: 0 | Q66: 1900-02-22 | R66: 0 | S66: 0 | T66: 1952 | U66: Neutral | V66: 1 | W66: 390.8 | X66: 9 | Y66: 300.5 | Z66: 8 | AB66: 1900 | AC66: 53 | AD66: 0 | AE66: 0 | AF66: 0 | AG66: 0 | AH66: 0 | AI66: 0 | AJ66: 0 | AK66: 0 | AL66: 0
C67: Minimum in Record | D67: =$D$8+$D$9+Y153 -> 5 | E67: =E18 -> 20 | N67: 1900 | O67: 54 | P67: 0 | Q67: 1900-02-23 | R67: 0 | S67: 0 | T67: 1953 | U67: Neutral | V67: 1 | W67: 279.3 | X67: 5 | Y67: 239.2 | Z67: 5 | AB67: 1900 | AC67: 54 | AD67: 0 | AE67: 0 | AF67: 0 | AG67: 0 | AH67: 0 | AI67: 0 | AJ67: 0 | AK67: 0 | AL67: 0
C68: Decile 1 | D68: 152.9 | E68: 167.9 | N68: 1900 | O68: 55 | P68: 0 | Q68: 1900-02-24 | R68: 0 | S68: 0 | T68: 1954 | U68: La Nina | V68: 2 | W68: 270.5 | X68: 5 | Y68: 147.9 | Z68: 1 | AB68: 1900 | AC68: 55 | AD68: 0 | AE68: 0 | AF68: 0 | AG68: 0 | AH68: 0 | AI68: 0 | AJ68: 0 | AK68: 0 | AL68: 0
C69: Decile 2 | D69: 183.3 | E69: 198.3 | N69: 1900 | O69: 56 | P69: 0 | Q69: 1900-02-25 | R69: 0 | S69: 0 | T69: 1955 | U69: La Nina | V69: 2 | W69: 318 | X69: 7 | Y69: 284.4 | Z69: 7 | AB69: 1900 | AC69: 56 | AD69: 0 | AE69: 0 | AF69: 0 | AG69: 0 | AH69: 0 | AI69: 0 | AJ69: 0 | AK69: 0 | AL69: 0
C70: Decile 3 | D70: 196.8 | E70: 211.8 | N70: 1900 | O70: 57 | P70: 0.3 | Q70: 1900-02-26 | R70: 0 | S70: 0 | T70: 1956 | U70: La Nina | V70: 2 | W70: 471.7 | X70: 10 | Y70: 402.2 | Z70: 10 | AB70: 1900 | AC70: 57 | AD70: 0 | AE70: 0 | AF70: 0 | AG70: 0 | AH70: 0 | AI70: 0 | AJ70: 0 | AK70: 0 | AL70: 0.3
C71: Decile 4 | D71: 224.2 | E71: 239.2 | N71: 1900 | O71: 58 | P71: 7.3 | Q71: 1900-02-27 | R71: 0 | S71: 0 | T71: 1957 | U71: El Nino / +IOD | V71: 6 | W71: 213.7 | X71: 3 | Y71: 184.7 | Z71: 3 | AB71: 1900 | AC71: 58 | AD71: 3.6 | AE71: 5.3 | AF71: 4.6 | AG71: 6.5 | AH71: 2.8 | AI71: 2 | AJ71: 3.3 | AK71: 2.8 | AL71: 7.3
C72: Decile 5 | D72: 251.4 | E72: 266.4 | N72: 1900 | O72: 59 | P72: 0 | Q72: 1900-02-28 | R72: 0 | S72: 0 | T72: 1958 | U72: Negative IOD | V72: 4 | W72: 305.2 | X72: 6 | Y72: 276.1 | Z72: 7 | AB72: 1900 | AC72: 59 | AD72: 0 | AE72: 0 | AF72: 0 | AG72: 0 | AH72: 0 | AI72: 0 | AJ72: 0 | AK72: 0 | AL72: 0
C73: Decile 6 | D73: 267.8 | E73: 282.8 | N73: 1900 | O73: 60 | P73: 8.3 | Q73: 60 | R73: 0 | S73: 0 | T73: 1959 | U73: Neutral | V73: 1 | W73: 121.7 | X73: 1 | Y73: 102.7 | Z73: 1 | AB73: 1900 | AC73: 60 | AD73: 9.9 | AE73: 5.6 | AF73: 1.8 | AG73: 4.6 | AH73: 13.2 | AI73: 7.4 | AJ73: 0 | AK73: 0 | AL73: 8.3
C74: Decile 7 | D74: 292.3 | E74: 307.3 | N74: 1900 | O74: 61 | P74: 8.3 | Q74: 1900-03-01 | R74: 0 | S74: 0 | T74: 1960 | U74: Negative IOD | V74: 4 | W74: 379.7 | X74: 8 | Y74: 334.9 | Z74: 9 | AB74: 1900 | AC74: 61 | AD74: 2.5 | AE74: 5.3 | AF74: 3.6 | AG74: 2.2 | AH74: 6.4 | AI74: 5.8 | AJ74: 2.8 | AK74: 0 | AL74: 8.3
C75: Decile 8 | D75: 322.9 | E75: 337.9 | N75: 1900 | O75: 62 | P75: 2 | Q75: 1900-03-02 | R75: 0 | S75: 0 | T75: 1961 | U75: Positive IOD | V75: 5 | W75: 260.3 | X75: 4 | Y75: 152.5 | Z75: 2 | AB75: 1900 | AC75: 62 | AD75: 1.3 | AE75: 1.8 | AF75: 0.5 | AG75: 0.4 | AH75: 6.6 | AI75: 2.3 | AJ75: 0 | AK75: 0 | AL75: 2
C76: Decile 9 | D76: 370.5 | E76: 385.5 | N76: 1900 | O76: 63 | P76: 0 | Q76: 1900-03-03 | R76: 0 | S76: 0 | T76: 1962 | U76: Neutral | V76: 1 | W76: 268.1 | X76: 4 | Y76: 238.4 | Z76: 5 | AB76: 1900 | AC76: 63 | AD76: 0 | AE76: 0 | AF76: 0 | AG76: 0 | AH76: 0 | AI76: 0 | AJ76: 0 | AK76: 0 | AL76: 0
C77: Decile 10 (Maximum) | D77: 483 | E77: 498 | N77: 1900 | O77: 64 | P77: 0 | Q77: 1900-03-04 | R77: 0 | S77: 0 | T77: 1963 | U77: El Nino / +IOD | V77: 6 | W77: 420.6 | X77: 9 | Y77: 354.2 | Z77: 9 | AB77: 1900 | AC77: 64 | AD77: 0 | AE77: 0 | AF77: 0 | AG77: 0 | AH77: 0 | AI77: 0 | AJ77: 0 | AK77: 0 | AL77: 0
N78: 1900 | O78: 65 | P78: =OFFSET(AC78,0,$AB$10) -> 0.2 | Q78: 1900-03-05 | R78: 0 | S78: 0 | T78: 1964 | U78: La Nina / -IOD | V78: 7 | W78: 341.5 | X78: =_xlfn.XMATCH(W78, W$154:W$163,1) -> 7 | Y78: 271.9 | Z78: =_xlfn.XMATCH(Y78, Y$154:Y$163,1) -> 7 | AB78: 1900 | AC78: 65 | AD78: 0 | AE78: 0.5 | AF78: 0 | AG78: 0.4 | AH78: 0 | AI78: 0.8 | AJ78: 1 | AK78: 0 | AL78: 0.2
N79: 1900 | O79: 66 | P79: 0 | Q79: 1900-03-06 | R79: 0 | S79: 0 | T79: 1965 | U79: El Nino | V79: 3 | W79: 253.7 | X79: 4 | Y79: 244.7 | Z79: 5 | AB79: 1900 | AC79: 66 | AD79: 0 | AE79: 0 | AF79: 0 | AG79: 0 | AH79: 0 | AI79: 0 | AJ79: 0 | AK79: 0 | AL79: 0
N80: 1900 | O80: 67 | P80: 0 | Q80: 1900-03-07 | R80: 0 | S80: 0 | T80: 1966 | U80: Neutral | V80: 1 | W80: 232.7 | X80: 3 | Y80: 217.6 | Z80: 4 | AB80: 1900 | AC80: 67 | AD80: 0 | AE80: 0 | AF80: 0 | AG80: 0 | AH80: 0 | AI80: 0 | AJ80: 0 | AK80: 0 | AL80: 0
C81: =CONCATENATE("Yield (t/ha) x deciles of rain from ",TEXT(D11,"d-mmm")," to ",TEXT(D12,"d-mmm")) -> Yield (t/ha) x deciles of rain from 1-May to 10-Oct | N81: 1900 | O81: 68 | P81: 0 | Q81: 1900-03-08 | R81: 0 | S81: 0 | T81: 1967 | U81: Neutral | V81: 1 | W81: 156.3 | X81: 1 | Y81: 154.4 | Z81: 2 | AB81: 1900 | AC81: 68 | AD81: 0 | AE81: 0 | AF81: 0 | AG81: 0 | AH81: 0 | AI81: 0 | AJ81: 0 | AK81: 0 | AL81: 0
C82: Yield graph | D82: All years | E82: =W190 -> In all 126 years | N82: 1900 | O82: 69 | P82: 0.2 | Q82: 1900-03-09 | R82: 0 | S82: 0 | T82: 1968 | U82: Neutral | V82: 1 | W82: 410.5 | X82: 9 | Y82: 366.3 | Z82: 10 | AB82: 1900 | AC82: 69 | AD82: 0 | AE82: 0 | AF82: 0 | AG82: 0 | AH82: 0 | AI82: 0 | AJ82: 0 | AK82: 0 | AL82: 0.2
C83: Minimum in Record | D83: =(Y153+$D$9-$F18-$G$11)*$G$12/1000 -> -1.76 | E83: =G18 -> 0 | N83: 1900 | O83: 70 | P83: 0 | Q83: 1900-03-10 | R83: 0 | S83: 0 | T83: 1969 | U83: El Nino | V83: 3 | W83: 336.1 | X83: 7 | Y83: 317.9 | Z83: 8 | AB83: 1900 | AC83: 70 | AD83: 0 | AE83: 0 | AF83: 2 | AG83: 0 | AH83: 0 | AI83: 0 | AJ83: 0 | AK83: 0 | AL83: 0
C84: Decile 1 | D84: 1.4938 | E84: 1.9338 | N84: 1900 | O84: 71 | P84: 0 | Q84: 1900-03-11 | R84: 0 | S84: 0 | T84: 1970 | U84: La Nina | V84: 2 | W84: 311.5 | X84: 6 | Y84: 271.8 | Z84: 7 | AB84: 1900 | AC84: 71 | AD84: 0 | AE84: 0 | AF84: 2 | AG84: 0 | AH84: 0 | AI84: 0 | AJ84: 0 | AK84: 0 | AL84: 0
C85: Decile 2 | D85: 1.9426 | E85: 2.3826 | N85: 1900 | O85: 72 | P85: 0 | Q85: 1900-03-12 | R85: 0 | S85: 0 | T85: 1971 | U85: La Nina | V85: 2 | W85: 413.9 | X85: 9 | Y85: 311.6 | Z85: 8 | AB85: 1900 | AC85: 72 | AD85: 0 | AE85: 0 | AF85: 0 | AG85: 0 | AH85: 0 | AI85: 0 | AJ85: 0 | AK85: 0 | AL85: 0
C86: Decile 3 | D86: 2.092933333 | E86: 2.532933333 | N86: 1900 | O86: 73 | P86: 0.3 | Q86: 1900-03-13 | R86: 0 | S86: 0 | T86: 1972 | U86: El Nino / +IOD | V86: 6 | W86: 221.4 | X86: 3 | Y86: 192.2 | Z86: 4 | AB86: 1900 | AC86: 73 | AD86: 0 | AE86: 0 | AF86: 0 | AG86: 0 | AH86: 4.6 | AI86: 2.8 | AJ86: 0 | AK86: 0 | AL86: 0.3
C87: Decile 4 | D87: 2.585733333 | E87: 3.025733333 | N87: 1900 | O87: 74 | P87: 3.6 | Q87: 1900-03-14 | R87: 0 | S87: 0 | T87: 1973 | U87: La Nina | V87: 2 | W87: 430.7 | X87: 10 | Y87: 312.3 | Z87: 8 | AB87: 1900 | AC87: 74 | AD87: 3.8 | AE87: 9.4 | AF87: 1 | AG87: 0 | AH87: 23.4 | AI87: 11.7 | AJ87: 0 | AK87: 0 | AL87: 3.6
C88: Decile 5 | D88: 3.0888 | E88: 3.5288 | N88: 1900 | O88: 75 | P88: 0 | Q88: 1900-03-15 | R88: 0 | S88: 0 | T88: 1974 | U88: La Nina / -IOD | V88: 7 | W88: 487.7 | X88: 10 | Y88: 367.3 | Z88: 10 | AB88: 1900 | AC88: 75 | AD88: 0 | AE88: 0 | AF88: 0 | AG88: 0 | AH88: 0 | AI88: 0 | AJ88: 0 | AK88: 0 | AL88: 0
C89: Decile 6 | D89: 3.3836 | E89: 3.8236 | N89: 1900 | O89: 76 | P89: 0 | Q89: 1900-03-16 | R89: 0 | S89: 0 | T89: 1975 | U89: La Nina | V89: 2 | W89: 288.8 | X89: 5 | Y89: 201 | Z89: 4 | AB89: 1900 | AC89: 76 | AD89: 0 | AE89: 0 | AF89: 0 | AG89: 0 | AH89: 0 | AI89: 0 | AJ89: 0 | AK89: 0 | AL89: 0
C90: Decile 7 | D90: 3.8566 | E90: 4.2966 | N90: 1900 | O90: 77 | P90: 0 | Q90: 1900-03-17 | R90: 0 | S90: 0 | T90: 1976 | U90: Neutral | V90: 1 | W90: 205.6 | X90: 2 | Y90: 169.9 | Z90: 2 | AB90: 1900 | AC90: 77 | AD90: 0 | AE90: 0 | AF90: 0 | AG90: 0 | AH90: 0 | AI90: 0 | AJ90: 2 | AK90: 0 | AL90: 0
C91: Decile 8 | D91: 4.4858 | E91: 4.9258 | N91: 1900 | O91: 78 | P91: 0 | Q91: 1900-03-18 | R91: 0 | S91: 0 | T91: 1977 | U91: El Nino | V91: 3 | W91: 195 | X91: 2 | Y91: 168.6 | Z91: 2 | AB91: 1900 | AC91: 78 | AD91: 0 | AE91: 0 | AF91: 1.5 | AG91: 4 | AH91: 0 | AI91: 0 | AJ91: 2 | AK91: 0 | AL91: 0
C92: Decile 9 | D92: 5.225 | E92: 5.665 | N92: 1900 | O92: 79 | P92: 7.7 | Q92: 1900-03-19 | R92: 0 | S92: 0 | T92: 1978 | U92: Neutral | V92: 1 | W92: 419.7 | X92: 9 | Y92: 385.6 | Z92: 10 | AB92: 1900 | AC92: 79 | AD92: 3 | AE92: 3 | AF92: 7.1 | AG92: 8.1 | AH92: 0 | AI92: 2.3 | AJ92: 2.5 | AK92: 0 | AL92: 7.7
C93: Decile 10 (Maximum) | D93: 7.326 | E93: 7.766 | N93: 1900 | O93: 80 | P93: 5.2 | Q93: 1900-03-20 | R93: 0 | S93: 0 | T93: 1979 | U93: Neutral | V93: 1 | W93: 363.9 | X93: 8 | Y93: 320.4 | Z93: 9 | AB93: 1900 | AC93: 80 | AD93: 0 | AE93: 4.6 | AF93: 0.3 | AG93: 0.9 | AH93: 11.4 | AI93: 5.6 | AJ93: 0 | AK93: 0 | AL93: 5.2
N94: 1900 | O94: 81 | P94: 0.4 | Q94: 1900-03-21 | R94: 0 | S94: 0 | T94: 1980 | U94: Neutral | V94: 1 | W94: 387.8 | X94: 9 | Y94: 263 | Z94: 7 | AB94: 1900 | AC94: 81 | AD94: 0 | AE94: 0 | AF94: 0 | AG94: 0 | AH94: 0 | AI94: 0 | AJ94: 0 | AK94: 0 | AL94: 0.4
N95: 1900 | O95: 82 | P95: 0 | Q95: 1900-03-22 | R95: 0 | S95: 0 | T95: 1981 | U95: Negative IOD | V95: 4 | W95: 349.6 | X95: 8 | Y95: 341.6 | Z95: 9 | AB95: 1900 | AC95: 82 | AD95: 0 | AE95: 0 | AF95: 0 | AG95: 0 | AH95: 0 | AI95: 0 | AJ95: 0 | AK95: 0 | AL95: 0
C96: Historic Rain (Growing season, 1st April to 31st October) | N96: 1900 | O96: 83 | P96: 2.1 | Q96: 1900-03-23 | R96: 0 | S96: 0 | T96: 1982 | U96: El Nino / +IOD | V96: 6 | W96: 156.7 | X96: 1 | Y96: 111.6 | Z96: 1 | AB96: 1900 | AC96: 83 | AD96: 0 | AE96: 1.8 | AF96: 0 | AG96: 0.4 | AH96: 11.4 | AI96: 5.3 | AJ96: 0 | AK96: 0 | AL96: 2.1
D97: In all years | E97: =W190 -> In all 126 years | N97: 1900 | O97: 84 | P97: 0 | Q97: 1900-03-24 | R97: 0 | S97: 0 | T97: 1983 | U97: Positive IOD | V97: 5 | W97: 361.9 | X97: 8 | Y97: 262.7 | Z97: 6 | AB97: 1900 | AC97: 84 | AD97: 0 | AE97: 0 | AF97: 0 | AG97: 0 | AH97: 0 | AI97: 0 | AJ97: 0 | AK97: 0 | AL97: 0
C98: Minimum in Record | D98: =W153 -> 0 | E98: =W192 -> 0 | N98: 1900 | O98: 85 | P98: 0 | Q98: 1900-03-25 | R98: 0 | S98: 0 | T98: 1984 | U98: Neutral | V98: 1 | W98: 305.1 | X98: 6 | Y98: 264.8 | Z98: 7 | AB98: 1900 | AC98: 85 | AD98: 0 | AE98: 0 | AF98: 0 | AG98: 0 | AH98: 0 | AI98: 0 | AJ98: 0 | AK98: 0 | AL98: 0
C99: Decile 1 | D99: 176.4 | E99: 176.4 | N99: 1900 | O99: 86 | P99: 0 | Q99: 1900-03-26 | R99: 0 | S99: 0 | T99: 1985 | U99: Neutral | V99: 1 | W99: 235.4 | X99: 3 | Y99: 187.3 | Z99: 3 | AB99: 1900 | AC99: 86 | AD99: 0 | AE99: 0 | AF99: 0 | AG99: 0 | AH99: 0 | AI99: 0 | AJ99: 0 | AK99: 0 | AL99: 0
C100: Decile 2 | D100: 213.5 | E100: 213.5 | N100: 1900 | O100: 87 | P100: 2.5 | Q100: 1900-03-27 | R100: 0 | S100: 0 | T100: 1986 | U100: Neutral | V100: 1 | W100: 337.6 | X100: 7 | Y100: 279.3 | Z100: 7 | AB100: 1900 | AC100: 87 | AD100: 0.8 | AE100: 3.8 | AF100: 0 | AG100: 2.1 | AH100: 0.8 | AI100: 0 | AJ100: 0.3 | AK100: 0 | AL100: 2.5
C101: Decile 3 | D101: 240.6 | E101: 240.6 | N101: 1900 | O101: 88 | P101: 0.4 | Q101: 1900-03-28 | R101: 0 | S101: 0 | T101: 1987 | U101: El Nino | V101: 3 | W101: 255.5 | X101: 4 | Y101: 236.8 | Z101: 5 | AB101: 1900 | AC101: 88 | AD101: 3.8 | AE101: 0 | AF101: 16.5 | AG101: 6.8 | AH101: 0 | AI101: 0 | AJ101: 12.2 | AK101: 10.2 | AL101: 0.4
C102: Decile 4 | D102: 270.3 | E102: 270.3 | N102: 1900 | O102: 89 | P102: 0.9 | Q102: 1900-03-29 | R102: 0 | S102: 0 | T102: 1988 | U102: La Nina | V102: 2 | W102: 260.9 | X102: 4 | Y102: 226.3 | Z102: 5 | AB102: 1900 | AC102: 89 | AD102: 8.1 | AE102: 0 | AF102: 4.1 | AG102: 9 | AH102: 0 | AI102: 0 | AJ102: 5.8 | AK102: 0 | AL102: 0.9
C103: Decile 5 | D103: 295 | E103: 295 | N103: 1900 | O103: 90 | P103: 0 | Q103: 1900-03-30 | R103: 0 | S103: 0 | T103: 1989 | U103: Negative IOD | V103: 4 | W103: 273.2 | X103: 5 | Y103: 258.3 | Z103: 6 | AB103: 1900 | AC103: 90 | AD103: 0 | AE103: 0 | AF103: 0 | AG103: 0 | AH103: 2.5 | AI103: 0 | AJ103: 0 | AK103: 0 | AL103: 0
C104: Decile 6 | D104: 317.6 | E104: 317.6 | N104: 1900 | O104: 91 | P104: 9 | Q104: 1900-03-31 | R104: 0 | S104: 0 | T104: 1990 | U104: Neutral | V104: 1 | W104: 318.1 | X104: 7 | Y104: 287.3 | Z104: 7 | AB104: 1900 | AC104: 91 | AD104: 1.4 | AE104: 1.5 | AF104: 1.9 | AG104: 8.1 | AH104: 0 | AI104: 0 | AJ104: 1.5 | AK104: 3.8 | AL104: 9
C105: Decile 7 | D105: 341.5 | E105: 341.5 | N105: 1900 | O105: 92 | P105: 2.3 | Q105: 1900-04-01 | R105: 1 | S105: 0 | T105: 1991 | U105: El Nino | V105: 3 | W105: 329.9 | X105: 7 | Y105: 295.9 | Z105: 8 | AB105: 1900 | AC105: 92 | AD105: 4.3 | AE105: 0.5 | AF105: 7 | AG105: 0.8 | AH105: 4.6 | AI105: 3 | AJ105: 1 | AK105: 2 | AL105: 2.3
C106: Decile 8 | D106: 380.2 | E106: 380.2 | N106: 1900 | O106: 93 | P106: 7.9 | Q106: 1900-04-02 | R106: 1 | S106: 0 | T106: 1992 | U106: Negative IOD | V106: 4 | W106: 465.4 | X106: 10 | Y106: 352 | Z106: 9 | AB106: 1900 | AC106: 93 | AD106: 7.1 | AE106: 9.9 | AF106: 5.6 | AG106: 10.6 | AH106: 6.1 | AI106: 14 | AJ106: 0.8 | AK106: 20.6 | AL106: 7.9
C107: Decile 9 | D107: 423.4 | E107: 423.4 | N107: 1900 | O107: 94 | P107: 0.4 | Q107: 1900-04-03 | R107: 1 | S107: 0 | T107: 1993 | U107: El Nino | V107: 3 | W107: 296.7 | X107: 6 | Y107: 262.2 | Z107: 6 | AB107: 1900 | AC107: 94 | AD107: 0 | AE107: 0 | AF107: 0 | AG107: 0 | AH107: 1 | AI107: 0 | AJ107: 0 | AK107: 0 | AL107: 0.4
C108: Decile 10 (Maximum) | D108: 538.8 | E108: 538.8 | N108: 1900 | O108: 95 | P108: 0.2 | Q108: 1900-04-04 | R108: 1 | S108: 0 | T108: 1994 | U108: El Nino / +IOD | V108: 6 | W108: 227.7 | X108: 3 | Y108: 219.2 | Z108: 4 | AB108: 1900 | AC108: 95 | AD108: 0 | AE108: 0 | AF108: 0 | AG108: 0 | AH108: 0 | AI108: 0 | AJ108: 0 | AK108: 0 | AL108: 0.2
N109: 1900 | O109: 96 | P109: 0 | Q109: 1900-04-05 | R109: 1 | S109: 0 | T109: 1995 | U109: Neutral | V109: 1 | W109: 365.8 | X109: 8 | Y109: 304.8 | Z109: 8 | AB109: 1900 | AC109: 96 | AD109: 0 | AE109: 0 | AF109: 0 | AG109: 0 | AH109: 0 | AI109: 0 | AJ109: 0 | AK109: 0 | AL109: 0
N110: 1900 | O110: 97 | P110: 0 | Q110: 1900-04-06 | R110: 1 | S110: 0 | T110: 1996 | U110: Negative IOD | V110: 4 | W110: 390.3 | X110: =_xlfn.XMATCH(W110, W$154:W$163,1) -> 9 | Y110: 371.8 | Z110: =_xlfn.XMATCH(Y110, Y$154:Y$163,1) -> 10 | AB110: 1900 | AC110: 97 | AD110: 0 | AE110: 0 | AF110: 0 | AG110: 0 | AH110: 0 | AI110: 0 | AJ110: 0 | AK110: 0 | AL110: 0
A111: Adding New Locations | N111: 1900 | O111: 98 | P111: 2.9 | Q111: 1900-04-07 | R111: 1 | S111: 0 | T111: 1997 | U111: El Nino / +IOD | V111: 6 | W111: 349.6 | X111: 8 | Y111: 262.8 | Z111: 6 | AB111: 1900 | AC111: 98 | AD111: 0 | AE111: 1 | AF111: 0 | AG111: 0 | AH111: 3.3 | AI111: 0 | AJ111: 0 | AK111: 0 | AL111: 2.9
N112: 1900 | O112: 99 | P112: 0.2 | Q112: 1900-04-08 | R112: 1 | S112: 0 | T112: 1998 | U112: La Nina / -IOD | V112: 7 | W112: 316.4 | X112: 6 | Y112: 234.5 | Z112: 5 | AB112: 1900 | AC112: 99 | AD112: 0.5 | AE112: 1 | AF112: 0 | AG112: 1 | AH112: 0.3 | AI112: 1 | AJ112: 0 | AK112: 0.5 | AL112: 0.2
A113: Currently there are places for 22 locations. | N113: 1900 | O113: 100 | P113: 1.2 | Q113: 1900-04-09 | R113: 1 | S113: 0 | T113: 1999 | U113: La Nina | V113: 2 | W113: 289.4 | X113: 5 | Y113: 256.4 | Z113: 6 | AB113: 1900 | AC113: 100 | AD113: 4.3 | AE113: 0.8 | AF113: 1 | AG113: 4 | AH113: 3.6 | AI113: 1.3 | AJ113: 1.5 | AK113: 2.3 | AL113: 1.2
A114: These are in columns X to AS | N114: 1900 | O114: 101 | P114: 0.3 | Q114: 1900-04-10 | R114: 1 | S114: 0 | T114: 2000 | U114: La Nina | V114: 2 | W114: 407.2 | X114: 9 | Y114: 282.8 | Z114: 7 | AB114: 1900 | AC114: 101 | AD114: 1.3 | AE114: 0 | AF114: 0 | AG114: 0 | AH114: 0.5 | AI114: 0 | AJ114: 0 | AK114: 0 | AL114: 0.3
A115: To add a new location or update an existing location to current day: | N115: 1900 | O115: 102 | P115: 0.3 | Q115: 1900-04-11 | R115: 1 | S115: 0 | T115: 2001 | U115: Neutral | V115: 1 | W115: 395.6 | X115: 9 | Y115: 343.8 | Z115: 9 | AB115: 1900 | AC115: 102 | AD115: 0 | AE115: 0 | AF115: 0 | AG115: 0.1 | AH115: 3 | AI115: 1.5 | AJ115: 0 | AK115: 0 | AL115: 0.3
N116: 1900 | O116: 103 | P116: 0.2 | Q116: 1900-04-12 | R116: 1 | S116: 0 | T116: 2002 | U116: El Nino | V116: 3 | W116: 192.2 | X116: 2 | Y116: 187.2 | Z116: 3 | AB116: 1900 | AC116: 103 | AD116: 0 | AE116: 0 | AF116: 0 | AG116: 0 | AH116: 0 | AI116: 0 | AJ116: 0.5 | AK116: 0 | AL116: 0.2
N117: 1900 | O117: 104 | P117: 5.5 | Q117: 1900-04-13 | R117: 1 | S117: 0 | T117: 2003 | U117: Neutral | V117: 1 | W117: 264 | X117: 4 | Y117: 250.4 | Z117: 6 | AB117: 1900 | AC117: 104 | AD117: 10.2 | AE117: 3.6 | AF117: 12.2 | AG117: 8.3 | AH117: 5.8 | AI117: 6.4 | AJ117: 3.8 | AK117: 7.6 | AL117: 5.5
A118: 1. Select rainfall data from SILO (Australian climate database) | C118: SILO Rainfall Data | N118: 1900 | O118: 105 | P118: 6.8 | Q118: 1900-04-14 | R118: 1 | S118: 0 | T118: 2004 | U118: Neutral | V118: 1 | W118: 206.3 | X118: 2 | Y118: 198.5 | Z118: 4 | AB118: 1900 | AC118: 105 | AD118: 1.5 | AE118: 9.1 | AF118: 3.3 | AG118: 1 | AH118: 8.4 | AI118: 0 | AJ118: 1 | AK118: 1.8 | AL118: 6.8
A119: - In the website change the "Start Date" i.e. 1/1/1900 | N119: 1900 | O119: 106 | P119: 0.2 | Q119: 1900-04-15 | R119: 1 | S119: 0 | T119: 2005 | U119: Neutral | V119: 1 | W119: 321.9 | X119: 7 | Y119: 241.7 | Z119: 5 | AB119: 1900 | AC119: 106 | AD119: 3.6 | AE119: 0.8 | AF119: 8.4 | AG119: 10 | AH119: 4.3 | AI119: 12.4 | AJ119: 5.6 | AK119: 17 | AL119: 0.2
A120: - Select "Custom" and then "Daily rainfall mm" | N120: 1900 | O120: 107 | P120: 0 | Q120: 1900-04-16 | R120: 1 | S120: 0 | T120: 2006 | U120: El Nino / +IOD | V120: 6 | W120: 139.8 | X120: 1 | Y120: 111.6 | Z120: 1 | AB120: 1900 | AC120: 107 | AD120: 0 | AE120: 0 | AF120: 0 | AG120: 2.6 | AH120: 0 | AI120: 0.8 | AJ120: 0 | AK120: 0 | AL120: 0
A121: - Using the map of Australia zoom into the required "Weather Station" and "Click" on the Pin. | N121: 1900 | O121: 108 | P121: 0.2 | Q121: 1900-04-17 | R121: 1 | S121: 0 | T121: 2007 | U121: La Nina | V121: 2 | W121: 209.4 | X121: 2 | Y121: 115 | Z121: 1 | AB121: 1900 | AC121: 108 | AD121: 0 | AE121: 0 | AF121: 1.5 | AG121: 0.4 | AH121: 1.8 | AI121: 0 | AJ121: 2.5 | AK121: 0 | AL121: 0.2
A122: - "Click" on "Get the Data file" and save the downloaded data file. Ensure it is a .csv file | N122: 1900 | O122: 109 | P122: 0 | Q122: 1900-04-18 | R122: 1 | S122: 0 | T122: 2008 | U122: La Nina | V122: 2 | W122: 202.5 | X122: 2 | Y122: 182.5 | Z122: 3 | AB122: 1900 | AC122: 109 | AD122: 0 | AE122: 0 | AF122: 0 | AG122: 0.3 | AH122: 0.5 | AI122: 0 | AJ122: 0 | AK122: 0 | AL122: 0
A123: 2. Click here to import the csv file. Please remember where you have downloaded the csv file | N123: 1900 | O123: 110 | P123: 0 | Q123: 1900-04-19 | R123: 1 | S123: 0 | T123: 2009 | U123: El Nino | V123: 3 | W123: 334 | X123: 7 | Y123: 254.4 | Z123: 6 | AB123: 1900 | AC123: 110 | AD123: 0 | AE123: 0 | AF123: 0 | AG123: 0.1 | AH123: 0 | AI123: 0 | AJ123: 0 | AK123: 0 | AL123: 0
A124: as you will be prompted to select it. | N124: 1900 | O124: 111 | P124: 0 | Q124: 1900-04-20 | R124: 1 | S124: 0 | T124: 2010 | U124: La Nina / -IOD | V124: 7 | W124: 317.2 | X124: 6 | Y124: 245.2 | Z124: 5 | AB124: 1900 | AC124: 111 | AD124: 0 | AE124: 0 | AF124: 0 | AG124: 0 | AH124: 0 | AI124: 0 | AJ124: 0 | AK124: 0 | AL124: 0
N125: 1900 | O125: 112 | P125: 9.3 | Q125: 1900-04-21 | R125: 1 | S125: 0 | T125: 2011 | U125: La Nina | V125: 2 | W125: 196.4 | X125: 2 | Y125: 172 | Z125: 2 | AB125: 1900 | AC125: 112 | AD125: 1.3 | AE125: 7.1 | AF125: 4.7 | AG125: 0.2 | AH125: 5.8 | AI125: 6.4 | AJ125: 4.1 | AK125: 1.8 | AL125: 9.3
N126: 1900 | O126: 113 | P126: 3.5 | Q126: 1900-04-22 | R126: 1 | S126: 0 | T126: 2012 | U126: Positive IOD | V126: 5 | W126: 176.4 | X126: 1 | Y126: 160.6 | Z126: 2 | AB126: 1900 | AC126: 113 | AD126: 3.8 | AE126: 1.8 | AF126: 2.2 | AG126: 13 | AH126: 7.1 | AI126: 0 | AJ126: 0.5 | AK126: 0.5 | AL126: 3.5
N127: 1900 | O127: 114 | P127: 4.8 | Q127: 1900-04-23 | R127: 1 | S127: 0 | T127: 2013 | U127: Neutral | V127: 1 | W127: 360.8 | X127: 8 | Y127: 331.4 | Z127: 9 | AB127: 1900 | AC127: 114 | AD127: 6.9 | AE127: 1.3 | AF127: 3.3 | AG127: 4 | AH127: 1.3 | AI127: 0 | AJ127: 2.8 | AK127: 0 | AL127: 4.8
N128: 1900 | O128: 115 | P128: 0 | Q128: 1900-04-24 | R128: 1 | S128: 0 | T128: 2014 | U128: Negative IOD | V128: 4 | W128: 256.7 | X128: 4 | Y128: 182.7 | Z128: 3 | AB128: 1900 | AC128: 115 | AD128: 0 | AE128: 0 | AF128: 0 | AG128: 0 | AH128: 0 | AI128: 0 | AJ128: 0 | AK128: 0 | AL128: 0
A129: The new location should be selectable from the dropdown list | N129: 1900 | O129: 116 | P129: 0.1 | Q129: 1900-04-25 | R129: 1 | S129: 0 | T129: 2015 | U129: El Nino / +IOD | V129: 6 | W129: 228.6 | X129: 3 | Y129: 178.3 | Z129: 2 | AB129: 1900 | AC129: 116 | AD129: 0 | AE129: 0 | AF129: 0 | AG129: 0.1 | AH129: 0 | AI129: 0 | AJ129: 0 | AK129: 0 | AL129: 0.1
N130: 1900 | O130: 117 | P130: 6.2 | Q130: 1900-04-26 | R130: 1 | S130: 0 | T130: 2016 | U130: Negative IOD | V130: 4 | W130: 442.5 | X130: 10 | Y130: 413.1 | Z130: 10 | AB130: 1900 | AC130: 117 | AD130: 2 | AE130: 3.3 | AF130: 2.5 | AG130: 1.7 | AH130: 2.3 | AI130: 4.3 | AJ130: 0.8 | AK130: 0 | AL130: 6.2
N131: 1900 | O131: 118 | P131: 0.5 | Q131: 1900-04-27 | R131: 1 | S131: 0 | T131: 2017 | U131: Neutral | V131: 1 | W131: 230.6 | X131: 3 | Y131: 164.3 | Z131: 2 | AB131: 1900 | AC131: 118 | AD131: 0.8 | AE131: 0 | AF131: 0 | AG131: 1 | AH131: 0 | AI131: 0.3 | AJ131: 1.3 | AK131: 2 | AL131: 0.5
N132: 1900 | O132: 119 | P132: 1.6 | Q132: 1900-04-28 | R132: 1 | S132: 0 | T132: 2018 | U132: Neutral | V132: 1 | W132: 171.6 | X132: 1 | Y132: 156 | Z132: 2 | AB132: 1900 | AC132: 119 | AD132: 0 | AE132: 0.8 | AF132: 0 | AG132: 0 | AH132: 0 | AI132: 0 | AJ132: 0.5 | AK132: 0 | AL132: 1.6
N133: 1900 | O133: 120 | P133: 0 | Q133: 1900-04-29 | R133: 1 | S133: 0 | T133: 2019 | U133: Positive IOD | V133: 5 | W133: 163.2 | X133: 1 | Y133: 158.8 | Z133: 2 | AB133: 1900 | AC133: 120 | AD133: 0 | AE133: 1.2 | AF133: 0 | AG133: 3 | AH133: 1.3 | AI133: 1 | AJ133: 0 | AK133: 0 | AL133: 0
N134: 1900 | O134: 121 | P134: 0 | Q134: 1900-04-30 | R134: 1 | S134: 0 | T134: 2020 | U134: La Nina | V134: 2 | W134: 247.3 | X134: 4 | Y134: 175.3 | Z134: 2 | AB134: 1900 | AC134: 121 | AD134: 0 | AE134: 0 | AF134: 0 | AG134: 0 | AH134: 0 | AI134: 0 | AJ134: 0 | AK134: 0 | AL134: 0
N135: 1900 | O135: 122 | P135: 0 | Q135: 1900-05-01 | R135: 1 | S135: 1 | T135: 2021 | U135: La Nina / -IOD | V135: 7 | W135: 233.3 | X135: 3 | Y135: 210.7 | Z135: 4 | AB135: 1900 | AC135: 122 | AD135: 0 | AE135: 0 | AF135: 0 | AG135: 0 | AH135: 0 | AI135: 0 | AJ135: 0 | AK135: 0 | AL135: 0
N136: 1900 | O136: 123 | P136: 0 | Q136: 1900-05-02 | R136: 1 | S136: 1 | T136: 2022 | U136: La Nina / -IOD | V136: 7 | W136: 258.4 | X136: 4 | Y136: 209.5 | Z136: 4 | AB136: 1900 | AC136: 123 | AD136: 0 | AE136: 0 | AF136: 0 | AG136: 0 | AH136: 0 | AI136: 0 | AJ136: 0 | AK136: 0 | AL136: 0
N137: 1900 | O137: 124 | P137: 0 | Q137: 1900-05-03 | R137: 1 | S137: 1 | T137: 2023 | U137: El Nino / +IOD | V137: 6 | W137: 76.4 | X137: 1 | Y137: 54.6 | Z137: 1 | AB137: 1900 | AC137: 124 | AD137: 0 | AE137: 0 | AF137: 0 | AG137: 0 | AH137: 0 | AI137: 0 | AJ137: 0 | AK137: 0 | AL137: 0
N138: 1900 | O138: 125 | P138: 0 | Q138: 1900-05-04 | R138: 1 | S138: 1 | T138: 2024 | U138: Neutral | V138: 1 | W138: 0 | X138: 1 | Y138: 0 | Z138: 1 | AB138: 1900 | AC138: 125 | AD138: 0 | AE138: 0 | AF138: 0 | AG138: 0 | AH138: 0 | AI138: 0 | AJ138: 0 | AK138: 0 | AL138: 0
N139: 1900 | O139: 126 | P139: 0.3 | Q139: 1900-05-05 | R139: 1 | S139: 1 | T139: 2025 | U139: Negative IOD | V139: 4 | W139: 0 | X139: 1 | Y139: 0 | Z139: 1 | AB139: 1900 | AC139: 126 | AD139: 0 | AE139: 0 | AF139: 2.4 | AG139: 0 | AH139: 0 | AI139: 0 | AJ139: 0 | AK139: 0 | AL139: 0.3
N140: 1900 | O140: 127 | P140: 0 | Q140: 1900-05-06 | R140: 1 | S140: 1 | AB140: 1900 | AC140: 127 | AD140: 0 | AE140: 0 | AF140: 2.4 | AG140: 0 | AH140: 0.8 | AI140: 0 | AJ140: 0 | AK140: 0 | AL140: 0
N141: 1900 | O141: 128 | P141: 10 | Q141: 1900-05-07 | R141: 1 | S141: 1 | AB141: 1900 | AC141: 128 | AD141: 4.8 | AE141: 2.8 | AF141: 2.5 | AG141: 3.9 | AH141: 8.1 | AI141: 3.3 | AJ141: 2.3 | AK141: 0 | AL141: 10
N142: 1900 | O142: 129 | P142: =OFFSET(AC142,0,$AB$10) -> 1.7 | Q142: 1900-05-08 | R142: 1 | S142: 1 | AB142: 1900 | AC142: 129 | AD142: 1.5 | AE142: 0 | AF142: 0 | AG142: 2.6 | AH142: 1.8 | AI142: 0.3 | AJ142: 0 | AK142: 1.5 | AL142: 1.7
N143: 1900 | O143: 130 | P143: 0 | Q143: 1900-05-09 | R143: 1 | S143: 1 | AB143: 1900 | AC143: 130 | AD143: 0 | AE143: 0 | AF143: 0 | AG143: 0 | AH143: 0.5 | AI143: 0 | AJ143: 0 | AK143: 0 | AL143: 0
N144: 1900 | O144: 131 | P144: 0 | Q144: 1900-05-10 | R144: 1 | S144: 1 | AB144: 1900 | AC144: 131 | AD144: 0 | AE144: 0 | AF144: 0 | AG144: 0 | AH144: 0 | AI144: 0 | AJ144: 0 | AK144: 0 | AL144: 0
N145: 1900 | O145: 132 | P145: 0 | Q145: 1900-05-11 | R145: 1 | S145: 1 | AB145: 1900 | AC145: 132 | AD145: 0 | AE145: 3 | AF145: 0 | AG145: 0 | AH145: 0 | AI145: 0.8 | AJ145: 0 | AK145: 0 | AL145: 0
N146: 1900 | O146: 133 | P146: 0 | Q146: 1900-05-12 | R146: 1 | S146: 1 | AB146: 1900 | AC146: 133 | AD146: 0 | AE146: 0 | AF146: 0 | AG146: 0 | AH146: 0 | AI146: 0 | AJ146: 0 | AK146: 0 | AL146: 0
N147: 1900 | O147: 134 | P147: 0 | Q147: 1900-05-13 | R147: 1 | S147: 1 | AB147: 1900 | AC147: 134 | AD147: 0 | AE147: 0 | AF147: 0 | AG147: 0 | AH147: 0 | AI147: 0 | AJ147: 0 | AK147: 0 | AL147: 0
N148: 1900 | O148: 135 | P148: 0 | Q148: 1900-05-14 | R148: 1 | S148: 1 | AB148: 1900 | AC148: 135 | AD148: 0 | AE148: 0 | AF148: 0 | AG148: 0 | AH148: 0 | AI148: 0 | AJ148: 0 | AK148: 0 | AL148: 0
N149: 1900 | O149: 136 | P149: 0 | Q149: 1900-05-15 | R149: 1 | S149: 1 | AB149: 1900 | AC149: 136 | AD149: 0 | AE149: 0 | AF149: 0 | AG149: 0 | AH149: 0 | AI149: 0 | AJ149: 0 | AK149: 0 | AL149: 0
N150: 1900 | O150: 137 | P150: 1.3 | Q150: 1900-05-16 | R150: 1 | S150: 1 | AB150: 1900 | AC150: 137 | AD150: 6.4 | AE150: 3.8 | AF150: 1 | AG150: 4 | AH150: 1.3 | AI150: 8.1 | AJ150: 0.3 | AK150: 0 | AL150: 1.3
N151: 1900 | O151: 138 | P151: 12.5 | Q151: 1900-05-17 | R151: 1 | S151: 1 | W151: All years | AB151: 1900 | AC151: 138 | AD151: 11.9 | AE151: 25.1 | AF151: 15 | AG151: 16.5 | AH151: 5.6 | AI151: 21.6 | AJ151: 11.4 | AK151: 1.8 | AL151: 12.5
N152: 1900 | O152: 139 | P152: 0 | Q152: 1900-05-18 | R152: 1 | S152: 1 | T152: Deciles | W152: =COUNT(W14:W139) -> 126 | Y152: =COUNT(Y14:Y139) -> 126 | AB152: 1900 | AC152: 139 | AD152: 0 | AE152: 1 | AF152: 0.5 | AG152: 0.3 | AH152: 1 | AI152: 1.3 | AJ152: 0 | AK152: 13.7 | AL152: 0
N153: 1900 | O153: 140 | P153: 0.4 | Q153: 1900-05-19 | R153: 1 | S153: 1 | T153: 0 | W153: =MIN(W14:W139) -> 0 | X153: =COUNTIF(X$14:X$136,$T153) -> 0 | Y153: =MIN(Y14:Y139) -> 0 | Z153: =COUNTIF(Z$14:Z$136,$T153) -> 0 | AB153: 1900 | AC153: 140 | AD153: 0.3 | AE153: 0.6 | AF153: 0.5 | AG153: 0 | AH153: 0.8 | AI153: 0 | AJ153: 0 | AK153: 1.8 | AL153: 0.4
N154: 1900 | O154: 141 | P154: 1.7 | Q154: 1900-05-20 | R154: 1 | S154: 1 | T154: 1 | W154: =SMALL(W$14:W$139,$T154/10*$W$152) -> 176.4 | X154: 9 | Y154: =SMALL(Y$14:Y$139,$T154/10*$Y$152) -> 147.9 | Z154: 9 | AB154: 1900 | AC154: 141 | AD154: 2.2 | AE154: 0.6 | AF154: 0.5 | AG154: 1.5 | AH154: 1.3 | AI154: 0.5 | AJ154: 0 | AK154: 1.5 | AL154: 1.7
N155: 1900 | O155: 142 | P155: 0.5 | Q155: 1900-05-21 | R155: 1 | S155: 1 | T155: 2 | W155: 213.5 | X155: 13 | Y155: 178.3 | Z155: 13 | AB155: 1900 | AC155: 142 | AD155: 0 | AE155: 0.5 | AF155: 0 | AG155: 0.9 | AH155: 0 | AI155: 0 | AJ155: 0 | AK155: 0 | AL155: 0.5
N156: 1900 | O156: 143 | P156: 0 | Q156: 1900-05-22 | R156: 1 | S156: 1 | T156: 3 | W156: 240.6 | X156: 12 | Y156: 191.8 | Z156: 12 | AB156: 1900 | AC156: 143 | AD156: 0 | AE156: 0 | AF156: 0 | AG156: 0 | AH156: 0 | AI156: 0 | AJ156: 0 | AK156: 0 | AL156: 0
N157: 1900 | O157: 144 | P157: 0 | Q157: 1900-05-23 | R157: 1 | S157: 1 | T157: 4 | W157: 270.3 | X157: 13 | Y157: 219.2 | Z157: 13 | AB157: 1900 | AC157: 144 | AD157: 0 | AE157: 0 | AF157: 0 | AG157: 0 | AH157: 0 | AI157: 0 | AJ157: 0 | AK157: 0 | AL157: 0
N158: 1900 | O158: 145 | P158: 1.7 | Q158: 1900-05-24 | R158: 1 | S158: 1 | T158: 5 | W158: 295 | X158: 13 | Y158: 246.4 | Z158: 13 | AB158: 1900 | AC158: 145 | AD158: 0 | AE158: 4.1 | AF158: 0 | AG158: 0 | AH158: 0 | AI158: 0 | AJ158: 0 | AK158: 0 | AL158: 1.7
N159: 1900 | O159: 146 | P159: 0.2 | Q159: 1900-05-25 | R159: 1 | S159: 1 | T159: 6 | W159: 317.6 | X159: 12 | Y159: 262.8 | Z159: 12 | AB159: 1900 | AC159: 146 | AD159: 0 | AE159: 0 | AF159: 0 | AG159: 0 | AH159: 3 | AI159: 10.4 | AJ159: 0 | AK159: 0 | AL159: 0.2
N160: 1900 | O160: 147 | P160: 2.2 | Q160: 1900-05-26 | R160: 1 | S160: 1 | T160: 7 | W160: 341.5 | X160: 13 | Y160: 287.3 | Z160: 13 | AB160: 1900 | AC160: 147 | AD160: 1.9 | AE160: 0.4 | AF160: 1.9 | AG160: 0.1 | AH160: 1.8 | AI160: 0 | AJ160: 0.5 | AK160: 0 | AL160: 2.2
N161: 1900 | O161: 148 | P161: 0.3 | Q161: 1900-05-27 | R161: 1 | S161: 1 | T161: 8 | W161: 380.2 | X161: 12 | Y161: 317.9 | Z161: 12 | AB161: 1900 | AC161: 148 | AD161: 0.9 | AE161: 0.1 | AF161: 0.9 | AG161: 5.5 | AH161: 1.5 | AI161: 0.5 | AJ161: 0 | AK161: 1.5 | AL161: 0.3
N162: 1900 | O162: 149 | P162: 0 | Q162: 1900-05-28 | R162: 1 | S162: 1 | T162: 9 | W162: 423.4 | X162: 13 | Y162: 365.5 | Z162: 13 | AB162: 1900 | AC162: 149 | AD162: 0 | AE162: 0 | AF162: 0 | AG162: 0 | AH162: 0 | AI162: 1.8 | AJ162: 0 | AK162: 0 | AL162: 0
N163: 1900 | O163: 150 | P163: 0.2 | Q163: 1900-05-29 | R163: 1 | S163: 1 | T163: 10 | W163: 538.8 | X163: 13 | Y163: 478 | Z163: 13 | AB163: 1900 | AC163: 150 | AD163: 0 | AE163: 0 | AF163: 0 | AG163: 0 | AH163: 0 | AI163: 0 | AJ163: 0 | AK163: 0 | AL163: 0.2
N164: 1900 | O164: 151 | P164: 0 | Q164: 1900-05-30 | R164: 1 | S164: 1 | AB164: 1900 | AC164: 151 | AD164: 0 | AE164: 0 | AF164: 0 | AG164: 0 | AH164: 0 | AI164: 0 | AJ164: 0 | AK164: 0 | AL164: 0
N165: 1900 | O165: 152 | P165: 0.2 | Q165: 1900-05-31 | R165: 1 | S165: 1 | U165: Climate driver list | AB165: 1900 | AC165: 152 | AD165: 0 | AE165: 0 | AF165: 0 | AG165: 0 | AH165: 0 | AI165: 0.8 | AJ165: 0 | AK165: 0 | AL165: 0.2
N166: 1900 | O166: 153 | P166: 0.2 | Q166: 1900-06-01 | R166: 1 | S166: 1 | U166: Ignore Climate Drivers | X166: =COUNT(V$14:V$139) -> 126 | AB166: 1900 | AC166: 153 | AD166: 0 | AE166: 0.5 | AF166: 0 | AG166: 1.3 | AH166: 0 | AI166: 0 | AJ166: 0 | AK166: 0 | AL166: 0.2
N167: 1900 | O167: 154 | P167: 0.2 | Q167: 1900-06-02 | R167: 1 | S167: 1 | U167: Neutral | V167: 1 | X167: =COUNTIFS(U$14:U$139,U167) -> 44 | AB167: 1900 | AC167: 154 | AD167: 0 | AE167: 0 | AF167: 0 | AG167: 0 | AH167: 0 | AI167: 0 | AJ167: 0 | AK167: 0 | AL167: 0.2
N168: 1900 | O168: 155 | P168: 0 | Q168: 1900-06-03 | R168: 1 | S168: 1 | U168: La Nina | V168: 2 | W168: 7 | X168: =COUNTIFS(U$14:U$139,U168) -> 22 | AB168: 1900 | AC168: 155 | AD168: 0 | AE168: 0 | AF168: 0 | AG168: 0 | AH168: 0 | AI168: 0.3 | AJ168: 0 | AK168: 0 | AL168: 0
N169: 1900 | O169: 156 | P169: 0.2 | Q169: 1900-06-04 | R169: 1 | S169: 1 | U169: El Nino | V169: 3 | W169: 6 | X169: 15 | AB169: 1900 | AC169: 156 | AD169: 0 | AE169: 0 | AF169: 0 | AG169: 0 | AH169: 3.8 | AI169: 0 | AJ169: 0 | AK169: 0 | AL169: 0.2
N170: 1900 | O170: 157 | P170: 0 | Q170: 1900-06-05 | R170: 1 | S170: 1 | U170: Negative IOD | V170: 4 | W170: 7 | X170: 12 | AB170: 1900 | AC170: 157 | AD170: 3.8 | AE170: 0 | AF170: 0 | AG170: 0 | AH170: 0 | AI170: 0 | AJ170: 0 | AK170: 0 | AL170: 0
N171: 1900 | O171: 158 | P171: 0 | Q171: 1900-06-06 | R171: 1 | S171: 1 | U171: Positive IOD | V171: 5 | W171: 6 | X171: 9 | AB171: 1900 | AC171: 158 | AD171: 0 | AE171: 0 | AF171: 0 | AG171: 0 | AH171: 1.8 | AI171: 0 | AJ171: 0 | AK171: 0 | AL171: 0
N172: 1900 | O172: 159 | P172: 0 | Q172: 1900-06-07 | R172: 1 | S172: 1 | U172: El Nino / +IOD | V172: 6 | X172: 13 | AB172: 1900 | AC172: 159 | AD172: 0 | AE172: 0 | AF172: 0 | AG172: 0 | AH172: 0 | AI172: 0 | AJ172: 0 | AK172: 0 | AL172: 0
N173: 1900 | O173: 160 | P173: 0 | Q173: 1900-06-08 | R173: 1 | S173: 1 | U173: La Nina / -IOD | V173: 7 | X173: 11 | AB173: 1900 | AC173: 160 | AD173: 0 | AE173: 0 | AF173: 0 | AG173: 0 | AH173: 0 | AI173: 0 | AJ173: 0 | AK173: 0 | AL173: 0
N174: 1900 | O174: 161 | P174: 0 | Q174: 1900-06-09 | R174: 1 | S174: 1 | AB174: 1900 | AC174: 161 | AD174: 0 | AE174: 0 | AF174: 0 | AG174: 0 | AH174: 0 | AI174: 0 | AJ174: 0 | AK174: 0 | AL174: 0
N175: 1900 | O175: 162 | P175: 0 | Q175: 1900-06-10 | R175: 1 | S175: 1 | U175: Selected Climate Driver | AB175: 1900 | AC175: 162 | AD175: 0 | AE175: 0 | AF175: 0 | AG175: 0 | AH175: 0 | AI175: 0 | AJ175: 0 | AK175: 0 | AL175: 0
N176: 1900 | O176: 163 | P176: 0 | Q176: 1900-06-11 | R176: 1 | S176: 1 | T176: Deciles | U176: =D13 -> Ignore Climate Drivers | V176: =INDEX(V166:V173,MATCH(U176,U166:U173,0)) -> 0 | W176: =COUNTIF(V14:V139,V176) + COUNTIF(V14:V139,V177) -> 0 | Y176: =W176 -> 0 | AB176: 1900 | AC176: 163 | AD176: 0 | AE176: 0 | AF176: 0 | AG176: 0 | AH176: 0 | AI176: 0 | AJ176: 0 | AK176: 0 | AL176: 0
N177: 1900 | O177: 164 | P177: 0 | Q177: 1900-06-12 | R177: 1 | S177: 1 | T177: 0 | V177: =INDEX(W166:W173,MATCH(U176,U166:U173,0)) -> 0 | W177: =SMALL(IF((V$14:V$139=$V$176)+(V$14:V$139=$V$177),W$14:W$139),1) ->  | Y177: =SMALL(IF((V$14:V$139=$V$176)+(V$14:V$139=$V$177),Y$14:Y$139),1) ->  | AB177: 1900 | AC177: 164 | AD177: 0 | AE177: 0 | AF177: 0 | AG177: 0 | AH177: 0 | AI177: 0 | AJ177: 0 | AK177: 0 | AL177: 0
N178: 1900 | O178: 165 | P178: 12.2 | Q178: 1900-06-13 | R178: 1 | S178: 1 | T178: 1 | W178: =SMALL(IF((V$14:V$139=$V$176)+(V$14:V$139=$V$177),W$14:W$139),$T178/10*$W$176) ->  | X178: =COUNTIFS(V$14:V$136,$V$176,X$14:X$136,T178) + COUNTIFS(V$14:V$136,$V$177,X$14:X$136,T178) -> 0 | Y178: =SMALL(IF((V$14:V$139=$V$176)+(V$14:V$139=$V$177),Y$14:Y$139),$T178/10*$W$176) ->  | Z178: =COUNTIFS(V$14:V$136,$V$176,Z$14:Z$136,T178) + COUNTIFS(V$14:V$136,$V$177,Z$14:Z$136,T178) -> 0 | AB178: 1900 | AC178: 165 | AD178: 11.4 | AE178: 14.2 | AF178: 14 | AG178: 13.2 | AH178: 23.6 | AI178: 11.4 | AJ178: 12.7 | AK178: 12.7 | AL178: 12.2
N179: 1900 | O179: 166 | P179: 0.4 | Q179: 1900-06-14 | R179: 1 | S179: 1 | T179: 2 | W179: =SMALL(IF((V$14:V$139=$V$176)+(V$14:V$139=$V$177),W$14:W$139),$T179/10*$W$176) ->  | X179: 0 | Y179: =SMALL(IF((V$14:V$139=$V$176)+(V$14:V$139=$V$177),Y$14:Y$139),$T179/10*$W$176) ->  | Z179: 0 | AB179: 1900 | AC179: 166 | AD179: 0.5 | AE179: 0.8 | AF179: 0.3 | AG179: 2.2 | AH179: 1 | AI179: 0.3 | AJ179: 0.3 | AK179: 0.8 | AL179: 0.4
N180: 1900 | O180: 167 | P180: 0.6 | Q180: 1900-06-15 | R180: 1 | S180: 1 | T180: 3 | W180: =SMALL(IF((V$14:V$139=$V$176)+(V$14:V$139=$V$177),W$14:W$139),$T180/10*$W$176) ->  | X180: 0 | Y180: =SMALL(IF((V$14:V$139=$V$176)+(V$14:V$139=$V$177),Y$14:Y$139),$T180/10*$W$176) ->  | Z180: 0 | AB180: 1900 | AC180: 167 | AD180: 0 | AE180: 1.3 | AF180: 0 | AG180: 0.1 | AH180: 1.5 | AI180: 6.4 | AJ180: 0 | AK180: 0 | AL180: 0.6
N181: 1900 | O181: 168 | P181: 0 | Q181: 1900-06-16 | R181: 1 | S181: 1 | T181: 4 | W181: =SMALL(IF((V$14:V$139=$V$176)+(V$14:V$139=$V$177),W$14:W$139),$T181/10*$W$176) ->  | X181: 0 | Y181: =SMALL(IF((V$14:V$139=$V$176)+(V$14:V$139=$V$177),Y$14:Y$139),$T181/10*$W$176) ->  | Z181: 0 | AB181: 1900 | AC181: 168 | AD181: 0 | AE181: 0 | AF181: 2.9 | AG181: 0.2 | AH181: 0 | AI181: 0 | AJ181: 5.5 | AK181: 0 | AL181: 0
N182: 1900 | O182: 169 | P182: 1.2 | Q182: 1900-06-17 | R182: 1 | S182: 1 | T182: 5 | W182: =SMALL(IF((V$14:V$139=$V$176)+(V$14:V$139=$V$177),W$14:W$139),$T182/10*$W$176) ->  | X182: 0 | Y182: =SMALL(IF((V$14:V$139=$V$176)+(V$14:V$139=$V$177),Y$14:Y$139),$T182/10*$W$176) ->  | Z182: 0 | AB182: 1900 | AC182: 169 | AD182: 2.8 | AE182: 0 | AF182: 1.4 | AG182: 5.9 | AH182: 0.5 | AI182: 1.8 | AJ182: 1.1 | AK182: 0 | AL182: 1.2
N183: 1900 | O183: 170 | P183: 5.4 | Q183: 1900-06-18 | R183: 1 | S183: 1 | T183: 6 | W183: =SMALL(IF((V$14:V$139=$V$176)+(V$14:V$139=$V$177),W$14:W$139),$T183/10*$W$176) ->  | X183: 0 | Y183: =SMALL(IF((V$14:V$139=$V$176)+(V$14:V$139=$V$177),Y$14:Y$139),$T183/10*$W$176) ->  | Z183: 0 | AB183: 1900 | AC183: 170 | AD183: 2.5 | AE183: 2.8 | AF183: 3.8 | AG183: 3.4 | AH183: 5.1 | AI183: 0.8 | AJ183: 2 | AK183: 2 | AL183: 5.4
N184: 1900 | O184: 171 | P184: 0 | Q184: 1900-06-19 | R184: 1 | S184: 1 | T184: 7 | W184: =SMALL(IF((V$14:V$139=$V$176)+(V$14:V$139=$V$177),W$14:W$139),$T184/10*$W$176) ->  | X184: 0 | Y184: =SMALL(IF((V$14:V$139=$V$176)+(V$14:V$139=$V$177),Y$14:Y$139),$T184/10*$W$176) ->  | Z184: 0 | AB184: 1900 | AC184: 171 | AD184: 0 | AE184: 0 | AF184: 0 | AG184: 0 | AH184: 0 | AI184: 0 | AJ184: 0 | AK184: 0 | AL184: 0
N185: 1900 | O185: 172 | P185: 0.4 | Q185: 1900-06-20 | R185: 1 | S185: 1 | T185: 8 | W185: =SMALL(IF((V$14:V$139=$V$176)+(V$14:V$139=$V$177),W$14:W$139),$T185/10*$W$176) ->  | X185: 0 | Y185: =SMALL(IF((V$14:V$139=$V$176)+(V$14:V$139=$V$177),Y$14:Y$139),$T185/10*$W$176) ->  | Z185: 0 | AB185: 1900 | AC185: 172 | AD185: 0 | AE185: 0.5 | AF185: 1.3 | AG185: 0.6 | AH185: 2.5 | AI185: 1.5 | AJ185: 0 | AK185: 0 | AL185: 0.4
N186: 1900 | O186: 173 | P186: 1.1 | Q186: 1900-06-21 | R186: 1 | S186: 1 | T186: 9 | W186: =SMALL(IF((V$14:V$139=$V$176)+(V$14:V$139=$V$177),W$14:W$139),$T186/10*$W$176) ->  | X186: 0 | Y186: =SMALL(IF((V$14:V$139=$V$176)+(V$14:V$139=$V$177),Y$14:Y$139),$T186/10*$W$176) ->  | Z186: 0 | AB186: 1900 | AC186: 173 | AD186: 0 | AE186: 2.3 | AF186: 1.3 | AG186: 0.1 | AH186: 4.1 | AI186: 2 | AJ186: 0 | AK186: 0 | AL186: 1.1
N187: 1900 | O187: 174 | P187: 4.5 | Q187: 1900-06-22 | R187: 1 | S187: 1 | T187: 10 | W187: =SMALL(IF((V$14:V$139=$V$176)+(V$14:V$139=$V$177),W$14:W$139),$T187/10*$W$176) ->  | X187: 0 | Y187: =SMALL(IF((V$14:V$139=$V$176)+(V$14:V$139=$V$177),Y$14:Y$139),$T187/10*$W$176) ->  | Z187: 0 | AB187: 1900 | AC187: 174 | AD187: 11.9 | AE187: 6.9 | AF187: 3.3 | AG187: 14.8 | AH187: 6.9 | AI187: 14.7 | AJ187: 10.7 | AK187: 17.8 | AL187: 4.5
N188: 1900 | O188: 175 | P188: 12.2 | Q188: 1900-06-23 | R188: 1 | S188: 1 | AB188: 1900 | AC188: 175 | AD188: 7.9 | AE188: 3.2 | AF188: 9.7 | AG188: 0.6 | AH188: 9.1 | AI188: 0 | AJ188: 11.7 | AK188: 3.8 | AL188: 12.2
N189: 1900 | O189: 176 | P189: 6.8 | Q189: 1900-06-24 | R189: 1 | S189: 1 | AB189: 1900 | AC189: 176 | AD189: 6.6 | AE189: 3.2 | AF189: 3.5 | AG189: 10.6 | AH189: 10.4 | AI189: 15.7 | AJ189: 2.5 | AK189: 0.5 | AL189: 6.8
N190: 1900 | O190: 177 | P190: 0.8 | Q190: 1900-06-25 | R190: 1 | S190: 1 | U190: Selected Climate Driver | W190: =IF(U191=U166,"In all 126 years", CONCATENATE("In the ",D14," ",D13," years")) -> In all 126 years | AB190: 1900 | AC190: 177 | AD190: 2.5 | AE190: 2.5 | AF190: 2.5 | AG190: 1.2 | AH190: 3 | AI190: 19.6 | AJ190: 1.5 | AK190: 1.3 | AL190: 0.8
N191: 1900 | O191: 178 | P191: 4.2 | Q191: 1900-06-26 | R191: 1 | S191: 1 | T191: Deciles | U191: =D13 -> Ignore Climate Drivers | W191: =IF($U$191=$U$166,W152,W176) -> 126 | Y191: =IF($U$191=$U$166,Y152,Y176) -> 126 | AB191: 1900 | AC191: 178 | AD191: 3 | AE191: 3.8 | AF191: 5.1 | AG191: 5.1 | AH191: 5.1 | AI191: 11.4 | AJ191: 2.8 | AK191: 5.8 | AL191: 4.2
N192: 1900 | O192: 179 | P192: 3.4 | Q192: 1900-06-27 | R192: 1 | S192: 1 | T192: 0 | W192: 0 | Y192: 0 | AB192: 1900 | AC192: 179 | AD192: 5.1 | AE192: 3.6 | AF192: 2.8 | AG192: 6.1 | AH192: 9.1 | AI192: 5.8 | AJ192: 1.5 | AK192: 3.3 | AL192: 3.4
N193: 1900 | O193: 180 | P193: 3.4 | Q193: 1900-06-28 | R193: 1 | S193: 1 | T193: 1 | W193: 176.4 | X193: =IF($U$191=$U$166,X154,X178) -> 9 | Y193: 147.9 | Z193: =IF($U$191=$U$166,Z154,Z178) -> 9 | AB193: 1900 | AC193: 180 | AD193: 2.5 | AE193: 0.5 | AF193: 1.5 | AG193: 8 | AH193: 5.1 | AI193: 0.5 | AJ193: 0.8 | AK193: 0.5 | AL193: 3.4
N194: 1900 | O194: 181 | P194: 2.2 | Q194: 1900-06-29 | R194: 1 | S194: 1 | T194: 2 | W194: 213.5 | X194: 13 | Y194: 178.3 | Z194: 13 | AB194: 1900 | AC194: 181 | AD194: 0 | AE194: 3 | AF194: 0.5 | AG194: 1.6 | AH194: 1.5 | AI194: 0 | AJ194: 0.3 | AK194: 3 | AL194: 2.2
N195: 1900 | O195: 182 | P195: 0.3 | Q195: 1900-06-30 | R195: 1 | S195: 1 | T195: 3 | W195: 240.6 | X195: 12 | Y195: 191.8 | Z195: 12 | AB195: 1900 | AC195: 182 | AD195: 0 | AE195: 0 | AF195: 1.4 | AG195: 0.1 | AH195: 0 | AI195: 0 | AJ195: 0 | AK195: 0.8 | AL195: 0.3
N196: 1900 | O196: 183 | P196: 0 | Q196: 1900-07-01 | R196: 1 | S196: 1 | T196: 4 | W196: 270.3 | X196: 13 | Y196: 219.2 | Z196: 13 | AB196: 1900 | AC196: 183 | AD196: 0 | AE196: 0 | AF196: 1.4 | AG196: 0.8 | AH196: 0 | AI196: 0 | AJ196: 0 | AK196: 0 | AL196: 0
N197: 1900 | O197: 184 | P197: 3.3 | Q197: 1900-07-02 | R197: 1 | S197: 1 | T197: 5 | W197: 295 | X197: 13 | Y197: 246.4 | Z197: 13 | AB197: 1900 | AC197: 184 | AD197: 2.5 | AE197: 1.8 | AF197: 0 | AG197: 4.2 | AH197: 2.5 | AI197: 1.8 | AJ197: 4.8 | AK197: 0 | AL197: 3.3
N198: 1900 | O198: 185 | P198: 1.6 | Q198: 1900-07-03 | R198: 1 | S198: 1 | T198: 6 | W198: 317.6 | X198: 12 | Y198: 262.8 | Z198: 12 | AB198: 1900 | AC198: 185 | AD198: 5.6 | AE198: 0.8 | AF198: 7.6 | AG198: 5.5 | AH198: 1.3 | AI198: 0 | AJ198: 12.4 | AK198: 3 | AL198: 1.6
N199: 1900 | O199: 186 | P199: 0.6 | Q199: 1900-07-04 | R199: 1 | S199: 1 | T199: 7 | W199: 341.5 | X199: 13 | Y199: 287.3 | Z199: 13 | AB199: 1900 | AC199: 186 | AD199: 0 | AE199: 0 | AF199: 0 | AG199: 0.9 | AH199: 0 | AI199: 0 | AJ199: 1.5 | AK199: 0 | AL199: 0.6
N200: 1900 | O200: 187 | P200: 0.2 | Q200: 1900-07-05 | R200: 1 | S200: 1 | T200: 8 | W200: 380.2 | X200: 12 | Y200: 317.9 | Z200: 12 | AB200: 1900 | AC200: 187 | AD200: 0 | AE200: 0 | AF200: 0 | AG200: 0.7 | AH200: 0 | AI200: 0 | AJ200: 0 | AK200: 0 | AL200: 0.2
... 2050 more rows

Sheet RISK Data (hidden)
E1: RISK - | F1: seasonal and commodity price variability
E2: What is your crop yield in the poorest 10% of seasons? | I2: What is your crop yield in the best 10% of seasons?
D3: Show/Hide | G3: Both boxes need to be filled for all crops
D4: =IF(rng_APW_Wheat_DATA_SHEET + rng_APW_Wheat_DATA_Sheet_R2, "Show", "Hide") -> Hide | E4: Wheat | G4: 1.2 | I4: 5
D5: =IF(rng_Feed_Barley_DATA_SHEET + rng_Feed_Barley_DATA_Sheet_R2+rng_Malt_Barley_DATA_SHEET+rng_Malt_Barley_DATA_Sheet_R2, "Show", "Hide") -> Hide | E5: Barley | G5: 1.2 | I5: 4.5
D6: =IF(rng_Milling_DATA_SHEET+rng_Milling_DATA_Sheet_R2+rng_Triticale_DATA_SHEET+rng_Triticale_DATA_Sheet_R2, "Show", "Hide") -> Hide | E6: Other Cereals
D7: =IF(rng_Canola_Clear_DATA_SHEET+rng_Canola_Clear_DATA_Sheet_R2+rng_Canola_Conv_DATA_SHEET+rng_Canola_Conv_DATA_Sheet_R2+rng_Canola_Round_DATA_SHEET+rng_Canola_Round_DATA_Sheet_R2+rng_Canola_Tri_DATA_SHEET+rng_Canola_Tri_DATA_Sheet_R2, "Show", "Hide") -> Hide | E7: Canola | G7: 0.2 | I7: 2
A8: Index | D8: =IF(rng_Export_DATA_SHEET+rng_Export_DATA_Sheet_R2, "Show", "Hide") -> Hide | E8: Hay
A9: =_xlfn.XMATCH(E9,dv_risk1) ->  | D9: =IF(rng_Beans_DATA_SHEET+rng_Beans_DATA_Sheet_R2, "Show", "Hide") -> Hide | E9: Beans
A10: =_xlfn.XMATCH(E10,dv_risk2) ->  | D10: =IF(rng_Chickpeas_DATA_SHEET+rng_Chickpeas_DATA_Sheet_R2, "Show", "Hide") -> Hide | E10: Chickpeas | G10: 0.4 | I10: 3
D11: =IF(rng_Field_Peas_DATA_SHEET+rng_Field_Peas_DATA_Sheet_R2, "Show", "Hide") -> Hide | E11: Field Peas
D12: =IF(rng_Lupins_DATA_SHEET+rng_Lupins_DATA_Sheet_R2, "Show", "Hide") -> Hide | E12: Lupins
D13: =IF(rng_lentils_DATA_SHEET+rng_lentils_DATA_Sheet_R2, "Show", "Hide") -> Hide | E13: Lentils
D14: =IF(rng_lentils_imi_DATA_SHEET+rng_lentils_imi_DATA_Sheet_R2, "Show", "Hide") -> Hide | E14: Lentils IMI
D15: =IF(rng_LENTILS_GIA_DATA_SHEET+rng_LENTILS_GIA_DATA_SHEET_R2, "Show", "Hide") -> Hide | E15: Lentils MET
A16: =_xlfn.XMATCH(E16,dv_risk3) ->  | D16: =IF(rng_Vetch_DATA_SHEET+rng_Vetch_DATA_Sheet_R2, "Show", "Hide") -> Hide | E16: Vetch
A18: Row Type | D18: Show/Hide | E18: Potential Yield (t/ha) | G18: Enter data in "yellow" boxes
D19: Show | E19: Rainfall Decile | G19: 1 | H19: 3 | I19: 5 | J19: 7 | K19: 9
A20: =OR(rng_APW_Wheat_DATA_SHEET,rng_APW_Wheat_DATA_Sheet_R2) -> FALSE | C20: Yield | D20: =IF(AND(A20,OR(B20="",AND(B20="R2",var_rotationtype=2)),OR(C20="",AND(C20="Yield",var_useyields))),"Show","Hide") -> Hide | F20: Yield Calculator | G20: ='Yield Calculator'!G19 -> 1.9338 | H20: ='Yield Calculator'!G21 -> 2.532933333 | I20: ='Yield Calculator'!H23 -> 3.008 | J20: ='Yield Calculator'!G25 -> 4.2966 | K20: ='Yield Calculator'!G27 -> 5.665 | AG20: FORMULAS FOR THE RESET MACROS IN COLS G~K
A21: =OR(rng_APW_Wheat_DATA_SHEET,rng_APW_Wheat_DATA_Sheet_R2) -> FALSE | D21: Hide | E21: Wheat | F21: Wheat Rotation 1 | G21: =G4 -> 1.2 | H21: =I21-(I21-G21)*0.3 ->  | I21: =IF(var_rain="Low",WHEAT!L$10,IF(var_rain="Medium",WHEAT!O$10, WHEAT!R$10)) ->  | J21: =I21+(K21-I21)*0.4 ->  | K21: =I4 -> 5 | AG21: =G4 | AH21: =I21-(I21-G21)*0.3 | AJ21: =I21+(K21-I21)*0.4 | AK21: =I4
A22: =OR(rng_APW_Wheat_DATA_SHEET,rng_APW_Wheat_DATA_Sheet_R2) -> FALSE | D22: Hide | F22: Adjusted Yield | G22: =G21-(G21*$F$71*$F$72)-(G21*$F$76*$F$77)-(G21*$F$79*$F$80)-($K$85*$L$85) ->  | H22: =H21-(H21*$F$71*$F$72)-(H21*$F$76*$F$77)-(H21*$F$79*$F$80)-($K$85*$L$85) ->  | I22: =I21-(I21*$F$71*$F$72)-(I21*$F$76*$F$77)-(I21*$F$79*$F$80)-($K$85*$L$85) ->  | J22: =J21-(J21*$F$71*$F$72)-(J21*$F$76*$F$77)-(J21*$F$79*$F$80)-($K$85*$L$85) ->  | K22: =K21-(K21*$F$71*$F$72)-(K21*$F$76*$F$77)-(K21*$F$79*$F$80)-($K$85*$L$85) -> 
A23: =OR(rng_APW_Wheat_DATA_SHEET,rng_APW_Wheat_DATA_Sheet_R2) -> FALSE | B23: R2 | D23: Hide | F23: Wheat Rotation 2 | G23: 2 | H23: 2.6 | I23: 3.1 | J23: 3.9 | K23: 4.5
A24: =OR(rng_Feed_Barley_DATA_SHEET,rng_Feed_Barley_DATA_Sheet_R2,rng_Malt_Barley_DATA_SHEET,rng_Malt_Barley_DATA_Sheet_R2) -> FALSE | C24: Yield | D24: Hide | F24: Yield Calculator | G24: ='Yield Calculator'!$H19 -> 1.558 | H24: ='Yield Calculator'!$H21 -> 2.102666667 | I24: ='Yield Calculator'!$H23 -> 3.008 | J24: ='Yield Calculator'!$H25 -> 3.706 | K24: ='Yield Calculator'!$H27 -> 4.95
A25: =OR(rng_Feed_Barley_DATA_SHEET,rng_Feed_Barley_DATA_Sheet_R2,rng_Malt_Barley_DATA_SHEET,rng_Malt_Barley_DATA_Sheet_R2) -> FALSE | D25: Hide | E25: Barley | F25: Barley Rotation 1 | G25: =G5 -> 1.2 | H25: =I25-(I25-G25)*0.3 ->  | I25: =IF(var_rain="Low",'FEED BARLEY'!L$10,IF(var_rain="Medium",'FEED BARLEY'!O$10, 'FEED BARLEY'!R$10)) ->  | J25: =I25+(K25-I25)*0.4 ->  | K25: =I5 -> 4.5 | AG25: =G5 | AH25: =I25-(I25-G25)*0.3 | AJ25: =I25+(K25-I25)*0.4 | AK25: =I5
A26: =OR(rng_Feed_Barley_DATA_SHEET,rng_Feed_Barley_DATA_Sheet_R2,rng_Malt_Barley_DATA_SHEET,rng_Malt_Barley_DATA_Sheet_R2) -> FALSE | D26: Hide | F26: Adjusted Yield | G26: =G25-(G25*$H$71*$H$72)-(G25*$H$76*$H$77)-(G25*$H$79*$H$80)-($K$86*$L$86) ->  | H26: =H25-(H25*$H$71*$H$72)-(H25*$H$76*$H$77)-(H25*$H$79*$H$80)-($K$86*$L$86) ->  | I26: =I25-(I25*$H$71*$H$72)-(I25*$H$76*$H$77)-(I25*$H$79*$H$80)-($K$86*$L$86) ->  | J26: =J25-(J25*$H$71*$H$72)-(J25*$H$76*$H$77)-(J25*$H$79*$H$80)-($K$86*$L$86) ->  | K26: =K25-(K25*$H$71*$H$72)-(K25*$H$76*$H$77)-(K25*$H$79*$H$80)-($K$86*$L$86) -> 
A27: =OR(rng_Feed_Barley_DATA_SHEET,rng_Feed_Barley_DATA_Sheet_R2,rng_Malt_Barley_DATA_SHEET,rng_Malt_Barley_DATA_Sheet_R2) -> FALSE | B27: R2 | D27: Hide | F27: Barley Rotation 2 | G27: 1.7 | H27: 2.3 | I27: 2.7 | J27: 3.6 | K27: 4.1
A28: =OR(rng_Milling_DATA_SHEET,rng_Milling_DATA_Sheet_R2,rng_Triticale_DATA_SHEET,rng_Triticale_DATA_Sheet_R2) -> FALSE | D28: Hide | E28: Other Cereals | G28: =G6 -> 0 | K28: =I6 -> 0
A29: =OR(rng_Canola_Clear_DATA_SHEET,rng_Canola_Clear_DATA_Sheet_R2,rng_Canola_Conv_DATA_SHEET,rng_Canola_Conv_DATA_Sheet_R2,rng_Canola_Round_DATA_SHEET,rng_Canola_Round_DATA_Sheet_R2,rng_Canola_Tri_DATA_SHEET,rng_Canola_Tri_DATA_Sheet_R2) -> FALSE | C29: Yield | D29: Hide | F29: Yield Calculator | G29: ='Yield Calculator'!$I19 -> 0.8148 | H29: ='Yield Calculator'!$I21 -> 1.1416 | I29: ='Yield Calculator'!$I23 -> 1.6848 | J29: ='Yield Calculator'!$I25 -> 2.1036 | K29: ='Yield Calculator'!$I27 -> 2.85
A30: =OR(rng_Canola_Clear_DATA_SHEET,rng_Canola_Clear_DATA_Sheet_R2,rng_Canola_Conv_DATA_SHEET,rng_Canola_Conv_DATA_Sheet_R2,rng_Canola_Round_DATA_SHEET,rng_Canola_Round_DATA_Sheet_R2,rng_Canola_Tri_DATA_SHEET,rng_Canola_Tri_DATA_Sheet_R2) -> FALSE | D30: Hide | E30: Canola | F30: Canola Rotation 1 | G30: =G7 -> 0.2 | H30: =I30-(I30-G30)*0.3 ->  | I30: =IF(var_rain="Low",'CANOLA CLEARFIELD'!L$10,IF(var_rain="Medium",'CANOLA CLEARFIELD'!O$10, 'CANOLA CLEARFIELD'!R$10)) ->  | J30: =I30+(K30-I30)*0.4 ->  | K30: =I7 -> 2 | AG30: =G7 | AH30: =I30-(I30-G30)*0.3 | AJ30: =I30+(K30-I30)*0.4 | AK30: =I7
A31: =OR(rng_Canola_Clear_DATA_SHEET,rng_Canola_Clear_DATA_Sheet_R2,rng_Canola_Conv_DATA_SHEET,rng_Canola_Conv_DATA_Sheet_R2,rng_Canola_Round_DATA_SHEET,rng_Canola_Round_DATA_Sheet_R2,rng_Canola_Tri_DATA_SHEET,rng_Canola_Tri_DATA_Sheet_R2) -> FALSE | D31: Hide | F31: Adjusted Yield | G31: =G30-(G30*$J$71*$J$72)-(G30*$J$76*$J$77)-(G30*$J$79*$J$80)-(K$87*L$87) ->  | H31: =H30-(H30*$J$71*$J$72)-(H30*$J$76*$J$77)-(H30*$J$79*$J$80)-(L$87*M$87) ->  | I31: =I30-(I30*$J$71*$J$72)-(I30*$J$76*$J$77)-(I30*$J$79*$J$80)-(M$87*N$87) ->  | J31: =J30-(J30*$J$71*$J$72)-(J30*$J$76*$J$77)-(J30*$J$79*$J$80)-(N$87*O$87) ->  | K31: =K30-(K30*$J$71*$J$72)-(K30*$J$76*$J$77)-(K30*$J$79*$J$80)-(O$87*P$87) -> 2
A32: =OR(rng_Canola_Clear_DATA_SHEET,rng_Canola_Clear_DATA_Sheet_R2,rng_Canola_Conv_DATA_SHEET,rng_Canola_Conv_DATA_Sheet_R2,rng_Canola_Round_DATA_SHEET,rng_Canola_Round_DATA_Sheet_R2,rng_Canola_Tri_DATA_SHEET,rng_Canola_Tri_DATA_Sheet_R2) -> FALSE | B32: R2 | D32: Hide | F32: Canola Rotation 2
A33: =OR(rng_Export_DATA_SHEET,rng_Export_DATA_Sheet_R2) -> FALSE | C33: Yield | D33: Hide | F33: Yield Calculator | G33: ='Yield Calculator'!J19 -> 2.3765 | H33: ='Yield Calculator'!J21 -> 3.329666667 | I33: ='Yield Calculator'!J23 -> 4.914 | J33: ='Yield Calculator'!J25 -> 6.1355 | K33: ='Yield Calculator'!J27 -> 8.3125
A34: =OR(rng_Export_DATA_SHEET,rng_Export_DATA_Sheet_R2) -> FALSE | D34: Hide | E34: Hay | F34: Hay Rotation 1 | G34: =G8 -> 0 | H34: =I34-(I34-G34)*0.3 ->  | I34: =IF(var_rain="Low",'EXPORT OATEN HAY'!L$10,IF(var_rain="Medium",'EXPORT OATEN HAY'!O$10, 'EXPORT OATEN HAY'!R$10)) ->  | J34: =I34+(K34-I34)*0.4 ->  | K34: =I8 -> 0 | AG34: =G8 | AH34: =I34-(I34-G34)*0.3 | AJ34: =I34+(K34-I34)*0.4 | AK34: =I8
A35: =OR(rng_Beans_DATA_SHEET,rng_Beans_DATA_Sheet_R2) -> FALSE | C35: Yield | D35: Hide | F35: Yield Calculator | G35: ='Yield Calculator'!K19 -> 0.579 | H35: ='Yield Calculator'!K21 -> 0.8513333333 | I35: ='Yield Calculator'!K23 -> 1.304 | J35: ='Yield Calculator'!L25 -> 1.9283 | K35: ='Yield Calculator'!K27 -> 2.275
A36: =OR(rng_Beans_DATA_SHEET,rng_Beans_DATA_Sheet_R2) -> FALSE | D36: Hide | E36: Beans | F36: Beans Rotation 1 | G36: =G9 -> 0 | H36: =I36-(I36-G36)*0.3 ->  | I36: =IF(var_rain="Low",BEANS!L$10,IF(var_rain="Medium",BEANS!O$10, BEANS!R$10)) ->  | J36: =I36+(K36-I36)*0.4 ->  | K36: =I9 -> 0 | AG36: =G9 | AH36: =I36-(I36-G36)*0.3 | AJ36: =I36+(K36-I36)*0.4 | AK36: =I9
A37: =OR(rng_Beans_DATA_SHEET,rng_Beans_DATA_Sheet_R2) -> FALSE | D37: Hide | F37: Adjusted Yield | G37: =G36-(G36*$N$71*$N$72)-(G36*$N$76*$N$77)-(G36*$N$79*$N$80)-(K$88*L$88) -> 0 | H37: =H36-(H36*$N$71*$N$72)-(H36*$N$76*$N$77)-(H36*$N$79*$N$80)-(L$88*M$88) ->  | I37: =I36-(I36*$N$71*$N$72)-(I36*$N$76*$N$77)-(I36*$N$79*$N$80)-(M$88*N$88) ->  | J37: =J36-(J36*$N$71*$N$72)-(J36*$N$76*$N$77)-(J36*$N$79*$N$80)-(N$88*O$88) ->  | K37: =K36-(K36*$N$71*$N$72)-(K36*$N$76*$N$77)-(K36*$N$79*$N$80)-(O$88*P$88) -> 0
A38: =OR(rng_Beans_DATA_SHEET,rng_Beans_DATA_Sheet_R2) -> FALSE | B38: R2 | D38: Hide | F38: Beans Rotation 2
A39: =OR(rng_Chickpeas_DATA_SHEET,rng_Chickpeas_DATA_Sheet_R2) -> FALSE | C39: Yield | D39: Hide | F39: Yield Calculator | G39: ='Yield Calculator'!L19 -> 0.7469 | H39: ='Yield Calculator'!L21 -> 1.046466667 | I39: ='Yield Calculator'!L23 -> 1.5444 | J39: ='Yield Calculator'!L25 -> 1.9283 | K39: ='Yield Calculator'!L27 -> 2.6125
A40: =OR(rng_Chickpeas_DATA_SHEET,rng_Chickpeas_DATA_Sheet_R2) -> FALSE | D40: Hide | E40: Chickpeas | F40: Chickpeas Rotation 1 | G40: =G10 -> 0.4 | H40: =I40-(I40-G40)*0.3 ->  | I40: =IF(var_rain="Low",CHICKPEAS!L$10,IF(var_rain="Medium",CHICKPEAS!O$10, CHICKPEAS!R$10)) ->  | J40: =I40+(K40-I40)*0.4 ->  | K40: =I10 -> 3 | AG40: =G10 | AH40: =I40-(I40-G40)*0.3 | AI40: =IF(var_rain="Low",CHICKPEAS!L$10,IF(var_rain="Medium",CHICKPEAS!O$10, CHICKPEAS!R$10)) | AJ40: =I40+(K40-I40)*0.4 | AK40: =I10
A41: =OR(rng_Chickpeas_DATA_SHEET,rng_Chickpeas_DATA_Sheet_R2) -> FALSE | D41: Hide | F41: Adjusted Yield | G41: =G40-(G40*$P$71*$P$72)-(G40*$P$76*$P$77)-(G40*$P$79*$P$80)-(K$89*L$89) -> 0.4 | H41: =H40-(H40*$P$71*$P$72)-(H40*$P$76*$P$77)-(H40*$P$79*$P$80)-(L$89*M$89) ->  | I41: =I40-(I40*$P$71*$P$72)-(I40*$P$76*$P$77)-(I40*$P$79*$P$80)-(M$89*N$89) ->  | J41: =J40-(J40*$P$71*$P$72)-(J40*$P$76*$P$77)-(J40*$P$79*$P$80)-(N$89*O$89) ->  | K41: =K40-(K40*$P$71*$P$72)-(K40*$P$76*$P$77)-(K40*$P$79*$P$80)-(O$89*P$89) -> 3
A42: =OR(rng_Chickpeas_DATA_SHEET,rng_Chickpeas_DATA_Sheet_R2) -> FALSE | B42: R2 | D42: Hide | F42: Chickpeas Rotation 2
A43: =OR(rng_Field_Peas_DATA_SHEET,rng_Field_Peas_DATA_Sheet_R2) -> FALSE | C43: Yield | D43: Hide | F43: Yield Calculator | G43: ='Yield Calculator'!L23 -> 1.5444 | H43: ='Yield Calculator'!L25 -> 1.9283 | I43: ='Yield Calculator'!L27 -> 2.6125 | J43: ='Yield Calculator'!L29 -> 0 | K43: ='Yield Calculator'!L31 -> 0
A44: =OR(rng_Field_Peas_DATA_SHEET,rng_Field_Peas_DATA_Sheet_R2) -> FALSE | D44: Hide | E44: Field Peas | F44: Field Peas Rotation 1 | G44: =G11 -> 0 | H44: =I44-(I44-G44)*0.3 ->  | I44: =IF(var_rain="Low",PEAS!L$10,IF(var_rain="Medium",PEAS!O$10, PEAS!R$10)) ->  | J44: =I44+(K44-I44)*0.4 ->  | K44: =I11 -> 0 | AG44: =G11 | AH44: =I44-(I44-G44)*0.3 | AI44: =IF(var_rain="Low",PEAS!L$10,IF(var_rain="Medium",PEAS!O$10, PEAS!R$10)) | AJ44: =I44+(K44-I44)*0.4 | AK44: =I11
A45: =OR(rng_Field_Peas_DATA_SHEET,rng_Field_Peas_DATA_Sheet_R2) -> FALSE | D45: Hide | F45: Adjusted Yield | G45: =G44-(G44*$P$71*$P$72)-(G44*$P$76*$P$77)-(G44*$P$79*$P$80)-(K$89*L$89) -> 0 | H45: =H44-(H44*$P$71*$P$72)-(H44*$P$76*$P$77)-(H44*$P$79*$P$80)-(L$89*M$89) ->  | I45: =I44-(I44*$P$71*$P$72)-(I44*$P$76*$P$77)-(I44*$P$79*$P$80)-(M$89*N$89) ->  | J45: =J44-(J44*$P$71*$P$72)-(J44*$P$76*$P$77)-(J44*$P$79*$P$80)-(N$89*O$89) ->  | K45: =K44-(K44*$P$71*$P$72)-(K44*$P$76*$P$77)-(K44*$P$79*$P$80)-(O$89*P$89) -> 0
A46: =OR(rng_Field_Peas_DATA_SHEET,rng_Field_Peas_DATA_Sheet_R2) -> FALSE | B46: R2 | D46: =IF(AND(A46,OR(B46="",AND(B46="R2",var_rotationtype=2)),OR(C46="",AND(C46="Yield",var_useyields))),"Show","Hide") -> Hide | F46: Field Peas Rotation 2
A47: =OR(rng_Lupins_DATA_SHEET,rng_Lupins_DATA_Sheet_R2) -> FALSE | D47: Hide | E47: Lupins | F47: Lupins Rotation 1 | G47: =G12 -> 0 | H47: =I47-(I47-G47)*0.3 ->  | I47: =IF(var_rain="Low",LUPINS!L$10,IF(var_rain="Medium",LUPINS!O$10, LUPINS!R$10)) ->  | J47: =I47+(K47-I47)*0.4 ->  | K47: =I12 -> 0 | AG47: =G12 | AH47: =I47-(I47-G47)*0.3 | AI47: =IF(var_rain="Low",LUPINS!L$10,IF(var_rain="Medium",LUPINS!O$10, LUPINS!R$10)) | AJ47: =I47+(K47-I47)*0.4 | AK47: =I12
A48: =OR(rng_Lupins_DATA_SHEET,rng_Lupins_DATA_Sheet_R2) -> FALSE | B48: R2 | D48: Hide | F48: Lupins Rotation 2
A49: =OR(rng_lentils_DATA_SHEET,rng_lentils_DATA_Sheet_R2) -> FALSE | D49: Hide | E49: Lentils | F49: Lentils Rotation 1 | G49: =G13 -> 0 | H49: =I49-(I49-G49)*0.3 ->  | I49: =IF(var_rain="Low",LENTILS!L$10,IF(var_rain="Medium",LENTILS!O$10, LENTILS!R$10)) ->  | J49: =I49+(K49-I49)*0.4 ->  | K49: =I13 -> 0 | AG49: =G13 | AH49: =I49-(I49-G49)*0.3 | AI49: =IF(var_rain="Low",LENTILS!L$10,IF(var_rain="Medium",LENTILS!O$10, LENTILS!R$10)) | AJ49: =I49+(K49-I49)*0.4 | AK49: =I13
A50: =OR(rng_lentils_DATA_SHEET,rng_lentils_DATA_Sheet_R2) -> FALSE | B50: R2 | D50: Hide | F50: Lentils Rotation 2
A51: =OR(rng_lentils_imi_DATA_SHEET,rng_lentils_imi_DATA_Sheet_R2) -> FALSE | D51: Hide | E51: Lentils IMI | F51: Lentils IMI Rotation 1 | G51: =G14 -> 0 | H51: =I51-(I51-G51)*0.3 ->  | I51: =IF(var_rain="Low",'LENTILS IMI TOLERANT'!L$10,IF(var_rain="Medium",'LENTILS IMI TOLERANT'!O$10, 'LENTILS IMI TOLERANT'!R$10)) ->  | J51: =I51+(K51-I51)*0.4 ->  | K51: =I14 -> 0 | AG51: =G14 | AH51: =I51-(I51-G51)*0.3 | AI51: =IF(var_rain="Low",'LENTILS IMI TOLERANT'!L$10,IF(var_rain="Medium",'LENTILS IMI TOLERANT'!O$10, 'LENTILS IMI TOLERANT'!R$10)) | AJ51: =I51+(K51-I51)*0.4 | AK51: =I14
A52: =OR(rng_lentils_imi_DATA_SHEET,rng_lentils_imi_DATA_Sheet_R2) -> FALSE | B52: R2 | D52: Hide | F52: Lentils IMI Rotation 2
A53: =OR(rng_LENTILS_GIA_DATA_SHEET,rng_LENTILS_GIA_DATA_SHEET_R2) -> FALSE | D53: Hide | E53: Lentils MET | F53: Lentils MET Rotation 1 | G53: =G15 -> 0 | H53: =I53-(I53-G53)*0.3 ->  | I53: =IF(var_rain="Low",'LENTILS GIA METRO'!L$10,IF(var_rain="Medium",'LENTILS GIA METRO'!O$10, 'LENTILS GIA METRO'!R$10)) ->  | J53: =I53+(K53-I53)*0.4 ->  | K53: =I15 -> 0 | AG53: =G15 | AH53: =I53-(I53-G53)*0.3 | AI53: =IF(var_rain="Low",'LENTILS GIA METRO'!L$10,IF(var_rain="Medium",'LENTILS GIA METRO'!O$10, 'LENTILS GIA METRO'!R$10)) | AJ53: =I53+(K53-I53)*0.4 | AK53: =I15
A54: =OR(rng_LENTILS_GIA_DATA_SHEET,rng_LENTILS_GIA_DATA_SHEET_R2) -> FALSE | B54: R2 | D54: Hide | F54: Lentils MET Rotation 2
A55: =OR(rng_Vetch_DATA_SHEET,rng_LENTILS_GIA_DATA_SHEET_R2) -> FALSE | D55: Hide | E55: Vetch | F55: Vetch Rotation 1 | G55: =G16 -> 0 | H55: =I55-(I55-G55)*0.3 ->  | I55: =IF(var_rain="Low",VETCH!L$10,IF(var_rain="Medium",VETCH!O$10, VETCH!R$10)) ->  | J55: =I55+(K55-I55)*0.4 ->  | K55: =I16 -> 0 | AG55: =G16 | AH55: =I55-(I55-G55)*0.3 | AI55: =IF(var_rain="Low",VETCH!L$10,IF(var_rain="Medium",VETCH!O$10, VETCH!R$10)) | AJ55: =I55+(K55-I55)*0.4 | AK55: =I16
A56: =OR(rng_Vetch_DATA_SHEET,rng_LENTILS_GIA_DATA_SHEET_R2) -> FALSE | B56: R2 | D56: Hide | F56: Vetch Rotation 2
E57: Tick if you manage livestock?
E58: What is your stocking rate (DSE/ha) in different seasons? | H58: Select 'Pasture type' from drop-down lists
E59: Pasture / Livestock Stocking Rate | G59: Poor | H59: Below Average | I59: Average | J59: Above Average | K59: Very Good
E60: Self regen pasture | F60: DSE/ha | G60: =I60*0.5 ->  | H60: =I60*0.8 ->  | I60: =_xlfn.XLOOKUP(var_rain, INDEX(Grazing_array,1,), _xlfn.XLOOKUP(E60, INDEX(Grazing_array,,1), Grazing_array)) ->  | J60: =I60 ->  | K60: =I60 -> 
E61: Sown pasture | F61: DSE/ha | G61: =I61*0.5 ->  | H61: =I61*0.8 ->  | I61: =_xlfn.XLOOKUP(var_rain, INDEX(Grazing_array,1,), _xlfn.XLOOKUP(E61, INDEX(Grazing_array,,1), Grazing_array)) ->  | J61: =I61 ->  | K61: =I61 -> 
E62: Phalaris sub HR grazing | F62: DSE/ha | G62: =I62*0.5 ->  | H62: =I62*0.8 ->  | I62: =_xlfn.XLOOKUP(var_rain, INDEX(Grazing_array,1,), _xlfn.XLOOKUP(E62, INDEX(Grazing_array,,1), Grazing_array)) ->  | J62: =I62 ->  | K62: =I62 -> 
E63: What are your livestock gross margin returns ($/DSE) over a range of livestock commodity prices? Select 'Livestock enterprises' from drop-down lists
E64: Livestock Gross Margins | G64: Poor | H64: Below Average | I64: Average | J64: Above Average | K64: Very Good | L64: % DSE's
E65: Prime Lambs | F65: Decile $/DSE | G65: 35 | H65: 55 | I65: 60 | J65: 65 | K65: 75 | L65: 0.5
E66: Self Replacing Merino | F66: Decile $/DSE | G66: 40 | H66: 50 | I66: 70 | J66: 80 | K66: 88 | L66: 0.3
E67: Clean Skins | F67: Decile $/DSE | G67: 15 | H67: 25 | I67: 35 | J67: 40 | K67: 45 | L67: 0.2
